Workbook

Sheet START
A1: j

Sheet Instructions
D2: 2020
X4: Yes
X5: No
W7: Type of Entities Range:
X8: Parent Municipality
X9: Consolidated Information
F14: START
F15: Instructions
F16: Template names
F17: Lookup and lists | W17: MTREF Range: | X17: 2013
F18: Org structure | X18: 2014
F19: Contacts | X19: 2015
F20: A1-Sum | X20: 2016
F21: A2-FinPerf SC | X21: 2017
F22: A2A | X22: 2018
F23: A3-FinPerf V | X23: 2019
F24: A3A | X24: 2020
F25: A4-FinPerf RE | X25: 2021
F26: A5-Capex | X26: 2022
F27: A5A | X27: 2023
F28: A6-FinPos | X28: 2024
F29: A7-CFlow | X29: 2025
F30: A8-ResRecon | X30: 2026
F31: A9-Asset | X31: 2027
F32: A10-SerDel | X32: 2028
F33: SA1 | W33: MTREF Linked: | X33: 13
F34: SA2 | W34: MTREF: | X34: =INDEX(X17:X31,X33,1) -> 2025
F35: SA3
F36: SA4 | W36: Fin Year: | X36: =MTREF&"/"&RIGHT(MTREF,2)+1 -> 2025/26
F37: SA5
F38: SA6
F39: SA7
F40: SA8
F41: SA9
F42: SA10
F43: SA11
F44: SA12a
F45: SA12b
F46: SA13a
F47: SA13b
F48: SA14
F49: SA15
F50: SA16
F51: SA17
F52: SA18
F53: SA19
F54: SA20
F55: SA21
F56: SA22
F57: SA23
F58: SA24
F59: SA25
F60: SA26
F61: SA27
F62: SA28
F63: SA29
F64: SA30
F65: SA31
F66: SA32
F67: SA33
F68: SA34a
F69: SA34b
F70: SA34c
F71: SA34d
F72: SA34e
F73: SA35
F74: SA36
F75: SA37
F76: SA38
F77: LGDB_EXPORT

Sheet Template names (hidden)
A1: Common sheet headings
A2: Head1 | B2: =HLOOKUP(MTREF,Headings,2) -> 2023/24 | C2: Prior year -1
A3: Head1A | B3: =HLOOKUP(MTREF,Headings,3) -> 2022/23 | C3: Prior year -2
A4: Head1B | B4: =HLOOKUP(MTREF,Headings,4) -> 2021/22 | C4: Prior year -3
A5: Head2 | B5: =HLOOKUP(MTREF,Headings,5) -> Current Year 2024/25 | C5: Year in which budget is being prepared
A6: Head2A | B6: =HLOOKUP(MTREF,Headings,6) -> 2024/25 | C6: Year in which budget is being prepared
A7: Head3 | B7: =HLOOKUP(MTREF,Headings,7) -> 2025/26 Medium Term Revenue & Expenditure Framework | C7: MTREF name
A8: Head4 | B8: LTFS | C8: Long term financial strategy
A9: Head5 | B9: Audited Outcome
A10: Head5A | B10: Outcome
A11: Head5B | B11: Pre-audit outcome
A12: Head6 | B12: Original Budget
A13: Head7 | B13: Adjusted Budget
A14: Head8 | B14: Full Year Forecast
A15: Head9 | B15: =HLOOKUP(MTREF,Headings,8) -> Budget Year 2025/26 | C15: 1st year of MTREF | D15: Year1
A16: Head10 | B16: =HLOOKUP(MTREF,Headings,9) -> Budget Year +1 2026/27 | C16: 2nd year of MTREF | D16: Year2
A17: Head11 | B17: =HLOOKUP(MTREF,Headings,10) -> Budget Year +2 2027/28 | C17: 3rd year of MTREF | D17: Year3
A18: Head12 | B18: =HLOOKUP(MTREF,Headings,11) -> Forecast 2028/29 | C18: 1st yr of long term forecast | D18: Year4
A19: Head13 | B19: =HLOOKUP(MTREF,Headings,12) -> Forecast 2029/30 | C19: Next yr of long term forecast | D19: Year5
A20: Head14 | B20: =HLOOKUP(MTREF,Headings,13) -> Forecast 2030/31 | C20: Next yr of long term forecast | D20: Year6
A21: Head15 | B21: =HLOOKUP(MTREF,Headings,14) -> Forecast 2031/32 | C21: Next yr of long term forecast | D21: Year7
A22: Head16 | B22: =HLOOKUP(MTREF,Headings,15) -> Forecast 2032/33 | C22: Next yr of long term forecast | D22: Year8
A23: Head17 | B23: =HLOOKUP(MTREF,Headings,16) -> Forecast 2033/34 | C23: Next yr of long term forecast | D23: Year9
A24: Head18 | B24: =HLOOKUP(MTREF,Headings,17) -> Forecast 2034/35 | C24: Next yr of long term forecast | D24: Year10
A25: Head19 | B25: =HLOOKUP(MTREF,Headings,18) -> Forecast 2035/36 | C25: Next yr of long term forecast | D25: Year11
A26: Head20 | B26: =HLOOKUP(MTREF,Headings,19) -> Forecast 2036/37 | C26: Next yr of long term forecast | D26: Year12
A27: Head21 | B27: =HLOOKUP(MTREF,Headings,20) -> Forecast 2037/38 | C27: Next yr of long term forecast | D27: Year13
A28: Head22 | B28: =HLOOKUP(MTREF,Headings,21) -> Forecast 2038/39 | C28: Next yr of long term forecast | D28: Year14
A29: Head23 | B29: =HLOOKUP(MTREF,Headings,22) -> Forecast 2039/40 | C29: Next yr of long term forecast | D29: Year15
A30: Head24 | B30: Description
A31: Head25
A32: Head26 | B32: Vote Description
A33: Head27 | B33: Ref
A34: Head27a | B34: References
A35: Head28 | B35: Surplus/(Deficit) for the year | D35: Result
A36: Head29 | B36: =HLOOKUP(MTREF,Headings,23) -> Annual target 2025/26
A37: Head30 | B37: =HLOOKUP(MTREF,Headings,24) -> Revised target 2025/26
A38: Head31 | B38: Quarter ended 30 September
A39: Head32 | B39: Quarter ended 31 December
A40: Head33 | B40: Quarter ended 31 March
A41: Head34 | B41: Quarter ended 30 June
A42: Head35 | B42: Variance explanation
A43: Head36 | B43: YTD Actual 31 Dec
A44: Head37 | B44: YTD Budget 31 Dec
A45: Head38 | B45: Monthly actual
A46: Head39 | B46: YTD actual
A47: Head40 | B47: YTD budget
A48: Head41 | B48: YTD variance
A49: Head42 | B49: Surplus/ (Deficit) for the yr/period
A50: Head43 | B50: =Head3&" Summary" -> 2025/26 Medium Term Revenue & Expenditure Framework Summary
A51: Head44 | B51: 2001 Census
A52: Head45 | B52: 2011 Census
A53: Head46 | B53: - Adjustments Budget - January 2007
A54: Head47 | B54: Previous target year to complete
A55: Head48 | B55: Present value
A56: Head49
A57: Head50 | B57: Other Adjusts.
A58: Head51 | B58: Accum. Funds
A59: Head52 | B59: Multi-year capital
A60: Head53 | B60: Unfore. Unavoid.
A61: Head54 | B61: Prior Adjusted
A62: Head55 | B62: Nat. or Prov. Govt
A63: Head56 | B63: Total Adjusts.
A64: SFPerf1 | B64: Budgeted Financial Performance
A65: SFPerf2 | B65: Forecast Financial Performance
A66: SFPos1 | B66: Budgeted Financial Position
A67: SFPos2 | B67: Forecast Financial Position
A68: Cash1 | B68: Budget Cash Flow
A69: Cash2 | B69: Forecast Cash Flow
A70: RandM | B70: Expenditure includes repairs & maintenance of R'000
A71: Depart1 | B71: Department 1 - | D71: DEP1
A72: Depart2 | B72: Department 2 - | D72: DEP2
A73: Depart3 | B73: Department 3 - | D73: DEP3
A74: Depart4 | B74: Department 4 - | D74: DEP4
A75: Depart5 | B75: Department 5 - | D75: DEP5
A76: Depart6 | B76: Department 6 - | D76: DEP6
A77: Depart7 | B77: Department 7 - | D77: DEP7
A78: Depart8 | B78: Department 8 - | D78: DEP8
A79: Depart9 | B79: Department 9 - | D79: DEP9
A80: Depart10 | B80: Department 10 - | D80: DEP10
A81: Depart11 | B81: Department 11 - | D81: DEP11
A82: Depart12 | B82: Department 12 - | D82: DEP12
A83: Depart13 | B83: Department 13 - | D83: DEP13
A84: Depart14 | B84: Department 14 - | D84: DEP14
A87: Base year of forecast column selection names
A88: Choose | B88: ACT
B89: APP
B90: ADJ
A92: Standard nomenclature
A93: Muni | B93: ='Lookup and lists'!B28 -> Choose name from list
A94: Municipal Entities | B94: 2 | C94: Type of report: | D94: 2
A95: =IF((MuniEntities=1)*(MuniType=2),"YES","NO") -> NO | B95: Does this municipality have entities (consolidated budget and entity budgets required)? YES/NO
A96: Entity 1 | B96: (Pty) Ltd Example 1 - Municipal entity - | D96: Ent1
A97: Entity 2 | B97: (Pty) Ltd Example 2 - Municipal entity - | D97: Ent2
A98: Entity 3 | B98: Municipal Entity Example 3 | D98: Ent3
A99: Budget approval tables | C99: Chart x-ref | D99: Sch/Tab/Ch | E99: Alternative for municipalities without entities | F99: Alternative for municipalities without entities
B100: =IF(Consolques="YES",E100,F100) -> Table A1 Budget Summary | D100: Table A1 | E100: =D100&"Consolidated Budget Summary" -> Table A1 Consolidated Budget Summary | F100: =D100&"Budget Summary" -> Table A1 Budget Summary
B101: Table A2 Budgeted Financial Performance (revenue and expenditure by functional classification) | C101: Charts 5, 6 | D101: Table A2 | E101: =D101&"Consolidated Budgeted Financial Performance (revenue and expenditure by functional classification)" -> Table A2 Consolidated Budgeted Financial Performance (revenue and expenditure by functional classification) | F101: =D101&"Budgeted Financial Performance (revenue and expenditure by functional classification)" -> Table A2 Budgeted Financial Performance (revenue and expenditure by functional classification)
B102: Table A3 Budgeted Financial Performance (revenue and expenditure by municipal vote) | D102: Table A3 | E102: =D102&"Consolidated Budgeted Financial Performance (revenue and expenditure by municipal vote)" -> Table A3 Consolidated Budgeted Financial Performance (revenue and expenditure by municipal vote) | F102: =D102&"Budgeted Financial Performance (revenue and expenditure by municipal vote)" -> Table A3 Budgeted Financial Performance (revenue and expenditure by municipal vote)
B103: Table A4 Budgeted Financial Performance (revenue and expenditure) | C103: Charts 1, 2, 3, 4 | D103: Table A4 | E103: =D103&"Consolidated Budgeted Financial Performance (revenue and expenditure)" -> Table A4 Consolidated Budgeted Financial Performance (revenue and expenditure) | F103: =D103&"Budgeted Financial Performance (revenue and expenditure)" -> Table A4 Budgeted Financial Performance (revenue and expenditure)
B104: Table A5 Budgeted Capital Expenditure by vote, functional classification and funding | C104: Charts 7, 8, 9, 10, 20 | D104: Table A5 | E104: =D104&"Consolidated Budgeted Capital Expenditure by vote, functional classification and funding" -> Table A5 Consolidated Budgeted Capital Expenditure by vote, functional classification and funding | F104: =D104&"Budgeted Capital Expenditure by vote, functional classification and funding" -> Table A5 Budgeted Capital Expenditure by vote, functional classification and funding
B105: Table A6 Budgeted Financial Position | D105: Table A6 | E105: =D105&"Consolidated Budgeted Financial Position" -> Table A6 Consolidated Budgeted Financial Position | F105: =D105&"Budgeted Financial Position" -> Table A6 Budgeted Financial Position
B106: Table A7 Budgeted Cash Flows | D106: Table A7 | E106: =D106&"Consolidated Budgeted Cash Flows" -> Table A7 Consolidated Budgeted Cash Flows | F106: =D106&"Budgeted Cash Flows" -> Table A7 Budgeted Cash Flows
B107: Table A8 Cash backed reserves/accumulated surplus reconciliation | D107: Table A8 | E107: =D107&"Consolidated Cash backed reserves/accumulated surplus reconciliation" -> Table A8 Consolidated Cash backed reserves/accumulated surplus reconciliation | F107: =D107&"Cash backed reserves/accumulated surplus reconciliation" -> Table A8 Cash backed reserves/accumulated surplus reconciliation
B108: Table A9 Asset Management | D108: Table A9 | E108: =D108&"Consolidated Asset Management" -> Table A9 Consolidated Asset Management | F108: =D108&"Asset Management" -> Table A9 Asset Management
B109: Table A10 Basic service delivery measurement | D109: Table A10 | E109: =D109&"Consolidated basic service delivery measurement" -> Table A10 Consolidated basic service delivery measurement | F109: =D109&"Basic service delivery measurement" -> Table A10 Basic service delivery measurement
A110: Supportinging Tables to the Budget Approval Tables | C110: =$C$99 -> Chart x-ref | D110: =$D$99 -> Sch/Tab/Ch
A111: Supporting Table SA1 | B111: =A111&" Supportinging detail to 'Budgeted Financial Performance'" -> Supporting Table SA1 Supportinging detail to 'Budgeted Financial Performance'
A112: Supporting Table SA2 | B112: =IF(Consolques="YES",E112,F112) -> Supporting Table SA2 Matrix Financial Performance Budget (revenue source/expenditure type and dept.) | E112: =A112&"Consolidated Matrix Financial Performance Budget (revenue source/expenditure type & dept.)" -> Supporting Table SA2 Consolidated Matrix Financial Performance Budget (revenue source/expenditure type & dept.) | F112: =A112&"Matrix Financial Performance Budget (revenue source/expenditure type and dept.)" -> Supporting Table SA2 Matrix Financial Performance Budget (revenue source/expenditure type and dept.)
A113: Supporting Table SA3 | B113: =A113&"Supportinging detail to 'Budgeted Financial Position'" -> Supporting Table SA3 Supportinging detail to 'Budgeted Financial Position'
A114: Supporting Table SA4 | B114: =A114&"Reconciliation of IDP strategic objectives and budget (revenue)" -> Supporting Table SA4 Reconciliation of IDP strategic objectives and budget (revenue) | C114: Chart 11
A115: Supporting Table SA5 | B115: =A115&"Reconciliation of IDP strategic objectives and budget (operating expenditure)" -> Supporting Table SA5 Reconciliation of IDP strategic objectives and budget (operating expenditure) | C115: Chart 12
A116: Supporting Table SA6 | B116: =A116&"Reconciliation of IDP strategic objectives and budget (capital expenditure)" -> Supporting Table SA6 Reconciliation of IDP strategic objectives and budget (capital expenditure) | C116: Chart 13
A117: Supporting Table SA7 | B117: =A117&" Measureable performance objectives" -> Supporting Table SA7 Measureable performance objectives
A118: Supporting Table SA8 | B118: =A118&" Performance indicators and benchmarks" -> Supporting Table SA8 Performance indicators and benchmarks | C118: Chts 15-19
A119: Supporting Table SA9 | B119: =A119&" Social, economic and demographic statistics and assumptions" -> Supporting Table SA9 Social, economic and demographic statistics and assumptions
A120: Supporting Table SA10 | B120: =A120&" Funding measurement" -> Supporting Table SA10 Funding measurement | C120: Chart 14
A121: Supporting Table SA11 | B121: =A121&" Property rates summary" -> Supporting Table SA11 Property rates summary
A122: Supporting Table SA12a | B122: =A122&" Property rates by category (current year)" -> Supporting Table SA12a Property rates by category (current year)
A123: Supporting Table SA12b | B123: =A123&" Property rates by category (budget year)" -> Supporting Table SA12b Property rates by category (budget year)
A124: Supporting Table SA13a | B124: =A124&" Service Tariffs by category" -> Supporting Table SA13a Service Tariffs by category
A125: Supporting Table SA13b | B125: =A125&" Service Tariffs by category - explanatory" -> Supporting Table SA13b Service Tariffs by category - explanatory
A126: Supporting Table SA14 | B126: =A126&" Household bills" -> Supporting Table SA14 Household bills
A127: Supporting Table SA15 | B127: =A127&" Investment particulars by type" -> Supporting Table SA15 Investment particulars by type
A128: Supporting Table SA16 | B128: =A128&" Investment particulars by maturity" -> Supporting Table SA16 Investment particulars by maturity
A129: Supporting Table SA17 | B129: =A129&" Borrowing" -> Supporting Table SA17 Borrowing
A130: Supporting Table SA18 | B130: =A130&" Transfers and grant receipts" -> Supporting Table SA18 Transfers and grant receipts
A131: Supporting Table SA19 | B131: =A131&" Expenditure on transfers and grant programme" -> Supporting Table SA19 Expenditure on transfers and grant programme
A132: Supporting Table SA20 | B132: =A132&" Reconciliation of transfers, grant receipts and unspent funds" -> Supporting Table SA20 Reconciliation of transfers, grant receipts and unspent funds
A133: Supporting Table SA21 | B133: =A133&" Transfers and grants made by the municipality" -> Supporting Table SA21 Transfers and grants made by the municipality
A134: Supporting Table SA22 | B134: =A134&" Summary councillor and staff benefits" -> Supporting Table SA22 Summary councillor and staff benefits
A135: Supporting Table SA23 | B135: =A135&" Salaries, allowances & benefits (political office bearers/councillors/senior managers)" -> Supporting Table SA23 Salaries, allowances & benefits (political office bearers/councillors/senior managers)
A136: Supporting Table SA24 | B136: =A136&" Summary of personnel numbers" -> Supporting Table SA24 Summary of personnel numbers
A137: Supporting Table SA25 | B137: =IF(Consolques="YES",E137,F137) -> Supporting Table SA25 Budgeted monthly revenue and expenditure | E137: =A137&" Consolidated budgeted monthly revenue and expenditure" -> Supporting Table SA25 Consolidated budgeted monthly revenue and expenditure | F137: =A137&" Budgeted monthly revenue and expenditure" -> Supporting Table SA25 Budgeted monthly revenue and expenditure
A138: Supporting Table SA26 | B138: Supporting Table SA26 Budgeted monthly revenue and expenditure (municipal vote) | E138: =A138&" Consolidated budgeted monthly revenue and expenditure (municipal vote)" -> Supporting Table SA26 Consolidated budgeted monthly revenue and expenditure (municipal vote) | F138: =A138&" Budgeted monthly revenue and expenditure (municipal vote)" -> Supporting Table SA26 Budgeted monthly revenue and expenditure (municipal vote)
A139: Supporting Table SA27 | B139: Supporting Table SA27 Budgeted monthly revenue and expenditure (functional classification) | E139: =A139&" Consolidated budgeted monthly revenue and expenditure (functional classification)" -> Supporting Table SA27 Consolidated budgeted monthly revenue and expenditure (functional classification) | F139: =A139&" Budgeted monthly revenue and expenditure (functional classification)" -> Supporting Table SA27 Budgeted monthly revenue and expenditure (functional classification)
A140: Supporting Table SA28 | B140: Supporting Table SA28 Budgeted monthly capital expenditure (municipal vote) | E140: =A140&" Consolidated budgeted monthly capital expenditure (municipal vote)" -> Supporting Table SA28 Consolidated budgeted monthly capital expenditure (municipal vote) | F140: =A140&" Budgeted monthly capital expenditure (municipal vote)" -> Supporting Table SA28 Budgeted monthly capital expenditure (municipal vote)
A141: Supporting Table SA29 | B141: Supporting Table SA29 Budgeted monthly capital expenditure (functional classification) | E141: =A141&" Consolidated budgeted monthly capital expenditure (functional classification)" -> Supporting Table SA29 Consolidated budgeted monthly capital expenditure (functional classification) | F141: =A141&" Budgeted monthly capital expenditure (functional classification)" -> Supporting Table SA29 Budgeted monthly capital expenditure (functional classification)
A142: Supporting Table SA30 | B142: Supporting Table SA30 Budgeted monthly cash flow | E142: =A142&" Consolidated budgeted monthly cash flow" -> Supporting Table SA30 Consolidated budgeted monthly cash flow | F142: =A142&" Budgeted monthly cash flow" -> Supporting Table SA30 Budgeted monthly cash flow
A143: Supporting Table SA31 | B143: NOT REQUIRED - municipality does not have entities | E143: =A143&" Aggregated entity budget" -> Supporting Table SA31 Aggregated entity budget | F143: NOT REQUIRED - municipality does not have entities
A144: Supporting Table SA32 | B144: =A144&" List of external mechanisms" -> Supporting Table SA32 List of external mechanisms
A145: Supporting Table SA33 | B145: =A145&" Contracts having future budgetary implications" -> Supporting Table SA33 Contracts having future budgetary implications
A146: Supporting Table SA34a | B146: =IF(Consolques="YES",E146,F146) -> Supporting Table SA34a Capital expenditure on new assets by asset class | E146: =A146&" Consolidated capital expenditure on new assets by asset class" -> Supporting Table SA34a Consolidated capital expenditure on new assets by asset class | F146: =A146&" Capital expenditure on new assets by asset class" -> Supporting Table SA34a Capital expenditure on new assets by asset class
A147: Supporting Table SA34b | B147: Supporting Table SA34b Capital expenditure on the renewal of existing assets by asset class | E147: =A147&" Consolidated capital expenditure on the renewal of existing assets by asset class" -> Supporting Table SA34b Consolidated capital expenditure on the renewal of existing assets by asset class | F147: =A147&" Capital expenditure on the renewal of existing assets by asset class" -> Supporting Table SA34b Capital expenditure on the renewal of existing assets by asset class
A148: Supporting Table SA34c | B148: Supporting Table SA34c Repairs and maintenance expenditure by asset class | E148: =A148&" Consolidated repairs and maintenance by asset class" -> Supporting Table SA34c Consolidated repairs and maintenance by asset class | F148: =A148&" Repairs and maintenance expenditure by asset class" -> Supporting Table SA34c Repairs and maintenance expenditure by asset class
A149: Supporting Table SA34d | B149: =IF(Consolques="YES",E149,F149) -> Supporting Table SA34d Depreciation by asset class | E149: =A149&" Consolidated Depreciation by asset class" -> Supporting Table SA34d Consolidated Depreciation by asset class | F149: =A149&" Depreciation by asset class" -> Supporting Table SA34d Depreciation by asset class
A150: Supporting Table SA34e | B150: =IF(Consolques="YES",E150,F150) -> Supporting Table SA34e Capital expenditure on the upgrading of existing assets by asset class | E150: =A150&" Consolidated capital expenditure on the upgrading of existing assets by asset class" -> Supporting Table SA34e Consolidated capital expenditure on the upgrading of existing assets by asset class | F150: =A150&" Capital expenditure on the upgrading of existing assets by asset class" -> Supporting Table SA34e Capital expenditure on the upgrading of existing assets by asset class
A151: Supporting Table SA35 | B151: Supporting Table SA35 Future financial implications of the capital budget | E151: =A151&" Consolidated future financial implications of the capital budget" -> Supporting Table SA35 Consolidated future financial implications of the capital budget | F151: =A151& " Future financial implications of the capital budget" -> Supporting Table SA35 Future financial implications of the capital budget
A152: Supporting Table SA36 | B152: Supporting Table SA36 Detailed capital budget | E152: =A152&" Consolidated detailed capital budget" -> Supporting Table SA36 Consolidated detailed capital budget | F152: =A152& " Detailed capital budget" -> Supporting Table SA36 Detailed capital budget
A153: Supporting Table SA37 | B153: Supporting Table SA37 Projects delayed from previous financial year/s | E153: =A153&" Consolidated projects delayed from previous financial year/s" -> Supporting Table SA37 Consolidated projects delayed from previous financial year/s | F153: =A153& " Projects delayed from previous financial year/s" -> Supporting Table SA37 Projects delayed from previous financial year/s
A154: Supporting Table SA38 | B154: =IF(Consolques="YES",E154,F154) -> Supporting Table SA38 Detailed operational projects | E154: =A154&" Consolidated detailed operational projects" -> Supporting Table SA38 Consolidated detailed operational projects | F154: =A154& " Detailed operational projects" -> Supporting Table SA38 Detailed operational projects
A156: Budget Charts | B156: Charts | C156: Cross reference
A157: Chart A1 | B157: =A157&"Revenue by Municipal Vote" -> Chart A1 Revenue by Municipal Vote
A158: Chart A2 | B158: =A158&"Expenditure by Municipal Vote" -> Chart A2 Expenditure by Municipal Vote
A159: Chart A3 | B159: =A159&"Revenue by Standard Classification" -> Chart A3 Revenue by Standard Classification | C159: A2
A160: Chart A4 | B160: =A160&"Expenditure by Standard Classification" -> Chart A4 Expenditure by Standard Classification | C160: A2
A161: Chart A5 | B161: =A161&"Revenue by Major Source (refer 'Minor' source for 'Other Revenue' allocation" -> Chart A5 Revenue by Major Source (refer 'Minor' source for 'Other Revenue' allocation | C161: A3
A162: Chart A6 | B162: =A162&"Revenue by Minor Source (Other)" -> Chart A6 Revenue by Minor Source (Other) | C162: A3
A163: Chart A7 | B163: =A163&"Expenditure by Major Type" -> Chart A7 Expenditure by Major Type | C163: A3
A164: Chart A8 | B164: =A164&"Expenditure by Minor Type (Other)" -> Chart A8 Expenditure by Minor Type (Other) | C164: A3
A165: Chart A9 | B165: =A165&"Capital Expenditure by Municipal Vote/Appropriation (Major)" -> Chart A9 Capital Expenditure by Municipal Vote/Appropriation (Major) | C165: A5
A166: Chart A10 | B166: =A166&"Capital Expenditure by Municipal Vote/Appropriation (Minor)" -> Chart A10 Capital Expenditure by Municipal Vote/Appropriation (Minor) | C166: A5
A167: Chart A11 | B167: =A166&"Capital Expenditure by Standard Classification" -> Chart A10 Capital Expenditure by Standard Classification | C167: A5
A168: Chart A12 | B168: =A168&"Capital expenditure performance trend" -> Chart A12 Capital expenditure performance trend | C168: A5
A169: Chart A13 | B169: =A169&"Capital funding by Source" -> Chart A13 Capital funding by Source | C169: A5
A170: Chart A14 | B170: =A170&"Cash flow trend" -> Chart A14 Cash flow trend | C170: A7
A171: Chart A15 | B171: =A171&"IDP Strategic Objective - Revenue" -> Chart A15 IDP Strategic Objective - Revenue | C171: Table A4
A172: Chart A16 | B172: =A172&"IDP Strategic Objective - Expenditure" -> Chart A16 IDP Strategic Objective - Expenditure | C172: Table A5
A173: Chart A17 | B173: =A173&"IDP Strategic Objective - Capital Expenditure" -> Chart A17 IDP Strategic Objective - Capital Expenditure | C173: Table A6
A174: Chart A18 | B174: =A174&"Debt (borrowing to Total Revenue)" -> Chart A18 Debt (borrowing to Total Revenue) | C174: Table A8
A175: Chart A19 | B175: =A175&"Debtors' trend analysis" -> Chart A19 Debtors' trend analysis | C175: Table A8
A176: Chart A20 | B176: =A176&"Distribution losses" -> Chart A20 Distribution losses | C176: Table A8
A177: Chart A21 | B177: =A177&"Borrowed funding of capital expenditure" -> Chart A21 Borrowed funding of capital expenditure | C177: Table A8
A178: Chart A22 | B178: =A178&"Expenditure analysis (% of Revenue)" -> Chart A22 Expenditure analysis (% of Revenue) | C178: Table A8
A179: Chart A23 | B179: =A179&"Increases in service charges" -> Chart A23 Increases in service charges | C179: Table A10

Sheet Lookup and lists (hidden)
A1: Description | B1: 2013 | C1: 2014 | D1: 2015 | E1: 2016 | F1: 2017 | G1: 2018 | H1: 2019 | I1: 2020 | J1: 2021 | K1: 2022 | L1: 2023 | M1: 2024 | N1: 2025 | O1: 2026 | Q1: Lists | Y1: Grants: | Z1: National - opex | AA1: Provincial - opex | AB1: National - capex | AC1: Provincial - capex
A2: ='Template names'!C2 -> Prior year -1 | B2: =B1-2&"/"&RIGHT(B1,2)-1 -> 2011/12 | C2: 2012/13 | D2: 2013/14 | E2: 2014/15 | F2: 2015/16 | G2: 2016/17 | H2: 2017/18 | I2: 2018/19 | J2: =J1-2&"/"&RIGHT(J1,2)-1 -> 2019/20 | K2: 2020/21 | L2: 2021/22 | M2: 2022/23 | N2: 2023/24 | O2: 2024/25 | Q2: Yes | R2: <1 | S2: <4 | T2: Market | U2: Land & impr. | V2: Yes | W2: Uniform | X2: Yrs | Z2: Local Government Equitable Share | AA2: Health subsidy | AB2: Municipal Infrastructure Grant (MIG) | AC2: Agriculture
A3: ='Template names'!C3 -> Prior year -2 | B3: =B1-3&"/"&RIGHT(B1,2)-2 -> 2010/11 | C3: 2011/12 | D3: 2012/13 | E3: 2013/14 | F3: 2014/15 | G3: 2015/16 | H3: 2016/17 | I3: 2017/18 | J3: =J1-3&"/"&RIGHT(J1,2)-2 -> 2018/19 | K3: 2019/20 | L3: 2020/21 | M3: 2021/22 | N3: 2022/23 | O3: 2023/24 | Q3: No | R3: 1 | S3: 4 | T3: Dep.Replace | U3: Land only | V3: No | W3: Variable | X3: Mths | Z3: RSC Levy Replacement | AA3: Ambulance subsidy | AB3: Public Transport and Systems | AC3: Education
A4: ='Template names'!C4 -> Prior year -3 | B4: =B1-4&"/"&RIGHT(B1,2)-3 -> 2009/10 | C4: 2010/11 | D4: 2011/12 | E4: 2012/13 | F4: 2013/14 | G4: 2014/15 | H4: 2015/16 | I4: 2016/17 | J4: =J1-4&"/"&RIGHT(J1,2)-3 -> 2017/18 | K4: 2018/19 | L4: 2019/20 | M4: 2020/21 | N4: 2021/22 | O4: 2022/23 | R4: 2 | S4: 5 | T4: Other | U4: Other | Z4: Finance Management | AA4: Housing | AB4: Rural Transport Services and Infrastructure | AC4: Health
A5: ='Template names'!C5 -> Year in which budget is being prepared | B5: ="Current Year "& B1-1&"/"&RIGHT(B1,2) -> Current Year 2012/13 | C5: Current Year 2013/14 | D5: Current Year 2014/15 | E5: Current Year 2015/16 | F5: Current Year 2016/17 | G5: Current Year 2017/18 | H5: Current Year 2018/19 | I5: Current Year 2019/20 | J5: ="Current Year "& J1-1&"/"&RIGHT(J1,2) -> Current Year 2020/21 | K5: Current Year 2021/22 | L5: Current Year 2022/23 | M5: Current Year 2023/24 | N5: Current Year 2024/25 | O5: Current Year 2025/26 | R5: 3 | S5: 6 | Z5: Municipal Systems Improvement | AA5: Sport and Recreation | AB5: Regional Bulk Infrastructure | AC5: Housing and Local Government
A6: ='Template names'!C6 -> Year in which budget is being prepared | B6: =B1-1&"/"&RIGHT(B1,2) -> 2012/13 | C6: 2013/14 | D6: 2014/15 | E6: 2015/16 | F6: 2016/17 | G6: 2017/18 | H6: 2018/19 | I6: 2019/20 | J6: =J1-1&"/"&RIGHT(J1,2) -> 2020/21 | K6: 2021/22 | L6: 2022/23 | M6: 2023/24 | N6: 2024/25 | O6: 2025/26 | R6: 4 | S6: 6-10 | Z6: Water Services Operating Subsidy | AB6: Rural Households Infrastructure | AC6: Other Departments
A7: ='Template names'!C7 -> MTREF name | B7: =B1&"/"&RIGHT(B1,2)+1&" Medium Term Revenue & Expenditure Framework" -> 2013/14 Medium Term Revenue & Expenditure Framework | C7: 2014/15 Medium Term Revenue & Expenditure Framework | D7: 2015/16 Medium Term Revenue & Expenditure Framework | E7: 2016/17 Medium Term Revenue & Expenditure Framework | F7: 2017/18 Medium Term Revenue & Expenditure Framework | G7: 2018/19 Medium Term Revenue & Expenditure Framework | H7: 2019/20 Medium Term Revenue & Expenditure Framework | I7: 2020/21 Medium Term Revenue & Expenditure Framework | J7: =J1&"/"&RIGHT(J1,2)+1&" Medium Term Revenue & Expenditure Framework" -> 2021/22 Medium Term Revenue & Expenditure Framework | K7: 2022/23 Medium Term Revenue & Expenditure Framework | L7: 2023/24 Medium Term Revenue & Expenditure Framework | M7: 2024/25 Medium Term Revenue & Expenditure Framework | N7: 2025/26 Medium Term Revenue & Expenditure Framework | O7: 2026/27 Medium Term Revenue & Expenditure Framework | R7: 5 | S7: >10 | Z7: Energy Efficiency and Demand Management | AB7: Neighbourhood Development Partnership | AC7: Public Works, Roads, Transport
A8: ='Template names'!C15 -> 1st year of MTREF | B8: ="Budget Year "&B1&"/"&RIGHT(B1,2)+1 -> Budget Year 2013/14 | C8: Budget Year 2014/15 | D8: Budget Year 2015/16 | E8: Budget Year 2016/17 | F8: Budget Year 2017/18 | G8: Budget Year 2018/19 | H8: Budget Year 2019/20 | I8: Budget Year 2020/21 | J8: ="Budget Year "&J1&"/"&RIGHT(J1,2)+1 -> Budget Year 2021/22 | K8: Budget Year 2022/23 | L8: Budget Year 2023/24 | M8: Budget Year 2024/25 | N8: Budget Year 2025/26 | O8: Budget Year 2026/27 | R8: >5 | Z8: Integrated National Electrification Programme | AB8: 2010 FIFA World Cup Stadiums Development | AC8: Sport and Recreation
A9: ='Template names'!C16 -> 2nd year of MTREF | B9: ="Budget Year +1 "&B1+1&"/"&RIGHT(B1,2)+2 -> Budget Year +1 2014/15 | C9: Budget Year +1 2015/16 | D9: Budget Year +1 2016/17 | E9: Budget Year +1 2017/18 | F9: Budget Year +1 2018/19 | G9: Budget Year +1 2019/20 | H9: Budget Year +1 2020/21 | I9: Budget Year +1 2021/22 | J9: ="Budget Year +1 "&J1+1&"/"&RIGHT(J1,2)+2 -> Budget Year +1 2022/23 | K9: Budget Year +1 2023/24 | L9: Budget Year +1 2024/25 | M9: Budget Year +1 2025/26 | N9: Budget Year +1 2026/27 | O9: Budget Year +1 2027/28 | Z9: Municipal Drought Relief
A10: ='Template names'!C17 -> 3rd year of MTREF | B10: ="Budget Year +2 "&B1+2&"/"&RIGHT(B1,2)+3 -> Budget Year +2 2015/16 | C10: Budget Year +2 2016/17 | D10: Budget Year +2 2017/18 | E10: Budget Year +2 2018/19 | F10: Budget Year +2 2019/20 | G10: Budget Year +2 2020/21 | H10: Budget Year +2 2021/22 | I10: Budget Year +2 2022/23 | J10: ="Budget Year +2 "&J1+2&"/"&RIGHT(J1,2)+3 -> Budget Year +2 2023/24 | K10: Budget Year +2 2024/25 | L10: Budget Year +2 2025/26 | M10: Budget Year +2 2026/27 | N10: Budget Year +2 2027/28 | O10: Budget Year +2 2028/29 | Z10: 2010 FIFA World Cup Operating
A11: ='Template names'!C18 -> 1st yr of long term forecast | B11: ="Forecast "&B1+3&"/"&RIGHT(B1,2)+4 -> Forecast 2016/17 | C11: Forecast 2017/18 | D11: Forecast 2018/19 | E11: Forecast 2019/20 | F11: Forecast 2020/21 | G11: Forecast 2021/22 | H11: Forecast 2022/23 | I11: Forecast 2023/24 | J11: ="Forecast "&J1+3&"/"&RIGHT(J1,2)+4 -> Forecast 2024/25 | K11: Forecast 2025/26 | L11: Forecast 2026/27 | M11: Forecast 2027/28 | N11: Forecast 2028/29 | O11: Forecast 2029/30 | Z11: Electricity Demand Side Management
A12: ='Template names'!C19 -> Next yr of long term forecast | B12: ="Forecast "&B1+4&"/"&RIGHT(B1,2)+5 -> Forecast 2017/18 | C12: Forecast 2018/19 | D12: Forecast 2019/20 | E12: Forecast 2020/21 | F12: Forecast 2021/22 | G12: Forecast 2022/23 | H12: Forecast 2023/24 | I12: Forecast 2024/25 | J12: ="Forecast "&J1+4&"/"&RIGHT(J1,2)+5 -> Forecast 2025/26 | K12: Forecast 2026/27 | L12: Forecast 2027/28 | M12: Forecast 2028/29 | N12: Forecast 2029/30 | O12: Forecast 2030/31 | Z12: EPWP Incentive
A13: ='Template names'!C20 -> Next yr of long term forecast | B13: ="Forecast "&B1+5&"/"&RIGHT(B1,2)+6 -> Forecast 2018/19 | C13: Forecast 2019/20 | D13: Forecast 2020/21 | E13: Forecast 2021/22 | F13: Forecast 2022/23 | G13: Forecast 2023/24 | H13: Forecast 2024/25 | I13: Forecast 2025/26 | J13: ="Forecast "&J1+5&"/"&RIGHT(J1,2)+6 -> Forecast 2026/27 | K13: Forecast 2027/28 | L13: Forecast 2028/29 | M13: Forecast 2029/30 | N13: Forecast 2030/31 | O13: Forecast 2031/32
A14: ='Template names'!C21 -> Next yr of long term forecast | B14: ="Forecast "&B1+6&"/"&RIGHT(B1,2)+7 -> Forecast 2019/20 | C14: Forecast 2020/21 | D14: Forecast 2021/22 | E14: Forecast 2022/23 | F14: Forecast 2023/24 | G14: Forecast 2024/25 | H14: Forecast 2025/26 | I14: Forecast 2026/27 | J14: ="Forecast "&J1+6&"/"&RIGHT(J1,2)+7 -> Forecast 2027/28 | K14: Forecast 2028/29 | L14: Forecast 2029/30 | M14: Forecast 2030/31 | N14: Forecast 2031/32 | O14: Forecast 2032/33 | Z14: Asset Class | AA14: Asset sub-class old | AB14: Asset sub-class | AC14: IUDF | AD14: MTSF
A15: ='Template names'!C22 -> Next yr of long term forecast | B15: ="Forecast "&B1+7&"/"&RIGHT(B1,2)+8 -> Forecast 2020/21 | C15: Forecast 2021/22 | D15: Forecast 2022/23 | E15: Forecast 2023/24 | F15: Forecast 2024/25 | G15: Forecast 2025/26 | H15: Forecast 2026/27 | I15: Forecast 2027/28 | J15: ="Forecast "&J1+7&"/"&RIGHT(J1,2)+8 -> Forecast 2028/29 | K15: Forecast 2029/30 | L15: Forecast 2030/31 | M15: Forecast 2031/32 | N15: Forecast 2032/33 | O15: Forecast 2033/34
A16: ='Template names'!C23 -> Next yr of long term forecast | B16: ="Forecast "&B1+8&"/"&RIGHT(B1,2)+9 -> Forecast 2021/22 | C16: Forecast 2022/23 | D16: Forecast 2023/24 | E16: Forecast 2024/25 | F16: Forecast 2025/26 | G16: Forecast 2026/27 | H16: Forecast 2027/28 | I16: Forecast 2028/29 | J16: ="Forecast "&J1+8&"/"&RIGHT(J1,2)+9 -> Forecast 2029/30 | K16: Forecast 2030/31 | L16: Forecast 2031/32 | M16: Forecast 2032/33 | N16: Forecast 2033/34 | O16: Forecast 2034/35 | Z16: Roads Infrastructure | AA16: Roads, Pavements & Bridges | AB16: Roads | AC16: Spatial integration | AD16: Quality basic education
A17: ='Template names'!C24 -> Next yr of long term forecast | B17: ="Forecast "&B1+9&"/"&RIGHT(B1,2)+10 -> Forecast 2022/23 | C17: Forecast 2023/24 | D17: Forecast 2024/25 | E17: Forecast 2025/26 | F17: Forecast 2026/27 | G17: Forecast 2027/28 | H17: Forecast 2028/29 | I17: Forecast 2029/30 | J17: ="Forecast "&J1+9&"/"&RIGHT(J1,2)+10 -> Forecast 2030/31 | K17: Forecast 2031/32 | L17: Forecast 2032/33 | M17: Forecast 2033/34 | N17: Forecast 2034/35 | O17: Forecast 2035/36 | Z17: Storm water Infrastructure | AA17: Storm water | AB17: Road Structures | AC17: Inclusion and access | AD17: A long and healthy life for all South Africans
A18: ='Template names'!C25 -> Next yr of long term forecast | B18: ="Forecast "&B1+10&"/"&RIGHT(B1,2)+11 -> Forecast 2023/24 | C18: Forecast 2024/25 | D18: Forecast 2025/26 | E18: Forecast 2026/27 | F18: Forecast 2027/28 | G18: Forecast 2028/29 | H18: Forecast 2029/30 | I18: Forecast 2030/31 | J18: ="Forecast "&J1+10&"/"&RIGHT(J1,2)+11 -> Forecast 2031/32 | K18: Forecast 2032/33 | L18: Forecast 2033/34 | M18: Forecast 2034/35 | N18: Forecast 2035/36 | O18: Forecast 2036/37 | Z18: Electrical Infrastructure | AA18: Generation | AB18: Road Furniture | AC18: Growth | AD18: All people in South Africa are and feel safe
A19: ='Template names'!C26 -> Next yr of long term forecast | B19: ="Forecast "&B1+11&"/"&RIGHT(B1,2)+12 -> Forecast 2024/25 | C19: Forecast 2025/26 | D19: Forecast 2026/27 | E19: Forecast 2027/28 | F19: Forecast 2028/29 | G19: Forecast 2029/30 | H19: Forecast 2030/31 | I19: Forecast 2031/32 | J19: ="Forecast "&J1+11&"/"&RIGHT(J1,2)+12 -> Forecast 2032/33 | K19: Forecast 2033/34 | L19: Forecast 2034/35 | M19: Forecast 2035/36 | N19: Forecast 2036/37 | O19: Forecast 2037/38 | Z19: Water Supply Infrastructure | AA19: Transmission & Reticulation | AB19: Capital Spares | AC19: Governance | AD19: Decent employment through inclusive growth
A20: ='Template names'!C27 -> Next yr of long term forecast | B20: ="Forecast "&B1+12&"/"&RIGHT(B1,2)+13 -> Forecast 2025/26 | C20: Forecast 2026/27 | D20: Forecast 2027/28 | E20: Forecast 2028/29 | F20: Forecast 2029/30 | G20: Forecast 2030/31 | H20: Forecast 2031/32 | I20: Forecast 2032/33 | J20: ="Forecast "&J1+12&"/"&RIGHT(J1,2)+13 -> Forecast 2033/34 | K20: Forecast 2034/35 | L20: Forecast 2035/36 | M20: Forecast 2036/37 | N20: Forecast 2037/38 | O20: Forecast 2038/39 | Z20: Sanitation Infrastructure | AA20: Street Lighting | AB20: Drainage Collection | AD20: A skilled and capable workforce to support an inclusive growth path
A21: ='Template names'!C28 -> Next yr of long term forecast | B21: ="Forecast "&B1+13&"/"&RIGHT(B1,2)+14 -> Forecast 2026/27 | C21: Forecast 2027/28 | D21: Forecast 2028/29 | E21: Forecast 2029/30 | F21: Forecast 2030/31 | G21: Forecast 2031/32 | H21: Forecast 2032/33 | I21: Forecast 2033/34 | J21: ="Forecast "&J1+13&"/"&RIGHT(J1,2)+14 -> Forecast 2034/35 | K21: Forecast 2035/36 | L21: Forecast 2036/37 | M21: Forecast 2037/38 | N21: Forecast 2038/39 | O21: Forecast 2039/40 | Z21: Solid Waste Infrastructure | AA21: Dams & Reservoirs | AB21: Storm water Conveyance | AD21: An efficient, competitive and responsive economic infrastructure network
A22: ='Template names'!C29 -> Next yr of long term forecast | B22: ="Forecast "&B1+14&"/"&RIGHT(B1,2)+15 -> Forecast 2027/28 | C22: Forecast 2028/29 | D22: Forecast 2029/30 | E22: Forecast 2030/31 | F22: Forecast 2031/32 | G22: Forecast 2032/33 | H22: Forecast 2033/34 | I22: Forecast 2034/35 | J22: ="Forecast "&J1+14&"/"&RIGHT(J1,2)+15 -> Forecast 2035/36 | K22: Forecast 2036/37 | L22: Forecast 2037/38 | M22: Forecast 2038/39 | N22: Forecast 2039/40 | O22: Forecast 2040/41 | Z22: Rail Infrastructure | AA22: Water purification | AB22: Attenuation | AD22: Vibrant, equitable, sustainable rural communities contributing towards food security for all
A23: Adjustments Budget | B23: ="Annual target " & B1&"/"&RIGHT(B1,2)+1 -> Annual target 2013/14 | C23: Annual target 2014/15 | D23: Annual target 2015/16 | E23: Annual target 2016/17 | F23: Annual target 2017/18 | G23: Annual target 2018/19 | H23: Annual target 2019/20 | I23: Annual target 2020/21 | J23: ="Annual target " & J1&"/"&RIGHT(J1,2)+1 -> Annual target 2021/22 | K23: Annual target 2022/23 | L23: Annual target 2023/24 | M23: Annual target 2024/25 | N23: Annual target 2025/26 | O23: Annual target 2026/27 | Z23: Coastal Infrastructure | AA23: Reticulation | AB23: Power Plants | AD23: Sustainable human settlements and improved quality of household life
A24: =A23 -> Adjustments Budget | B24: ="Revised target "& B1&"/"&RIGHT(B1,2)+1 -> Revised target 2013/14 | C24: Revised target 2014/15 | D24: Revised target 2015/16 | E24: Revised target 2016/17 | F24: Revised target 2017/18 | G24: Revised target 2018/19 | H24: Revised target 2019/20 | I24: Revised target 2020/21 | J24: ="Revised target "& J1&"/"&RIGHT(J1,2)+1 -> Revised target 2021/22 | K24: Revised target 2022/23 | L24: Revised target 2023/24 | M24: Revised target 2024/25 | N24: Revised target 2025/26 | O24: Revised target 2026/27 | Z24: Information and Communication Infrastructure | AA24: Sewerage purification | AB24: HV Substations | AD24: Responsive, accountable, effective and efficient local government
A25: NOTE: This sheet should not be directly amended - select headings from sheet 'S' | Z25: Community Facilities | AA25: Waste Management | AB25: HV Switching Station | AD25: Protect and enhance our environmental assets and natural resources
Z26: Sport and Recreation Facilities | AA26: Transportation | AB26: HV Transmission Conductors | AD26: Create a better South Africa and contribute to a better Africa and a better world
A27: Name link | B27: 1 | Z27: Heritage assets | AA27: Gas | AB27: MV Substations | AD27: An efficient, effective and development-oriented public service
A28: Name of Muni | B28: =INDEX(B29:B307,B27,1) -> Choose name from list | Z28: Revenue Generating | AA28: Parks & gardens | AB28: MV Switching Stations | AD28: A comprehensive, responsive and sustainable social protection system
B29: Choose name from list | C29: Set name on 'Instructions' sheet | Z29: Non-revenue Generating | AA29: Sportsfields & stadia | AB29: MV Networks | AD29: A diverse, socially cohesive society with a common national identity
B30: BUF Buffalo City | C30: EC EASTERN CAPE | Z30: Operational Buildings | AA30: Swimming pools | AB30: LV Networks
B31: NMA Nelson Mandela Bay | C31: EC EASTERN CAPE | Z31: Housing | AA31: Community halls | AB31: Capital Spares
B32: EC101 Dr Beyers Naude | C32: EC EASTERN CAPE | Z32: Biological or Cultivated Assets | AA32: Libraries | AB32: Dams and Weirs
B33: EC102 Blue Crane Route | C33: EC EASTERN CAPE | Z33: Servitudes | AA33: Recreational facilities | AB33: Boreholes
B34: EC104 Makana | C34: EC EASTERN CAPE | Z34: Licences and Rights | AA34: Fire, safety & emergency | AB34: Reservoirs
B35: EC105 Ndlambe | C35: EC EASTERN CAPE | Z35: Computer Equipment | AA35: Security and policing | AB35: Pump Stations
B36: EC106 Sundays River Valley | C36: EC EASTERN CAPE | Z36: Furniture and Office Equipment | AA36: Buses | AB36: Water Treatment Works
B37: EC108 Kouga | C37: EC EASTERN CAPE | Z37: Machinery and Equipment | AA37: Clinics | AB37: Bulk Mains
B38: EC109 Kou-Kamma | C38: EC EASTERN CAPE | Z38: Transport Assets | AA38: Museums & Art Galleries | AB38: Distribution
B39: DC10 Sarah Baartman | C39: EC EASTERN CAPE | Z39: Land | AA39: Cemeteries | AB39: Distribution Points
B40: EC121 Mbhashe | C40: EC EASTERN CAPE | Z40: Zoo's, Marine and Non-biological Animals | AA40: Social rental housing | AB40: PRV Stations
B41: EC122 Mnquma | C41: EC EASTERN CAPE | AA41: Buildings | AB41: Capital Spares
B42: EC123 Great Kei | C42: EC EASTERN CAPE | AA42: Housing development | AB42: Pump Station
B43: EC124 Amahlathi | C43: EC EASTERN CAPE | AA43: General vehicles | AB43: Reticulation
B44: EC126 Ngqushwa | C44: EC EASTERN CAPE | AA44: Specialised vehicles - Refuse | AB44: Waste Water Treatment Works
B45: EC129 Raymond Mhlaba | C45: EC EASTERN CAPE | AA45: Specialised vehicles - Fire | AB45: Outfall Sewers
B46: DC12 Amathole | C46: EC EASTERN CAPE | AA46: Specialised vehicles - Conservancy | AB46: Toilet Facilities
B47: EC131 Inxuba Yethemba | C47: EC EASTERN CAPE | AA47: Specialised vehicles - Ambulances | AB47: Capital Spares
B48: EC135 Intsika Yethu | C48: EC EASTERN CAPE | AA48: Plant & equipment | AB48: Landfill Sites
B49: EC136 Emalahleni (Ec) | C49: EC EASTERN CAPE | AA49: Computers - hardware/equipment | AB49: Waste Transfer Stations
B50: EC137 Engcobo | C50: EC EASTERN CAPE | AA50: Furniture and other office equipment | AB50: Waste Processing Facilities
B51: EC138 Sakhisizwe | C51: EC EASTERN CAPE | AA51: Abattoirs | AB51: Waste Drop-off Points
B52: EC139 Enoch Mgijima | C52: EC EASTERN CAPE | AA52: Markets | AB52: Waste Separation Facilities
B53: DC13 Chris Hani | C53: EC EASTERN CAPE | AA53: Civic Land and Buildings | AB53: Electricity Generation Facilities
B54: EC141 Elundini | C54: EC EASTERN CAPE | AA54: Other Buildings | AB54: Capital Spares
B55: EC142 Senqu | C55: EC EASTERN CAPE | AA55: Other Land | AB55: Rail Lines
B56: EC145 Walter Sisulu | C56: EC EASTERN CAPE | AA56: Surplus Assets - (Investment or Inventory) | AB56: Rail Structures
B57: DC14 Joe Gqabi | C57: EC EASTERN CAPE | AA57: Computers - software & programming | AB57: Rail Furniture
B58: EC153 Ngquza Hills | C58: EC EASTERN CAPE | AA58: Other | AB58: Drainage Collection
B59: EC154 Port St Johns | C59: EC EASTERN CAPE | AB59: Storm water Conveyance
B60: EC155 Nyandeni | C60: EC EASTERN CAPE | Z60: SA16 - Investments | AB60: Attenuation
B61: EC156 Mhlontlo | C61: EC EASTERN CAPE | Z61: Security | AA61: Interest rate | AB61: MV Substations
B62: EC157 King Sabata Dalindyebo | C62: EC EASTERN CAPE | Z62: Yes | AA62: Fixed | AB62: LV Networks
B63: DC15 O .R. Tambo | C63: EC EASTERN CAPE | Z63: No | AA63: Variable | AB63: Capital Spares
B64: EC441 Matatiele | C64: EC EASTERN CAPE | AB64: Sand Pumps
B65: EC442 Umzimvubu | C65: EC EASTERN CAPE | AB65: Piers
B66: EC443 Winnie Madikizela Mandela | C66: EC EASTERN CAPE | Z66: SA36, SA37 - Capital projects | AB66: Revetments
B67: EC444 Ntabankulu | C67: EC EASTERN CAPE | Z67: Yes | AB67: Promenades
B68: DC44 Alfred Nzo | C68: EC EASTERN CAPE | Z68: No | AB68: Capital Spares
B69: MAN Mangaung | C69: FS FREE STATE | AB69: Data Centres
B70: FS161 Letsemeng | C70: FS FREE STATE | AB70: Core Layers
B71: FS162 Kopanong | C71: FS FREE STATE | AB71: Distribution Layers
B72: FS163 Mohokare | C72: FS FREE STATE | AB72: Capital Spares
B73: DC16 Xhariep | C73: FS FREE STATE | AB73: Halls
B74: FS181 Masilonyana | C74: FS FREE STATE | AB74: Centres
B75: FS182 Tokologo | C75: FS FREE STATE | AB75: Crèches
B76: FS183 Tswelopele | C76: FS FREE STATE | AB76: Clinics/Care Centres
B77: FS184 Matjhabeng | C77: FS FREE STATE | AB77: Fire/Ambulance Stations
B78: FS185 Nala | C78: FS FREE STATE | AB78: Testing Stations
B79: DC18 Lejweleputswa | C79: FS FREE STATE | AB79: Museums
B80: FS191 Setsoto | C80: FS FREE STATE | AB80: Galleries
B81: FS192 Dihlabeng | C81: FS FREE STATE | AB81: Theatres
B82: FS193 Nketoana | C82: FS FREE STATE | AB82: Libraries
B83: FS194 Maluti-a-Phofung | C83: FS FREE STATE | AB83: Cemeteries/Crematoria
B84: FS195 Phumelela | C84: FS FREE STATE | AB84: Police
B85: FS196 Mantsopa | C85: FS FREE STATE | AB85: Purls
B86: DC19 Thabo Mofutsanyana | C86: FS FREE STATE | AB86: Public Open Space
B87: FS201 Moqhaka | C87: FS FREE STATE | AB87: Nature Reserves
B88: FS203 Ngwathe | C88: FS FREE STATE | AB88: Public Ablution Facilities
B89: FS204 Metsimaholo | C89: FS FREE STATE | AB89: Markets
B90: FS205 Mafube | C90: FS FREE STATE | AB90: Stalls
B91: DC20 Fezile Dabi | C91: FS FREE STATE | AB91: Abattoirs
B92: EKU City of Ekurhuleni | C92: GT GAUTENG | AB92: Airports
B93: JHB City Of Johannesburg | C93: GT GAUTENG | AB93: Taxi Ranks/Bus Terminals
B94: TSH City Of Tshwane | C94: GT GAUTENG | AB94: Capital Spares
B95: GT421 Emfuleni | C95: GT GAUTENG | AB95: Indoor Facilities
B96: GT422 Midvaal | C96: GT GAUTENG | AB96: Outdoor Facilities
B97: GT423 Lesedi | C97: GT GAUTENG | AB97: Capital Spares
B98: DC42 Sedibeng | C98: GT GAUTENG | AB98: Monuments
B99: GT481 Mogale City | C99: GT GAUTENG | AB99: Historic Buildings
B100: GT484 Merafong City | C100: GT GAUTENG | AB100: Works of Art
B101: GT485 Rand West City | C101: GT GAUTENG | AB101: Conservation Areas
B102: DC48 West Rand | C102: GT GAUTENG | AB102: Other Heritage
B103: ETH eThekwini | C103: KZN KWAZULU-NATAL | AB103: Improved Property
B104: KZN212 Umdoni | C104: KZN KWAZULU-NATAL | AB104: Unimproved Property
B105: KZN213 Umzumbe | C105: KZN KWAZULU-NATAL | AB105: Municipal Offices
B106: KZN214 uMuziwabantu | C106: KZN KWAZULU-NATAL | AB106: Pay/Enquiry Points
B107: KZN216 Ray Nkonyeni | C107: KZN KWAZULU-NATAL | AB107: Building Plan Offices
B108: DC21 Ugu | C108: KZN KWAZULU-NATAL | AB108: Workshops
B109: KZN221 uMshwathi | C109: KZN KWAZULU-NATAL | AB109: Yards
B110: KZN222 uMngeni | C110: KZN KWAZULU-NATAL | AB110: Stores
B111: KZN223 Mpofana | C111: KZN KWAZULU-NATAL | AB111: Laboratories
B112: KZN224 Impendle | C112: KZN KWAZULU-NATAL | AB112: Training Centres
B113: KZN225 Msunduzi | C113: KZN KWAZULU-NATAL | AB113: Manufacturing Plant
B114: KZN226 Mkhambathini | C114: KZN KWAZULU-NATAL | AB114: Depots
B115: KZN227 Richmond | C115: KZN KWAZULU-NATAL | AB115: Capital Spares
B116: DC22 uMgungundlovu | C116: KZN KWAZULU-NATAL | AB116: Staff Housing
B117: KZN235 Okhahlamba | C117: KZN KWAZULU-NATAL | AB117: Social Housing
B118: KZN237 Inkosi Langalibalele | C118: KZN KWAZULU-NATAL | AB118: Capital Spares
B119: KZN238 Alfred Duma | C119: KZN KWAZULU-NATAL | AB119: Water Rights
B120: DC23 Uthukela | C120: KZN KWAZULU-NATAL | AB120: Effluent Licenses
B121: KZN241 Endumeni | C121: KZN KWAZULU-NATAL | AB121: Solid Waste Licenses
B122: KZN242 Nquthu | C122: KZN KWAZULU-NATAL | AB122: Computer Software and Applications
B123: KZN244 Msinga | C123: KZN KWAZULU-NATAL | AB123: Load Settlement Software Applications
B124: KZN245 Umvoti | C124: KZN KWAZULU-NATAL | AB124: Unspecified
B125: DC24 Umzinyathi | C125: KZN KWAZULU-NATAL
B126: KZN252 Newcastle | C126: KZN KWAZULU-NATAL
B127: KZN253 Emadlangeni | C127: KZN KWAZULU-NATAL
B128: KZN254 Dannhauser | C128: KZN KWAZULU-NATAL
B129: DC25 Amajuba | C129: KZN KWAZULU-NATAL
B130: KZN261 eDumbe | C130: KZN KWAZULU-NATAL
B131: KZN262 uPhongolo | C131: KZN KWAZULU-NATAL
B132: KZN263 Abaqulusi | C132: KZN KWAZULU-NATAL
B133: KZN265 Nongoma | C133: KZN KWAZULU-NATAL
B134: KZN266 Ulundi | C134: KZN KWAZULU-NATAL
B135: DC26 Zululand | C135: KZN KWAZULU-NATAL
B136: KZN271 Umhlabuyalingana | C136: KZN KWAZULU-NATAL
B137: KZN272 Jozini | C137: KZN KWAZULU-NATAL
B138: KZN275 Mtubatuba | C138: KZN KWAZULU-NATAL
B139: KZN276 Hlabisa Big Five | C139: KZN KWAZULU-NATAL
B140: DC27 Umkhanyakude | C140: KZN KWAZULU-NATAL
B141: KZN281 Mfolozi | C141: KZN KWAZULU-NATAL
B142: KZN282 uMhlathuze | C142: KZN KWAZULU-NATAL
B143: KZN284 uMlalazi | C143: KZN KWAZULU-NATAL
B144: KZN285 Mthonjaneni | C144: KZN KWAZULU-NATAL
B145: KZN286 Nkandla | C145: KZN KWAZULU-NATAL
B146: DC28 King Cetshwayo | C146: KZN KWAZULU-NATAL
B147: KZN291 Mandeni | C147: KZN KWAZULU-NATAL
B148: KZN292 KwaDukuza | C148: KZN KWAZULU-NATAL
B149: KZN293 Ndwedwe | C149: KZN KWAZULU-NATAL
B150: KZN294 Maphumulo | C150: KZN KWAZULU-NATAL
B151: DC29 iLembe | C151: KZN KWAZULU-NATAL
B152: KZN433 Greater Kokstad | C152: KZN KWAZULU-NATAL
B153: KZN434 Johannes Phumani Phungula | C153: KZN KWAZULU-NATAL
B154: KZN435 Umzimkhulu | C154: KZN KWAZULU-NATAL
B155: KZN436 Dr Nkosazana Dlamini Zuma | C155: KZN KWAZULU-NATAL
B156: DC43 Harry Gwala | C156: KZN KWAZULU-NATAL
B157: LIM331 Greater Giyani | C157: LIM LIMPOPO
B158: LIM332 Greater Letaba | C158: LIM LIMPOPO
B159: LIM333 Greater Tzaneen | C159: LIM LIMPOPO
B160: LIM334 Ba-Phalaborwa | C160: LIM LIMPOPO
B161: LIM335 Maruleng | C161: LIM LIMPOPO
B162: DC33 Mopani | C162: LIM LIMPOPO
B163: LIM341 Musina | C163: LIM LIMPOPO
B164: LIM343 Thulamela | C164: LIM LIMPOPO
B165: LIM344 Makhado | C165: LIM LIMPOPO
B166: LIM345 Collins Chabane | C166: LIM LIMPOPO
B167: DC34 Vhembe | C167: LIM LIMPOPO
B168: LIM351 Blouberg | C168: LIM LIMPOPO
B169: LIM353 Molemole | C169: LIM LIMPOPO
B170: LIM354 Polokwane | C170: LIM LIMPOPO
B171: LIM355 Lepelle-Nkumpi | C171: LIM LIMPOPO
B172: DC35 Capricorn | C172: LIM LIMPOPO
B173: LIM361 Thabazimbi | C173: LIM LIMPOPO
B174: LIM362 Lephalale | C174: LIM LIMPOPO
B175: LIM366 Bela Bela | C175: LIM LIMPOPO
B176: LIM367 Mogalakwena | C176: LIM LIMPOPO
B177: LIM368 Modimolle-Mookgopong | C177: LIM LIMPOPO
B178: DC36 Waterberg | C178: LIM LIMPOPO
B179: LIM471 Ephraim Mogale | C179: LIM LIMPOPO
B180: LIM472 Elias Motsoaledi | C180: LIM LIMPOPO
B181: LIM473 Makhuduthamaga | C181: LIM LIMPOPO
B182: LIM476 Tubatse Fetakgomo | C182: LIM LIMPOPO
B183: DC47 Sekhukhune | C183: LIM LIMPOPO
B184: MP301 Albert Luthuli | C184: MP MPUMALANGA
B185: MP302 Msukaligwa | C185: MP MPUMALANGA
B186: MP303 Mkhondo | C186: MP MPUMALANGA
B187: MP304 Pixley Ka Seme (MP) | C187: MP MPUMALANGA
B188: MP305 Lekwa | C188: MP MPUMALANGA
B189: MP306 Dipaleseng | C189: MP MPUMALANGA
B190: MP307 Govan Mbeki | C190: MP MPUMALANGA
B191: DC30 Gert Sibande | C191: MP MPUMALANGA
B192: MP311 Victor Khanye | C192: MP MPUMALANGA
B193: MP312 Emalahleni (Mp) | C193: MP MPUMALANGA
B194: MP313 Steve Tshwete | C194: MP MPUMALANGA
B195: MP314 Emakhazeni | C195: MP MPUMALANGA
B196: MP315 Thembisile Hani | C196: MP MPUMALANGA
B197: MP316 Dr J.S. Moroka | C197: MP MPUMALANGA
B198: DC31 Nkangala | C198: MP MPUMALANGA
B199: MP321 Thaba Chweu | C199: MP MPUMALANGA
B200: MP324 Nkomazi | C200: MP MPUMALANGA
... 87 more rows

Sheet Org structure
A1: Organisational Structure Votes | C1: Organisational Structure Sub-Votes | E1: Display Sub-Votes
A2: =B2&" - "&C2 -> Vote 1 - City Manager | B2: Vote 1 | C2: City Manager
A3: =B13&" - "& C13 -> Vote 2 - City Finance | B3: 1.1 | C3: Internal Audit and Compliance | D3: =CONCATENATE(B3, " - ", C3) -> 1,1 - Internal Audit and Compliance | E3: 1.1 - Internal Audit and Compliance
A4: =B24&" - "&C24 -> Vote 3 - Corporate Services | B4: 1.2 | C4: Office of the City Manager | D4: 1,2 - Office of the City Manager | E4: 1.2 - Office of the City Manager
A5: =B35&" - "&C35 -> Vote 4 - Community Services and Social Equity | B5: 1.3 | C5: Political Support | D5: 1,3 - Political Support | E5: 1.3 - Political Support
A6: =B46&" - "&C46 -> Vote 5 - Infrastructure Services | B6: 1.4 | C6: [Name of sub-vote] | D6: 1,4 - [Name of sub-vote] | E6: 1.4 - Strategic Planning
A7: =B57&" - "&C57 -> Vote 6 - Sustainable Development and City Enterprises | B7: 1.5 | C7: [Name of sub-vote] | D7: 1,5 - [Name of sub-vote]
A8: =B68&" - "&C68 -> Vote 7 - Electricity | B8: 1.6 | C8: [Name of sub-vote] | D8: 1,6 - [Name of sub-vote]
A9: =B79&" - "&C79 -> Vote 8 - [NAME OF VOTE 8] | B9: 1.7 | C9: [Name of sub-vote] | D9: 1,7 - [Name of sub-vote]
A10: =B90&" - "&C90 -> Vote 9 - [NAME OF VOTE 9] | B10: 1.8 | C10: [Name of sub-vote] | D10: 1,8 - [Name of sub-vote]
A11: =B101&" - "&C101 -> Vote 10 - [NAME OF VOTE 10] | B11: 1.9 | C11: [Name of sub-vote] | D11: 1,9 - [Name of sub-vote]
A12: =B112&" - "&C112 -> Vote 11 - [NAME OF VOTE 11] | B12: 1.10 | C12: [Name of sub-vote] | D12: 1.10 - [Name of sub-vote]
A13: =B123&" - "&C123 -> Vote 12 - [NAME OF VOTE 12] | B13: Vote 2 | C13: City Finance
A14: =B134&" - "&C134 -> Vote 13 - [NAME OF VOTE 13] | B14: 2.1 | C14: Asset Management | D14: =CONCATENATE(B14, " - ", C14) -> 2,1 - Asset Management | E14: 2.1 - Asset Management
A15: =B145&" - "&C145 -> Vote 14 - [NAME OF VOTE 14] | B15: 2.2 | C15: Budget and Treasury Management | D15: 2,2 - Budget and Treasury Management | E15: 2.2 - Budget and Treasury Management
A16: =B156&" - "&C156 -> Vote 15 - [NAME OF VOTE 15] | B16: 2.3 | C16: Expenditure Management | D16: 2,3 - Expenditure Management | E16: 2.3 - Expenditure Management
B17: 2.4 | C17: Revenue Management | D17: 2,4 - Revenue Management | E17: 2.4 - Revenue Management
B18: 2.5 | C18: Supply Chain Management | D18: 2,5 - Supply Chain Management | E18: 2.5 - Supply Chain Management
B19: 2.6 | C19: [Name of sub-vote] | D19: 2,6 - [Name of sub-vote]
B20: 2.7 | C20: [Name of sub-vote] | D20: 2,7 - [Name of sub-vote]
B21: 2.8 | C21: [Name of sub-vote] | D21: 2,8 - [Name of sub-vote]
B22: 2.9 | C22: [Name of sub-vote] | D22: 2,9 - [Name of sub-vote]
B23: 2.10 | C23: [Name of sub-vote] | D23: 2.10 - [Name of sub-vote]
B24: Vote 3 | C24: Corporate Services
B25: 3.1 | C25: Human Resources Management | D25: 3,1 - Human Resources Management | E25: Human Resources Management
B26: 3.2 | C26: Information Technology | D26: 3,2 - Information Technology | E26: Information Technology
B27: 3.3 | C27: Legal Services | D27: 3,3 - Legal Services | E27: Legal Services
B28: 3.4 | C28: Secretariat and Auxiliary Services | D28: 3,4 - Secretariat and Auxiliary Services | E28: Secretariat and Auxiliary Services
B29: 3.5 | C29: General Manager: Corporate Service | D29: 3,5 - General Manager: Corporate Service | E29: General Manager: Corporate Service
B30: 3.6 | C30: [Name of sub-vote] | D30: =CONCATENATE(B30, " - ", C30) -> 3,6 - [Name of sub-vote]
B31: 3.7 | C31: [Name of sub-vote] | D31: 3,7 - [Name of sub-vote]
B32: 3.8 | C32: [Name of sub-vote] | D32: 3,8 - [Name of sub-vote]
B33: 3.9 | C33: [Name of sub-vote] | D33: 3,9 - [Name of sub-vote]
B34: 3.10 | C34: [Name of sub-vote] | D34: 3.10 - [Name of sub-vote]
B35: Vote 4 | C35: Community Services and Social Equity
B36: 4.1 | C36: Area Based Management | D36: 4,1 - Area Based Management | E36: 4.1 - Area Based Management
B37: 4.2 | C37: Public Safety, Emergency Services and Enforcement | D37: 4,2 - Public Safety, Emergency Services and Enforcement | E37: 4.2 - Public Safety, Emergency Services and Enforcement
B38: 4.3 | C38: Recreation and Facilities | D38: 4,3 - Recreation and Facilities | E38: 4.3 - Recreation and Facilities
B39: 4.4 | C39: Waste Management | D39: 4,4 - Waste Management | E39: 4.4 - Waste Management
B40: 4.5 | C40: 4.5 - General Manager: Community Services | D40: 4.5 - General Manager: Community Services | E40: 4.5 - General Manager: Community Services
B41: 4.6 | C41: [Name of sub-vote] | D41: =CONCATENATE(B41, " - ", C41) -> 4,6 - [Name of sub-vote]
B42: 4.7 | C42: [Name of sub-vote] | D42: 4,7 - [Name of sub-vote]
B43: 4.8 | C43: [Name of sub-vote] | D43: 4,8 - [Name of sub-vote]
B44: 4.9 | C44: [Name of sub-vote] | D44: 4,9 - [Name of sub-vote]
B45: 4.10 | C45: [Name of sub-vote] | D45: 4.10 - [Name of sub-vote]
B46: Vote 5 | C46: Infrastructure Services
B47: 5.1 | C47: Project Management Office | D47: 5,1 - Project Management Office | E47: 5.1 - Project Management Office
B48: 5.2 | C48: Roads and Transportation | D48: 5,2 - Roads and Transportation | E48: 5.2 - Roads and Transportation
B49: 5.3 | C49: Water and Sanitation | D49: 5,3 - Water and Sanitation | E49: 5.3 - Water and Sanitation
B50: 5.4 | C50: General Manager: Infrastructure | D50: 5,4 - General Manager: Infrastructure | E50: 5.4 - General Manager: Infrastructure
B51: 5.5 | C51: [Name of sub-vote] | D51: =CONCATENATE(B51, " - ", C51) -> 5,5 - [Name of sub-vote]
B52: 5.6 | C52: [Name of sub-vote] | D52: 5,6 - [Name of sub-vote]
B53: 5.7 | C53: [Name of sub-vote] | D53: 5,7 - [Name of sub-vote]
B54: 5.8 | C54: [Name of sub-vote] | D54: 5,8 - [Name of sub-vote]
B55: 5.9 | C55: [Name of sub-vote] | D55: 5,9 - [Name of sub-vote]
B56: 5.10 | C56: [Name of sub-vote] | D56: 5.10 - [Name of sub-vote]
B57: Vote 6 | C57: Sustainable Development and City Enterprises
B58: 6.1 | C58: City Entities | D58: 6,1 - City Entities | E58: 6.1 - City Entities
B59: 6.2 | C59: Development Services | D59: 6,2 - Development Services | E59: 6.2 - Development Services
B60: 6.3 | C60: Human Settlement Development | D60: 6,3 - Human Settlement Development | E60: 6.3 - Human Settlement Development
B61: 6.4 | C61: Town Planning | D61: 6,4 - Town Planning | E61: 6.4 - Town Planning
B62: 6.5 | C62: General Manager: Sustainable Development and City Enterprises | D62: 6,5 - General Manager: Sustainable Development and City Enterprises | E62: 6.5 - General Manager: Sustainable Development and City Enterprises
B63: 6.6 | C63: [Name of sub-vote] | D63: =CONCATENATE(B63, " - ", C63) -> 6,6 - [Name of sub-vote]
B64: 6.7 | C64: [Name of sub-vote] | D64: 6,7 - [Name of sub-vote]
B65: 6.8 | C65: [Name of sub-vote] | D65: 6,8 - [Name of sub-vote]
B66: 6.9 | C66: [Name of sub-vote] | D66: 6,9 - [Name of sub-vote]
B67: 6.10 | C67: [Name of sub-vote] | D67: 6.10 - [Name of sub-vote]
B68: Vote 7 | C68: Electricity
B69: 7.1 | C69: Electricity planning | D69: 7,1 - Electricity planning | E69: 7.1 Electricity planning
B70: 7.2 | C70: Methods and Standards | D70: 7,2 - Methods and Standards | E70: 7.2 Methods and Standards
B71: 7.3 | C71: Operations and Maintenance | D71: 7,3 - Operations and Maintenance | E71: 7.3 Operations and Maintenance
B72: 7.4 | C72: Revenue Management | D72: 7,4 - Revenue Management | E72: 7.4 Revenue Management
B73: 7.5 | C73: General Manager Electricity | D73: 7,5 - General Manager Electricity | E73: 7.5 General Manager Electricity
B74: 7.6 | C74: [Name of sub-vote] | D74: =CONCATENATE(B74, " - ", C74) -> 7,6 - [Name of sub-vote]
B75: 7.7 | C75: [Name of sub-vote] | D75: 7,7 - [Name of sub-vote]
B76: 7.8 | C76: [Name of sub-vote] | D76: 7,8 - [Name of sub-vote]
B77: 7.9 | C77: [Name of sub-vote] | D77: 7,9 - [Name of sub-vote]
B78: 7.10 | C78: [Name of sub-vote] | D78: 7.10 - [Name of sub-vote]
B79: Vote 8 | C79: [NAME OF VOTE 8]
B80: 8.1 | C80: [Name of sub-vote] | D80: =CONCATENATE(B80, " - ", C80) -> 8,1 - [Name of sub-vote] | E80: 8.1 - [Name of sub-vote]
B81: 8.2 | C81: [Name of sub-vote] | D81: 8,2 - [Name of sub-vote]
B82: 8.3 | C82: [Name of sub-vote] | D82: 8,3 - [Name of sub-vote]
B83: 8.4 | C83: [Name of sub-vote] | D83: 8,4 - [Name of sub-vote]
B84: 8.5 | C84: [Name of sub-vote] | D84: 8,5 - [Name of sub-vote]
B85: 8.6 | C85: [Name of sub-vote] | D85: 8,6 - [Name of sub-vote]
B86: 8.7 | C86: [Name of sub-vote] | D86: 8,7 - [Name of sub-vote]
B87: 8.8 | C87: [Name of sub-vote] | D87: 8,8 - [Name of sub-vote]
B88: 8.9 | C88: [Name of sub-vote] | D88: 8,9 - [Name of sub-vote]
B89: 8.10 | C89: [Name of sub-vote] | D89: 8.10 - [Name of sub-vote]
B90: Vote 9 | C90: [NAME OF VOTE 9]
B91: 9.1 | C91: [Name of sub-vote] | D91: =CONCATENATE(B91, " - ", C91) -> 9,1 - [Name of sub-vote] | E91: 9.1 - [Name of sub-vote]
B92: 9.2 | C92: [Name of sub-vote] | D92: 9,2 - [Name of sub-vote]
B93: 9.3 | C93: [Name of sub-vote] | D93: 9,3 - [Name of sub-vote]
B94: 9.4 | C94: [Name of sub-vote] | D94: 9,4 - [Name of sub-vote]
B95: 9.5 | C95: [Name of sub-vote] | D95: 9,5 - [Name of sub-vote]
B96: 9.6 | C96: [Name of sub-vote] | D96: 9,6 - [Name of sub-vote]
B97: 9.7 | C97: [Name of sub-vote] | D97: 9,7 - [Name of sub-vote]
B98: 9.8 | C98: [Name of sub-vote] | D98: 9,8 - [Name of sub-vote]
B99: 9.9 | C99: [Name of sub-vote] | D99: 9,9 - [Name of sub-vote]
B100: 9.10 | C100: [Name of sub-vote] | D100: 9.10 - [Name of sub-vote]
B101: Vote 10 | C101: [NAME OF VOTE 10]
B102: 10.1 | C102: [Name of sub-vote] | D102: =CONCATENATE(B102, " - ", C102) -> 10,1 - [Name of sub-vote] | E102: 10.1 - [Name of sub-vote]
B103: 10.2 | C103: [Name of sub-vote] | D103: 10,2 - [Name of sub-vote]
B104: 10.3 | C104: [Name of sub-vote] | D104: 10,3 - [Name of sub-vote]
B105: 10.4 | C105: [Name of sub-vote] | D105: 10,4 - [Name of sub-vote]
B106: 10.5 | C106: [Name of sub-vote] | D106: 10,5 - [Name of sub-vote]
B107: 10.6 | C107: [Name of sub-vote] | D107: 10,6 - [Name of sub-vote]
B108: 10.7 | C108: [Name of sub-vote] | D108: 10,7 - [Name of sub-vote]
B109: 10.8 | C109: [Name of sub-vote] | D109: 10,8 - [Name of sub-vote]
B110: 10.9 | C110: [Name of sub-vote] | D110: 10,9 - [Name of sub-vote]
B111: 10.10 | C111: [Name of sub-vote] | D111: 10.10 - [Name of sub-vote]
B112: Vote 11 | C112: [NAME OF VOTE 11]
B113: 11.1 | C113: [Name of sub-vote] | D113: =CONCATENATE(B113, " - ", C113) -> 11,1 - [Name of sub-vote] | E113: 11.1 - [Name of sub-vote]
B114: 11.2 | C114: [Name of sub-vote] | D114: 11,2 - [Name of sub-vote]
B115: 11.3 | C115: [Name of sub-vote] | D115: 11,3 - [Name of sub-vote]
B116: 11.4 | C116: [Name of sub-vote] | D116: 11,4 - [Name of sub-vote]
B117: 11.5 | C117: [Name of sub-vote] | D117: 11,5 - [Name of sub-vote]
B118: 11.6 | C118: [Name of sub-vote] | D118: 11,6 - [Name of sub-vote]
B119: 11.7 | C119: [Name of sub-vote] | D119: 11,7 - [Name of sub-vote]
B120: 11.8 | C120: [Name of sub-vote] | D120: 11,8 - [Name of sub-vote]
B121: 11.9 | C121: [Name of sub-vote] | D121: 11,9 - [Name of sub-vote]
B122: 11.10 | C122: [Name of sub-vote] | D122: 11.10 - [Name of sub-vote]
B123: Vote 12 | C123: [NAME OF VOTE 12]
B124: 12.1 | C124: [Name of sub-vote] | D124: =CONCATENATE(B124, " - ", C124) -> 12,1 - [Name of sub-vote] | E124: 12.1 - [Name of sub-vote]
B125: 12.2 | C125: [Name of sub-vote] | D125: 12,2 - [Name of sub-vote]
B126: 12.3 | C126: [Name of sub-vote] | D126: 12,3 - [Name of sub-vote]
B127: 12.4 | C127: [Name of sub-vote] | D127: 12,4 - [Name of sub-vote]
B128: 12.5 | C128: [Name of sub-vote] | D128: 12,5 - [Name of sub-vote]
B129: 12.6 | C129: [Name of sub-vote] | D129: 12,6 - [Name of sub-vote]
B130: 12.7 | C130: [Name of sub-vote] | D130: 12,7 - [Name of sub-vote]
B131: 12.8 | C131: [Name of sub-vote] | D131: 12,8 - [Name of sub-vote]
B132: 12.9 | C132: [Name of sub-vote] | D132: 12,9 - [Name of sub-vote]
B133: 12.10 | C133: [Name of sub-vote] | D133: 12.10 - [Name of sub-vote]
B134: Vote 13 | C134: [NAME OF VOTE 13]
B135: 13.1 | C135: [Name of sub-vote] | D135: =CONCATENATE(B135, " - ", C135) -> 13,1 - [Name of sub-vote] | E135: 13.1 - [Name of sub-vote]
B136: 13.2 | C136: [Name of sub-vote] | D136: 13,2 - [Name of sub-vote]
B137: 13.3 | C137: [Name of sub-vote] | D137: 13,3 - [Name of sub-vote]
B138: 13.4 | C138: [Name of sub-vote] | D138: 13,4 - [Name of sub-vote]
B139: 13.5 | C139: [Name of sub-vote] | D139: 13,5 - [Name of sub-vote]
B140: 13.6 | C140: [Name of sub-vote] | D140: 13,6 - [Name of sub-vote]
B141: 13.7 | C141: [Name of sub-vote] | D141: 13,7 - [Name of sub-vote]
B142: 13.8 | C142: [Name of sub-vote] | D142: 13,8 - [Name of sub-vote]
B143: 13.9 | C143: [Name of sub-vote] | D143: 13,9 - [Name of sub-vote]
B144: 13.10 | C144: [Name of sub-vote] | D144: 13.10 - [Name of sub-vote]
B145: Vote 14 | C145: [NAME OF VOTE 14]
B146: 14.1 | C146: [Name of sub-vote] | D146: =CONCATENATE(B146, " - ", C146) -> 14,1 - [Name of sub-vote] | E146: 14.1 - [Name of sub-vote]
B147: 14.2 | C147: [Name of sub-vote] | D147: 14,2 - [Name of sub-vote]
B148: 14.3 | C148: [Name of sub-vote] | D148: 14,3 - [Name of sub-vote]
B149: 14.4 | C149: [Name of sub-vote] | D149: 14,4 - [Name of sub-vote]
B150: 14.5 | C150: [Name of sub-vote] | D150: 14,5 - [Name of sub-vote]
B151: 14.6 | C151: [Name of sub-vote] | D151: 14,6 - [Name of sub-vote]
B152: 14.7 | C152: [Name of sub-vote] | D152: 14,7 - [Name of sub-vote]
B153: 14.8 | C153: [Name of sub-vote] | D153: 14,8 - [Name of sub-vote]
B154: 14.9 | C154: [Name of sub-vote] | D154: 14,9 - [Name of sub-vote]
B155: 14.10 | C155: [Name of sub-vote] | D155: 14.10 - [Name of sub-vote]
B156: Vote 15 | C156: [NAME OF VOTE 15]
B157: 15.1 | C157: [Name of sub-vote] | D157: =CONCATENATE(B157, " - ", C157) -> 15,1 - [Name of sub-vote] | E157: 15.1 - [Name of sub-vote]
B158: 15.2 | C158: [Name of sub-vote] | D158: 15,2 - [Name of sub-vote]
B159: 15.3 | C159: [Name of sub-vote] | D159: 15,3 - [Name of sub-vote]
B160: 15.4 | C160: [Name of sub-vote] | D160: 15,4 - [Name of sub-vote]
B161: 15.5 | C161: [Name of sub-vote] | D161: 15,5 - [Name of sub-vote]
B162: 15.6 | C162: [Name of sub-vote] | D162: 15,6 - [Name of sub-vote]
B163: 15.7 | C163: [Name of sub-vote] | D163: 15,7 - [Name of sub-vote]
B164: 15.8 | C164: [Name of sub-vote] | D164: 15,8 - [Name of sub-vote]
B165: 15.9 | C165: [Name of sub-vote] | D165: 15,9 - [Name of sub-vote]
B166: 15.10 | C166: [Name of sub-vote] | D166: 15.10 - [Name of sub-vote]

Sheet Contacts
A1: =muni&" - "&" Contact Information" -> Choose name from list - Contact Information
A3: A. GENERAL INFORMATION
A4: Municipality | B4: =muni -> Choose name from list | C4: =IF(B4="Choose name from List","Set name on 'Instructions' sheet", "") -> Set name on 'Instructions' sheet
A6: Grade | C6: 1 Grade in terms of the Remuneration of Public Office Bearers Act.
A8: Province | B8: =IF(B4>" ",VLOOKUP(B4,'Lookup and lists'!B29:C307,2, FALSE)," ") -> Set name on 'Instructions' sheet
A10: Web Address
A12: e-mail Address
A14: B. CONTACT INFORMATION
A15: Postal address:
A16: P.O. Box
A17: City / Town
A18: Postal Code
A20: Street address
A21: Building
A22: Street No. & Name
A23: City / Town
A24: Postal Code
A26: General Contacts
A27: Telephone number
A28: Fax number
A30: C. POLITICAL LEADERSHIP
A31: Speaker: | C31: Secretary/PA to the Speaker:
A32: ID Number | C32: ID Number
A33: Title | C33: Title
A34: Name | C34: Name
A35: Telephone number | C35: Telephone number
A36: Cell number | C36: Cell number
A37: Fax number | C37: Fax number
A38: E-mail address | C38: E-mail address
A40: Mayor/Executive Mayor: | C40: Secretary/PA to the Mayor/Executive Mayor:
A41: ID Number | C41: ID Number
A42: Title | C42: Title
A43: Name | C43: Name
A44: Telephone number | C44: Telephone number
A45: Cell number | C45: Cell number
A46: Fax number | C46: Fax number
A47: E-mail address | C47: E-mail address
A49: Deputy Mayor/Executive Mayor: | C49: Secretary/PA to the Deputy Mayor/Executive Mayor:
A50: ID Number | C50: ID Number
A51: Title | C51: Title
A52: Name | C52: Name
A53: Telephone number | C53: Telephone number
A54: Cell number | C54: Cell number
A55: Fax number | C55: Fax number
A56: E-mail address | C56: E-mail address
A58: D. MANAGEMENT LEADERSHIP
A59: Municipal Manager: | C59: Secretary/PA to the Municipal Manager:
A60: ID Number | C60: ID Number
A61: Title | C61: Title
A62: Name | C62: Name
A63: Telephone number | C63: Telephone number
A64: Cell number | C64: Cell number
A65: Fax number | C65: Fax number
A66: E-mail address | C66: E-mail address
A68: Chief Financial Officer | C68: Secretary/PA to the Chief Financial Officer
A69: ID Number | C69: ID Number
A70: Title | C70: Title
A71: Name | C71: Name
A72: Telephone number | C72: Telephone number
A73: Cell number | C73: Cell number
A74: Fax number | C74: Fax number
A75: E-mail address | C75: E-mail address
A77: Official responsible for submitting financial information | C77: Official responsible for submitting financial information
A78: ID Number | C78: ID Number
A79: Title | C79: Title
A80: Name | C80: Name
A81: Telephone number | C81: Telephone number
A82: Cell number | C82: Cell number
A83: Fax number | C83: Fax number
A84: E-mail address | C84: E-mail address
A85: Official responsible for submitting financial information | C85: Official responsible for submitting financial information
A86: ID Number | C86: ID Number
A87: Title | C87: Title
A88: Name | C88: Name
A89: Telephone number | C89: Telephone number
A90: Cell number | C90: Cell number
A91: Fax number | C91: Fax number
A92: E-mail address | C92: E-mail address
A93: Official responsible for submitting financial information | C93: Official responsible for submitting financial information
A94: ID Number | C94: ID Number
A95: Title | C95: Title
A96: Name | C96: Name
A97: Telephone number | C97: Telephone number
A98: Cell number | C98: Cell number
A99: Fax number | C99: Fax number
A100: E-mail address | C100: E-mail address
A101: Official responsible for submitting financial information | C101: Official responsible for submitting financial information
A102: ID Number | C102: ID Number
A103: Title | C103: Title
A104: Name | C104: Name
A105: Telephone number | C105: Telephone number
A106: Cell number | C106: Cell number
A107: Fax number | C107: Fax number
A108: E-mail address | C108: E-mail address
A109: Official responsible for submitting financial information | C109: Official responsible for submitting financial information
A110: ID Number | C110: ID Number
A111: Title | C111: Title
A112: Name | C112: Name
A113: Telephone number | C113: Telephone number
A114: Cell number | C114: Cell number
A115: Fax number | C115: Fax number
A116: E-mail address | C116: E-mail address
A117: Official responsible for submitting financial information | C117: Official responsible for submitting financial information
A118: ID Number | C118: ID Number
A119: Title | C119: Title
A120: Name | C120: Name
A121: Telephone number | C121: Telephone number
A122: Cell number | C122: Cell number
A123: Fax number | C123: Fax number
A124: E-mail address | C124: E-mail address
A125: Official responsible for submitting financial information | C125: Official responsible for submitting financial information
A126: ID Number | C126: ID Number
A127: Title | C127: Title
A128: Name | C128: Name
A129: Telephone number | C129: Telephone number
A130: Cell number | C130: Cell number
A131: Fax number | C131: Fax number
A132: E-mail address | C132: E-mail address
A133: Official responsible for submitting financial information
A134: ID Number
A135: Title
A136: Name
A137: Telephone number
A138: Cell number
A139: Fax number
A140: E-mail address

Sheet A1-Sum
A1: =muni&" - "&Approve1 -> Choose name from list - Table A1 Budget Summary
A2: =desc -> Description | B2: =head1b -> 2021/22 | C2: =head1A -> 2022/23 | D2: =Head1 -> 2023/24 | E2: =Head2 -> Current Year 2024/25 | I2: =Head3 -> 2025/26 Medium Term Revenue & Expenditure Framework
A3: R thousands | B3: =Head5 -> Audited Outcome | C3: =Head5 -> Audited Outcome | D3: =Head5 -> Audited Outcome | E3: =Head6 -> Original Budget | F3: =Head7 -> Adjusted Budget | G3: =Head8 -> Full Year Forecast | H3: =Head5b -> Pre-audit outcome | I3: =Head9 -> Budget Year 2025/26 | J3: =Head10 -> Budget Year +1 2026/27 | K3: =Head11 -> Budget Year +2 2027/28
A4: Financial Performance
A5: Property rates | B5: ='A4-FinPerf RE'!C22 -> 1212773440 | C5: ='A4-FinPerf RE'!D22 -> 1370173435 | D5: ='A4-FinPerf RE'!E22 -> 1359086727 | E5: ='A4-FinPerf RE'!F22 -> 1649352521 | F5: ='A4-FinPerf RE'!G22 -> 1649352462 | G5: ='A4-FinPerf RE'!H22 -> 1649352462 | H5: ='A4-FinPerf RE'!I22 -> 1197656629 | I5: ='A4-FinPerf RE'!J22 -> 1721664641 | J5: ='A4-FinPerf RE'!K22 -> 1799139551 | K5: ='A4-FinPerf RE'!L22 -> 1844118038
A6: Service charges | B6: =SUM('A4-FinPerf RE'!C6:C9) -> 3846304860 | C6: =SUM('A4-FinPerf RE'!D6:D9) -> 3870497200 | D6: =SUM('A4-FinPerf RE'!E6:E9) -> 4086762355 | E6: =SUM('A4-FinPerf RE'!F6:F9) -> 5683700785 | F6: =SUM('A4-FinPerf RE'!G6:G9) -> 5610233690 | G6: =SUM('A4-FinPerf RE'!H6:H9) -> 5615698778 | H6: =SUM('A4-FinPerf RE'!I6:I9) -> 995767619 | I6: =SUM('A4-FinPerf RE'!J6:J9) -> 6280570233 | J6: =SUM('A4-FinPerf RE'!K6:K9) -> 6588318177 | K6: =SUM('A4-FinPerf RE'!L6:L9) -> 6911145768
A7: Investment revenue | B7: ='A4-FinPerf RE'!C14 -> 10445069 | C7: ='A4-FinPerf RE'!D14 -> 16957186 | D7: ='A4-FinPerf RE'!E14 -> 44117781 | E7: ='A4-FinPerf RE'!F14 -> 59562303 | F7: ='A4-FinPerf RE'!G14 -> 59562303 | G7: ='A4-FinPerf RE'!H14 -> 59562303 | H7: ='A4-FinPerf RE'!I14 -> 0 | I7: ='A4-FinPerf RE'!J14 -> 19996228 | J7: ='A4-FinPerf RE'!K14 -> 20976044 | K7: ='A4-FinPerf RE'!L14 -> 22003870
A8: Transfer and subsidies - Operational | B8: ='A4-FinPerf RE'!C26 -> 681677624 | C8: ='A4-FinPerf RE'!D26 -> 801751326 | D8: ='A4-FinPerf RE'!E26 -> 824544818 | E8: ='A4-FinPerf RE'!F26 -> 946343150 | F8: ='A4-FinPerf RE'!G26 -> 1026395188 | G8: ='A4-FinPerf RE'!H26 -> 1026395188 | H8: ='A4-FinPerf RE'!I26 -> 0 | I8: ='A4-FinPerf RE'!J26 -> 993197195 | J8: ='A4-FinPerf RE'!K26 -> 1066100549 | K8: ='A4-FinPerf RE'!L26 -> 1113039830
A9: Other own revenue | B9: ='A4-FinPerf RE'!C33-SUM(B5:B8) -> 365181607 | C9: ='A4-FinPerf RE'!D33-SUM(C5:C8) -> 367682230 | D9: ='A4-FinPerf RE'!E33-SUM(D5:D8) -> 613025069 | E9: ='A4-FinPerf RE'!F33-SUM(E5:E8) -> 624944465 | F9: ='A4-FinPerf RE'!G33-SUM(F5:F8) -> 624944465.7 | G9: ='A4-FinPerf RE'!H33-SUM(G5:G8) -> 624944465.7 | H9: ='A4-FinPerf RE'!I33-SUM(H5:H8) -> 0 | I9: ='A4-FinPerf RE'!J33-SUM(I5:I8) -> 517451737 | J9: ='A4-FinPerf RE'!K33-SUM(J5:J8) -> 542806863 | K9: ='A4-FinPerf RE'!L33-SUM(K5:K8) -> 569404406
A10: ='A4-FinPerf RE'!A33 -> Total Revenue (excluding capital transfers and contributions) | B10: =SUM(B5:B9) -> 6116382600 | C10: =SUM(C5:C9) -> 6427061377 | D10: 6927536750 | E10: 8963903224 | F10: 8970488109 | G10: 8975953197 | H10: 2193424248 | I10: 9532880034 | J10: 1.001734118e+10 | K10: 1.045971191e+10
A11: Employee costs | B11: ='A4-FinPerf RE'!C35 -> 1480410468 | C11: ='A4-FinPerf RE'!D35 -> 1478744114 | D11: ='A4-FinPerf RE'!E35 -> 1624858728 | E11: ='A4-FinPerf RE'!F35 -> 1860539286 | F11: ='A4-FinPerf RE'!G35 -> 1772840698 | G11: ='A4-FinPerf RE'!H35 -> 1786363095 | H11: ='A4-FinPerf RE'!I35 -> 1077583974 | I11: ='A4-FinPerf RE'!J35 -> 1936772763 | J11: ='A4-FinPerf RE'!K35 -> 2074266277 | K11: ='A4-FinPerf RE'!L35 -> 2220504452
A12: Remuneration of councillors | B12: ='A4-FinPerf RE'!C36 -> 49439040 | C12: ='A4-FinPerf RE'!D36 -> 51817505 | D12: ='A4-FinPerf RE'!E36 -> 63542010 | E12: ='A4-FinPerf RE'!F36 -> 66461931.11 | F12: ='A4-FinPerf RE'!G36 -> 66461931.11 | G12: ='A4-FinPerf RE'!H36 -> 66461931.11 | H12: ='A4-FinPerf RE'!I36 -> 0 | I12: ='A4-FinPerf RE'!J36 -> 70449648 | J12: ='A4-FinPerf RE'!K36 -> 73901678 | K12: ='A4-FinPerf RE'!L36 -> 77522858
A13: Depreciation and amortisation | B13: ='A4-FinPerf RE'!C40 -> 373536588 | C13: ='A4-FinPerf RE'!D40 -> 351530371 | D13: ='A4-FinPerf RE'!E40 -> 362584027 | E13: ='A4-FinPerf RE'!F40 -> 363040742 | F13: ='A4-FinPerf RE'!G40 -> 362178745 | G13: ='A4-FinPerf RE'!H40 -> 363040742 | H13: ='A4-FinPerf RE'!I40 -> 263171844 | I13: ='A4-FinPerf RE'!J40 -> 391122347 | J13: ='A4-FinPerf RE'!K40 -> 387623527 | K13: ='A4-FinPerf RE'!L40 -> 283437179
A14: Interest | B14: ='A4-FinPerf RE'!C41 -> 33596491 | C14: ='A4-FinPerf RE'!D41 -> 150813872 | D14: ='A4-FinPerf RE'!E41 -> 86051487 | E14: ='A4-FinPerf RE'!F41 -> 42824930.71 | F14: ='A4-FinPerf RE'!G41 -> 42824930.71 | G14: ='A4-FinPerf RE'!H41 -> 42824930.71 | H14: ='A4-FinPerf RE'!I41 -> 0 | I14: ='A4-FinPerf RE'!J41 -> 56180000 | J14: ='A4-FinPerf RE'!K41 -> 58708100 | K14: ='A4-FinPerf RE'!L41 -> 62230586
A15: Inventory consumed and bulk purchases | B15: ='A4-FinPerf RE'!C37+'A4-FinPerf RE'!C38 -> 3034514956 | C15: ='A4-FinPerf RE'!D37+'A4-FinPerf RE'!D38 -> 3089737287 | D15: ='A4-FinPerf RE'!E37+'A4-FinPerf RE'!E38 -> 3592059407 | E15: ='A4-FinPerf RE'!F37+'A4-FinPerf RE'!F38 -> 4138528115 | F15: ='A4-FinPerf RE'!G37+'A4-FinPerf RE'!G38 -> 3900504043 | G15: ='A4-FinPerf RE'!H37+'A4-FinPerf RE'!H38 -> 3900504043 | H15: ='A4-FinPerf RE'!I37+'A4-FinPerf RE'!I38 -> 2884950466 | I15: ='A4-FinPerf RE'!J37+'A4-FinPerf RE'!J38 -> 4536139411 | J15: ='A4-FinPerf RE'!K37+'A4-FinPerf RE'!K38 -> 4763738672 | K15: ='A4-FinPerf RE'!L37+'A4-FinPerf RE'!L38 -> 4999951180
A16: Transfers and subsidies | B16: ='A4-FinPerf RE'!C43 -> 18486826 | C16: ='A4-FinPerf RE'!D43 -> 15102578 | D16: ='A4-FinPerf RE'!E43 -> 10857198 | E16: ='A4-FinPerf RE'!F43 -> 52375754 | F16: ='A4-FinPerf RE'!G43 -> 69670132 | G16: ='A4-FinPerf RE'!H43 -> 52375754 | H16: ='A4-FinPerf RE'!I43 -> 40289508 | I16: ='A4-FinPerf RE'!J43 -> 54065270 | J16: ='A4-FinPerf RE'!K43 -> 56768065 | K16: ='A4-FinPerf RE'!L43 -> 59573673
A17: Other expenditure | B17: ='A4-FinPerf RE'!C48-SUM(B11:B16) -> 1732384128 | C17: ='A4-FinPerf RE'!D48-SUM(C11:C16) -> 1087956212 | D17: ='A4-FinPerf RE'!E48-SUM(D11:D16) -> 2294162857 | E17: ='A4-FinPerf RE'!F48-SUM(E11:E16) -> 1856500195 | F17: ='A4-FinPerf RE'!G48-SUM(F11:F16) -> 1660959222 | G17: ='A4-FinPerf RE'!H48-SUM(G11:G16) -> 1663869206 | H17: ='A4-FinPerf RE'!I48-SUM(H11:H16) -> 677603250 | I17: ='A4-FinPerf RE'!J48-SUM(I11:I16) -> 1517067097 | J17: ='A4-FinPerf RE'!K48-SUM(J11:J16) -> 1655550200 | K17: ='A4-FinPerf RE'!L48-SUM(K11:K16) -> 1780461800
A18: ='A4-FinPerf RE'!A48 -> Total Expenditure | B18: =SUM(B11:B17) -> 6722368497 | C18: =SUM(C11:C17) -> 6225701939 | D18: 8034115714 | E18: 8380270954 | F18: 7875439702 | G18: 7875439702 | H18: 4943599042 | I18: 8561796536 | J18: 9070556519 | K18: 9483681728
A19: ='A4-FinPerf RE'!A49 -> Surplus/(Deficit) | B19: =B10-B18 -> -605985897 | C19: =C10-C18 -> 201359438 | D19: -1106578964 | E19: 583632270.6 | F19: 1095048407 | G19: 1100513495 | H19: -2750174794 | I19: 971083498.5 | J19: 946784664.9 | K19: 976030183.6
A20: ='A4-FinPerf RE'!A50 -> Transfers and subsidies - capital (monetary allocations) | B20: ='A4-FinPerf RE'!C50 -> 368724617 | C20: ='A4-FinPerf RE'!D50 -> 324319271 | D20: ='A4-FinPerf RE'!E50 -> 427923159 | E20: ='A4-FinPerf RE'!F50 -> 456974891 | F20: ='A4-FinPerf RE'!G50 -> 488696014 | G20: ='A4-FinPerf RE'!H50 -> 488696014 | H20: ='A4-FinPerf RE'!I50 -> 0 | I20: ='A4-FinPerf RE'!J50 -> 376126520 | J20: ='A4-FinPerf RE'!K50 -> 429887271 | K20: ='A4-FinPerf RE'!L50 -> 457346507
A21: ='A4-FinPerf RE'!A51 -> Transfers and subsidies - capital (in-kind) | B21: ='A4-FinPerf RE'!C51 -> 60000 | C21: ='A4-FinPerf RE'!D51 -> 1600 | D21: ='A4-FinPerf RE'!E51 -> 198834 | E21: ='A4-FinPerf RE'!F51 -> 0 | F21: ='A4-FinPerf RE'!G51 -> 0 | G21: ='A4-FinPerf RE'!H51 -> 0 | H21: ='A4-FinPerf RE'!I51 -> 0 | I21: ='A4-FinPerf RE'!J51 -> 0 | J21: ='A4-FinPerf RE'!K51 -> 0 | K21: ='A4-FinPerf RE'!L51 -> 0
A22: ='A4-FinPerf RE'!A52 -> Surplus/(Deficit) after capital transfers & contributions | B22: =B19+SUM(B20:B21) -> -237201280 | C22: =C19+SUM(C20:C21) -> 525680309 | D22: -678456971 | E22: 1040607162 | F22: 1583744421 | G22: 1589209509 | H22: -2750174794 | I22: 1347210018 | J22: 1376671936 | K22: 1433376691
A23: ='A4-FinPerf RE'!A58 -> Share of Surplus/Deficit attributable to Associate | B23: ='A4-FinPerf RE'!C58 -> 0 | C23: ='A4-FinPerf RE'!D58 -> 0 | D23: ='A4-FinPerf RE'!E58 -> 0 | E23: ='A4-FinPerf RE'!F58 -> 0 | F23: ='A4-FinPerf RE'!G58 -> 0 | G23: ='A4-FinPerf RE'!H58 -> 0 | H23: ='A4-FinPerf RE'!I58 -> 0 | I23: ='A4-FinPerf RE'!J58 -> 0 | J23: ='A4-FinPerf RE'!K58 -> 0 | K23: ='A4-FinPerf RE'!L58 -> 0
A24: ='A4-FinPerf RE'!A60 -> Surplus/(Deficit) for the year | B24: =B22+B23 -> -237201280 | C24: =C22+C23 -> 525680309 | D24: -678456971 | E24: 1040607162 | F24: 1583744421 | G24: 1589209509 | H24: -2750174794 | I24: 1347210018 | J24: 1376671936 | K24: 1433376691
A25: Capital expenditure & funds sources
A26: Capital expenditure | B26: ='A5-Capex'!C63 -> 521826748.7 | C26: ='A5-Capex'!D63 -> 547789828.1 | D26: ='A5-Capex'!E63 -> 726309725.8 | E26: ='A5-Capex'!F63 -> 824010890.4 | F26: ='A5-Capex'!G63 -> 816548795.3 | G26: ='A5-Capex'!H63 -> 816548795.3 | H26: ='A5-Capex'!I63 -> 0 | I26: ='A5-Capex'!J63 -> 627650921 | J26: ='A5-Capex'!K63 -> 519757271 | K26: ='A5-Capex'!L63 -> 555912339
A27: Transfers recognised - capital | B27: ='A5-Capex'!C70 -> 312721147.3 | C27: ='A5-Capex'!D70 -> 363329782.9 | D27: ='A5-Capex'!E70 -> 395582260.5 | E27: ='A5-Capex'!F70 -> 456974890.5 | F27: ='A5-Capex'!G70 -> 477925973 | G27: ='A5-Capex'!H70 -> 477925973 | H27: ='A5-Capex'!I70 -> 0 | I27: ='A5-Capex'!J70 -> 376126520 | J27: ='A5-Capex'!K70 -> 429887271 | K27: ='A5-Capex'!L70 -> 455998188
A29: ='A5-Capex'!A72 -> Borrowing | B29: ='A5-Capex'!C72 -> 49400541.77 | C29: ='A5-Capex'!D72 -> 0 | D29: ='A5-Capex'!E72 -> 72309925.81 | E29: ='A5-Capex'!F72 -> 234315856 | F29: ='A5-Capex'!G72 -> 206615856 | G29: ='A5-Capex'!H72 -> 206615856 | H29: ='A5-Capex'!I72 -> 0 | I29: ='A5-Capex'!J72 -> 161524401 | J29: ='A5-Capex'!K72 -> 0 | K29: ='A5-Capex'!L72 -> 5460125
A30: ='A5-Capex'!A73 -> Internally generated funds | B30: ='A5-Capex'!C73 -> 159705059.6 | C30: ='A5-Capex'!D73 -> 184460045.2 | D30: ='A5-Capex'!E73 -> 258417539.5 | E30: ='A5-Capex'!F73 -> 132720143.9 | F30: ='A5-Capex'!G73 -> 132006966 | G30: ='A5-Capex'!H73 -> 132006966 | H30: ='A5-Capex'!I73 -> 0 | I30: ='A5-Capex'!J73 -> 90000000 | J30: ='A5-Capex'!K73 -> 89870000 | K30: ='A5-Capex'!L73 -> 94454026
A31: Total sources of capital funds | B31: =+B27+B29+B30 -> 521826748.7 | C31: =+C27+C29+C30 -> 547789828.1 | D31: 726309725.8 | E31: 824010890.4 | F31: 816548795 | G31: 816548795 | H31: 0 | I31: 627650921 | J31: 519757271 | K31: 555912339
A32: Financial position
A33: ='A6-FinPos'!A13 -> Total current assets | B33: ='A6-FinPos'!C13 -> 4085471725 | C33: ='A6-FinPos'!D13 -> 5711426420 | D33: ='A6-FinPos'!E13 -> 4645420037 | E33: ='A6-FinPos'!F13 -> 6406033846 | F33: ='A6-FinPos'!G13 -> 6635536043 | G33: ='A6-FinPos'!H13 -> 6636895525 | H33: ='A6-FinPos'!I13 -> 2858453791 | I33: ='A6-FinPos'!J13 -> 3043789126 | J33: ='A6-FinPos'!K13 -> 3165089119 | K33: ='A6-FinPos'!L13 -> 3299460206
A34: ='A6-FinPos'!A25 -> Total non current assets | B34: ='A6-FinPos'!C25 -> 18551873046 | C34: ='A6-FinPos'!D25 -> 19916480699 | D34: ='A6-FinPos'!E25 -> 20201853637 | E34: ='A6-FinPos'!F25 -> 1.013418535e+10 | F34: ='A6-FinPos'!G25 -> 1.012778664e+10 | G34: ='A6-FinPos'!H25 -> 1.013495226e+10 | H34: ='A6-FinPos'!I25 -> 0 | I34: ='A6-FinPos'!J25 -> 9238886782 | J34: ='A6-FinPos'!K25 -> 9518488947 | K34: ='A6-FinPos'!L25 -> 9959180347
A35: ='A6-FinPos'!A37 -> Total current liabilities | B35: ='A6-FinPos'!C37 -> 2527529238 | C35: ='A6-FinPos'!D37 -> 2983655727 | D35: ='A6-FinPos'!E37 -> 2737419975 | E35: ='A6-FinPos'!F37 -> 2374399683 | F35: ='A6-FinPos'!G37 -> 2412666556 | G35: ='A6-FinPos'!H37 -> 2414399683 | H35: ='A6-FinPos'!I37 -> 0 | I35: ='A6-FinPos'!J37 -> 2159651327 | J35: ='A6-FinPos'!K37 -> 2133706431 | K35: ='A6-FinPos'!L37 -> 2158848343
A36: ='A6-FinPos'!A43 -> Total non current liabilities | B36: ='A6-FinPos'!C43 -> 775015320 | C36: ='A6-FinPos'!D43 -> 1204461828 | D36: ='A6-FinPos'!E43 -> 2230666176 | E36: ='A6-FinPos'!F43 -> 1806942024 | F36: ='A6-FinPos'!G43 -> 1806942024 | G36: ='A6-FinPos'!H43 -> 1806942024 | H36: ='A6-FinPos'!I43 -> 0 | I36: ='A6-FinPos'!J43 -> 3413768978 | J36: ='A6-FinPos'!K43 -> 3567388582 | K36: ='A6-FinPos'!L43 -> 3727921068
A37: Community wealth/Equity | B37: ='A6-FinPos'!C50 -> 8059999567 | C37: ='A6-FinPos'!D50 -> 7710969567 | D37: ='A6-FinPos'!E50 -> 6764274982 | E37: ='A6-FinPos'!F50 -> 1.065216758e+10 | F37: ='A6-FinPos'!G50 -> 1.095696985e+10 | G37: ='A6-FinPos'!H50 -> 1.096376182e+10 | H37: ='A6-FinPos'!I50 -> -1468968 | I37: ='A6-FinPos'!J50 -> 6709255599 | J37: ='A6-FinPos'!K50 -> 6982483053 | K37: ='A6-FinPos'!L50 -> 7371871141
A38: Cash flows
A39: Net cash from (used) operating | B39: ='A7-CFlow'!C17 -> 534737124 | C39: ='A7-CFlow'!D17 -> 755969417 | D39: ='A7-CFlow'!E17 -> 612674303 | E39: ='A7-CFlow'!F17 -> 943547540.4 | F39: ='A7-CFlow'!G17 -> 776439800.6 | G39: ='A7-CFlow'!H17 -> 773609178.6 | H39: ='A7-CFlow'!I17 -> 0 | I39: ='A7-CFlow'!J17 -> 586984266.5 | J39: ='A7-CFlow'!K17 -> 621557170.5 | K39: ='A7-CFlow'!L17 -> 651982142
A40: Net cash from (used) investing | B40: ='A7-CFlow'!C27 -> -525051173 | C40: ='A7-CFlow'!D27 -> -451531352 | D40: ='A7-CFlow'!E27 -> -674394631 | E40: ='A7-CFlow'!F27 -> -769351055 | F40: ='A7-CFlow'!G27 -> -824010890 | G40: ='A7-CFlow'!H27 -> -824860890 | H40: ='A7-CFlow'!I27 -> 0 | I40: ='A7-CFlow'!J27 -> -629736234 | J40: ='A7-CFlow'!K27 -> -522148513 | K40: ='A7-CFlow'!L27 -> -559701263
A41: Net cash from (used) financing | B41: ='A7-CFlow'!C36 -> -81573483 | C41: ='A7-CFlow'!D36 -> -79162901 | D41: ='A7-CFlow'!E36 -> 42004700 | E41: ='A7-CFlow'!F36 -> 177000000 | F41: ='A7-CFlow'!G36 -> 184315856 | G41: ='A7-CFlow'!H36 -> 184315856 | H41: ='A7-CFlow'!I36 -> 0 | I41: ='A7-CFlow'!J36 -> 71524401 | J41: ='A7-CFlow'!K36 -> -90000000 | K41: ='A7-CFlow'!L36 -> -90000000
A42: =LEFT('A7-CFlow'!A40,37) -> Cash/cash equivalents at the year end | B42: ='A7-CFlow'!C40 -> 287632020 | C42: ='A7-CFlow'!D40 -> 514428004 | D42: ='A7-CFlow'!E40 -> 491686381 | E42: ='A7-CFlow'!F40 -> 640349325.4 | F42: ='A7-CFlow'!G40 -> 632737501.6 | G42: ='A7-CFlow'!H40 -> 629056879.6 | H42: ='A7-CFlow'!I40 -> 0 | I42: ='A7-CFlow'!J40 -> 395132659.5 | J42: ='A7-CFlow'!K40 -> 404541317 | K42: ='A7-CFlow'!L40 -> 406822196
A44: Cash backing/surplus reconciliation
A45: ='A8-ResRecon'!A4 -> Cash and investments available | B45: ='A8-ResRecon'!C8 -> 290433199 | C45: ='A8-ResRecon'!D8 -> 515708363 | D45: ='A8-ResRecon'!E8 -> 495992735 | E45: ='A8-ResRecon'!F8 -> 213140337 | F45: ='A8-ResRecon'!G8 -> 372823656 | G45: ='A8-ResRecon'!H8 -> 374180638 | H45: ='A8-ResRecon'!I8 -> -666355195 | I45: ='A8-ResRecon'!J8 -> 400170595.5 | J45: ='A8-ResRecon'!K8 -> 396979401 | K45: ='A8-ResRecon'!L8 -> 404944406
A46: ='A8-ResRecon'!A10 -> Application of cash and investments | B46: ='A8-ResRecon'!C18 -> 1299241885 | C46: ='A8-ResRecon'!D18 -> 2272161097 | D46: ='A8-ResRecon'!E18 -> 3192550452 | E46: ='A8-ResRecon'!F18 -> 797120166 | F46: ='A8-ResRecon'!G18 -> 275890333 | G46: ='A8-ResRecon'!H18 -> 272805333 | H46: ='A8-ResRecon'!I18 -> -68908314 | I46: ='A8-ResRecon'!J18 -> 96174716 | J46: ='A8-ResRecon'!K18 -> -31273647 | K46: ='A8-ResRecon'!L18 -> -108718066
A47: Balance - surplus (shortfall) | B47: =B45-B46 -> -1008808686 | C47: =C45-C46 -> -1756452734 | D47: -2696557717 | E47: -583979829 | F47: 96933323 | G47: 101375305 | H47: -597446881 | I47: 303995879.5 | J47: 428253048 | K47: 513662472
A48: Asset management
A49: Asset register summary (WDV) | B49: ='A9-Asset'!C180 -> 6763543509 | C49: ='A9-Asset'!D180 -> 7128088298 | D49: ='A9-Asset'!E180 -> 7784729118 | E49: ='A9-Asset'!F180 -> 9389756846 | F49: ='A9-Asset'!G180 -> 9412890850 | G49: ='A9-Asset'!H180 -> 9412890850 | I49: ='A9-Asset'!I180 -> 7807004115 | J49: ='A9-Asset'!J180 -> 8151004302 | K49: ='A9-Asset'!K180 -> 8545100119
A50: ='A9-Asset'!A183 -> Depreciation | B50: ='A9-Asset'!C183 -> 365699316 | C50: ='A9-Asset'!D183 -> 337452387 | D50: ='A9-Asset'!E183 -> 359059555 | E50: ='A9-Asset'!F183 -> 362178745 | F50: ='A9-Asset'!G183 -> 362178745 | G50: ='A9-Asset'!H183 -> 362178745 | I50: ='A9-Asset'!I183 -> 390260350 | J50: ='A9-Asset'!J183 -> 386742529 | K50: ='A9-Asset'!K183 -> 282526754
A51: Renewal and Upgrading of Existing Assets | B51: ='A9-Asset'!C40+'A9-Asset'!C75 -> 0 | C51: ='A9-Asset'!D40+'A9-Asset'!D75 -> 0 | D51: ='A9-Asset'!E40+'A9-Asset'!E75 -> 11937006 | E51: ='A9-Asset'!F40+'A9-Asset'!F75 -> 126776287 | F51: ='A9-Asset'!G40+'A9-Asset'!G75 -> 242726626 | G51: ='A9-Asset'!H40+'A9-Asset'!H75 -> 268258836 | I51: ='A9-Asset'!I40+'A9-Asset'!I75 -> 261626720 | J51: ='A9-Asset'!J40+'A9-Asset'!J75 -> 293856560 | K51: ='A9-Asset'!K40+'A9-Asset'!K75 -> 176919750
A52: Repairs and Maintenance | B52: ='A9-Asset'!C184 -> 0 | C52: ='A9-Asset'!D184 -> 0 | D52: ='A9-Asset'!E184 -> 0 | E52: ='A9-Asset'!F184 -> 624615208 | F52: ='A9-Asset'!G184 -> 430115208 | G52: ='A9-Asset'!H184 -> 430115208 | I52: ='A9-Asset'!I184 -> 499034026 | J52: ='A9-Asset'!J184 -> 549576626 | K52: ='A9-Asset'!K184 -> 588471171
A54: Free services
A55: Cost of Free Basic Services provided | B55: ='A10-SerDel'!C60 -> 0 | C55: ='A10-SerDel'!D60 -> 0 | D55: ='A10-SerDel'!E60 -> 0 | E55: ='A10-SerDel'!F60 -> 282387340 | F55: ='A10-SerDel'!G60 -> 254768167 | G55: ='A10-SerDel'!H60 -> 249303079 | I55: ='A10-SerDel'!I60 -> 302248588 | J55: ='A10-SerDel'!J60 -> 317058768 | K55: ='A10-SerDel'!K60 -> 332594648
A56: Revenue cost of free services provided | B56: ='A10-SerDel'!C79 -> 0 | C56: ='A10-SerDel'!D79 -> 0 | D56: ='A10-SerDel'!E79 -> 0 | E56: ='A10-SerDel'!F79 -> 120843621 | F56: ='A10-SerDel'!G79 -> 120843621 | G56: ='A10-SerDel'!H79 -> 120866231 | I56: ='A10-SerDel'!I79 -> 258774813 | J56: ='A10-SerDel'!J79 -> 270419679 | K56: ='A10-SerDel'!K79 -> 277180171
A57: Households below minimum service level
A58: ='A10-SerDel'!A5 -> Water: | B58: ='A10-SerDel'!C14 -> 8505.0944 | C58: ='A10-SerDel'!D14 -> 8505.0944 | D58: ='A10-SerDel'!E14 -> 8505.0944 | E58: ='A10-SerDel'!F14 -> 8505.0944 | F58: ='A10-SerDel'!G14 -> 8505.0944 | G58: ='A10-SerDel'!H14 -> 8887.823648 | I58: ='A10-SerDel'!I14 -> 9287.775712 | J58: ='A10-SerDel'!J14 -> 9705.725619 | K58: ='A10-SerDel'!K14 -> 10142.48327
A59: ='A10-SerDel'!A16 -> Sanitation/sewerage: | B59: ='A10-SerDel'!C26 -> 1184.4888 | C59: ='A10-SerDel'!D26 -> 1184.4888 | D59: ='A10-SerDel'!E26 -> 1231.868352 | E59: ='A10-SerDel'!F26 -> 1184.4888 | F59: ='A10-SerDel'!G26 -> 1184.4888 | G59: ='A10-SerDel'!H26 -> 1237.790796 | I59: ='A10-SerDel'!I26 -> 1293.491382 | J59: ='A10-SerDel'!J26 -> 1351.698494 | K59: ='A10-SerDel'!K26 -> 1412.524926
A60: ='A10-SerDel'!A28 -> Energy: | B60: ='A10-SerDel'!C35 -> 8000 | C60: ='A10-SerDel'!D35 -> 8000 | D60: ='A10-SerDel'!E35 -> 8000 | E60: ='A10-SerDel'!F35 -> 8000 | F60: ='A10-SerDel'!G35 -> 8000 | G60: ='A10-SerDel'!H35 -> 8360 | I60: ='A10-SerDel'!I35 -> 8736.2 | J60: ='A10-SerDel'!J35 -> 9129.329 | K60: ='A10-SerDel'!K35 -> 9540.148805
A61: ='A10-SerDel'!A37 -> Refuse: | B61: ='A10-SerDel'!C45 -> 40770.3172 | C61: ='A10-SerDel'!D45 -> 40770.3172 | D61: ='A10-SerDel'!E45 -> 42401.12989 | E61: ='A10-SerDel'!F45 -> 40770.3172 | F61: ='A10-SerDel'!G45 -> 40770.3172 | G61: ='A10-SerDel'!H45 -> 42604.98147 | I61: ='A10-SerDel'!I45 -> 44522.20564 | J61: ='A10-SerDel'!J45 -> 46525.70489 | K61: ='A10-SerDel'!K45 -> 48619.36161

Sheet A2-FinPerf SC
A1: =muni&" - "&Approve3 -> Choose name from list - Table A2 Budgeted Financial Performance (revenue and expenditure by functional classification)
A2: ="Functional Classification "&desc -> Functional Classification Description | B2: =head27 -> Ref | C2: =head1b -> 2021/22 | D2: =head1A -> 2022/23 | E2: =Head1 -> 2023/24 | F2: =Head2 -> Current Year 2024/25 | I2: =Head3 -> 2025/26 Medium Term Revenue & Expenditure Framework
A3: R thousand | B3: 1 | C3: =Head5 -> Audited Outcome | D3: =Head5 -> Audited Outcome | E3: =Head5 -> Audited Outcome | F3: =Head6 -> Original Budget | G3: =Head7 -> Adjusted Budget | H3: =Head8 -> Full Year Forecast | I3: =Head9 -> Budget Year 2025/26 | J3: =Head10 -> Budget Year +1 2026/27 | K3: =Head11 -> Budget Year +2 2027/28
A4: Revenue - Functional
A5: Governance and administration | C5: =SUM(C6:C8) -> 1695855981 | D5: =SUM(D6:D8) -> 1955757202 | E5: 2042707568 | F5: 2688150807 | G5: 2687712716 | H5: 2687712716 | I5: 2802816797 | J5: 2939443643 | K5: 3036382010
A6: Executive and council | C6: =A2A!C6 -> 3530376.55 | D6: =A2A!D6 -> 5213268.17 | E6: =A2A!E6 -> 4700996.67 | F6: =A2A!F6 -> 0 | G6: =A2A!G6 -> 0 | H6: =A2A!H6 -> 0 | I6: =A2A!I6 -> 0 | J6: =A2A!J6 -> 0 | K6: =A2A!K6 -> 0
A7: Finance and administration | C7: =A2A!C9 -> 1692323110 | D7: =A2A!D9 -> 1950543934 | E7: =A2A!E9 -> 2038006572 | F7: =A2A!F9 -> 2688150807 | G7: =A2A!G9 -> 2687712716 | H7: =A2A!H9 -> 2687712716 | I7: =A2A!I9 -> 2802816797 | J7: =A2A!J9 -> 2939443643 | K7: =A2A!K9 -> 3036382010
A8: Internal audit | C8: =A2A!C23 -> 2494.96 | D8: =A2A!D23 -> 0 | E8: =A2A!E23 -> 0 | F8: =A2A!F23 -> 0 | G8: =A2A!G23 -> 0 | H8: =A2A!H23 -> 0 | I8: =A2A!I23 -> 0 | J8: =A2A!J23 -> 0 | K8: =A2A!K23 -> 0
A9: Community and public safety | C9: =SUM(C10:C14) -> 134306482.7 | D9: =SUM(D10:D14) -> 142629089.9 | E9: 225251514.1 | F9: 525429105.1 | G9: 322789363.4 | H9: 322789363.4 | I9: 63190181.13 | J9: 62952706.6 | K9: 66181196.64
A10: Community and social services | C10: =A2A!C26 -> 45792786.73 | D10: =A2A!D26 -> 61498683.1 | E10: =A2A!E26 -> 63388777.86 | F10: =A2A!F26 -> 307323184 | G10: =A2A!G26 -> 106950510.3 | H10: =A2A!H26 -> 106950510.3 | I10: =A2A!I26 -> 25184769 | J10: =A2A!J26 -> 22969656 | K10: =A2A!K26 -> 24116792
A11: Sport and recreation | C11: =A2A!C48 -> 344638.91 | D11: =A2A!D48 -> 588753.1 | E11: =A2A!E48 -> 4912299.59 | F11: =A2A!F48 -> 23526793.18 | G11: =A2A!G48 -> 30479353.18 | H11: =A2A!H48 -> 30479353.18 | I11: =A2A!I48 -> 1223878 | J11: =A2A!J48 -> 1283846 | K11: =A2A!K48 -> 1346755
A12: Public safety | C12: =A2A!C54 -> 18186248.15 | D12: =A2A!D54 -> 24640408.62 | E12: =A2A!E54 -> 25017311.62 | F12: =A2A!F54 -> 9172795.913 | G12: =A2A!G54 -> 9172795.91 | H12: =A2A!H54 -> 9172795.91 | I12: =A2A!I54 -> 16851132.13 | J12: =A2A!J54 -> 17676837.6 | K12: =A2A!K54 -> 18543002.64
A13: Housing | C13: =A2A!C63 -> 69982808.91 | D13: =A2A!D63 -> 55901245.1 | E13: =A2A!E63 -> 131933125 | F13: =A2A!F63 -> 185406332 | G13: =A2A!G63 -> 176186704 | H13: =A2A!H63 -> 176186704 | I13: =A2A!I63 -> 19930402 | J13: =A2A!J63 -> 21022367 | K13: =A2A!K63 -> 22174647
A14: Health | C14: =A2A!C66 -> 0 | D14: =A2A!D66 -> 0 | E14: =A2A!E66 -> 0 | F14: =A2A!F66 -> 0 | G14: =A2A!G66 -> 0 | H14: =A2A!H66 -> 0 | I14: =A2A!I66 -> 0 | J14: =A2A!J66 -> 0 | K14: =A2A!K66 -> 0
A15: Economic and environmental services | C15: =SUM(C16:C18) -> 207365686.9 | D15: =SUM(D16:D18) -> 200051132.5 | E15: 167411962.7 | F15: 86691641.99 | G15: 150008156.3 | H15: 150008156.3 | I15: 146237256.8 | J15: 200032881.4 | K15: 214617494
A16: Planning and development | C16: =A2A!C75 -> 55781154.04 | D16: =A2A!D75 -> 152414516.5 | E16: =A2A!E75 -> 118230028 | F16: =A2A!F75 -> 31697207.13 | G16: =A2A!G75 -> 44120968.22 | H16: =A2A!H75 -> 44120968.22 | I16: =A2A!I75 -> 40664552 | J16: =A2A!J75 -> 44187114 | K16: =A2A!K75 -> 51735284
A17: Road transport | C17: =A2A!C86 -> 151376861.6 | D17: =A2A!D86 -> 47241673.42 | E17: =A2A!E86 -> 48423465.64 | F17: =A2A!F86 -> 50000000 | G17: =A2A!G86 -> 100892753.2 | H17: =A2A!H86 -> 100892753.2 | I17: =A2A!I86 -> 100000000 | J17: =A2A!J86 -> 150000000 | K17: =A2A!K86 -> 156750000
A18: Environmental protection | C18: =A2A!C91 -> 207671.31 | D18: =A2A!D91 -> 394942.58 | E18: =A2A!E91 -> 758469.01 | F18: =A2A!F91 -> 4994434.861 | G18: =A2A!G91 -> 4994434.86 | H18: =A2A!H91 -> 4994434.86 | I18: =A2A!I91 -> 5572704.821 | J18: =A2A!J91 -> 5845767.357 | K18: =A2A!K91 -> 6132209.958
A19: Trading services | C19: =SUM(C20:C23) -> 4158681263 | D19: =SUM(D20:D23) -> 4410211201 | E19: 4506844065 | F19: 5997733918 | G19: 6174882024 | H19: 6174882024 | I19: 6840723284 | J19: =SUM(J20:J23) -> 7186014276 | K19: 7538212303
A20: Energy sources | C20: =A2A!C99 -> 2569652754 | D20: =A2A!D99 -> 2724539631 | E20: =A2A!E99 -> 2671690063 | F20: =A2A!F99 -> 4347604455 | G20: =A2A!G99 -> 4286092467 | H20: =A2A!H99 -> 4286092467 | I20: =A2A!I99 -> 4740505817 | J20: =A2A!J99 -> 4982860597 | K20: =A2A!K99 -> 5226798336
A21: Water management | C21: =A2A!C103 -> 1156790470 | D21: =A2A!D103 -> 1249069243 | E21: =A2A!E103 -> 1308377343 | F21: =A2A!F103 -> 1219122118 | G21: =A2A!G103 -> 1282859280 | H21: =A2A!H103 -> 1282859280 | I21: =A2A!I103 -> 1365915970 | J21: =A2A!J103 -> 1435395855 | K21: =A2A!K103 -> 1507035251
A22: Waste water management | C22: =A2A!C107 -> 281762407.3 | D22: =A2A!D107 -> 286349072.1 | E22: =A2A!E107 -> 332249573 | F22: =A2A!F107 -> 262027256.3 | G22: =A2A!G107 -> 436950188 | H22: =A2A!H107 -> 436950188 | I22: =A2A!I107 -> 552950003 | J22: =A2A!J107 -> 577520106 | K22: =A2A!K107 -> 604819351
A23: Waste management | C23: =A2A!C112 -> 150475631.1 | D23: =A2A!D112 -> 150253254.9 | E23: =A2A!E112 -> 194527085.9 | F23: =A2A!F112 -> 168980088.6 | G23: =A2A!G112 -> 168980088.6 | H23: =A2A!H112 -> 168980088.6 | I23: =A2A!I112 -> 181351494 | J23: =A2A!J112 -> 190237718 | K23: =A2A!K112 -> 199559365
A24: Other | B24: 4 | C24: =A2A!C117 -> 26227823.48 | D24: =A2A!D117 -> 39273819.17 | E24: =A2A!E117 -> 52356604.63 | F24: =A2A!F117 -> 122872643.2 | G24: =A2A!G117 -> 123791924 | H24: =A2A!H117 -> 123791924 | I24: =A2A!I117 -> 56039037 | J24: =A2A!J117 -> 58784948 | K24: =A2A!K117 -> 61665412
A25: ="Total "&A4 -> Total Revenue - Functional | B25: 2 | C25: =C5+C9+C15+C19+C24 -> 6222437237 | D25: =D5+D9+D15+D19+D24 -> 6747922445 | E25: =E5+E9+E15+E19+E24 -> 6994571715 | F25: 9420878115 | G25: 9459184184 | H25: 9459184184 | I25: =I5+I9+I15+I19+I24 -> 9909006556 | J25: 1.044722845e+10 | K25: 1.091705842e+10
A27: Expenditure - Functional
A28: Governance and administration | C28: =SUM(C29:C31) -> 1191049487 | D28: =SUM(D29:D31) -> 1085322317 | E28: 1394784170 | F28: 1659708472 | G28: 2374518947 | H28: 2374518947 | I28: 2319911464 | J28: 2479162719 | K28: 2616799642
A29: Executive and council | C29: =A2A!C128 -> 117808679.1 | D29: =A2A!D128 -> 115687006.4 | E29: =A2A!E128 -> 154335868.4 | F29: =A2A!F128 -> 165980670 | G29: =A2A!G128 -> 825524780.8 | H29: =A2A!H128 -> 825524780.8 | I29: =A2A!I128 -> 871977053 | J29: =A2A!J128 -> 1003249896 | K29: =A2A!K128 -> 1058341513
A30: Finance and administration | C30: =A2A!C131 -> 1053698122 | D30: =A2A!D131 -> 950234661.9 | E30: =A2A!E131 -> 1215285473 | F30: =A2A!F131 -> 1465568308 | G30: =A2A!G131 -> 1534968086 | H30: =A2A!H131 -> 1534968086 | I30: =A2A!I131 -> 1415040224 | J30: =A2A!J131 -> 1440489734 | K30: =A2A!K131 -> 1520303283
A31: Internal audit | C31: =A2A!C145 -> 19542685.37 | D31: =A2A!D145 -> 19400648.37 | E31: =A2A!E145 -> 25162828.92 | F31: =A2A!F145 -> 28159494 | G31: =A2A!G145 -> 14026080.13 | H31: =A2A!H145 -> 14026080.13 | I31: =A2A!I145 -> 32894187 | J31: =A2A!J145 -> 35423089 | K31: =A2A!K145 -> 38154846
A32: Community and public safety | C32: =SUM(C33:C37) -> 551440158.6 | D32: =SUM(D33:D37) -> 624011514.2 | E32: 639572810.1 | F32: 706899390.8 | G32: 552040530 | H32: 552040530 | I32: 547652752 | J32: 572186292 | K32: 594666910
A33: Community and social services | C33: =A2A!C148 -> 141393704.7 | D33: =A2A!D148 -> 147223223.9 | E33: =A2A!E148 -> 154233095.9 | F33: =A2A!F148 -> 250699021 | G33: =A2A!G148 -> 143956207 | H33: =A2A!H148 -> 143956207 | I33: =A2A!I148 -> 132143884 | J33: =A2A!J148 -> 137089636 | K33: =A2A!K148 -> 140344067
A34: Sport and recreation | C34: =A2A!C170 -> 115888281.4 | D34: =A2A!D170 -> 140506827.5 | E34: =A2A!E170 -> 152619425.4 | F34: =A2A!F170 -> 121147022.5 | G34: =A2A!G170 -> 111821486.8 | H34: =A2A!H170 -> 111821486.8 | I34: =A2A!I170 -> 116559444 | J34: =A2A!J170 -> 121528808 | K34: =A2A!K170 -> 125809640
A35: Public safety | C35: =A2A!C176 -> 216193878.2 | D35: =A2A!D176 -> 232287900.7 | E35: =A2A!E176 -> 221231115.3 | F35: =A2A!F176 -> 244183097.4 | G35: =A2A!G176 -> 184250052.6 | H35: =A2A!H176 -> 184250052.6 | I35: =A2A!I176 -> 197871699 | J35: =A2A!J176 -> 207397353 | K35: =A2A!K176 -> 217176069
A36: Housing | C36: =A2A!C185 -> 68394082.77 | D36: =A2A!D185 -> 94434776.88 | E36: =A2A!E185 -> 101531000 | F36: =A2A!F185 -> 81136670.54 | G36: =A2A!G185 -> 103330098.5 | H36: =A2A!H185 -> 103330098.5 | I36: =A2A!I185 -> 91953449 | J36: =A2A!J185 -> 96599636 | K36: =A2A!K185 -> 101298102
A37: Health | C37: =A2A!C188 -> 9570211.44 | D37: =A2A!D188 -> 9558785.25 | E37: =A2A!E188 -> 9958173.58 | F37: =A2A!F188 -> 9733579.461 | G37: =A2A!G188 -> 8682685.06 | H37: =A2A!H188 -> 8682685.06 | I37: =A2A!I188 -> 9124276 | J37: =A2A!J188 -> 9570859 | K37: =A2A!K188 -> 10039032
A38: Economic and environmental services | C38: =SUM(C39:C41) -> 393095329 | D38: =SUM(D39:D41) -> 378225313.5 | E38: 478064864.4 | F38: 640338797 | G38: 546110010.4 | H38: 546110010.4 | I38: 456967977 | J38: 509996460 | K38: 502934197
A39: Planning and development | C39: =A2A!C197 -> 87743205.43 | D39: =A2A!D197 -> 93765700.13 | E39: =A2A!E197 -> 97777604.41 | F39: =A2A!F197 -> 161555852 | G39: =A2A!G197 -> 137355076.9 | H39: =A2A!H197 -> 137355076.9 | I39: =A2A!I197 -> 149407938 | J39: =A2A!J197 -> 158045112 | K39: =A2A!K197 -> 165764065
A40: Road transport | C40: =A2A!C208 -> 282415490.9 | D40: =A2A!D208 -> 259798778.1 | E40: =A2A!E208 -> 354436930.9 | F40: =A2A!F208 -> 449621964 | G40: =A2A!G208 -> 376934820.3 | H40: =A2A!H208 -> 376934820.3 | I40: =A2A!I208 -> 273692674 | J40: =A2A!J208 -> 316399082 | K40: =A2A!K208 -> 299867230
A41: Environmental protection | C41: =A2A!C213 -> 22936632.7 | D41: =A2A!D213 -> 24660835.2 | E41: =A2A!E213 -> 25850329.03 | F41: =A2A!F213 -> 29160981 | G41: =A2A!G213 -> 31820113.16 | H41: =A2A!H213 -> 31820113.16 | I41: =A2A!I213 -> 33867365 | J41: =A2A!J213 -> 35552266 | K41: =A2A!K213 -> 37302902
A42: Trading services | C42: =SUM(C43:C46) -> 4733193787 | D42: =SUM(D43:D46) -> 4061495013 | E42: 5346286592 | F42: =SUM(F43:F46) -> 5278293781 | G42: 4640259965 | H42: 4640259965 | I42: 5177106066 | J42: 5446369788 | K42: =SUM(K43:K46) -> 5704756154
A43: Energy sources | C43: =A2A!C221 -> 2982827962 | D43: =A2A!D221 -> 2621122230 | E43: =A2A!E221 -> 3298296328 | F43: =A2A!F221 -> 3749118944 | G43: =A2A!G221 -> 3285426012 | H43: =A2A!H221 -> 3285426012 | I43: =A2A!I221 -> 3529418945 | J43: =A2A!J221 -> 3702057408 | K43: =A2A!K221 -> 3883155159
A44: Water management | C44: =A2A!C225 -> 1280896309 | D44: =A2A!D225 -> 952915577.5 | E44: =A2A!E225 -> 1422632106 | F44: =A2A!F225 -> 1010944858 | G44: =A2A!G225 -> 895759416 | H44: =A2A!H225 -> 895759416 | I44: =A2A!I225 -> 1107383494 | J44: =A2A!J225 -> 1165499615 | K44: =A2A!K225 -> 1211258659
A45: Waste water management | C45: =A2A!C229 -> 325212343.8 | D45: =A2A!D229 -> 348153877.8 | E45: =A2A!E229 -> 434826346.1 | F45: =A2A!F229 -> 369521337 | G45: =A2A!G229 -> 341345006 | H45: =A2A!H229 -> 341345006 | I45: =A2A!I229 -> 414857077 | J45: =A2A!J229 -> 447530898 | K45: =A2A!K229 -> 473184421
A46: Waste management | C46: =A2A!C234 -> 144257171.7 | D46: =A2A!D234 -> 139303328 | E46: =A2A!E234 -> 190531811.7 | F46: =A2A!F234 -> 148708642 | G46: =A2A!G234 -> 117729531 | H46: =A2A!H234 -> 117729531 | I46: =A2A!I234 -> 125446550 | J46: =A2A!J234 -> 131281867 | K46: =A2A!K234 -> 137157915
A47: Other | B47: 4 | C47: =A2A!C239 -> 80640656.21 | D47: =A2A!D239 -> 73187988.52 | E47: =A2A!E239 -> 77736928.61 | F47: =A2A!F239 -> 95029438 | G47: =A2A!G239 -> 62534312 | H47: =A2A!H239 -> 62534312 | I47: =A2A!I239 -> 60158277 | J47: =A2A!J239 -> 62841260 | K47: =A2A!K239 -> 64524825
A48: ="Total "&A27 -> Total Expenditure - Functional | B48: 3 | C48: =C28+C32+C38+C42+C47 -> 6949419417 | D48: =D28+D32+D38+D42+D47 -> 6222242146 | E48: =E28+E32+E38+E42+E47 -> 7936445365 | F48: =F28+F32+F38+F42+F47 -> 8380269879 | G48: 8175463764 | H48: 8175463764 | I48: 8561796536 | J48: 9070556519 | K48: 9483681728
A49: =result -> Surplus/(Deficit) for the year | C49: =C25-C48 -> -726982180 | D49: =D25-D48 -> 525680299.1 | E49: -941873650.8 | F49: 1040608236 | G49: 1283720420 | H49: 1283720420 | I49: 1347210020 | J49: 1376671936 | K49: 1433376688
A50: =head27a -> References
A51: 1. Government Finance Statistics Functions and Sub-functions are standardised to assist the compilation of national and international accounts for comparison purposes
A52: 2. Total Revenue by functional classification must reconcile to Total Operating Revenue shown in Budgeted Financial Performance (revenue and expenditure)
A53: 3. Total Expenditure by Functional Classification must reconcile to Total Operating Expenditure shown in Budgeted Financial Performance (revenue and expenditure)
A54: 4. All amounts must be classified under a functional classification . The GFS function 'Other' is only for Abbatoirs, Air Transport, Forestry, Licensing and Regulation, Markets and Tourism - and if used must be supported by footnotes. Nothing else may be placed under 'Other'. Assign associate share to relevant classification.

Sheet A2A
A1: =muni&" - "&Approve3 -> Choose name from list - Table A2 Budgeted Financial Performance (revenue and expenditure by functional classification)
A2: ="Functional Classification "&desc -> Functional Classification Description | B2: =head27 -> Ref | C2: =head1b -> 2021/22 | D2: =head1A -> 2022/23 | E2: =Head1 -> 2023/24 | F2: =Head2 -> Current Year 2024/25 | I2: =Head3 -> 2025/26 Medium Term Revenue & Expenditure Framework
A3: R thousand | B3: 1 | C3: =Head5 -> Audited Outcome | D3: =Head5 -> Audited Outcome | E3: =Head5 -> Audited Outcome | F3: =Head6 -> Original Budget | G3: =Head7 -> Adjusted Budget | H3: =Head8 -> Full Year Forecast | I3: =Head9 -> Budget Year 2025/26 | J3: =Head10 -> Budget Year +1 2026/27 | K3: =Head11 -> Budget Year +2 2027/28
A4: Revenue - Functional
A5: Municipal governance and administration | C5: =C6+C9+C23 -> 1695855981 | D5: =D6+D9+D23 -> 1955757202 | E5: 2042707568 | F5: 2688150807 | G5: 2687712716 | H5: 2687712716 | I5: 2802816797 | J5: 2939443643 | K5: 3036382010
A6: Executive and council | C6: =SUM(C7:C8) -> 3530376.55 | D6: =SUM(D7:D8) -> 5213268.17 | E6: 4700996.67 | F6: 0 | G6: 0 | H6: 0 | I6: 0 | J6: 0 | K6: 0
A7: Mayor and Council | C7: 0 | D7: -14822.46
A8: Municipal Manager, Town Secretary and Chief Executive | C8: 3530376.55 | D8: 5228090.63 | E8: 4700996.67
A9: Finance and administration | C9: =SUM(C10:C22) -> 1692323110 | D9: =SUM(D10:D22) -> 1950543934 | E9: 2038006572 | F9: 2688150807 | G9: 2687712716 | H9: 2687712716 | I9: 2802816797 | J9: 2939443643 | K9: 3036382010
A10: Administrative and Corporate Support | C10: 6500.21 | D10: -201.25 | E10: 0 | F10: 0 | G10: 0 | H10: 0 | I10: 0 | J10: 0 | K10: 0
A11: Asset Management | C11: 6070848.97 | D11: 3029221.11 | E11: 28685.93 | G11: 14153773.66 | H11: 14153773.66 | I11: 4626598 | J11: 4853302 | K11: 5091114
A12: Finance | C12: 1663295424 | D12: 1928898482 | E12: 2004771659 | F12: 2633346699 | G12: 896634017 | H12: 896634017 | I12: 950128444 | J12: 1003208449 | K12: 1048871485
A13: Fleet Management | C13: 0 | D13: 0 | E13: 0 | F13: 0 | G13: 0 | H13: 0
A14: Human Resources | C14: 7456070.54 | D14: 8836069.3 | E14: 9435294.78 | F14: 12101098.95 | G14: 11513008.91 | H14: 11513008.91 | I14: 9744480 | J14: 9873729 | K14: 9936699
A15: Information Technology | C15: 17396.22 | D15: -34.15 | E15: 417.36 | G15: 2608.41 | H15: 2608.41
A16: Legal Services | C16: 1711.96 | D16: 47.55 | E16: 428337.14 | G16: 332656.55 | H16: 332656.55 | I16: 1906229 | J16: 1999634 | K16: 2097616
A17: Marketing, Customer Relations, Publicity and Media Co-ordination | C17: 0 | D17: 0 | E17: 0 | F17: 0 | G17: 0 | H17: 0
A18: Property Services | C18: 15365369.85 | D18: 9623664.67 | E18: 23300467.27 | F18: 42351757.85 | G18: 1764725401 | H18: 1764725401 | I18: 1836075147 | J18: 1919156172 | K18: 1970015473
A19: Risk Management | C19: 0 | D19: 0 | E19: 0 | F19: 0 | G19: 0 | H19: 0
A20: Security Services | C20: 4291.19 | D20: 0 | E20: 0 | F20: 0 | G20: 0 | H20: 0
A21: Supply Chain Management | C21: 105497.07 | D21: 156684.33 | E21: 41710.24 | F21: 351250.83 | G21: 351250.83 | H21: 351250.83 | I21: 335899 | J21: 352357 | K21: 369623
A22: Valuation Service | C22: 0 | D22: 0 | E22: 0 | F22: 0 | G22: 0 | H22: 0 | I22: 0 | J22: 0 | K22: 0
A23: Internal audit | C23: =SUM(C24:C24) -> 2494.96 | D23: =SUM(D24:D24) -> 0 | E23: 0 | F23: 0 | G23: 0 | H23: 0 | I23: 0 | J23: 0 | K23: 0
A24: Governance Function | C24: 2494.96
A25: Community and public safety | C25: =C26+C48+C54+C63+C66 -> 134306482.7 | D25: =D26+D48+D54+D63+D66 -> 142629089.9 | E25: 225251514.1 | F25: 525429105.1 | G25: 322789363.4 | H25: 322789363.4 | I25: 63190181.13 | J25: 62952706.6 | K25: 66181196.64
A26: Community and social services | C26: =SUM(C27:C47) -> 45792786.73 | D26: =SUM(D27:D47) -> 61498683.1 | E26: 63388777.86 | F26: 307323184 | G26: 106950510.3 | H26: 106950510.3 | I26: 25184769 | J26: 22969656 | K26: 24116792
A27: Aged Care | C27: 0 | D27: 0 | E27: 0 | G27: 0 | H27: 0 | I27: 0 | J27: 0 | K27: 0
A28: Agricultural | C28: 0 | D28: 0 | E28: 0 | G28: 0 | H28: 0 | I28: 0 | J28: 0 | K28: 0
A29: Animal Care and Diseases | C29: 0 | D29: 0 | E29: 0 | G29: 0 | H29: 0 | I29: 0 | J29: 0 | K29: 0
A30: Cemeteries, Funeral Parlours and Crematoriums | C30: 8279696.42 | D30: 11624350.66 | E30: 25298089.01 | G30: 26986486.32 | H30: 26986486.32 | I30: 5457889 | J30: 5725326 | K30: 6005868
A31: Child Care Facilities | C31: 0 | D31: 0 | E31: 0 | G31: 0 | H31: 0
A32: Community Halls and Facilities | C32: 14033547.31 | D32: 33263673.61 | E32: 16336046.61 | F32: 307323184 | G32: 63410024 | H32: 63410024 | I32: 4741394 | J32: 2221146 | K32: 2329984
A33: Consumer Protection | C33: 0 | D33: 0 | E33: 0 | G33: 0 | H33: 0
A34: Cultural Matters | C34: 0 | D34: 0 | E34: 0 | G34: 0 | H34: 0
A35: Disaster Management | C35: 0 | D35: 0 | E35: 0 | G35: 0 | H35: 0
A36: Education | C36: 0 | D36: 0 | E36: 0 | G36: 0 | H36: 0
A37: Indigenous and Customary Law | C37: 0 | D37: 0 | E37: 0 | G37: 0 | H37: 0
A38: Industrial Promotion | C38: 0 | D38: 0 | E38: 0 | G38: 0 | H38: 0
A39: Language Policy | C39: 0 | D39: 0 | E39: 0 | G39: 0 | H39: 0
A40: Libraries and Archives | C40: 22907275.89 | D40: 16171964.22 | E40: 21379515.78 | G40: 15958000 | H40: 15958000 | I40: 14362486 | J40: 14362804 | K40: 15080937
A41: Literacy Programmes | C41: 0 | D41: 0 | E41: 0 | G41: 0 | H41: 0
A42: Media Services | C42: 0 | D42: 0 | E42: 0 | G42: 0 | H42: 0
A43: Museums and Art Galleries | C43: 572267.11 | D43: 438694.61 | E43: 375126.46 | G43: 596000 | H43: 596000 | I43: 623000 | J43: 660380 | K43: 700003
A44: Population Development | C44: 0 | D44: 0 | E44: 0 | G44: 0 | H44: 0
A45: Provincial Cultural Matters | C45: 0 | D45: 0 | E45: 0 | G45: 0 | H45: 0 | I45: 0 | J45: 0 | K45: 0
A46: Theatres | C46: 0 | D46: 0 | E46: 0 | G46: 0 | H46: 0 | I46: 0 | J46: 0 | K46: 0
A47: Zoo's | C47: 0 | D47: 0 | E47: 0 | G47: 0 | H47: 0 | I47: 0 | J47: 0 | K47: 0
A48: Sport and recreation | C48: =SUM(C49:C53) -> 344638.91 | D48: =SUM(D49:D53) -> 588753.1 | E48: 4912299.59 | F48: 23526793.18 | G48: 30479353.18 | H48: 30479353.18 | I48: 1223878 | J48: 1283846 | K48: 1346755
A49: Beaches and Jetties | C49: 0 | D49: 0 | E49: 0 | G49: 0 | H49: 0 | I49: 0 | J49: 0
A50: Casinos, Racing, Gambling, Wagering | C50: 0 | D50: 0 | E50: 0 | G50: 0 | H50: 0 | I50: 0 | J50: 0
A51: Community Parks (including Nurseries) | C51: 0 | D51: 0 | E51: 0 | G51: 0 | H51: 0 | I51: 0 | J51: 0
A52: Recreational Facilities | C52: 344638.91 | D52: 588753.1 | E52: 581092.93 | F52: 23526793.18 | G52: 23526793.18 | H52: 23526793.18 | I52: 1223878 | J52: 1283846 | K52: 1346755
A53: Sports Grounds and Stadiums | C53: 0 | D53: 0 | E53: 4331206.66 | G53: 6952560 | H53: 6952560 | I53: 0 | J53: 0
A54: Public safety | C54: =SUM(C55:C62) -> 18186248.15 | D54: =SUM(D55:D62) -> 24640408.62 | E54: 25017311.62 | F54: 9172795.913 | G54: 9172795.91 | H54: 9172795.91 | I54: 16851132.13 | J54: 17676837.6 | K54: 18543002.64
A55: Civil Defence | C55: 0 | D55: -19.14 | E55: 0 | F55: 0 | I55: 0 | J55: 0
A56: Cleansing | C56: 0 | D56: 0 | E56: 0 | F56: 0 | I56: 0 | J56: 0
A57: Control of Public Nuisances | C57: 0 | D57: 0 | E57: 0 | F57: 0 | I57: 0 | J57: 0
A58: Fencing and Fences | C58: 0 | D58: 0 | E58: 0 | F58: 0 | I58: 0 | J58: 0
A59: Fire Fighting and Protection | C59: 904902.65 | D59: 370743.01 | E59: 1765193.93 | F59: 424885.1016 | G59: 424885.1 | H59: 424885.1 | I59: 2087793.128 | J59: 2190094.991 | K59: 2297409.646
A60: Licensing and Control of Animals | C60: 0 | D60: 0 | E60: 0 | F60: 0 | G60: 0 | H60: 0 | I60: 0 | J60: 0 | K60: 0
A61: Police Forces, Traffic and Street Parking Control | C61: 17281345.5 | D61: 24269684.75 | E61: 23252117.69 | F61: 8747910.811 | G61: 8747910.81 | H61: 8747910.81 | I61: 14763339 | J61: 15486742.61 | K61: 16245593
A62: Pounds | C62: 0 | D62: 0 | E62: 0 | F62: 0 | G62: 0 | H62: 0 | I62: 0 | J62: 0 | K62: 0
A63: Housing | C63: =SUM(C64:C65) -> 69982808.91 | D63: =SUM(D64:D65) -> 55901245.1 | E63: 131933125 | F63: 185406332 | G63: 176186704 | H63: 176186704 | I63: 19930402 | J63: 21022367 | K63: 22174647
A64: Housing | C64: 69982808.91 | D64: 55901245.1 | E64: 131933125 | F64: 185406332 | G64: 176186704 | H64: 176186704 | I64: 19930402 | J64: 21022367 | K64: 22174647
A65: Informal Settlements | C65: 0 | D65: 0 | E65: 0
A66: Health | C66: =SUM(C67:C73) -> 0 | D66: =SUM(D67:D73) -> 0 | E66: 0 | F66: 0 | G66: 0 | H66: 0 | I66: 0 | J66: 0 | K66: 0
A67: Ambulance
A68: Health Services
A69: Laboratory Services
A70: Food Control
A71: Health Surveillance and Prevention of Communicable Diseases including immunizations
A72: Vector Control
A73: Chemical Safety
A74: Economic and environmental services | C74: =C75+C86+C91 -> 207365686.9 | D74: =D75+D86+D91 -> 200051132.5 | E74: 167411962.7 | F74: 86691641.99 | G74: 150008156.3 | H74: 150008156.3 | I74: 146237256.8 | J74: 200032881.4 | K74: 214617494
A75: Planning and development | C75: =SUM(C76:C85) -> 55781154.04 | D75: =SUM(D76:D85) -> 152414516.5 | E75: 118230028 | F75: 31697207.13 | G75: 44120968.22 | H75: 44120968.22 | I75: 40664552 | J75: 44187114 | K75: 51735284
A76: Billboards | C76: 0 | D76: 0 | F76: 0 | I76: 0 | J76: 0
A77: Corporate Wide Strategic Planning (IDPs, LEDs) | C77: 739.71 | D77: -0.03 | F77: 0 | I77: 0 | J77: 0
A78: Central City Improvement District | C78: 0 | D78: 0 | F78: 0 | I78: 0 | J78: 0
A79: Development Facilitation | C79: 0 | D79: 0 | F79: 0 | I79: 0 | J79: 0
A80: Economic Development/Planning | C80: 46481241.65 | D80: 35053266.51 | E80: 18902493.21 | F80: 1000000 | G80: 21062396.22 | H80: 21062396.22 | I80: 30000000 | J80: 33000000 | K80: 40000000
A81: Regional Planning and Development | C81: 0 | D81: 0 | E81: 0 | F81: 0 | G81: 0 | H81: 0
A82: Town Planning, Building Regulations and Enforcement, and City Engineer | C82: 9299172.68 | D82: 117361250 | E82: 99327534.81 | F82: 30697207.13 | G82: 23058572 | H82: 23058572 | I82: 10664552 | J82: 11187114 | K82: 11735284
A83: Project Management Unit | C83: 0 | D83: 0 | F83: 0 | I83: 0 | J83: 0
A84: Provincial Planning | C84: 0 | D84: 0 | F84: 0 | I84: 0 | J84: 0
A85: Support to Local Municipalities | C85: 0 | D85: 0 | F85: 0 | I85: 0 | J85: 0
A86: Road transport | C86: =SUM(C87:C90) -> 151376861.6 | D86: =SUM(D87:D90) -> 47241673.42 | E86: 48423465.64 | F86: 50000000 | G86: 100892753.2 | H86: 100892753.2 | I86: 100000000 | J86: 150000000 | K86: 156750000
A87: Public Transport | C87: 64161510.69 | D87: -26.27 | E87: 0 | F87: 50000000 | G87: 100892753.2 | H87: 100892753.2 | I87: 0 | J87: 0
A88: Road and Traffic Regulation | C88: 0 | D88: 0 | E88: 0 | F88: 0 | I88: 0 | J88: 0
A89: Roads | C89: 87215350.88 | D89: 47241699.69 | E89: 48423465.64 | F89: 0 | I89: 100000000 | J89: 150000000 | K89: 156750000
A90: Taxi Ranks | C90: 0 | D90: 0 | E90: 0 | F90: 0 | I90: 0 | J90: 0
A91: Environmental protection | C91: =SUM(C92:C97) -> 207671.31 | D91: =SUM(D92:D97) -> 394942.58 | E91: 758469.01 | F91: 4994434.861 | G91: 4994434.86 | H91: 4994434.86 | I91: 5572704.821 | J91: 5845767.357 | K91: 6132209.958
A92: Biodiversity and Landscape | C92: 0 | D92: 0 | E92: 0 | I92: 0 | J92: 0
A93: Coastal Protection | C93: 0 | D93: 0 | E93: 0 | I93: 0 | J93: 0
A94: Indigenous Forests | C94: 0 | D94: 0 | E94: 0 | I94: 0 | J94: 0
A95: Nature Conservation | C95: 0 | D95: 0 | E95: 0 | I95: 0 | J95: 0
A96: Pollution Control | C96: 207671.31 | D96: 394942.58 | E96: 758469.01 | F96: 4994434.861 | G96: 4994434.86 | H96: 4994434.86 | I96: 5572704.821 | J96: 5845767.357 | K96: 6132209.958
A97: Soil Conservation | C97: 0 | D97: 0 | E97: 0 | I97: 0 | J97: 0
A98: Trading services | C98: =C99+C103+C107+C112 -> 4158681263 | D98: =D99+D103+D107+D112 -> 4410211201 | E98: 4506844065 | F98: 5997733918 | G98: 6174882024 | H98: 6174882024 | I98: 6840723284 | J98: 7186014276 | K98: =K99+K103+K107+K112 -> 7538212303
A99: Energy sources | C99: =SUM(C100:C102) -> 2569652754 | D99: =SUM(D100:D102) -> 2724539631 | E99: 2671690063 | F99: 4347604455 | G99: 4286092467 | H99: 4286092467 | I99: 4740505817 | J99: 4982860597 | K99: 5226798336
A100: Electricity | C100: 2569652754 | D100: 2724539631 | E100: 2671690063 | F100: 4347604455 | G100: 4286092467 | H100: 4286092467 | I100: 4740505817 | J100: 4982860597 | K100: 5226798336
A101: Street Lighting and Signal Systems | C101: 0 | D101: 0 | E101: 0 | I101: 0 | J101: 0
A102: Nonelectric Energy | C102: 0 | D102: 0 | E102: 0 | I102: 0 | J102: 0
A103: Water management | C103: =SUM(C104:C106) -> 1156790470 | D103: =SUM(D104:D106) -> 1249069243 | E103: 1308377343 | F103: 1219122118 | G103: 1282859280 | H103: 1282859280 | I103: 1365915970 | J103: 1435395855 | K103: 1507035251
A104: Water Treatment | C104: 0 | D104: 0 | E104: 0 | I104: 0 | J104: 0
A105: Water Distribution | C105: 1156790470 | D105: 1249069243 | E105: 1308377343 | F105: 1219122118 | G105: 1282859280 | H105: 1282859280 | I105: 1365915970 | J105: 1435395855 | K105: 1507035251
A106: Water Storage | C106: 0 | D106: 0 | E106: 0 | I106: 0 | J106: 0
A107: Waste water management | C107: =SUM(C108:C111) -> 281762407.3 | D107: =SUM(D108:D111) -> 286349072.1 | E107: 332249573 | F107: 262027256.3 | G107: 436950188 | H107: 436950188 | I107: 552950003 | J107: 577520106 | K107: 604819351
A108: Public Toilets | C108: 0 | D108: 0 | E108: 0 | I108: 0 | J108: 0
A109: Sewerage | C109: 281762407.3 | D109: 286349072.1 | E109: 332249573 | F109: 262027256.3 | G109: 436950188 | H109: 436950188 | I109: 552950003 | J109: 577520106 | K109: 604819351
A110: Storm Water Management | C110: 0 | D110: 0 | E110: 0 | I110: 0 | J110: 0
A111: Waste Water Treatment | C111: 0 | D111: 0 | E111: 0 | I111: 0 | J111: 0
A112: Waste management | C112: =SUM(C113:C116) -> 150475631.1 | D112: =SUM(D113:D116) -> 150253254.9 | E112: 194527085.9 | F112: 168980088.6 | G112: 168980088.6 | H112: 168980088.6 | I112: 181351494 | J112: 190237718 | K112: 199559365
A113: Recycling | C113: 0 | D113: 0 | E113: 0 | I113: 0 | J113: 0
A114: Solid Waste Disposal (Landfill Sites) | C114: 37451184.19 | D114: 23607418.98 | E114: 56945113.39 | I114: 0 | J114: 0
A115: Solid Waste Removal | C115: 113024446.9 | D115: 126645835.9 | E115: 137581972.5 | F115: 168980088.6 | G115: 168980088.6 | H115: 168980088.6 | I115: 181351494 | J115: 190237718 | K115: 199559365
A116: Street Cleaning | C116: 0 | D116: 0 | E116: 0 | I116: 0 | J116: 0
A117: Other | C117: =SUM(C118:C123) -> 26227823.48 | D117: =SUM(D118:D123) -> 39273819.17 | E117: 52356604.63 | F117: 122872643.2 | G117: 123791924 | H117: 123791924 | I117: 56039037 | J117: 58784948 | K117: 61665412
A118: Abattoirs | C118: 8595764.2 | D118: 0 | E118: 0 | I118: 0 | J118: 0 | K118: 0
A119: Air Transport | C119: 0 | D119: 14916638.06 | E119: 16241393.37 | F119: 46806432.43 | G119: 47725713.22 | H119: 47725713.22 | I119: 24431489 | J119: 25628631 | K119: 26884435
A120: Forestry | C120: 189936.33 | D120: 0 | E120: 11198051 | F120: 10143141.02 | G120: 10143141.02 | H120: 10143141.02
A121: Licensing and Regulation | C121: 17431810.1 | D121: 394531.84 | E121: 1068070.77 | F121: 2280701.495 | G121: 2280701.495 | H121: 2280701.495 | I121: 1031714 | J121: 1082267 | K121: 1135299
A122: Markets | C122: 10312.85 | D122: 23962669.47 | E122: 23849089.49 | F122: 63642368.29 | G122: 63642368.29 | H122: 63642368.29 | I122: 30575834 | J122: 32074050 | K122: 33645678
A123: Tourism | D123: -20.2 | E123: 0 | F123: 0 | I123: 0 | J123: 0 | K123: 0
A124: ="Total "&A4 -> Total Revenue - Functional | B124: 2 | C124: =C5+C25+C74+C98+C117 -> 6222437237 | D124: =D5+D25+D74+D98+D117 -> 6747922445 | E124: 6994571715 | F124: 9420878115 | G124: 9459184184 | H124: 9459184184 | I124: 9909006556 | J124: 1.044722845e+10 | K124: 1.091705842e+10
A126: Expenditure - Functional
A127: =A5 -> Municipal governance and administration | C127: =C128+C131+C145 -> 1191049487 | D127: =D128+D131+D145 -> 1085322317 | E127: 1394784170 | F127: 1659708472 | G127: 2374518947 | H127: 2374518947 | I127: 2319911464 | J127: 2479162719 | K127: 2616799642
A128: Executive and council | C128: =SUM(C129:C130) -> 117808679.1 | D128: =SUM(D129:D130) -> 115687006.4 | E128: 154335868.4 | F128: 165980670 | G128: 825524780.8 | H128: 825524780.8 | I128: 871977053 | J128: 1003249896 | K128: 1058341513
A129: Mayor and Council | C129: 87358886.8 | D129: 82943964.14 | E129: 107155562.9 | F129: 116197489.4 | G129: 91477112.85 | H129: 91477112.85 | I129: 103028459 | J129: 108292560 | K129: 113662903
A130: Municipal Manager, Town Secretary and Chief Executive | C130: 30449792.29 | D130: 32743042.29 | E130: 47180305.52 | F130: 49783180.58 | G130: 734047668 | H130: 734047668 | I130: 768948594 | J130: 894957336 | K130: 944678610
A131: Finance and administration | C131: =SUM(C132:C144) -> 1053698122 | D131: =SUM(D132:D144) -> 950234661.9 | E131: 1215285473 | F131: 1465568308 | G131: 1534968086 | H131: 1534968086 | I131: 1415040224 | J131: 1440489734 | K131: 1520303283
A132: Administrative and Corporate Support | C132: 50791457.85 | D132: 59317183.6 | E132: 66222510.83 | F132: 72746147.21 | G132: 75939698 | H132: 75939698 | I132: 83397084 | J132: 84310458 | K132: 91034233
A133: Asset Management | C133: 70971653.48 | D133: 67830877.98 | E133: 69010901.16 | F133: 87624872.56 | G133: 75886548 | H133: 75886548 | I133: 81731764 | J133: 83840614 | K133: 84643860
A134: Finance | C134: 478867966.3 | D134: 327425602.4 | E134: 537091546.9 | F134: 824792219.1 | G134: 967958015 | H134: 967958015 | I134: 771574196 | J134: 790825415 | K134: 827804863
A135: Fleet Management | C135: 0 | D135: 0 | E135: 0 | F135: 0 | G135: 0 | H135: 0
A136: Human Resources | C136: 77305139.46 | D136: 65352584.77 | E136: 109903385.8 | F136: 108309536.8 | G136: 92353644 | H136: 92353644 | I136: 106136406 | J136: 106641948 | K136: 112735086
A137: Information Technology | C137: 32643990.52 | D137: 51866475.22 | E137: 51376169.99 | F137: 52316392.7 | G137: 58659238 | H137: 58659238 | I137: 66740994 | J137: 56095333 | K137: 75057756
A138: Legal Services | C138: 10503949.75 | D138: 14853751.83 | E138: 17490759.58 | F138: 19907466.71 | G138: 16788824 | H138: 16788824 | I138: 16867430 | J138: 19467717 | K138: 20146680
A139: Marketing, Customer Relations, Publicity and Media Co-ordination | C139: 17212369.13 | D139: 18142129.61 | E139: 15076788.12 | F139: 24326241.85 | G139: 1147685 | H139: 1147685 | I139: 1294566 | J139: 1355992 | K139: 1419817
A140: Property Services | C140: 68297316.8 | D140: 61966598.05 | E140: 73541433.94 | F140: 57624600.3 | G140: 42792249 | H140: 42792249 | I140: 46870095 | J140: 46737011 | K140: 45047561
A141: Risk Management | C141: 0 | D141: 0 | E141: 0 | F141: 0 | G141: 0 | H141: 0
A142: Security Services | C142: 172034542.9 | D142: 187688924.8 | E142: 170590722.5 | F142: 119509375.2 | G142: 112199673 | H142: 112199673 | I142: 137719597 | J142: 144342167 | K142: 151214210
A143: Supply Chain Management | C143: 75069735.87 | D143: 95790533.72 | E143: 104981254 | F143: 98411455.53 | G143: 91242512 | H143: 91242512 | I143: 102708092 | J143: 106873079 | K143: 111199217
A144: Valuation Service | D144: 0 | E144: 0 | F144: 0 | G144: 0 | H144: 0 | K144: 0
A145: Internal audit | C145: =SUM(C146:C146) -> 19542685.37 | D145: =SUM(D146:D146) -> 19400648.37 | E145: 25162828.92 | F145: 28159494 | G145: 14026080.13 | H145: 14026080.13 | I145: 32894187 | J145: 35423089 | K145: 38154846
A146: Governance Function | C146: 19542685.37 | D146: 19400648.37 | E146: 25162828.92 | F146: 28159494 | G146: 14026080.13 | H146: 14026080.13 | I146: 32894187 | J146: 35423089 | K146: 38154846
A147: Community and public safety | C147: =C148+C170+C176+C185+C188 -> 551440158.6 | D147: =D148+D170+D176+D185+D188 -> 624011514.2 | E147: 639572810.1 | F147: 706899390.8 | G147: 552040530 | H147: 552040530 | I147: 547652752 | J147: 572186292 | K147: 594666910
A148: Community and social services | C148: =SUM(C149:C169) -> 141393704.7 | D148: =SUM(D149:D169) -> 147223223.9 | E148: 154233095.9 | F148: 250699021 | G148: 143956207 | H148: 143956207 | I148: 132143884 | J148: 137089636 | K148: 140344067
A149: Aged Care | C149: 636.73 | D149: 2902.72 | E149: 587.64 | F149: 369799.8832 | G149: 481 | H149: 481 | I149: 472 | J149: 472 | K149: 337
A150: Agricultural | C150: 0 | D150: 0 | E150: 0 | F150: 0 | G150: 0 | H150: 0
A151: Animal Care and Diseases | C151: 1482653 | D151: 0 | E151: 0 | F151: 1105000 | G151: 895000 | H151: 895000
A152: Cemeteries, Funeral Parlours and Crematoriums | C152: 29019589.55 | D152: 29156919.61 | E152: 34687926.82 | F152: 116355684.8 | G152: 37409289 | H152: 37409289 | I152: 35684748 | J152: 37355216 | K152: 38941903
A153: Child Care Facilities | C153: 0 | D153: 0 | E153: 0 | F153: 0 | G153: 0 | H153: 0
A154: Community Halls and Facilities | C154: 29720949.31 | D154: 33451340.83 | E154: 33478569.49 | F154: 30571400.49 | G154: 27063699 | H154: 27063699 | I154: 14283300 | J154: 14486185 | K154: 12704356
A155: Consumer Protection | C155: 0 | D155: 0 | E155: 0 | F155: 0 | G155: 0 | H155: 0
A156: Cultural Matters | C156: 0 | D156: 0 | E156: 0 | F156: 0 | G156: 0 | H156: 0
A157: Disaster Management | C157: 0 | D157: 0 | E157: 0 | F157: 0 | G157: 0 | H157: 0
A158: Education | C158: 0 | D158: 0 | E158: 0 | F158: 0 | G158: 0 | H158: 0
A159: =A37 -> Indigenous and Customary Law | C159: 0 | D159: 0 | E159: 0 | F159: 0 | G159: 0 | H159: 0
A160: Industrial Promotion | C160: 0 | D160: 0 | E160: 0 | F160: 0 | G160: 0 | H160: 0
A161: Language Policy | C161: 0 | D161: 0 | E161: 0 | F161: 0 | G161: 0 | H161: 0
A162: Libraries and Archives | C162: 69491675.27 | D162: 71857741.56 | E162: 72240734.47 | F162: 86969348.33 | G162: 66371617 | H162: 66371617 | I162: 69015262 | J162: 71516966 | K162: 74527028
A163: Literacy Programmes | C163: 0 | D163: 0 | E163: 0 | F163: 0 | G163: 0 | H163: 0
A164: Media Services | C164: 0 | D164: 0 | E164: 0 | F164: 0 | G164: 0 | H164: 0
A165: Museums and Art Galleries | C165: 7662252.27 | D165: 8325164.89 | E165: 9294084.55 | F165: 7329991.936 | G165: 6273859 | H165: 6273859 | I165: 6808454 | J165: 7148440 | K165: 7480985
A166: Population Development | C166: 4009500.75 | D166: 4422169.16 | E166: 4524745.08 | F166: 7997795.53 | G166: 5942262 | H166: 5942262 | I166: 6351648 | J166: 6582357 | K166: 6689458
A167: Provincial Cultural Matters | C167: 0 | D167: 0 | E167: 0 | F167: 0 | G167: 0 | H167: 0 | K167: 0
A168: Theatres | C168: 6447.84 | D168: 6985.16 | E168: 6447.84 | F168: 0 | G168: 0 | H168: 0 | K168: 0
A169: Zoo's | C169: 0 | D169: 0 | E169: 0 | F169: 0 | G169: 0 | H169: 0 | K169: 0
A170: Sport and recreation | C170: =SUM(C171:C175) -> 115888281.4 | D170: =SUM(D171:D175) -> 140506827.5 | E170: 152619425.4 | F170: 121147022.5 | G170: 111821486.8 | H170: 111821486.8 | I170: 116559444 | J170: 121528808 | K170: 125809640
A171: Beaches and Jetties | C171: 0 | D171: 0 | E171: 0 | F171: 0 | G171: 0 | H171: 0 | K171: 0
A172: Casinos, Racing, Gambling, Wagering | C172: 0 | D172: 0 | E172: 0 | F172: 0 | G172: 0 | H172: 0 | K172: 0
A173: Community Parks (including Nurseries) | C173: 56517812.87 | D173: 54831338.68 | E173: 50027871.41 | F173: 48065311.45 | G173: 45066199.09 | H173: 45066199.09 | I173: 47682243 | J173: 49807232 | K173: 51759177
A174: Recreational Facilities | C174: 59134104.51 | D174: 85228537.94 | E174: 102187935 | F174: 72550461.03 | G174: 66224037.7 | H174: 66224037.7 | I174: 68345451 | J174: 71164832 | K174: 73468111
A175: Sports Grounds and Stadiums | C175: 236364 | D175: 446950.83 | E175: 403618.99 | F175: 531250 | G175: 531250 | H175: 531250 | I175: 531750 | J175: 556744 | K175: 582352
A176: Public safety | C176: =SUM(C177:C184) -> 216193878.2 | D176: =SUM(D177:D184) -> 232287900.7 | E176: 221231115.3 | F176: 244183097.4 | G176: 184250052.6 | H176: 184250052.6 | I176: 197871699 | J176: 207397353 | K176: 217176069
A177: Civil Defence | C177: 15285989.35 | D177: 15312006.23 | E177: 17433722.9 | F177: 19656120.22 | G177: 21684786.3 | H177: 21684786.3 | I177: 22902846 | J177: 24013766 | K177: 25174791
A178: Cleansing | C178: 0 | D178: 0 | E178: 0 | F178: 0 | G178: 0 | H178: 0
A179: =A57 -> Control of Public Nuisances | C179: 0 | D179: 0 | E179: 0 | F179: 0 | G179: 0 | H179: 0
A180: Fencing and Fences | C180: 0 | D180: 0 | E180: 0 | F180: 0 | G180: 0 | H180: 0
A181: Fire Fighting and Protection | C181: 109259286 | D181: 116742940.9 | E181: 106502949.2 | F181: 149561867.6 | G181: 79647815 | H181: 79647815 | I181: 85065341 | J181: 89162198 | K181: 93318733
A182: Licensing and Control of Animals | C182: 0 | D182: 0 | E182: 0 | F182: 0 | G182: 0 | H182: 0
A183: Police Forces, Traffic and Street Parking Control | C183: 91648602.87 | D183: 100232953.6 | E183: 97294443.17 | F183: 74965109.51 | G183: 82917451.35 | H183: 82917451.35 | I183: 89903512 | J183: 94221389 | K183: 98682545
A184: Pounds | C184: 0 | D184: 0 | E184: 0 | F184: 0 | G184: 0 | H184: 0 | I184: 0 | J184: 0 | K184: 0
A185: =A63 -> Housing | C185: =SUM(C186:C187) -> 68394082.77 | D185: =SUM(D186:D187) -> 94434776.88 | E185: 101531000 | F185: 81136670.54 | G185: 103330098.5 | H185: 103330098.5 | I185: 91953449 | J185: 96599636 | K185: 101298102
A186: Housing | C186: 68394082.77 | D186: 94434776.88 | E186: 101531000 | F186: 81136670.54 | G186: 103330098.5 | H186: 103330098.5 | I186: 91953449 | J186: 96599636 | K186: 101298102
A187: Informal Settlements | C187: 0 | D187: 0 | E187: 0 | G187: 0 | H187: 0 | I187: 0 | J187: 0 | K187: 0
A188: Health | C188: =SUM(C189:C195) -> 9570211.44 | D188: =SUM(D189:D195) -> 9558785.25 | E188: 9958173.58 | F188: 9733579.461 | G188: 8682685.06 | H188: 8682685.06 | I188: 9124276 | J188: 9570859 | K188: 10039032
A189: Ambulance | C189: 0 | D189: 0 | E189: 0
A190: Health Services | C190: 9570211.44 | D190: 9558785.25 | E190: 9958173.58 | F190: 9733579.461 | G190: 8682685.06 | H190: 8682685.06 | I190: 9124276 | J190: 9570859 | K190: 10039032
A191: Laboratory Services | E191: 0
A192: Food Control | E192: 0
A193: Health Surveillance and Prevention of Communicable Diseases including immunizations | E193: 0
A194: Vector Control | E194: 0
A195: Chemical Safety | E195: 0
A196: Economic and environmental services | C196: =C197+C208+C213 -> 393095329 | D196: =D197+D208+D213 -> 378225313.5 | E196: 478064864.4 | F196: 640338797 | G196: 546110010.4 | H196: 546110010.4 | I196: 456967977 | J196: 509996460 | K196: 502934197
A197: Planning and development | C197: =SUM(C198:C207) -> 87743205.43 | D197: =SUM(D198:D207) -> 93765700.13 | E197: 97777604.41 | F197: 161555852 | G197: 137355076.9 | H197: 137355076.9 | I197: 149407938 | J197: 158045112 | K197: 165764065
A198: Billboards | C198: 0 | D198: 0 | E198: 0 | F198: 0 | G198: 0 | H198: 0 | I198: 0 | J198: 0 | K198: 0
A199: Corporate Wide Strategic Planning (IDPs, LEDs) | C199: 6406941.96 | D199: 10215065.73 | E199: 13973736.43 | F199: 9524886.968 | G199: 6842117.91 | H199: 6842117.91 | I199: 10310168 | J199: 10968031 | K199: 11671899
A200: Central City Improvement District | C200: 0 | D200: 0 | E200: 0 | F200: 60057505.09 | G200: 0 | H200: 0
A201: Development Facilitation | C201: 0 | D201: 0 | E201: 0 | F201: 0 | G201: 0 | H201: 0
... 51 more rows

Sheet A3-FinPerf V
A1: =muni&" - "&Approve2 -> Choose name from list - Table A3 Budgeted Financial Performance (revenue and expenditure by municipal vote)
A2: =Vdesc -> Vote Description | B2: =head27 -> Ref | C2: =head1b -> 2021/22 | D2: =head1A -> 2022/23 | E2: =Head1 -> 2023/24 | F2: =Head2 -> Current Year 2024/25 | I2: =Head3 -> 2025/26 Medium Term Revenue & Expenditure Framework | L2: =Head4 -> LTFS
A3: R thousand | C3: =Head5 -> Audited Outcome | D3: =Head5 -> Audited Outcome | E3: =Head5 -> Audited Outcome | F3: =Head6 -> Original Budget | G3: =Head7 -> Adjusted Budget | H3: =Head8 -> Full Year Forecast | I3: =Head9 -> Budget Year 2025/26 | J3: =Head10 -> Budget Year +1 2026/27 | K3: =Head11 -> Budget Year +2 2027/28 | L3: =Head12 -> Forecast 2028/29 | M3: =Head13 -> Forecast 2029/30 | N3: =Head14 -> Forecast 2030/31 | O3: =Head15 -> Forecast 2031/32 | P3: =Head16 -> Forecast 2032/33 | Q3: =Head17 -> Forecast 2033/34 | R3: =Head18 -> Forecast 2034/35 | S3: =Head19 -> Forecast 2035/36 | T3: =Head20 -> Forecast 2036/37 | U3: =Head21 -> Forecast 2037/38 | V3: =Head22 -> Forecast 2038/39 | W3: =Head23 -> Forecast 2039/40
A4: Revenue by Vote | B4: 1
A5: =A3A!A5 -> Vote 1 - City Manager | C5: =A3A!C5 -> 21554.57 | D5: =A3A!D5 -> -14882.48 | E5: =A3A!E5 -> 0 | F5: =A3A!F5 -> 0 | G5: =A3A!G5 -> 0 | H5: =A3A!H5 -> 0 | I5: =A3A!I5 -> 0 | J5: =A3A!J5 -> 0 | K5: =A3A!K5 -> 0
A6: =A3A!A16 -> Vote 2 - City Finance | C6: =A3A!C16 -> 1692708414 | D6: =A3A!D16 -> 1855452217 | E6: =A3A!E16 -> 2025042284 | F6: =A3A!F16 -> 2675602753 | G6: =A3A!G16 -> 2675602753 | H6: =A3A!H16 -> 2675602753 | I6: =A3A!I16 -> 2789049796 | J6: =A3A!J16 -> 2925325208 | K6: =A3A!K16 -> 3021943447
A7: =A3A!A27 -> Vote 3 - Corporate Services | C7: =A3A!C27 -> 3542654.18 | D7: =A3A!D27 -> 8603314.88 | E7: =A3A!E27 -> 2109770.08 | F7: =A3A!F27 -> 5258283.914 | G7: =A3A!G27 -> 2578193.87 | H7: =A3A!H27 -> 2578193.87 | I7: =A3A!I27 -> 1906229.052 | J7: =A3A!J27 -> 1999634.276 | K7: =A3A!K27 -> 2097616.355
A8: =A3A!A38 -> Vote 4 - Community Services and Social Equity | C8: =A3A!C38 -> 215034923.5 | D8: =A3A!D38 -> 235448191.6 | E8: =A3A!E38 -> 292947034.4 | F8: =A3A!F38 -> 490385956.1 | G8: =A3A!G38 -> 323833766.8 | H8: =A3A!H38 -> 323833766.8 | I8: =A3A!I38 -> 265343548.9 | J8: =A3A!J38 -> 289822722.7 | K8: =A3A!K38 -> 271591823.1
A9: =A3A!A49 -> Vote 5 - Infrastructure Services | C9: =A3A!C49 -> 1596046262 | D9: =A3A!D49 -> 1628015025 | E9: =A3A!E49 -> 1696701357 | F9: =A3A!F49 -> 1540531143 | G9: =A3A!G49 -> 1803805989 | H9: =A3A!H49 -> 1803805989 | I9: =A3A!I49 -> 2007035209 | J9: =A3A!J49 -> 2149916079 | K9: =A3A!K49 -> 2254291238
A10: =A3A!A60 -> Vote 6 - Sustainable Development and City Enterprises | C10: =A3A!C60 -> 144081748.6 | D10: =A3A!D60 -> 248423314.1 | E10: =A3A!E60 -> 304119010.1 | F10: =A3A!F60 -> 366567368.2 | G10: =A3A!G60 -> 354076383.6 | H10: =A3A!H60 -> 354076383.6 | I10: =A3A!I60 -> 97217466.13 | J10: =A3A!J60 -> 102103352.1 | K10: =A3A!K60 -> 115235865
A11: =A3A!A71 -> Vote 7 - Electricity | C11: =A3A!C71 -> 2571001680 | D11: =A3A!D71 -> 2771995265 | E11: =A3A!E71 -> 2673652259 | F11: =A3A!F71 -> 4342532610 | G11: =A3A!G71 -> 3810591021 | H11: =A3A!H71 -> 3810591021 | I11: =A3A!I71 -> 4748454307 | J11: =A3A!J71 -> 4978061458 | K11: =A3A!K71 -> 5251898427
A12: =A3A!A82 -> Vote 8 - [NAME OF VOTE 8] | C12: =A3A!C82 -> 0 | D12: =A3A!D82 -> 0 | E12: =A3A!E82 -> 0 | F12: =A3A!F82 -> 0 | G12: =A3A!G82 -> 0 | H12: =A3A!H82 -> 0 | I12: =A3A!I82 -> 0 | J12: =A3A!J82 -> 0 | K12: =A3A!K82 -> 0
A13: =A3A!A93 -> Vote 9 - [NAME OF VOTE 9] | C13: =A3A!C93 -> 0 | D13: =A3A!D93 -> 0 | E13: =A3A!E93 -> 0 | F13: =A3A!F93 -> 0 | G13: =A3A!G93 -> 0 | H13: =A3A!H93 -> 0 | I13: =A3A!I93 -> 0 | J13: =A3A!J93 -> 0 | K13: =A3A!K93 -> 0
A14: =A3A!A104 -> Vote 10 - [NAME OF VOTE 10] | C14: =A3A!C104 -> 0 | D14: =A3A!D104 -> 0 | E14: =A3A!E104 -> 0 | F14: =A3A!F104 -> 0 | G14: =A3A!G104 -> 0 | H14: =A3A!H104 -> 0 | I14: =A3A!I104 -> 0 | J14: =A3A!J104 -> 0 | K14: =A3A!K104 -> 0
A15: =A3A!A115 -> Vote 11 - [NAME OF VOTE 11] | C15: =A3A!C115 -> 0 | D15: =A3A!D115 -> 0 | E15: =A3A!E115 -> 0 | F15: =A3A!F115 -> 0 | G15: =A3A!G115 -> 0 | H15: =A3A!H115 -> 0 | I15: =A3A!I115 -> 0 | J15: =A3A!J115 -> 0 | K15: =A3A!K115 -> 0 | L15: =A5A!L115 -> 0
A16: =A3A!A126 -> Vote 12 - [NAME OF VOTE 12] | C16: =A3A!C126 -> 0 | D16: =A3A!D126 -> 0 | E16: =A3A!E126 -> 0 | F16: =A3A!F126 -> 0 | G16: =A3A!G126 -> 0 | H16: =A3A!H126 -> 0 | I16: =A3A!I126 -> 0 | J16: =A3A!J126 -> 0 | K16: =A3A!K126 -> 0 | L16: =A5A!L126 -> 0
A17: =A3A!A137 -> Vote 13 - [NAME OF VOTE 13] | C17: =A3A!C137 -> 0 | D17: =A3A!D137 -> 0 | E17: =A3A!E137 -> 0 | F17: =A3A!F137 -> 0 | G17: =A3A!G137 -> 0 | H17: =A3A!H137 -> 0 | I17: =A3A!I137 -> 0 | J17: =A3A!J137 -> 0 | K17: =A3A!K137 -> 0 | L17: =A5A!L137 -> 0
A18: =A3A!A148 -> Vote 14 - [NAME OF VOTE 14] | C18: =A3A!C148 -> 0 | D18: =A3A!D148 -> 0 | E18: =A3A!E148 -> 0 | F18: =A3A!F148 -> 0 | G18: =A3A!G148 -> 0 | H18: =A3A!H148 -> 0 | I18: =A3A!I148 -> 0 | J18: =A3A!J148 -> 0 | K18: =A3A!K148 -> 0 | L18: =A5A!L148 -> 0
A19: =A3A!A159 -> Vote 15 - [NAME OF VOTE 15] | C19: =A3A!C159 -> 0 | D19: =A3A!D159 -> 0 | E19: =A3A!E159 -> 0 | F19: =A3A!F159 -> 0 | G19: =A3A!G159 -> 0 | H19: =A3A!H159 -> 0 | I19: =A3A!I159 -> 0 | J19: =A3A!J159 -> 0 | K19: =A3A!K159 -> 0 | L19: =A5A!L159 -> 0
A20: Total Revenue by Vote | B20: 2 | C20: =SUM(C5:C19) -> 6222437237 | D20: =SUM(D5:D19) -> 6747922445 | E20: 6994571715 | F20: 9420878115 | G20: 8970488108 | H20: 8970488108 | I20: 9909006556 | J20: 10447228455 | K20: 10917058416
A22: Expenditure by Vote to be appropriated | B22: 1
A23: =A3A!A173 -> Vote 1 - City Manager | C23: =A3A!C173 -> 155043755.9 | D23: =A3A!D173 -> 151981634.6 | E23: =A3A!E173 -> 195836186.1 | F23: =A3A!F173 -> 191819668.5 | G23: =A3A!G173 -> 157225632.4 | H23: =A3A!H173 -> 157225632.4 | I23: =A3A!I173 -> 228589928.7 | J23: =A3A!J173 -> 241140984 | K23: =A3A!K173 -> 254015719.8
A24: =A3A!A184 -> Vote 2 - City Finance | C24: =A3A!C184 -> 611783863.7 | D24: =A3A!D184 -> 362344580.9 | E24: =A3A!E184 -> 722564027.8 | F24: =A3A!F184 -> 1166932156 | G24: =A3A!G184 -> 1110449723 | H24: =A3A!H184 -> 1110449723 | I24: =A3A!I184 -> 1199140482 | J24: =A3A!J184 -> 1234176459 | K24: =A3A!K184 -> 1290052444
A25: =A3A!A195 -> Vote 3 - Corporate Services | C25: =A3A!C195 -> 69616493.69 | D25: =A3A!D195 -> 163339219.3 | E25: =A3A!E195 -> 201260716.8 | F25: =A3A!F195 -> 212747027.2 | G25: =A3A!G195 -> 185425732.9 | H25: =A3A!H195 -> 185425732.9 | I25: =A3A!I195 -> 207252148.3 | J25: =A3A!J195 -> 198150989.5 | K25: =A3A!K195 -> 229549191.5
A26: =A3A!A206 -> Vote 4 - Community Services and Social Equity | C26: =A3A!C206 -> 864836632.2 | D26: =A3A!D206 -> 904576995.9 | E26: =A3A!E206 -> 970678396.3 | F26: =A3A!F206 -> 844627157 | G26: =A3A!G206 -> 796596661.1 | H26: =A3A!H206 -> 796596661.1 | I26: =A3A!I206 -> 845155484.9 | J26: =A3A!J206 -> 872797494.2 | K26: =A3A!K206 -> 934891620.4
A27: =A3A!A217 -> Vote 5 - Infrastructure Services | C27: =A3A!C217 -> 2026075661 | D27: =A3A!D217 -> 1565729441 | E27: =A3A!E217 -> 2239448181 | F27: =A3A!F217 -> 1881446739 | G27: =A3A!G217 -> 1926439556 | H27: =A3A!H217 -> 1926439556 | I27: =A3A!I217 -> 1880935161 | J27: =A3A!J217 -> 2019302931 | K27: =A3A!K217 -> 2078904865
A28: =A3A!A228 -> Vote 6 - Sustainable Development and City Enterprises | C28: =A3A!C228 -> 271855705.8 | D28: =A3A!D228 -> 295042335.3 | E28: =A3A!E228 -> 308983019.4 | F28: =A3A!F228 -> 331868753.4 | G28: =A3A!G228 -> 342801768.8 | H28: =A3A!H228 -> 342801768.8 | I28: =A3A!I228 -> 339955707.2 | J28: =A3A!J228 -> 357731147.7 | K28: =A3A!K228 -> 373729002.5
A29: =A3A!A239 -> Vote 7 - Electricity | C29: =A3A!C239 -> 2950207305 | D29: =A3A!D239 -> 2779227938 | E29: =A3A!E239 -> 3297674838 | F29: =A3A!F239 -> 3750828402 | G29: =A3A!G239 -> 3167828613 | H29: =A3A!H239 -> 3167828613 | I29: =A3A!I239 -> 3860767614 | J29: =A3A!J239 -> 4147256500 | K29: =A3A!K239 -> 4322538887
A30: =A3A!A250 -> Vote 8 - [NAME OF VOTE 8] | C30: =A3A!C250 -> 0 | D30: =A3A!D250 -> 0 | E30: =A3A!E250 -> 0 | F30: =A3A!F250 -> 0 | G30: =A3A!G250 -> 0 | H30: =A3A!H250 -> 0 | I30: =A3A!I250 -> 0 | J30: =A3A!J250 -> 0 | K30: =A3A!K250 -> 0
A31: =A3A!A261 -> Vote 9 - [NAME OF VOTE 9] | C31: =A3A!C261 -> 0 | D31: =A3A!D261 -> 0 | E31: =A3A!E261 -> 0 | F31: =A3A!F261 -> 0 | G31: =A3A!G261 -> 0 | H31: =A3A!H261 -> 0 | I31: =A3A!I261 -> 0 | J31: =A3A!J261 -> 0 | K31: =A3A!K261 -> 0
A32: =A3A!A272 -> Vote 10 - [NAME OF VOTE 10] | C32: =A3A!C272 -> 0 | D32: =A3A!D272 -> 0 | E32: =A3A!E272 -> 0 | F32: =A3A!F272 -> 0 | G32: =A3A!G272 -> 0 | H32: =A3A!H272 -> 0 | I32: =A3A!I272 -> 0 | J32: =A3A!J272 -> 0 | K32: =A3A!K272 -> 0
A33: =A3A!A283 -> Vote 11 - [NAME OF VOTE 11] | C33: =A3A!C283 -> 0 | D33: =A3A!D283 -> 0 | E33: =A3A!E283 -> 0 | F33: =A3A!F283 -> 0 | G33: =A3A!G283 -> 0 | H33: =A3A!H283 -> 0 | I33: =A3A!I283 -> 0 | J33: =A3A!J283 -> 0 | K33: =A3A!K283 -> 0 | L33: =A3A!L284 -> 0
A34: =A3A!A294 -> Vote 12 - [NAME OF VOTE 12] | C34: =A3A!C294 -> 0 | D34: =A3A!D294 -> 0 | E34: =A3A!E294 -> 0 | F34: =A3A!F294 -> 0 | G34: =A3A!G294 -> 0 | H34: =A3A!H294 -> 0 | I34: =A3A!I294 -> 0 | J34: =A3A!J294 -> 0 | K34: =A3A!K294 -> 0 | L34: =A3A!L295 -> 0
A35: =A3A!A305 -> Vote 13 - [NAME OF VOTE 13] | C35: =A3A!C305 -> 0 | D35: =A3A!D305 -> 0 | E35: =A3A!E305 -> 0 | F35: =A3A!F305 -> 0 | G35: =A3A!G305 -> 0 | H35: =A3A!H305 -> 0 | I35: =A3A!I305 -> 0 | J35: =A3A!J305 -> 0 | K35: =A3A!K305 -> 0 | L35: =A3A!L306 -> 0
A36: =A3A!A316 -> Vote 14 - [NAME OF VOTE 14] | C36: =A3A!C316 -> 0 | D36: =A3A!D316 -> 0 | E36: =A3A!E316 -> 0 | F36: =A3A!F316 -> 0 | G36: =A3A!G316 -> 0 | H36: =A3A!H316 -> 0 | I36: =A3A!I316 -> 0 | J36: =A3A!J316 -> 0 | K36: =A3A!K316 -> 0 | L36: =A3A!L317 -> 0
A37: =A3A!A327 -> Vote 15 - [NAME OF VOTE 15] | C37: =A3A!C327 -> 0 | D37: =A3A!D327 -> 0 | E37: =A3A!E327 -> 0 | F37: =A3A!F327 -> 0 | G37: =A3A!G327 -> 0 | H37: =A3A!H327 -> 0 | I37: =A3A!I327 -> 0 | J37: =A3A!J327 -> 0 | K37: =A3A!K327 -> 0 | L37: =A3A!L328 -> 0
A38: Total Expenditure by Vote | B38: 2 | C38: =SUM(C23:C37) -> 6949419417 | D38: =SUM(D23:D37) -> 6222242146 | E38: =SUM(E23:E37) -> 7936445365 | F38: 8380269903 | G38: 7686767688 | H38: 7686767688 | I38: 8561796526 | J38: 9070556506 | K38: 9483681730 | L38: =SUM(L23:L29) -> 0 | M38: 0 | N38: 0 | O38: 0 | P38: 0 | Q38: 0 | R38: 0 | S38: 0 | T38: 0 | U38: 0 | V38: 0 | W38: 0
A39: =result -> Surplus/(Deficit) for the year | B39: 2 | C39: =C20-C38 -> -726982180 | D39: =D20-D38 -> 525680299.1 | E39: -941873650.8 | F39: 1040608212 | G39: 1283720420 | H39: 1283720420 | I39: 1347210030 | J39: 1376671949 | K39: 1433376686 | L39: 0 | M39: 0 | N39: 0 | O39: 0 | P39: 0 | Q39: 0 | R39: 0 | S39: 0 | T39: 0 | U39: 0 | V39: 0 | W39: 0
A40: =head27a -> References
A41: 1. Insert 'Vote'; e.g. department, if different to functional classification structure
A42: 2. Must reconcile to Budgeted Financial Performance (revenue and expenditure)
A43: 3. Assign share in 'associate' to relevant Vote

Sheet A3A
A1: =muni&" - "&Approve2&"A" -> Choose name from list - Table A3 Budgeted Financial Performance (revenue and expenditure by municipal vote)A
A2: =Vdesc -> Vote Description | B2: =head27 -> Ref | C2: =head1b -> 2021/22 | D2: =head1A -> 2022/23 | E2: =Head1 -> 2023/24 | F2: =Head2 -> Current Year 2024/25 | I2: =Head3 -> 2025/26 Medium Term Revenue & Expenditure Framework | L2: =Head4 -> LTFS
A3: R thousand | C3: =Head5 -> Audited Outcome | D3: =Head5 -> Audited Outcome | E3: =Head5 -> Audited Outcome | F3: =Head6 -> Original Budget | G3: =Head7 -> Adjusted Budget | H3: =Head8 -> Full Year Forecast | I3: =Head9 -> Budget Year 2025/26 | J3: =Head10 -> Budget Year +1 2026/27 | K3: =Head11 -> Budget Year +2 2027/28 | L3: =Head12 -> Forecast 2028/29 | M3: =Head13 -> Forecast 2029/30 | N3: =Head14 -> Forecast 2030/31 | O3: =Head15 -> Forecast 2031/32 | P3: =Head16 -> Forecast 2032/33 | Q3: =Head17 -> Forecast 2033/34 | R3: =Head18 -> Forecast 2034/35 | S3: =Head19 -> Forecast 2035/36 | T3: =Head20 -> Forecast 2036/37 | U3: =Head21 -> Forecast 2037/38 | V3: =Head22 -> Forecast 2038/39 | W3: =Head23 -> Forecast 2039/40
A4: Revenue by Vote | B4: 1
A5: ='Org structure'!A2 -> Vote 1 - City Manager | C5: =SUM(C6:C15) -> 21554.57 | D5: =SUM(D6:D15) -> -14882.48 | E5: 0 | F5: 0 | G5: 0 | H5: 0 | I5: 0 | J5: 0 | K5: 0
A6: ='Org structure'!E3 -> 1.1 - Internal Audit and Compliance | C6: 2494.96 | D6: 0
A7: ='Org structure'!E4 -> 1.2 - Office of the City Manager | C7: 6831.15 | D7: -59.99
A8: ='Org structure'!E5 -> 1.3 - Political Support | C8: 11488.75 | D8: -14822.46
A9: ='Org structure'!E6 -> 1.4 - Strategic Planning | C9: 739.71 | D9: -0.03
A10: ='Org structure'!E7 -> 0
A11: ='Org structure'!E8 -> 0
A12: ='Org structure'!E9 -> 0
A13: ='Org structure'!E10 -> 0
A14: ='Org structure'!E11 -> 0
A15: ='Org structure'!E12 -> 0
A16: ='Org structure'!A3 -> Vote 2 - City Finance | C16: =SUM(C17:C26) -> 1692708414 | D16: =SUM(D17:D26) -> 1855452217 | E16: 2025042284 | F16: 2675602753 | G16: 2675602753 | H16: 2675602753 | I16: 2789049796 | J16: 2925325208 | K16: 3021943447
A17: ='Org structure'!E14 -> 2.1 - Asset Management | C17: 20671097.22 | D17: 13821318.57 | E17: 35009793.83 | F17: 20116081.74 | G17: 20116081.77 | H17: 20116081.77 | I17: 50046102.4 | J17: 52498361.41 | K17: 55070781.12
A18: ='Org structure'!E15 -> 2.2 - Budget and Treasury Management | C18: 351346646.7 | D18: 399441924.2 | E18: 463281190.1 | F18: 843107146.8 | G18: 843107146.8 | H18: 843107146.8 | I18: 898343228.4 | J18: 948878043.6 | K18: 991828869.7
A19: ='Org structure'!E16 -> 2.3 - Expenditure Management | C19: 527.39 | D19: -26.13 | E19: 0 | F19: 433874.6686 | G19: 433874.67 | H19: 433874.67 | I19: 0 | J19: 0 | K19: 0
A20: ='Org structure'!E17 -> 2.4 - Revenue Management | C20: 1320584646 | D20: 1442032316 | E20: 1526709590 | F20: 1811594399 | G20: 1811594399 | H20: 1811594399 | I20: 1840324567 | J20: 1923596446 | K20: 1974674174
A21: ='Org structure'!E18 -> 2.5 - Supply Chain Management | C21: 105497.07 | D21: 156684.33 | E21: 41710.24 | F21: 351250.8349 | G21: 351250.83 | H21: 351250.83 | I21: 335898.357 | J21: 352357.3765 | K21: 369622.8879
A22: ='Org structure'!E19 -> 0
A23: ='Org structure'!E20 -> 0
A24: ='Org structure'!E21 -> 0
A25: ='Org structure'!E22 -> 0
A26: ='Org structure'!E23 -> 0
A27: ='Org structure'!A4 -> Vote 3 - Corporate Services | C27: =SUM(C28:C37) -> 3542654.18 | D27: =SUM(D28:D37) -> 8603314.88 | E27: 2109770.08 | F27: 5258283.914 | G27: 2578193.87 | H27: 2578193.87 | I27: 1906229.052 | J27: 1999634.276 | K27: 2097616.355
A28: ='Org structure'!E25 -> Human Resources Management | C28: 17396.22 | D28: 3375352.11 | E28: 1681015.58 | F28: 2831018.945 | G28: 2242928.91 | H28: 2242928.91 | I28: 0 | J28: 0
A29: ='Org structure'!E26 -> Information Technology | C29: 1711.96 | D29: -34.15 | E29: 417.36 | F29: 2608.41365 | G29: 2608.41 | H29: 2608.41 | I29: 0 | J29: 0
A30: ='Org structure'!E27 -> Legal Services | C30: 6513.46 | D30: 47.55 | E30: 428337.14 | F30: 332656.5549 | G30: 332656.55 | H30: 332656.55 | I30: 1906229.052 | J30: 1999634.276 | K30: 2097616.355
A31: ='Org structure'!E28 -> Secretariat and Auxiliary Services | C31: 3517032.54 | D31: -201.25 | E31: 0 | F31: 0 | G31: 0 | H31: 0 | I31: 0 | J31: 0
A32: ='Org structure'!E29 -> General Manager: Corporate Service | D32: 5228150.62 | E32: 0 | F32: 2092000 | G32: 0 | H32: 0 | I32: 0 | J32: 0
A33: ='Org structure'!E30 -> 0
A34: ='Org structure'!E31 -> 0
A35: ='Org structure'!E32 -> 0
A36: ='Org structure'!E33 -> 0
A37: ='Org structure'!E34 -> 0
A38: ='Org structure'!A5 -> Vote 4 - Community Services and Social Equity | C38: =SUM(C39:C48) -> 215034923.5 | D38: 235448191.6 | E38: 292947034.4 | F38: 490385956.1 | G38: 323833766.8 | H38: 323833766.8 | I38: 265343548.9 | J38: 289822722.7 | K38: 271591823.1
A39: ='Org structure'!E36 -> 4.1 - Area Based Management | C39: 429151.76 | D39: 660775.37 | E39: 575519.96 | F39: 10962668.29 | G39: 10962668.27 | H39: 10962668.27 | I39: 813465.3034 | J39: 853325.1033 | K39: 895138.0334
A40: ='Org structure'!E37 -> 4.2 - Public Safety, Emergency Services and Enforcement | C40: 18190539.34 | D40: 24640408.62 | E40: 25017311.62 | F40: 9172795.913 | G40: 9172795.91 | H40: 9172795.91 | I40: 16851132.13 | J40: 17676837.6 | K40: 18543002.64
A41: ='Org structure'!E38 -> 4.3 - Recreation and Facilities | C41: 45939601.26 | D41: 59893752.7 | E41: 68126120.3 | F41: 301270403.3 | G41: 123779194.7 | H41: 123779194.7 | I41: 56861146.81 | J41: 52630959.73 | K41: 42177579.35
A42: ='Org structure'!E39 -> 4.4 - Waste Management | C42: 150475631.1 | D42: 150253254.9 | E42: 194527085.9 | F42: 168980088.6 | G42: 177827107.9 | H42: 177827107.9 | I42: 190817804.7 | J42: 218661600.3 | K42: 209976103.1
A43: ='Org structure'!E40 -> 4.5 - General Manager: Community Services | E43: 4700996.67 | G43: 2092000 | H43: 2092000 | I43: 0 | J43: 0 | K43: 0
A44: ='Org structure'!E41 -> 0
A45: ='Org structure'!E42 -> 0
A46: ='Org structure'!E43 -> 0
A47: ='Org structure'!E44 -> 0
A48: ='Org structure'!E45 -> 0
A49: ='Org structure'!A6 -> Vote 5 - Infrastructure Services | C49: =SUM(C50:C59) -> 1596046262 | D49: =SUM(D50:D59) -> 1628015025 | E49: 1696701357 | F49: 1540531143 | G49: 1803805989 | H49: 1803805989 | I49: 2007035209 | J49: 2149916079 | K49: 2254291238
A50: ='Org structure'!E47 -> 5.1 - Project Management Office | C50: 6107917.56 | D50: 5460715.84 | E50: 7754279.2 | F50: 9120080 | G50: 9270080 | H50: 9270080 | I50: 9744480 | J50: 9873728.8 | K50: 9936698.5
A51: ='Org structure'!E48 -> 5.2 - Roads and Transportation | C51: 151378954 | D51: 47241673.42 | E51: 48452151.57 | F51: 50261689.3 | G51: 101154442.5 | H51: 101154442.5 | I51: 165933833.6 | J51: 205879175.5 | K51: 215977889.3
A52: ='Org structure'!E49 -> 5.3 - Water and Sanitation | C52: 1438552878 | D52: 1575312636 | E52: 1640494926 | F52: 1481149374 | G52: 1693381466 | H52: 1693381466 | I52: 1831356895 | J52: 1934163175 | K52: 2028376650
A53: ='Org structure'!E50 -> 5.4 - General Manager: Infrastructure | C53: 6512.86 | D53: 0 | E53: 0 | F53: 0 | G53: 0 | H53: 0 | I53: 0 | J53: 0 | K53: 0
A54: ='Org structure'!E51 -> 0 | E54: 0
A55: ='Org structure'!E52 -> 0
A56: ='Org structure'!E53 -> 0
A57: ='Org structure'!E54 -> 0
A58: ='Org structure'!E55 -> 0
A59: ='Org structure'!E56 -> 0
A60: ='Org structure'!A7 -> Vote 6 - Sustainable Development and City Enterprises | C60: =SUM(C61:C70) -> 144081748.6 | D60: =SUM(D61:D70) -> 248423314.1 | E60: 304119010.1 | F60: 366567368.2 | G60: 354076383.6 | H60: 354076383.6 | I60: 97217466.13 | J60: 102103352.1 | K60: 115235865
A61: ='Org structure'!E58 -> 6.1 - City Entities | C61: 26610735.06 | D61: 39317981.94 | E61: 52129317.35 | F61: 137116847.2 | G61: 122107222.5 | H61: 122107222.5 | I61: 55628475.84 | J61: 58361124.16 | K61: 61228083.42
A62: ='Org structure'!E59 -> 6.2 - Development Services | C62: 37982121.61 | D62: 35447798.35 | E62: 19970563.98 | F62: 3280701.495 | G62: 23343097.72 | H62: 23343097.72 | I62: 1031713.313 | J62: 1082267.265 | K62: 9135298.361
A63: ='Org structure'!E60 -> 6.3 - Human Settlement Development | C63: 69982808.91 | D63: 55901245.1 | E63: 131933125 | F63: 190478177.4 | G63: 181258550 | H63: 181258550 | I63: 24320021.44 | J63: 25627079.64 | K63: 27004990.94
A64: ='Org structure'!E61 -> 6.4 - Town Planning | C64: 9506083 | D64: 117756288.8 | E64: 100086003.8 | F64: 35691641.99 | G64: 27367513.39 | H64: 27367513.39 | I64: 16237255.54 | J64: 17032881.06 | K64: 17867492.23
A65: ='Org structure'!E62 -> 6.5 - General Manager: Sustainable Development and City Enterprises | D65: 0 | E65: 0 | F65: 0 | G65: 0 | H65: 0 | I65: 0 | J65: 0
A66: ='Org structure'!E63 -> 0
A67: ='Org structure'!E64 -> 0
A68: ='Org structure'!E65 -> 0
A69: ='Org structure'!E66 -> 0
A70: ='Org structure'!E67 -> 0
A71: ='Org structure'!A8 -> Vote 7 - Electricity | C71: =SUM(C72:C81) -> 2571001680 | D71: 2771995265 | E71: 2673652259 | F71: 4342532610 | G71: 3810591021 | H71: 3810591021 | I71: 4748454307 | J71: 4978061458 | K71: 5251898427
A72: ='Org structure'!E69 -> 7.1 Electricity planning | C72: 2571001680 | D72: 54061006.76 | E72: 27269329.25 | F72: 20892768.47 | G72: 18437695.71 | H72: 18437695.71
A73: ='Org structure'!E70 -> 7.2 Methods and Standards | D73: 0 | E73: 0 | G73: 0 | H73: 0
A74: ='Org structure'!E71 -> 7.3 Operations and Maintenance | D74: 0 | E74: 0 | G74: 0 | H74: 0
A75: ='Org structure'!E72 -> 7.4 Revenue Management | D75: 2724539631 | E75: 2645920033 | F75: 4295540347 | G75: 3766053831 | H75: 3766053831 | I75: 4712378265 | J75: 4940221299 | K75: 5212203923
A76: ='Org structure'!E73 -> 7.5 General Manager Electricity | D76: -6605372.74 | E76: 462897.31 | F76: 26099494.06 | G76: 26099494.07 | H76: 26099494.07 | I76: 36076042.1 | J76: 37840159.18 | K76: 39694503.82
A77: ='Org structure'!E74 -> 0
A78: ='Org structure'!E75 -> 0
A79: ='Org structure'!E76 -> 0
A80: ='Org structure'!E77 -> 0
A81: ='Org structure'!E78 -> 0
A82: ='Org structure'!A9 -> Vote 8 - [NAME OF VOTE 8] | C82: =SUM(C83:C92) -> 0 | D82: =SUM(D83:D92) -> 0 | E82: 0 | F82: 0 | G82: 0 | H82: 0 | I82: 0 | J82: 0 | K82: 0
A83: ='Org structure'!E80 -> 8.1 - [Name of sub-vote]
A84: ='Org structure'!E81 -> 0
A85: ='Org structure'!E82 -> 0
A86: ='Org structure'!E83 -> 0
A87: ='Org structure'!E84 -> 0
A88: ='Org structure'!E85 -> 0
A89: ='Org structure'!E86 -> 0
A90: ='Org structure'!E87 -> 0
A91: ='Org structure'!E88 -> 0
A92: ='Org structure'!E89 -> 0
A93: ='Org structure'!A10 -> Vote 9 - [NAME OF VOTE 9] | C93: =SUM(C94:C103) -> 0 | D93: =SUM(D94:D103) -> 0 | E93: 0 | F93: 0 | G93: 0 | H93: 0 | I93: 0 | J93: 0 | K93: 0
A94: ='Org structure'!E91 -> 9.1 - [Name of sub-vote]
A95: ='Org structure'!E92 -> 0
A96: ='Org structure'!E93 -> 0
A97: ='Org structure'!E94 -> 0
A98: ='Org structure'!E95 -> 0
A99: ='Org structure'!E96 -> 0
A100: ='Org structure'!E97 -> 0
A101: ='Org structure'!E98 -> 0
A102: ='Org structure'!E99 -> 0
A103: ='Org structure'!E100 -> 0
A104: ='Org structure'!A11 -> Vote 10 - [NAME OF VOTE 10] | C104: =SUM(C105:C114) -> 0 | D104: =SUM(D105:D114) -> 0 | E104: 0 | F104: 0 | G104: 0 | H104: 0 | I104: 0 | J104: 0 | K104: 0
A105: ='Org structure'!E102 -> 10.1 - [Name of sub-vote]
A106: ='Org structure'!E103 -> 0
A107: ='Org structure'!E104 -> 0
A108: ='Org structure'!E105 -> 0
A109: ='Org structure'!E106 -> 0
A110: ='Org structure'!E107 -> 0
A111: ='Org structure'!E108 -> 0
A112: ='Org structure'!E109 -> 0
A113: ='Org structure'!E110 -> 0
A114: ='Org structure'!E111 -> 0
A115: ='Org structure'!A12 -> Vote 11 - [NAME OF VOTE 11] | C115: =SUM(C116:C125) -> 0 | D115: =SUM(D116:D125) -> 0 | E115: 0 | F115: 0 | G115: 0 | H115: 0 | I115: 0 | J115: 0 | K115: 0
A116: ='Org structure'!E113 -> 11.1 - [Name of sub-vote]
A117: ='Org structure'!E114 -> 0
A118: ='Org structure'!E115 -> 0
A119: ='Org structure'!E116 -> 0
A120: ='Org structure'!E117 -> 0
A121: ='Org structure'!E118 -> 0
A122: ='Org structure'!E119 -> 0
A123: ='Org structure'!E120 -> 0
A124: ='Org structure'!E121 -> 0
A125: ='Org structure'!E122 -> 0
A126: ='Org structure'!A13 -> Vote 12 - [NAME OF VOTE 12] | C126: =SUM(C127:C136) -> 0 | D126: =SUM(D127:D136) -> 0 | E126: 0 | F126: 0 | G126: 0 | H126: 0 | I126: 0 | J126: 0 | K126: 0
A127: ='Org structure'!E124 -> 12.1 - [Name of sub-vote]
A128: ='Org structure'!E125 -> 0
A129: ='Org structure'!E126 -> 0
A130: ='Org structure'!E127 -> 0
A131: ='Org structure'!E128 -> 0
A132: ='Org structure'!E129 -> 0
A133: ='Org structure'!E130 -> 0
A134: ='Org structure'!E131 -> 0
A135: ='Org structure'!E132 -> 0
A136: ='Org structure'!E133 -> 0
A137: ='Org structure'!A14 -> Vote 13 - [NAME OF VOTE 13] | C137: =SUM(C138:C147) -> 0 | D137: =SUM(D138:D147) -> 0 | E137: 0 | F137: 0 | G137: 0 | H137: 0 | I137: 0 | J137: 0 | K137: 0
A138: ='Org structure'!E135 -> 13.1 - [Name of sub-vote]
A139: ='Org structure'!E136 -> 0
A140: ='Org structure'!E137 -> 0
A141: ='Org structure'!E138 -> 0
A142: ='Org structure'!E139 -> 0
A143: ='Org structure'!E140 -> 0
A144: ='Org structure'!E141 -> 0
A145: ='Org structure'!E142 -> 0
A146: ='Org structure'!E143 -> 0
A147: ='Org structure'!E144 -> 0
A148: ='Org structure'!A15 -> Vote 14 - [NAME OF VOTE 14] | C148: =SUM(C149:C158) -> 0 | D148: =SUM(D149:D158) -> 0 | E148: 0 | F148: 0 | G148: 0 | H148: 0 | I148: 0 | J148: 0 | K148: 0
A149: ='Org structure'!E146 -> 14.1 - [Name of sub-vote]
A150: ='Org structure'!E147 -> 0
A151: ='Org structure'!E148 -> 0
A152: ='Org structure'!E149 -> 0
A153: ='Org structure'!E150 -> 0
A154: ='Org structure'!E151 -> 0
A155: ='Org structure'!E152 -> 0
A156: ='Org structure'!E153 -> 0
A157: ='Org structure'!E154 -> 0
A158: ='Org structure'!E155 -> 0
A159: ='Org structure'!A16 -> Vote 15 - [NAME OF VOTE 15] | C159: =SUM(C160:C169) -> 0 | D159: =SUM(D160:D169) -> 0 | E159: 0 | F159: 0 | G159: 0 | H159: 0 | I159: 0 | J159: 0 | K159: 0
A160: ='Org structure'!E157 -> 15.1 - [Name of sub-vote]
A161: ='Org structure'!E158 -> 0
A162: ='Org structure'!E159 -> 0
A163: ='Org structure'!E160 -> 0
A164: ='Org structure'!E161 -> 0
A165: ='Org structure'!E162 -> 0
A166: ='Org structure'!E163 -> 0
A167: ='Org structure'!E164 -> 0
A168: ='Org structure'!E165 -> 0
A169: ='Org structure'!E166 -> 0
A170: Total Revenue by Vote | B170: 2 | C170: =C5+C16+C27+C38+C49+C60+C71+C82+C93+C104+C115+C126+C137+C148+C159 -> 6222437237 | D170: =D5+D16+D27+D38+D49+D60+D71+D82+D93+D104+D115+D126+D137+D148+D159 -> 6747922445 | E170: =E5+E16+E27+E38+E49+E60+E71+E82+E93+E104+E115+E126+E137+E148+E159 -> 6994571715 | F170: 9420878115 | G170: 8970488108 | H170: 8970488108 | I170: =I5+I16+I27+I38+I49+I60+I71+I82+I93+I104+I115+I126+I137+I148+I159 -> 9909006556 | J170: 10447228455 | K170: 10917058416 | L170: =SUM(L78:L81) -> 0 | M170: 0 | N170: 0 | O170: 0 | P170: 0 | Q170: 0 | R170: 0 | S170: 0 | T170: 0 | U170: 0 | V170: 0 | W170: 0
A172: Expenditure by Vote | B172: 1
A173: =A5 -> Vote 1 - City Manager | C173: =SUM(C174:C183) -> 155043755.9 | D173: 151981634.6 | E173: 195836186.1 | F173: 191819668.5 | G173: 157225632.4 | H173: 157225632.4 | I173: 228589928.7 | J173: 241140984 | K173: 254015719.8
A174: =A6 -> 1.1 - Internal Audit and Compliance | C174: 19542685.37 | D174: 19400648.37 | E174: 25162828.92 | F174: 28259494.71 | G174: 14026080.13 | H174: 14026080.13 | I174: 32954187.75 | J174: 35489089.83 | K174: 38227444.53
A175: 1.2 - Office of the City Manager | C175: 30952176.34 | D175: 25450839.94 | E175: 36709790.28 | F175: 45827363.93 | G175: 37366431.55 | H175: 37366431.55 | I175: 74782313.62 | J175: 78531176.85 | K175: 82233183.75
A176: 1.3 - Political Support | C176: 98141952.22 | D176: 96915080.57 | E176: 119989830.5 | F176: 108207922.9 | G176: 98991002.8 | H176: 98991002.8 | I176: 110523261 | J176: 116130684.4 | K176: 121858993.8
A177: 1.4 - Strategic Planning | C177: 6406941.96 | D177: 10215065.73 | E177: 13973736.43 | F177: 9524886.968 | G177: 6842117.91 | H177: 6842117.91 | I177: 10330166.35 | J177: 10990032.9 | K177: 11696097.66
A178: 0
A179: 0
A180: 0
A181: 0
A182: 0
A183: 0
A184: =A16 -> Vote 2 - City Finance | C184: =SUM(C185:C194) -> 611783863.7 | D184: =SUM(D185:D194) -> 362344580.9 | E184: =SUM(E185:E194) -> 722564027.8 | F184: 1166932156 | G184: 1110449723 | H184: 1110449723 | I184: 1199140482 | J184: 1234176459 | K184: 1290052444
A185: =A17 -> 2.1 - Asset Management | C185: 76038184.1 | D185: 69681320.96 | E185: 80850184.77 | F185: 95532173.96 | G185: 72903832.2 | H185: 72903832.2 | I185: 83025490.82 | J185: 79939783.82 | K185: 80593830.32
A186: 2.2 - Budget and Treasury Management | C186: 124803387.2 | D186: 70891096.18 | E186: 122860002.4 | F186: 134603926.3 | G186: 134830008.7 | H186: 134830008.7 | I186: 156771459.6 | J186: 158240544.8 | K186: 164042408.3
A187: 2.3 - Expenditure Management | C187: 40273490.67 | D187: 39636978.73 | E187: 60887981.6 | F187: 42985050.17 | G187: 41679622.51 | H187: 41679622.51 | I187: 50763030.63 | J187: 47694959.41 | K187: 51121585.43
A188: 2.4 - Revenue Management | C188: 295599065.9 | D188: 86344651.33 | E188: 352984605 | F188: 795399549.5 | G188: 769793745.7 | H188: 769793745.7 | I188: 805548210.6 | J188: 841146045.8 | K188: 882787970.2
A189: 2.5 - Supply Chain Management | C189: 75069735.87 | D189: 95790533.72 | E189: 104981254 | F189: 98411455.53 | G189: 91242514.19 | H189: 91242514.19 | I189: 103032290.7 | J189: 107155125.4 | K189: 111506649.4
A190: 0
A191: 0
A192: 0
A193: 0
A194: 0
A195: =A27 -> Vote 3 - Corporate Services | C195: =SUM(C196:C205) -> 69616493.69 | D195: 163339219.3 | E195: 201260716.8 | F195: 212747027.2 | G195: 185425732.9 | H195: 185425732.9 | I195: 207252148.3 | J195: 198150989.5 | K195: 229549191.5
A196: Human Resources Management | C196: 29012266.82 | D196: 62022384.88 | E196: 106690313.1 | F196: 93075683.15 | G196: 88895210.51 | H196: 88895210.51 | I196: 99149068.76 | J196: 100420331.8 | K196: 106622077
A197: Information Technology | C197: 10503949.75 | D197: 51838622.35 | E197: 48178368.64 | F197: 50169008.88 | G197: 47227950.46 | H197: 47227950.46 | I197: 54550028.7 | J197: 43350452.16 | K197: 61688820.92
A198: Legal Services | C198: 23571277.44 | D198: 14853751.83 | E198: 17490759.58 | F198: 19907466.71 | G198: 16811223.65 | H198: 16811223.65 | I198: 16880430.62 | J198: 19480853.75 | K198: 20159959.23
A199: Secretariat and Auxiliary Services | C199: 6528999.68 | D199: 26567553.25 | E199: 28901275.56 | F199: 35151661.89 | G199: 32491348.32 | H199: 32491348.32 | I199: 36672620.21 | J199: 34899351.83 | K199: 41078334.38
A200: General Manager: Corporate Service | D200: 8056907.03 | E200: 0 | F200: 14443206.57 | G200: 0 | H200: 0 | I200: 0 | J200: 0
A201: 0
... 142 more rows

Sheet A4-FinPerf RE
A1: =muni&" - "&Approve4 -> Choose name from list - Table A4 Budgeted Financial Performance (revenue and expenditure)
A2: =desc -> Description | B2: =head27 -> Ref | C2: =head1b -> 2021/22 | D2: =head1A -> 2022/23 | E2: =Head1 -> 2023/24 | F2: =Head2 -> Current Year 2024/25 | J2: =Head3 -> 2025/26 Medium Term Revenue & Expenditure Framework | M2: =Head4 -> LTFS
A3: R thousand | B3: 1 | C3: =Head5 -> Audited Outcome | D3: =Head5 -> Audited Outcome | E3: =Head5 -> Audited Outcome | F3: =Head6 -> Original Budget | G3: =Head7 -> Adjusted Budget | H3: =Head8 -> Full Year Forecast | I3: =Head5b -> Pre-audit outcome | J3: =Head9 -> Budget Year 2025/26 | K3: =Head10 -> Budget Year +1 2026/27 | L3: =Head11 -> Budget Year +2 2027/28 | M3: =Head12 -> Forecast 2028/29 | N3: =Head13 -> Forecast 2029/30 | O3: =Head14 -> Forecast 2030/31 | P3: =Head15 -> Forecast 2031/32 | Q3: =Head16 -> Forecast 2032/33 | R3: =Head17 -> Forecast 2033/34 | S3: =Head18 -> Forecast 2034/35 | T3: =Head19 -> Forecast 2035/36 | U3: =Head20 -> Forecast 2036/37 | V3: =Head21 -> Forecast 2037/38 | W3: =Head22 -> Forecast 2038/39 | X3: =Head23 -> Forecast 2039/40
A4: Revenue
A5: Exchange Revenue
A6: Service charges - Electricity | B6: 2 | C6: ='SA1'!C17 -> 2676488559 | D6: ='SA1'!D17 -> 2724539632 | E6: ='SA1'!E17 -> 2858084054 | F6: ='SA1'!F17 -> 4297825065 | G6: ='SA1'!G17 -> 4224357970 | H6: ='SA1'!H17 -> 4229823058 | I6: ='SA1'!I17 -> 0 | J6: ='SA1'!J17 -> 4702555292 | K6: ='SA1'!K17 -> 4932980502 | L6: ='SA1'!L17 -> 5174696547
A7: Service charges - Water | B7: 2 | C7: ='SA1'!C23 -> 860675503 | D7: ='SA1'!D23 -> 824368756 | E7: ='SA1'!E23 -> 902754801 | F7: ='SA1'!F23 -> 1009760082 | G7: ='SA1'!G23 -> 1009760082 | H7: ='SA1'!H23 -> 1009760082 | I7: ='SA1'!I23 -> 739196293 | J7: ='SA1'!J23 -> 1161224094 | K7: ='SA1'!K23 -> 1218124075 | L7: ='SA1'!L23 -> 1277812155
A8: Service charges - Waste Water Management | B8: 2 | C8: ='SA1'!C29 -> 193119253 | D8: ='SA1'!D29 -> 197959736 | E8: ='SA1'!E29 -> 198616863 | F8: ='SA1'!F29 -> 220724861 | G8: ='SA1'!G29 -> 220724861 | H8: ='SA1'!H29 -> 220724861 | I8: ='SA1'!I29 -> 159960224 | J8: ='SA1'!J29 -> 250522716 | K8: ='SA1'!K29 -> 262798330 | L8: ='SA1'!L29 -> 275675448
A9: Service charges - Waste Management | B9: 2 | C9: ='SA1'!C36 -> 116021545 | D9: ='SA1'!D36 -> 123629076 | E9: ='SA1'!E36 -> 127306637 | F9: ='SA1'!F36 -> 155390777 | G9: ='SA1'!G36 -> 155390777 | H9: ='SA1'!H36 -> 155390777 | I9: ='SA1'!I36 -> 96611102 | J9: ='SA1'!J36 -> 166268131 | K9: ='SA1'!K36 -> 174415270 | L9: ='SA1'!L36 -> 182961618
A10: Sale of Goods and Rendering of Services | C10: 11476540 | D10: 10981523 | E10: 14954953 | F10: 42042838 | G10: 42042838 | H10: 42042838 | J10: 23403149 | K10: 24549906 | L10: 25752852
A11: Agency services | C11: 2139483 | D11: 2598950 | E11: 2666696 | F11: 764825.6424 | G11: 764825.6424 | H11: 764825.6424 | J11: 5507583 | K11: 5777455 | L11: 6060550
A12: Interest | C12: 0 | D12: 0 | E12: 0 | F12: 19135146.8 | G12: 19135146.8 | H12: 19135146.8 | J12: 0 | K12: 0 | L12: 0
A13: Interest earned from Receivables | C13: 167310101 | D13: 158697404 | E13: 325984044 | F13: 230681790 | G13: 230681790 | H13: 230681790 | J13: 256056787 | K13: 268603569 | L13: 281765143
A14: Interest earned from Current and Non Current Assets | C14: 10445069 | D14: 16957186 | E14: 44117781 | F14: 59562303 | G14: 59562303 | H14: 59562303 | J14: 19996228 | K14: 20976044 | L14: 22003870
A15: Dividends | C15: 0 | D15: 0 | E15: 0 | G15: 0 | H15: 0 | J15: 0 | K15: 0 | L15: 0
A16: Rent on Land | C16: 0 | D16: 0 | E16: 0 | G16: 0 | H16: 0 | J16: 0 | K16: 0 | L16: 0
A17: Rental from Fixed Assets | C17: 26116659 | D17: 20071338 | E17: 33590328 | F17: 113961628.7 | G17: 113961628.7 | H17: 113961628.7 | J17: 44671740 | K17: 46860648 | L17: 49156823
A18: Licence and permits | C18: 984210 | D18: 2415456 | E18: 2021123 | G18: 0 | H18: 0 | J18: 3096657 | K18: 3248392 | L18: 3407563
A19: Special rating levies | C19: 0 | D19: 0 | E19: 0 | J19: 0 | K19: 0 | L19: 0
A20: Operational Revenue | C20: 54548388 | D20: 57522860 | E20: 53625781 | F20: 204124220 | G20: 204124220 | H20: 204124220 | J20: 102111693 | K20: 107115164 | L20: 112363810
A21: Non-Exchange Revenue
A22: Property rates | B22: 2 | C22: ='SA1'!C10 -> 1212773440 | D22: ='SA1'!D10 -> 1370173435 | E22: ='SA1'!E10 -> 1359086727 | F22: ='SA1'!F10 -> 1649352521 | G22: ='SA1'!G10 -> 1649352462 | H22: ='SA1'!H10 -> 1649352462 | I22: ='SA1'!I10 -> 1197656629 | J22: ='SA1'!J10 -> 1721664641 | K22: ='SA1'!K10 -> 1799139551 | L22: ='SA1'!L10 -> 1844118038
A23: Surcharges and Taxes | E23: 0 | J23: 0 | K23: 0 | L23: 0
A24: Fines, penalties and forfeits | C24: 14488973 | D24: 20129365 | E24: 34247150 | F24: 11687216.86 | G24: 11687216.86 | H24: 11687216.86 | J24: 12213207 | K24: 12811652 | L24: 13439425
A25: Licences or permits | C25: 0 | D25: 0 | E25: 0 | F25: 2546799 | G25: 2546799.7 | H25: 2546799.7 | J25: 0 | K25: 0 | L25: 0
A26: Transfer and subsidies - Operational | C26: 681677624 | D26: 801751326 | E26: 824544818 | F26: 946343150 | G26: 1026395188 | H26: 1026395188 | J26: 993197195 | K26: 1066100549 | L26: 1113039830
A27: Interest | C27: 55782645 | D27: 63180751 | E27: 106728864 | J27: 66114156 | K27: 69353750 | L27: 72752083
A28: Fuel Levy | C28: 0 | D28: 0 | E28: 0 | J28: 0 | K28: 0 | L28: 0
A29: Operational Revenue | C29: 0 | D29: 0 | E29: 0 | J29: 0 | K29: 0 | L29: 0
A30: Gains on disposal of Assets | C30: 5194609 | D30: 2659882 | E30: 465000 | J30: 4276765 | K30: 4486327 | L30: 4706157
A31: Other Gains | C31: 27139999 | D31: 29424701 | E31: 38741130 | J31: 0 | K31: 0 | L31: 0
A32: Discontinued Operations | E32: 0 | J32: 0 | K32: 0 | L32: 0
A33: Total Revenue (excluding capital transfers and contributions) | C33: =SUM(C6:C20)+SUM(C22:C32) -> 6116382600 | D33: =SUM(D6:D20)+SUM(D22:D32) -> 6427061377 | E33: 6927536750 | F33: 8963903224 | G33: 8970488109 | H33: 8975953197 | I33: 2193424248 | J33: 9532880034 | K33: 1.001734118e+10 | L33: 1.045971191e+10
A34: Expenditure
A35: Employee related costs | B35: 2 | C35: ='SA1'!C71 -> 1480410468 | D35: ='SA1'!D71 -> 1478744114 | E35: ='SA1'!E71 -> 1624858728 | F35: ='SA1'!F71 -> 1860539286 | G35: ='SA1'!G71 -> 1772840698 | H35: ='SA1'!H71 -> 1786363095 | I35: ='SA1'!I71 -> 1077583974 | J35: ='SA1'!J71 -> 1936772763 | K35: ='SA1'!K71 -> 2074266277 | L35: ='SA1'!L71 -> 2220504452 | M35: ='SA1'!M71 -> 0 | N35: ='SA1'!N71 -> 0 | O35: ='SA1'!O71 -> 0 | P35: ='SA1'!P71 -> 0 | Q35: ='SA1'!Q71 -> 0 | R35: ='SA1'!R71 -> 0 | S35: ='SA1'!S71 -> 0 | T35: ='SA1'!T71 -> 0
A36: Remuneration of councillors | C36: 49439040 | D36: 51817505 | E36: 63542010 | F36: 66461931.11 | G36: 66461931.11 | H36: 66461931.11 | J36: 70449648 | K36: 73901678 | L36: 77522858
A37: Bulk purchases - electricity | B37: 2 | C37: ='SA1'!C88 -> 2212724552 | D37: ='SA1'!D88 -> 2350400905 | E37: ='SA1'!E88 -> 2714396462 | F37: ='SA1'!F88 -> 3145118900 | G37: ='SA1'!G88 -> 3145118900 | H37: ='SA1'!H88 -> 3145118900 | I37: ='SA1'!I88 -> 2088946774 | J37: ='SA1'!J88 -> 3522533168 | K37: ='SA1'!K88 -> 3695137293 | L37: ='SA1'!L88 -> 3876199021
A38: Inventory consumed | B38: 8 | C38: ='SA1'!C169 -> 821790404 | D38: ='SA1'!D169 -> 739336382 | E38: ='SA1'!E169 -> 877662945 | F38: ='SA1'!F169 -> 993409215 | G38: ='SA1'!G169 -> 755385143 | H38: ='SA1'!H169 -> 755385143 | I38: ='SA1'!I169 -> 796003692 | J38: ='SA1'!J169 -> 1013606243 | K38: ='SA1'!K169 -> 1068601379 | L38: ='SA1'!L169 -> 1123752159
A39: Debt impairment | B39: 3 | C39: 776532709 | D39: 71195569 | E39: 1143097917 | F39: 636000000 | G39: 636000000 | H39: 636000000 | J39: 420000000 | K39: 438900000 | L39: 458650500
A40: Depreciation and amortisation | C40: ='SA1'!C83 -> 373536588 | D40: ='SA1'!D83 -> 351530371 | E40: ='SA1'!E83 -> 362584027 | F40: ='SA1'!F83 -> 363040742 | G40: ='SA1'!G83 -> 362178745 | H40: ='SA1'!H83 -> 363040742 | I40: ='SA1'!I83 -> 263171844 | J40: ='SA1'!J83 -> 391122347 | K40: ='SA1'!K83 -> 387623527 | L40: ='SA1'!L83 -> 283437179
A41: Interest | C41: 33596491 | D41: 150813872 | E41: 86051487 | F41: 42824930.71 | G41: 42824930.71 | H41: 42824930.71 | J41: 56180000 | K41: 58708100 | L41: 62230586
A42: Contracted services | C42: ='SA1'!C127 -> 695047198 | D42: ='SA1'!D127 -> 799704053 | E42: ='SA1'!E127 -> 904385576 | F42: ='SA1'!F127 -> 1024663415 | G42: ='SA1'!G127 -> 817089678 | H42: ='SA1'!H127 -> 818471062 | I42: ='SA1'!I127 -> 574986733 | J42: ='SA1'!J127 -> 857186839 | K42: ='SA1'!K127 -> 972240531 | L42: ='SA1'!L127 -> 1043106862
A43: Transfers and subsidies | C43: ='SA1'!C93 -> 18486826 | D43: ='SA1'!D93 -> 15102578 | E43: ='SA1'!E93 -> 10857198 | F43: ='SA1'!F93 -> 52375754 | G43: ='SA1'!G93 -> 69670132 | H43: ='SA1'!H93 -> 52375754 | I43: ='SA1'!I93 -> 40289508 | J43: ='SA1'!J93 -> 54065270 | K43: ='SA1'!K93 -> 56768065 | L43: ='SA1'!L93 -> 59573673
A44: Irrecoverable debts written off | C44: 75248154 | D44: 26721381 | E44: 22523583
A45: Operational costs | C45: ='SA1'!C157 -> 155018229 | D45: ='SA1'!D157 -> 179925889 | E45: ='SA1'!E157 -> 209674720 | F45: ='SA1'!F157 -> 195836780 | G45: ='SA1'!G157 -> 207869544 | H45: ='SA1'!H157 -> 209398144 | I45: ='SA1'!I157 -> 102616517 | J45: ='SA1'!J157 -> 239760258 | K45: ='SA1'!K157 -> 244303719 | L45: ='SA1'!L157 -> 278593849
A46: Losses on disposal of Assets | C46: 1015465 | D46: 2252203 | E46: 14154367 | J46: 120000 | K46: 105950 | L46: 110589
A47: Other Losses | C47: 29522373 | D47: 8157117 | E47: 326694
A48: Total Expenditure | C48: =SUM(C35:C47) -> 6722368497 | D48: =SUM(D35:D47) -> 6225701939 | E48: 8034115714 | F48: 8380270954 | G48: 7875439702 | H48: 7875439702 | I48: 4943599042 | J48: 8561796536 | K48: 9070556519 | L48: 9483681728 | M48: =SUM(M35:M47) -> 0 | N48: 0 | O48: 0 | P48: 0 | Q48: 0 | R48: 0 | S48: 0 | T48: 0 | U48: 0 | V48: 0 | W48: 0 | X48: 0
A49: Surplus/(Deficit) | C49: =C33-C48 -> -605985897 | D49: =D33-D48 -> 201359438 | E49: -1106578964 | F49: 583632270.6 | G49: 1095048407 | H49: 1100513495 | I49: -2750174794 | J49: 971083498.5 | K49: 946784664.9 | L49: 976030183.6 | M49: =M33+M48 -> 0 | N49: 0 | O49: 0 | P49: 0 | Q49: 0 | R49: 0 | S49: 0 | T49: 0 | U49: 0 | V49: 0 | W49: 0 | X49: 0
A50: Transfers and subsidies - capital (monetary allocations) | B50: 6 | C50: 368724617 | D50: 324319271 | E50: 427923159 | F50: 456974891 | G50: 488696014 | H50: 488696014 | J50: 376126520 | K50: 429887271 | L50: 457346507
A51: Transfers and subsidies - capital (in-kind) | B51: 6 | C51: 60000 | D51: 1600 | E51: 198834
A52: Surplus/(Deficit) after capital transfers & contributions | C52: =SUM(C49:C51) -> -237201280 | D52: =SUM(D49:D51) -> 525680309 | E52: -678456971 | F52: 1040607162 | G52: 1583744421 | H52: 1589209509 | I52: -2750174794 | J52: 1347210018 | K52: 1376671936 | L52: 1433376691
A53: Income Tax
A54: Surplus/(Deficit) after income tax | C54: =+C52-C53 -> -237201280 | D54: =+D52-D53 -> 525680309 | E54: -678456971 | F54: 1040607162 | G54: 1583744421 | H54: 1589209509 | I54: -2750174794 | J54: 1347210018 | K54: 1376671936 | L54: 1433376691 | M54: 0 | N54: 0 | O54: 0 | P54: 0 | Q54: 0
A55: Share of Surplus/Deficit attributable to Joint Venture
A56: Share of Surplus/Deficit attributable to Minorities
A57: Surplus/(Deficit) attributable to municipality | C57: =SUM(C54:C56) -> -237201280 | D57: =SUM(D54:D56) -> 525680309 | E57: -678456971 | F57: 1040607162 | G57: 1583744421 | H57: 1589209509 | I57: -2750174794 | J57: 1347210018 | K57: 1376671936 | L57: 1433376691 | M57: 0 | N57: 0 | O57: 0 | P57: 0 | Q57: 0
A58: Share of Surplus/Deficit attributable to Associate | B58: 7
A59: Intercompany/Parent subsidiary transactions
A60: =result -> Surplus/(Deficit) for the year | B60: 1 | C60: =SUM(C57:C59) -> -237201280 | D60: =SUM(D57:D59) -> 525680309 | E60: -678456971 | F60: 1040607162 | G60: 1583744421 | H60: 1589209509 | I60: -2750174794 | J60: 1347210018 | K60: 1376671936 | L60: 1433376691 | M60: 0 | N60: 0 | O60: 0 | P60: 0 | Q60: 0 | R60: =R36+R59 -> 0 | S60: 0 | T60: 0 | U60: 0 | V60: 0 | W60: 0 | X60: 0
A61: References
A62: 1. Classifications are revenue sources and expenditure type
A63: 2. Detail to be provided in Table SA1 | O63: =O60-'A4-FinPerf RE'!J60 -> -1347210018 | P63: =P60-'A4-FinPerf RE'!K60 -> -1376671936 | Q63: =Q60-'A4-FinPerf RE'!L60 -> -1433376691
A64: 3. Debt impairment includes Impairment and Reversal of Impairment Losses
A65: 4. Expenditure type components previously shown under repairs and maintenance should be allocated back to the originating expenditure group/item; e.g. employee costs
A66: 5. Repairs & maintenance detailed in Table A9 and Table SA34c
A67: 6. Contributions are funds provided by external organisations to assist with infrastructure development; e.g. developer contributions (detail to be provided in Table SA1)
A68: 7. Equity method ( Includes Joint Ventures)
A69: 8. All materials consumed including water consumed and materials used in operations.

Sheet A4 Funding (hidden)
A1: Western Cape: Saldanha Bay (WC014) - Table A4 Funding Tool Summary for 4th Quarter ended 30 June 2024
A2: A4 Code | B2: A4 Description | C2: Type | D2: Classification | E2: =head1b -> 2021/22 | F2: =head1A -> 2022/23 | G2: =Head1 -> 2023/24 | H2: =Head2 -> Current Year 2024/25 | L2: =Head3 -> 2025/26 Medium Term Revenue & Expenditure Framework
A3: R thousands | E3: =Head5 -> Audited Outcome | F3: =Head5 -> Audited Outcome | G3: =Head5 -> Audited Outcome | H3: =Head6 -> Original Budget | I3: =Head7 -> Adjusted Budget | J3: =Head8 -> Full Year Forecast | K3: =Head5b -> Pre-audit outcome | L3: =Head9 -> Budget Year 2025/26 | M3: =Head10 -> Budget Year +1 2026/27 | N3: =Head11 -> Budget Year +2 2027/28
A4: 0300 | B4: Exchange Revenue / Service charges - Electricity | C4: Non-Cash | D4: Debtor accrual - service charges electricity accrued through exchange receivables | E4: ='SA3'!C8 -> 856323631 | F4: ='SA3'!D8 -> 875490339 | G4: ='SA3'!E8 -> 993688954 | H4: ='SA3'!F8 -> 1130408852 | I4: ='SA3'!G8 -> 1130408852 | J4: ='SA3'!H8 -> 1130408852 | K4: ='SA3'!I8 -> -463390 | L4: ='SA3'!J8 -> 1793123353 | M4: ='SA3'!K8 -> 1877011643 | N4: ='SA3'!L8 -> 1964831593
D5: Non-Cash Total | E5: =SUM(E4) -> 856323631 | F5: =SUM(F4) -> 875490339 | G5: 993688954 | H5: 1130408852 | I5: 1130408852 | J5: 1130408852 | K5: -463390 | L5: 1793123353 | M5: 1877011643 | N5: 1964831593
B6: Exchange Revenue / Service charges - Electricity Total | E6: 348788123 | F6: 406771611 | G6: 411906879 | H6: 523045808 | I6: 501454168 | J6: 501454168 | K6: 489018755 | L6: 567145818 | M6: 656186870 | N6: 721805554
A7: 0400 | B7: Exchange Revenue / Service charges - Water | C7: Non-Cash | D7: Debtor accrual - service charges water accrued through exchange receivables | E7: ='SA3'!C9 -> 2710353904 | F7: ='SA3'!D9 -> 3130817455 | G7: ='SA3'!E9 -> 3629930135 | H7: ='SA3'!F9 -> 3318666502 | I7: ='SA3'!G9 -> 3318666502 | J7: ='SA3'!H9 -> 3318666502 | K7: ='SA3'!I9 -> 485338778 | L7: ='SA3'!J9 -> 3827338232 | M7: ='SA3'!K9 -> 4000358085 | N7: ='SA3'!L9 -> 4181202524
D8: Non-Cash Total | E8: 164007775 | F8: 170098073 | G8: 180478490 | H8: 172644283 | I8: 172644313 | J8: 172644313 | K8: 186795113 | L8: 183003213 | M8: 191238132 | N8: 199843847
B9: Exchange Revenue / Service charges - Water Total | E9: 164007775 | F9: 170098073 | G9: 180478490 | H9: 172644283 | I9: 172644313 | J9: 172644313 | K9: 186795113 | L9: 183003213 | M9: 191238132 | N9: 199843847
A10: 0500 | B10: Exchange Revenue / Service charges - Waste Water Management | C10: Non-Cash | D10: Debtor accrual - service charges waste water management accrued through exchange receivables | E10: ='SA3'!C11 -> 444132867 | F10: ='SA3'!D11 -> 479709272 | G10: ='SA3'!E11 -> 544198600 | H10: ='SA3'!F11 -> 508491828 | I10: ='SA3'!G11 -> 508491828 | J10: ='SA3'!H11 -> 508491828 | K10: ='SA3'!I11 -> 64634707 | L10: ='SA3'!J11 -> 564689270 | M10: ='SA3'!K11 -> 590270642 | N10: ='SA3'!L11 -> 617011524
D11: Non-Cash Total | E11: 80128935 | F11: 84326666 | G11: 97699103 | H11: 95640524 | I11: 92904654 | J11: 92904654 | K11: 91984780 | L11: 99731918 | M11: 104219662 | N11: 108909545
B12: Exchange Revenue / Service charges - Waste Water Management Total | E12: 80128935 | F12: 84326666 | G12: 97699103 | H12: 95640524 | I12: 92904654 | J12: 92904654 | K12: 91984780 | L12: 99731918 | M12: 104219662 | N12: 108909545
A13: 0600 | B13: Exchange Revenue / Service charges - Waste Management | C13: Non-Cash | D13: Debtor accrual - service charges waste management accrued through exchange receivables | E13: ='SA3'!C10 -> 238122507 | F13: ='SA3'!D10 -> 258154726 | G13: ='SA3'!E10 -> 293654586 | H13: ='SA3'!F10 -> 273644010 | I13: ='SA3'!G10 -> 273644010 | J13: ='SA3'!H10 -> 273644010 | K13: ='SA3'!I10 -> 34024486 | L13: ='SA3'!J10 -> 314057565 | M13: ='SA3'!K10 -> 328271790 | N13: ='SA3'!L10 -> 343129655
D14: Non-Cash Total | E14: 75365519 | F14: 80078380 | G14: 86769623 | H14: 83534948 | I14: 85428283 | J14: 85428283 | K14: 86823160 | L14: 90554172 | M14: 94628927 | N14: 98887225
B15: Exchange Revenue / Service charges - Waste Management Total | E15: 75365519 | F15: 80078380 | G15: 86769623 | H15: 83534948 | I15: 85428283 | J15: 85428283 | K15: 86823160 | L15: 90554172 | M15: 94628927 | N15: 98887225
A16: 0700 | B16: Exchange Revenue / Sale of Goods and Rendering of Services | C16: Cash | D16: Cash sales of goods and rendering of services | E16: ='SA3'!C138 -> 17253419554 | F16: 19080293 | G16: 11173902 | H16: 26928382 | I16: 20301929 | J16: 20301929 | K16: 8702109 | L16: 57426213 | M16: 104671871 | N16: 11841054
D17: Proceeds sale of PPE | E17: 0 | F17: 0 | G17: 0 | H17: 0 | I17: 0 | J17: 0 | K17: 0 | L17: 0 | M17: 0 | N17: 0
D18: Cash Total | E18: 22806591 | F18: 19080293 | G18: 11173902 | H18: 26928382 | I18: 20301929 | J18: 20301929 | K18: 8702109 | L18: 57426213 | M18: 104671871 | N18: 11841054
B19: Exchange Revenue / Sale of Goods and Rendering of Services Total | E19: 22806591 | F19: 19080293 | G19: 11173902 | H19: 26928382 | I19: 20301929 | J19: 20301929 | K19: 8702109 | L19: 57426213 | M19: 104671871 | N19: 11841054
A20: 0800 | B20: Exchange Revenue / Agency services | C20: Cash | D20: Cash - agency services | E20: 8571731 | F20: 8468831 | G20: 9420015 | H20: 9380088 | I20: 10026113 | J20: 10026113 | K20: 9432552 | L20: 10527432 | M20: 11001154 | N20: 11496205
D21: Cash Total | E21: 8571731 | F21: 8468831 | G21: 9420015 | H21: 9380088 | I21: 10026113 | J21: 10026113 | K21: 9432552 | L21: 10527432 | M21: 11001154 | N21: 11496205
B22: Exchange Revenue / Agency services Total | E22: 8571731 | F22: 8468831 | G22: 9420015 | H22: 9380088 | I22: 10026113 | J22: 10026113 | K22: 9432552 | L22: 10527432 | M22: 11001154 | N22: 11496205
A23: 0900 | B23: Exchange Revenue / Interest | C23: Non-Cash | D23: Deemed interest | E23: 0 | F23: 0 | G23: 0 | H23: 0 | I23: 0 | J23: 0 | K23: 0 | L23: 0 | M23: 0 | N23: 0
D24: Non-Cash Total
B25: Exchange Revenue / Interest Total
A26: 1000 | B26: Exchange Revenue / Interest earned from Receivables | C26: Non-Cash | D26: Affiliates/related parties/associated companies | E26: 0 | F26: 0 | G26: 0 | H26: 0 | I26: 0 | J26: 0 | K26: 0 | L26: 0 | M26: 0 | N26: 0
D27: Debtor accrual - interest outstanding debtors accrued through exchange receivables | E27: 8428657 | F27: 8559129 | G27: 12421713 | H27: 10428637 | I27: 13619567 | J27: 13619567 | K27: 14760948 | L27: 13222696 | M27: 13869250 | N27: 14548807
D28: SARS | E28: 0 | F28: 0 | G28: 0 | H28: 0 | I28: 0 | J28: 0 | K28: 0 | L28: 0 | M28: 0 | N28: 0
D29: Non-Cash Total | E29: 8428657 | F29: 8559129 | G29: 12421713 | H29: 10428637 | I29: 13619567 | J29: 13619567 | K29: 14760948 | L29: 13222696 | M29: 13869250 | N29: 14548807
B30: Exchange Revenue / Interest earned from Receivables Total | E30: 8428657 | F30: 8559129 | G30: 12421713 | H30: 10428637 | I30: 13619567 | J30: 13619567 | K30: 14760948 | L30: 13222696 | M30: 13869250 | N30: 14548807
A31: 1100 | B31: Exchange Revenue / Interest earned from Current and Non Current Assets | C31: Cash | D31: Cash - interest external investments | E31: 29330602 | F31: 35904728 | G31: 58804575 | H31: 48636899 | I31: 71085284 | J31: 71085284 | K31: 76857505 | L31: 72243257 | M31: 69635135 | N31: 64962419
D32: Cash Total | E32: 29330602 | F32: 35904728 | G32: 58804575 | H32: 48636899 | I32: 71085284 | J32: 71085284 | K32: 76857505 | L32: 72243257 | M32: 69635135 | N32: 64962419
B33: Exchange Revenue / Interest earned from Current and Non Current Assets Total | E33: 29330602 | F33: 35904728 | G33: 58804575 | H33: 48636899 | I33: 71085284 | J33: 71085284 | K33: 76857505 | L33: 72243257 | M33: 69635135 | N33: 64962419
A34: 1200 | B34: Exchange Revenue / Dividends | C34: Cash | D34: Cash - dividends received | E34: 0 | F34: 0 | G34: 0 | H34: 0 | I34: 0 | J34: 0 | K34: 0 | L34: 0 | M34: 0 | N34: 0
D35: Cash Total
B36: Exchange Revenue / Dividends Total
A37: 1300 | B37: Exchange Revenue / Rent on Land | C37: Cash | D37: Cash - rent on land | E37: 0 | F37: 0 | G37: 0 | H37: 0 | I37: 0 | J37: 0 | K37: 0 | L37: 0 | M37: 0 | N37: 0
D38: Cash Total
B39: Exchange Revenue / Rent on Land Total
A40: 1400 | B40: Exchange Revenue / Rental from Fixed Assets | C40: Cash | D40: Cash - rental from fixed assets | E40: 9600336 | F40: 13292654 | G40: 13100762 | H40: 14702584 | I40: 14578889 | J40: 14578889 | K40: 13687513 | L40: 15308159 | M40: 15996716 | N40: 16716565
D41: Cash Total | E41: 9600336 | F41: 13292654 | G41: 13100762 | H41: 14702584 | I41: 14578889 | J41: 14578889 | K41: 13687513 | L41: 15308159 | M41: 15996716 | N41: 16716565
B42: Exchange Revenue / Rental from Fixed Assets Total | E42: 9600336 | F42: 13292654 | G42: 13100762 | H42: 14702584 | I42: 14578889 | J42: 14578889 | K42: 13687513 | L42: 15308159 | M42: 15996716 | N42: 16716565
A43: 1500 | B43: Exchange Revenue / Licence and permits | C43: Cash | D43: Cash - licence and permits | E43: 1211792 | F43: 1218707 | G43: 1223339 | H43: 1470158 | I43: 1470158 | J43: 1470158 | K43: 1296191 | L43: 1543705 | M43: 1613133 | N43: 1685724
D44: Cash Total | E44: 1211792 | F44: 1218707 | G44: 1223339 | H44: 1470158 | I44: 1470158 | J44: 1470158 | K44: 1296191 | L44: 1543705 | M44: 1613133 | N44: 1685724
B45: Exchange Revenue / Licence and permits Total | E45: 1211792 | F45: 1218707 | G45: 1223339 | H45: 1470158 | I45: 1470158 | J45: 1470158 | K45: 1296191 | L45: 1543705 | M45: 1613133 | N45: 1685724
A46: 1550 | B46: Exchange Revenue / Special rating levies | C46: Cash | D46: Cash - Special rating levies | E46: 5777681 | F46: 2735395 | G46: 36456954 | H46: 13138437 | I46: 27041445 | J46: 27041445 | K46: 24399372 | L46: 8227587 | M46: 8373266 | N46: 8525059
D47: Cash Total
B48: Exchange Revenue / Special rating levies Total
A49: 1600 | B49: Exchange Revenue / Operational Revenue | C49: Cash | D49: Cash - Operating revenue | E49: 5777681 | F49: 2735395 | G49: 36456954 | H49: 13138437 | I49: 27041445 | J49: 27041445 | K49: 24399372 | L49: 8227587 | M49: 8373266 | N49: 8525059
D50: Cash Total | E50: 5777681 | F50: 2735395 | G50: 36456954 | H50: 13138437 | I50: 27041445 | J50: 27041445 | K50: 24399372 | L50: 8227587 | M50: 8373266 | N50: 8525059
B51: Exchange Revenue / Operational Revenue Total | E51: 5777681 | F51: 2735395 | G51: 36456954 | H51: 13138437 | I51: 27041445 | J51: 27041445 | K51: 24399372 | L51: 8227587 | M51: 8373266 | N51: 8525059
A52: 1800 | B52: Non-Exchange Revenue / Property rates | C52: Non-Cash | D52: Debtor accrual - property rates accrued through non-exchange receivables | E52: 244188397 | F52: 260792669 | G52: 296887927 | H52: 325915179 | I52: 327260279 | J52: 327260279 | K52: 327316114 | L52: 352786901 | M52: 373953834 | N52: 396391056
D53: Non-Cash Total | E53: 244188397 | F53: 260792669 | G53: 296887927 | H53: 325915179 | I53: 327260279 | J53: 327260279 | K53: 327316114 | L53: 352786901 | M53: 373953834 | N53: 396391056
B54: Non-Exchange Revenue / Property rates Total | E54: 244188397 | F54: 260792669 | G54: 296887927 | H54: 325915179 | I54: 327260279 | J54: 327260279 | K54: 327316114 | L54: 352786901 | M54: 373953834 | N54: 396391056
A55: 1900 | B55: Non-Exchange Revenue / Surcharges and Taxes | C55: Non-Cash | D55: Debtor accrual - surcharges & taxes accrued through non-exchange receivables | E55: 0 | F55: 0 | G55: 0 | H55: 0 | I55: 0 | J55: 0 | K55: 0 | L55: 0 | M55: 0 | N55: 0
D56: Non-Cash Total
B57: Non-Exchange Revenue / Surcharges and Taxes Total
A58: 2000 | B58: Non-Exchange Revenue / Fines, penalties and forfeits | C58: Non-Cash | D58: Debtor accrual - Fines, penalties and forfeits revenue accrued through non-exchanges receivables | E58: 15167205 | F58: 22309991 | G58: 25597446 | H58: 24089053 | I58: 24244843 | J58: 24244843 | K58: 23703476 | L58: 26665636 | M58: 27865542 | N58: 29119492
D59: Non-Cash Total | E59: 15167205 | F59: 22309991 | G59: 25597446 | H59: 24089053 | I59: 24244843 | J59: 24244843 | K59: 23703476 | L59: 26665636 | M59: 27865542 | N59: 29119492
B60: Non-Exchange Revenue / Fines, penalties and forfeits Total | E60: 15167205 | F60: 22309991 | G60: 25597446 | H60: 24089053 | I60: 24244843 | J60: 24244843 | K60: 23703476 | L60: 26665636 | M60: 27865542 | N60: 29119492
A61: 2100 | B61: Non-Exchange Revenue / Licences or permits | C61: Cash | D61: Cash - licences or permits | E61: 0 | F61: 0 | G61: 2522 | H61: 4548 | I61: 4548 | J61: 4548 | K61: 1675 | L61: 4777 | M61: 4991 | N61: 5215
D62: Cash Total | G62: 2522 | H62: 4548 | I62: 4548 | J62: 4548 | K62: 1675 | L62: 4777 | M62: 4991 | N62: 5215
B63: Non-Exchange Revenue / Licences or permits Total | G63: 2522 | H63: 4548 | I63: 4548 | J63: 4548 | K63: 1675 | L63: 4777 | M63: 4991 | N63: 5215
A64: 2200 | B64: Non-Exchange Revenue / Transfer and subsidies - Operational | C64: Cash | D64: Cash - Operational transfers and subsidies | E64: 125086042 | F64: 128506625 | G64: 134881850 | H64: 159564761 | I64: 156712363 | J64: 156712363 | K64: 151966748 | L64: 160877352 | M64: 162922573 | N64: 173816529
D65: Cash Total | E65: 125086042 | F65: 128506625 | G65: 134881850 | H65: 159564761 | I65: 156712363 | J65: 156712363 | K65: 151966748 | L65: 160877352 | M65: 162922573 | N65: 173816529
C66: Non-Cash | D66: Operational allocation in-kind | E66: 0 | F66: 0 | G66: 0 | H66: 0 | I66: 0 | J66: 0 | K66: 0 | L66: 0 | M66: 0 | N66: 0
D67: Non-Cash Total
B68: Non-Exchange Revenue / Transfer and subsidies - Operational Total | E68: 125086042 | F68: 128506625 | G68: 134881850 | H68: 159564761 | I68: 156712363 | J68: 156712363 | K68: 151966748 | L68: 160877352 | M68: 162922573 | N68: 173816529
A69: 2300 | B69: Non-Exchange Revenue / Interest | C69: Non-Cash | D69: Debtor accrual - interest outstanding property rates accrued through non-exchange receivables | E69: 3385610 | F69: 3234989 | G69: 4995937 | H69: 3703767 | I69: 5537647 | J69: 5537647 | K69: 5905753 | L69: 5803546 | M69: 6087831 | N69: 6386132
D70: Debtor accrual - interest outstanding service charges electricity accrued through exchange receivables | E70: 0 | F70: 0 | G70: 0 | H70: 0 | I70: 0 | J70: 0 | K70: 0 | L70: 66000 | M70: 70000 | N70: 73400
D71: Debtor accrual - interest outstanding service charges waste management accrued through exchange receivables | E71: 0 | F71: 0 | G71: 0 | H71: 0 | I71: 0 | J71: 0 | K71: 0 | L71: 303630 | M71: 318500 | N71: 334100
D72: Debtor accrual - interest outstanding service charges waste water management accrued through exchange receivables | E72: 0 | F72: 0 | G72: 0 | H72: 0 | I72: 0 | J72: 0 | K72: 0 | L72: 245580 | M72: 257600 | N72: 270300
D73: Debtor accrual - interest outstanding service charges water accrued through exchange receivables | E73: 0 | F73: 0 | G73: 0 | H73: 0 | I73: 0 | J73: 0 | K73: 0 | L73: 436000 | M73: 457400 | N73: 479800
D74: Non-Cash Total | E74: 3385610 | F74: 3234989 | G74: 4995937 | H74: 3703767 | I74: 5537647 | J74: 5537647 | K74: 5905753 | L74: 6854756 | M74: 7191331 | N74: 7543732
B75: Non-Exchange Revenue / Interest Total | E75: 3385610 | F75: 3234989 | G75: 4995937 | H75: 3703767 | I75: 5537647 | J75: 5537647 | K75: 5905753 | L75: 6854756 | M75: 7191331 | N75: 7543732
A76: 2400 | B76: Non-Exchange Revenue / Fuel Levy | C76: Cash | D76: Cash collection fuel levy | E76: 0 | F76: 0 | G76: 0 | H76: 0 | I76: 0 | J76: 0 | K76: 0 | L76: 0 | M76: 0 | N76: 0
D77: Cash Total
B78: Non-Exchange Revenue / Fuel Levy Total
A79: 2500 | B79: Non-Exchange Revenue / Operational Revenue | C79: Non-Cash | D79: Debtor accrual - availability charges electricity accrued through non-exchange receivables | E79: 0 | F79: 0 | G79: 0 | H79: 1623840 | I79: 1450015 | J79: 1450015 | K79: 1415604 | L79: 1631349 | M79: 1887378 | N79: 2076116
D80: Debtor accrual - availability charges waste management accrued through non-exchange receivables | E80: 0 | F80: 0 | G80: 0 | H80: 6778705 | I80: 6778710 | J80: 6778710 | K80: 6419663 | L80: 7185512 | M80: 7508786 | N80: 7846679
D81: Debtor accrual - availability charges waste water management accrued through non-exchange receivables | E81: 0 | F81: 0 | G81: 0 | H81: 15378062 | I81: 16092402 | J81: 16092402 | K81: 15795250 | L81: 16895305 | M81: 17655389 | N81: 18449878
D82: Debtor accrual - availability charges water accrued through non-exchange receivables | E82: 0 | F82: 0 | G82: 0 | H82: 11701633 | I82: 11072903 | J82: 11072903 | K82: 10118814 | L82: 11737370 | M82: 12265462 | N82: 12817408
D83: Non-Cash Total | H83: 35482240 | I83: 35394030 | J83: 35394030 | K83: 33749331 | L83: 37449536 | M83: 39317015 | N83: 41190081
B84: Non-Exchange Revenue / Operational Revenue Total | H84: 35482240 | I84: 35394030 | J84: 35394030 | K84: 33749331 | L84: 37449536 | M84: 39317015 | N84: 41190081
A85: 2600 | B85: Non-Exchange Revenue / Gains on disposal of Assets | C85: Non-Cash | D85: Biological assets | E85: 0 | F85: 0 | G85: 0 | H85: 0 | I85: 0 | J85: 0 | K85: 0 | L85: 0 | M85: 0 | N85: 0
D86: Discontinued operations | E86: 0 | F86: 0 | G86: 0 | H86: 0 | I86: 0 | J86: 0 | K86: 0 | L86: 0 | M86: 0 | N86: 0
D87: Heritage assets | E87: 0 | F87: 0 | G87: 0 | H87: 0 | I87: 0 | J87: 0 | K87: 0 | L87: 0 | M87: 0 | N87: 0
D88: Intangible assets | E88: 892 | F88: 0 | G88: 0 | H88: 0 | I88: 0 | J88: 0 | K88: 0 | L88: 0 | M88: 0 | N88: 0
D89: Investment property | E89: 0 | F89: 0 | G89: 0 | H89: 0 | I89: 0 | J89: 0 | K89: 0 | L89: 0 | M89: 0 | N89: 0
D90: Land | E90: 18020 | F90: 15460 | G90: 0 | H90: 0 | I90: 0 | J90: 0 | K90: 147701 | L90: 0 | M90: 0 | N90: 0
D91: Living resources | E91: 0 | F91: 0 | G91: 0 | H91: 0 | I91: 0 | J91: 0 | K91: 0 | L91: 0 | M91: 0 | N91: 0
D92: Other assets | E92: 0 | F92: 98 | G92: 405 | H92: 0 | I92: 0 | J92: 0 | K92: 0 | L92: 0 | M92: 0 | N92: 0
D93: PPE | E93: 0 | F93: 400165 | G93: 890879 | H93: 0 | I93: 0 | J93: 0 | K93: 0 | L93: 0 | M93: 0 | N93: 0
D94: Non-Cash Total | E94: 18912 | F94: 415723 | G94: 891284 | K94: 147701
B95: Non-Exchange Revenue / Gains on disposal of Assets Total | E95: 18912 | F95: 415723 | G95: 891284 | K95: 147701
A96: 2700 | B96: Non-Exchange Revenue / Other Gains | C96: Non-Cash | D96: Fair value adjustment actuarial assesments - leave gratuity | E96: 0 | F96: 0 | G96: 0 | H96: 0 | I96: 0 | J96: 0 | K96: 0 | L96: 0 | M96: 0 | N96: 0
D97: Fair value adjustment actuarial assesments - long service awards | E97: 0 | F97: 1238849 | G97: 3837953 | H97: 0 | I97: 0 | J97: 0 | K97: 1966429 | L97: 0 | M97: 0 | N97: 0
D98: Fair value adjustment actuarial assesments - medical aid | E98: 0 | F98: 5271292 | G98: 14161100 | H98: 0 | I98: 0 | J98: 0 | K98: 8276622 | L98: 0 | M98: 0 | N98: 0
D99: Fair value adjustment actuarial assesments - pension funds | E99: 0 | F99: 0 | G99: 0 | H99: 0 | I99: 0 | J99: 0 | K99: 0 | L99: 0 | M99: 0 | N99: 0
D100: Fair value adjustment biological assets | E100: 0 | F100: 0 | G100: 0 | H100: 0 | I100: 0 | J100: 0 | K100: 0 | L100: 0 | M100: 0 | N100: 0
D101: Fair value adjustment heritage assets | E101: 0 | F101: 0 | G101: 0 | H101: 0 | I101: 0 | J101: 0 | K101: 0 | L101: 0 | M101: 0 | N101: 0
D102: Fair value adjustment interest rate swap | E102: 0 | F102: 0 | G102: 0 | H102: 0 | I102: 0 | J102: 0 | K102: 0 | L102: 0 | M102: 0 | N102: 0
D103: Fair value adjustment investment property | E103: 2201470 | F103: 848020 | G103: 3552830 | H103: 0 | I103: 0 | J103: 0 | K103: 3132000 | L103: 0 | M103: 0 | N103: 0
D104: Fair value adjustment investments | E104: 0 | F104: 0 | G104: 0 | H104: 0 | I104: 0 | J104: 0 | K104: 0 | L104: 0 | M104: 0 | N104: 0
D105: Fair value adjustment living resources | E105: 0 | F105: 0 | G105: 0 | H105: 0 | I105: 0 | J105: 0 | K105: 0 | L105: 0 | M105: 0 | N105: 0
D106: Foreign exchange | E106: 16117 | F106: 0 | G106: 0 | H106: 0 | I106: 0 | J106: 0 | K106: 0 | L106: 0 | M106: 0 | N106: 0
D107: Inventory - fair value assessment | E107: 0 | F107: 0 | G107: 0 | H107: 0 | I107: 0 | J107: 0 | K107: 0 | L107: 0 | M107: 0 | N107: 0
D108: Inventory - increase in net realisable value | E108: 0 | F108: 79376 | G108: 561353 | H108: 0 | I108: 0 | J108: 0 | K108: 953689 | L108: 0 | M108: 0 | N108: 0
D109: Debt Waived | E109: 0 | F109: 0 | G109: 0 | H109: 0 | I109: 0 | J109: 0 | K109: 0 | L109: 0 | M109: 0 | N109: 0
D110: Non-Cash Total | E110: 2217587 | F110: 7437537 | G110: 22113236 | K110: 14328740
B111: Non-Exchange Revenue / Other Gains Total | E111: 2217587 | F111: 7437537 | G111: 22113236 | K111: 14328740
A112: 2800 | B112: Revenue / Discontinued Operations | C112: Non-Cash | D112: Discontinued operations | E112: 0 | F112: 0 | G112: 0 | H112: 0 | I112: 0 | J112: 0 | K112: 0 | L112: 0 | M112: 0 | N112: 0
D113: Non-Cash Total
B114: Revenue / Discontinued Operations Total
A115: 3100 | B115: Expenditure / Employee related costs | C115: Non-Cash | D115: Cost capitalised to PPE (credit account) | E115: 0 | F115: 0 | G115: 0 | H115: 0 | I115: 0 | J115: 0 | K115: 0 | L115: 0 | M115: 0 | N115: 0
D116: Creditor accrual - Employee related expenditure accrued through payables from non-exchange transactions | E116: 406432504 | F116: 422930870 | G116: 449187913 | H116: 507489887 | I116: 506780327 | J116: 506780327 | K116: 481867697 | L116: 545137710 | M116: 569073873 | N116: 594662813
D117: In-kind benefits | E117: 0 | F117: 0 | G117: 0 | H117: 0 | I117: 0 | J117: 0 | K117: 0 | L117: 0 | M117: 0 | N117: 0
D118: In-kind benefits - cost capitalised to PPE (credit account) | E118: 0 | F118: 0 | G118: 0 | H118: 0 | I118: 0 | J118: 0 | K118: 0 | L118: 0 | M118: 0 | N118: 0
D119: Post-retirement benefit: medical | E119: 18799675 | F119: 14993000 | G119: 17858000 | H119: 19804507 | I119: 18878347 | J119: 18878347 | K119: 18595000 | L119: 20702167 | M119: 21654567 | N119: 22629012
D120: Post-retirement benefit: pension | E120: 0 | F120: 0 | G120: 0 | H120: 0 | I120: 0 | J120: 0 | K120: 0 | L120: 0 | M120: 0 | N120: 0
D121: Non-Cash Total | E121: 425232179 | F121: 437923870 | G121: 467045913 | H121: 527294394 | I121: 525658674 | J121: 525658674 | K121: 500462697 | L121: 565839877 | M121: 590728440 | N121: 617291825
B122: Expenditure / Employee related costs Total | E122: 425232179 | F122: 437923870 | G122: 467045913 | H122: 527294394 | I122: 525658674 | J122: 525658674 | K122: 500462697 | L122: 565839877 | M122: 590728440 | N122: 617291825
A123: 3200 | B123: Expenditure / Remuneration of councillors | C123: Non-Cash | D123: Creditor Accrual - councillor remuneration accrued through payables from non-exchange transactions | E123: 12306783 | F123: 12689969 | G123: 12874169 | H123: 15330799 | I123: 15330799 | J123: 15330799 | K123: 13991167 | L123: 16097339 | M123: 16837817 | N123: 17595518
D124: In-kind benefits to councillors | E124: 0 | F124: 0 | G124: 0 | H124: 0 | I124: 0 | J124: 0 | K124: 0 | L124: 0 | M124: 0 | N124: 0
D125: Use of personal facilities | E125: 0 | F125: 0 | G125: 0 | H125: 0 | I125: 0 | J125: 0 | K125: 0 | L125: 0 | M125: 0 | N125: 0
D126: Non-Cash Total | E126: 12306783 | F126: 12689969 | G126: 12874169 | H126: 15330799 | I126: 15330799 | J126: 15330799 | K126: 13991167 | L126: 16097339 | M126: 16837817 | N126: 17595518
B127: Expenditure / Remuneration of councillors Total | E127: 12306783 | F127: 12689969 | G127: 12874169 | H127: 15330799 | I127: 15330799 | J127: 15330799 | K127: 13991167 | L127: 16097339 | M127: 16837817 | N127: 17595518
A128: 3300 | B128: Expenditure / Bulk purchases - electricity | C128: Non-Cash | D128: Creditor accrual - bulk purchases electricity accrued through payables from exchange transactions | E128: 278629528 | F128: 329347030 | G128: 340942124 | H128: 430699500 | I128: 420326740 | J128: 420326740 | K128: 410500417 | L128: 473708236 | M128: 557554594 | N128: 624461145
D129: Non-Cash Total | E129: 278629528 | F129: 329347030 | G129: 340942124 | H129: 430699500 | I129: 420326740 | J129: 420326740 | K129: 410500417 | L129: 473708236 | M129: 557554594 | N129: 624461145
B130: Expenditure / Bulk purchases - electricity Total | E130: 278629528 | F130: 329347030 | G130: 340942124 | H130: 430699500 | I130: 420326740 | J130: 420326740 | K130: 410500417 | L130: 473708236 | M130: 557554594 | N130: 624461145
A131: 3400 | B131: Expenditure / Inventory consumed | C131: Non-Cash | D131: Creditor accrual - bulk purchases water accrued through payables from exchange transactions | E131: 47760421 | F131: 0 | G131: 0 | H131: 0 | I131: 0 | J131: 0 | K131: 0 | L131: 0 | M131: 0 | N131: 0
D132: Inventory consumed - agricultural | E132: 0 | F132: 0 | G132: 0 | H132: 0 | I132: 0 | J132: 0 | K132: 0 | L132: 0 | M132: 0 | N132: 0
D133: Inventory consumed - capitalisation of inventory consumed | E133: 0 | F133: 0 | G133: 0 | H133: 0 | I133: 0 | J133: 0 | K133: 0 | L133: 0 | M133: 0 | N133: 0
D134: Inventory consumed - finished Goods | E134: 0 | F134: 0 | G134: 0 | H134: 0 | I134: 0 | J134: 0 | K134: 0 | L134: 0 | M134: 0 | N134: 0
D135: Inventory consumed - housing stock | E135: 155452 | F135: 20727 | G135: 0 | H135: 0 | I135: 0 | J135: 0 | K135: 0 | L135: 0 | M135: 0 | N135: 0
D136: Inventory consumed - land | E136: 0 | F136: 372 | G136: 0 | H136: 0 | I136: 0 | J136: 0 | K136: 0 | L136: 0 | M136: 0 | N136: 0
D137: Inventory consumed - materials and supplies | E137: 8540404 | F137: 9697058 | G137: 9757784 | H137: 11748042 | I137: 12692625 | J137: 12692625 | K137: 11533656 | L137: 14988813 | M137: 13736493 | N137: 14343424
D138: Inventory consumed - standard rated | E138: 6738016 | F138: 6665880 | G138: 7621319 | H138: 9307634 | I138: 8841260 | J138: 8841260 | K138: 8117791 | L138: 15615611 | M138: 10794579 | N138: 11280355
D139: Inventory consumed - water | E139: 0 | F139: 46672409 | G139: 58990773 | H139: 68565206 | I139: 68565206 | J139: 68565206 | K139: 57631158 | L139: 76354932 | M139: 79867258 | N139: 83461285
D140: Inventory consumed - zero rated | E140: 15098447 | F140: 22613475 | G140: 36760528 | H140: 38058332 | I140: 35093667 | J140: 35093667 | K140: 31205921 | L140: 40621898 | M140: 42454372 | N140: 44364760
D141: Non-Cash Total | E141: 78292740 | F141: 85669921 | G141: 113130404 | H141: 127679214 | I141: 125192758 | J141: 125192758 | K141: 108488526 | L141: 147581254 | M141: 146852702 | N141: 153449824
B142: Expenditure / Inventory consumed Total | E142: 78292740 | F142: 85669921 | G142: 113130404 | H142: 127679214 | I142: 125192758 | J142: 125192758 | K142: 108488526 | L142: 147581254 | M142: 146852702 | N142: 153449824
A143: 3500 | B143: Expenditure / Debt impairment | C143: Non-Cash | D143: Impairment loss - exchange revenue - electricity | E143: -565054 | F143: 42616 | G143: 1188278 | H143: 1297500 | I143: 458460 | J143: 458460 | K143: 883072 | L143: 509274 | M143: 530858 | N143: 554747
D144: Impairment loss - exchange revenue - other | E144: 55831 | F144: 95782 | G144: -1317320 | H144: 459480 | I144: 1947980 | J144: 1947980 | K144: -427306 | L144: 2054100 | M144: 2139472 | N144: 2235748
D145: Impairment loss - exchange revenue - waste management | E145: 2211933 | F145: 85191 | G145: 5448060 | H145: 2459760 | I145: 2307880 | J145: 2307880 | K145: 6494646 | L145: 2403482 | M145: 2534741 | N145: 2648804
D146: Impairment loss - exchange revenue - waste water management | E146: 868894 | F146: -168263 | G146: 3277936 | H146: 1195440 | I146: 1760735 | J146: 1760735 | K146: 3217752 | L146: 1849170 | M146: 1933818 | N146: 2020840
D147: Impairment loss - exchange revenue - water | E147: 2557523 | F147: -889899 | G147: 5052377 | H147: 3094740 | I147: 1124645 | J147: 1124645 | K147: 7575045 | L147: 1183326 | M147: 1235196 | N147: 1290780
D148: Impairment loss - non-exchange revenue - other | E148: -1990378 | F148: 5282257 | G148: 2179309 | H148: -5654940 | I148: -5654940 | J148: -5654940 | K148: -3336108 | L148: -5930022 | M148: -6204906 | N148: -6484127
D149: Impairment loss - non-exchange revenue - prop rates | E149: -762920 | F149: 30140 | G149: 6693924 | H149: 5227968 | I149: 77098 | J149: 77098 | K149: 1117148 | L149: 85428 | M149: 84675 | N149: 88485
D150: Impairment loss - non-exchange revenue - serv charges | E150: 0 | F150: 0 | G150: 0 | H150: 0 | I150: 0 | J150: 0 | K150: 1138952 | L150: 0 | M150: 0 | N150: 0
D151: Impairment loss - non-exchange revenue - serv charges - electricity | E151: 0 | F151: 0 | G151: 0 | H151: 0 | I151: 0 | J151: 0 | K151: 0 | L151: 0 | M151: 0 | N151: 0
D152: Impairment loss - non-exchange revenue - serv charges - waste management | E152: 0 | F152: 0 | G152: 0 | H152: 0 | I152: 0 | J152: 0 | K152: 0 | L152: 0 | M152: 0 | N152: 0
D153: Impairment loss - non-exchange revenue - serv charges - waste water management | E153: 0 | F153: 0 | G153: 0 | H153: 0 | I153: 0 | J153: 0 | K153: 0 | L153: 0 | M153: 0 | N153: 0
D154: Impairment loss - non-exchange revenue - serv charges - water | E154: 0 | F154: 0 | G154: 0 | H154: 0 | I154: 0 | J154: 0 | K154: 0 | L154: 0 | M154: 0 | N154: 0
D155: Reversal of Impairment loss - exchange revenue - electricity | E155: 0 | F155: 0 | G155: 0 | H155: 0 | I155: 0 | J155: 0 | K155: 0 | L155: 0 | M155: 0 | N155: 0
D156: Reversal of Impairment loss - non-exchange revenue - other | E156: 0 | F156: 0 | G156: 0 | H156: 0 | I156: 0 | J156: 0 | K156: 0 | L156: 0 | M156: 0 | N156: 0
D157: Reversal of Impairment loss - non-exchange revenue - prop rates | E157: 0 | F157: 0 | G157: 0 | H157: 0 | I157: 0 | J157: 0 | K157: 0 | L157: 0 | M157: 0 | N157: 0
D158: Reversal of Impairment loss - non-exchange revenue - serv charges | E158: 0 | F158: 0 | G158: 0 | H158: 0 | I158: 0 | J158: 0 | K158: 0 | L158: 0 | M158: 0 | N158: 0
D159: Reversal of Impairment loss - non-exchange revenue - serv charges - electricity | E159: 0 | F159: 0 | G159: 0 | H159: 0 | I159: 0 | J159: 0 | K159: 0 | L159: 0 | M159: 0 | N159: 0
D160: Reversal of Impairment loss - non-exchange revenue - serv charges - waste management | E160: 0 | F160: 0 | G160: 0 | H160: 0 | I160: 0 | J160: 0 | K160: 0 | L160: 0 | M160: 0 | N160: 0
D161: Reversal of Impairment loss - non-exchange revenue - serv charges - waste water mangement | E161: 0 | F161: 0 | G161: 0 | H161: 0 | I161: 0 | J161: 0 | K161: 0 | L161: 0 | M161: 0 | N161: 0
D162: Reversal of Impairment loss - non-exchange revenue - serv charges - water | E162: -42824 | F162: -35163 | G162: -21749 | H162: 0 | I162: 0 | J162: 0 | K162: -14902 | L162: 0 | M162: 0 | N162: 0
D163: Reversal of Impairment loss - exchange revenue - waste management | E163: 0 | F163: 0 | G163: 0 | H163: 0 | I163: 0 | J163: 0 | K163: 0 | L163: 0 | M163: 0 | N163: 0
D164: Reversal of Impairment loss - exchange revenue - waste water management | E164: 0 | F164: 0 | G164: 0 | H164: 0 | I164: 0 | J164: 0 | K164: 0 | L164: 0 | M164: 0 | N164: 0
D165: Reversal of Impairment loss - exchange revenue - water | E165: 0 | F165: 0 | G165: 0 | H165: 0 | I165: 0 | J165: 0 | K165: 0 | L165: 0 | M165: 0 | N165: 0
D166: Reversal of Impairment loss - exchange revenue - other | E166: 0 | F166: 0 | G166: 0 | H166: 0 | I166: 0 | J166: 0 | K166: 0 | L166: 0 | M166: 0 | N166: 0
D167: Non-Cash Total | E167: 2333005 | F167: 4442661 | G167: 22500815 | H167: 8079948 | I167: 2021858 | J167: 2021858 | K167: 16648299 | L167: 2154758 | M167: 2253854 | N167: 2355277
B168: Expenditure / Debt impairment Total | E168: 2333005 | F168: 4442661 | G168: 22500815 | H168: 8079948 | I168: 2021858 | J168: 2021858 | K168: 16648299 | L168: 2154758 | M168: 2253854 | N168: 2355277
A169: 3600 | B169: Expenditure / Depreciation and amortisation | C169: Non-Cash | D169: Amortisation - intangible assets | E169: 4617741 | F169: 109817 | G169: 123854 | H169: 9980172 | I169: 1225020 | J169: 1225020 | K169: 144799 | L169: 0 | M169: 0 | N169: 0
D170: Depreciation - biological or cultivated assets | E170: 0 | F170: 0 | G170: 0 | H170: 0 | I170: 0 | J170: 0 | K170: 0 | L170: 0 | M170: 0 | N170: 0
D171: Depreciation - heritage assets | E171: 0 | F171: 0 | G171: 0 | H171: 0 | I171: 0 | J171: 0 | K171: 0 | L171: 0 | M171: 0 | N171: 0
D172: Depreciation - intangible assets | E172: 2335354 | F172: 2834538 | G172: 2992731 | H172: 4613460 | I172: 4613460 | J172: 4613460 | K172: 2925414 | L172: 6241644 | M172: 7155808 | N172: 7861477
D173: Depreciation - investment property | E173: 0 | F173: 0 | G173: 0 | H173: 0 | I173: 0 | J173: 0 | K173: 0 | L173: 0 | M173: 0 | N173: 0
D174: Depreciation - living resources | E174: 0 | F174: 0 | G174: 0 | H174: 0 | I174: 0 | J174: 0 | K174: 0 | L174: 0 | M174: 0 | N174: 0
D175: Depreciation - PPE | E175: 139702899 | F175: 141377712 | G175: 152074753 | H175: 171673797 | I175: 171673797 | J175: 171673797 | K175: 162331303 | L175: 189355668 | M175: 203355885 | N175: 218808581
D176: Depreciation - Land | E176: 0 | F176: 0 | G176: 0 | H176: 0 | I176: 0 | J176: 0 | K176: 0 | L176: 0 | M176: 0 | N176: 0
D177: Impairment loss - biological or cultivated assets | E177: 0 | F177: 0 | G177: 0 | H177: 0 | I177: 0 | J177: 0 | K177: 0 | L177: 0 | M177: 0 | N177: 0
D178: Impairment loss - heritage assets | E178: 0 | F178: 0 | G178: 0 | H178: 0 | I178: 0 | J178: 0 | K178: 0 | L178: 0 | M178: 0 | N178: 0
D179: Impairment loss - intangible assets | E179: 0 | F179: 0 | G179: 0 | H179: 0 | I179: 0 | J179: 0 | K179: 0 | L179: 0 | M179: 0 | N179: 0
D180: Impairment loss - investment property | E180: 0 | F180: 0 | G180: 0 | H180: 0 | I180: 0 | J180: 0 | K180: 0 | L180: 0 | M180: 0 | N180: 0
D181: Impairment loss - living resources | E181: 0 | F181: 0 | G181: 0 | H181: 0 | I181: 0 | J181: 0 | K181: 0 | L181: 0 | M181: 0 | N181: 0
D182: Impairment loss - PPE | E182: 10003199 | F182: 1251759 | G182: 1875490 | H182: 0 | I182: 0 | J182: 0 | K182: 8057370 | L182: 0 | M182: 0 | N182: 0
D183: Impairment loss - PPE - construction WIP | E183: 0 | F183: 0 | G183: 717739 | H183: 0 | I183: 0 | J183: 0 | K183: 316828 | L183: 0 | M183: 0 | N183: 0
D184: Reversal impairment loss - biological or cultivated assets | E184: 0 | F184: 0 | G184: 0 | H184: 0 | I184: 0 | J184: 0 | K184: 0 | L184: 0 | M184: 0 | N184: 0
D185: Reversal impairment loss - investment property | E185: 0 | F185: 0 | G185: 0 | H185: 0 | I185: 0 | J185: 0 | K185: 0 | L185: 0 | M185: 0 | N185: 0
D186: Reversal impairment loss - living resources | E186: 0 | F186: 0 | G186: 0 | H186: 0 | I186: 0 | J186: 0 | K186: 0 | L186: 0 | M186: 0 | N186: 0
D187: Reversal impairment loss - PPE | E187: -416985 | F187: -8081308 | G187: -12754683 | H187: 0 | I187: 0 | J187: 0 | K187: -7082845 | L187: 0 | M187: 0 | N187: 0
D188: Reversal impairment loss - PPE - construction WIP | E188: 0 | F188: 0 | G188: 0 | H188: 0 | I188: 0 | J188: 0 | K188: 0 | L188: 0 | M188: 0 | N188: 0
D189: Reversal of impairment loss - heritage assets | E189: 0 | F189: 0 | G189: 0 | H189: 0 | I189: 0 | J189: 0 | K189: 0 | L189: 0 | M189: 0 | N189: 0
D190: Reversal of impairment loss - intangible assets | E190: 0 | F190: 0 | G190: 0 | H190: 0 | I190: 0 | J190: 0 | K190: 0 | L190: 0 | M190: 0 | N190: 0
D191: Non-Cash Total | E191: 156242208 | F191: 137492518 | G191: 145029884 | H191: 186267429 | I191: 177512277 | J191: 177512277 | K191: 166692869 | L191: 195597312 | M191: 210511693 | N191: 226670058
B192: Expenditure / Depreciation and amortisation Total | E192: 156242208 | F192: 137492518 | G192: 145029884 | H192: 186267429 | I192: 177512277 | J192: 177512277 | K192: 166692869 | L192: 195597312 | M192: 210511693 | N192: 226670058
A193: 3700 | B193: Expenditure / Interest | C193: Cash | D193: Direct cash payment | E193: 13240083 | F193: 12485705 | G193: 13427966 | H193: 12245328 | I193: 12245328 | J193: 12245328 | K193: 12220806 | L193: 11044392 | M193: 9707237 | N193: 15236730
D194: Cash Total | E194: 13240083 | F194: 12485705 | G194: 13427966 | H194: 12245328 | I194: 12245328 | J194: 12245328 | K194: 12220806 | L194: 11044392 | M194: 9707237 | N194: 15236730
C195: Non-Cash | D195: Accrual of finance charges - discounting of financial instruments | E195: 0 | F195: 0 | G195: 0 | H195: 0 | I195: 0 | J195: 0 | K195: 0 | L195: 0 | M195: 0 | N195: 0
D196: Accrual of finance charges - interest costs intercompany/parentsubsidiary transactions | E196: 0 | F196: 0 | G196: 0 | H196: 0 | I196: 0 | J196: 0 | K196: 0 | L196: 0 | M196: 0 | N196: 0
D197: Accrual of finance charges - interest costs long service awards | E197: 1384000 | F197: 1801000 | G197: 2267000 | H197: 2453000 | I197: 2519410 | J197: 2519410 | K197: 2506000 | L197: 2453004 | M197: 2565886 | N197: 2681348
D198: Accrual of finance charges - interest costs non-current provisions | E198: 3223808 | F198: 5812787 | G198: 6017873 | H198: 4721484 | I198: 6349029 | J198: 6349029 | K198: 6349140 | L198: 6031584 | M198: 5730003 | N198: 5987853
D199: Non-Cash Total | E199: 4607808 | F199: 7613787 | G199: 8284873 | H199: 7174484 | I199: 8868439 | J199: 8868439 | K199: 8855140 | L199: 8484588 | M199: 8295889 | N199: 8669201
B200: Expenditure / Interest Total | E200: 17847891 | F200: 20099492 | G200: 21712839 | H200: 19419812 | I200: 21113767 | J200: 21113767 | K200: 21075946 | L200: 19528980 | M200: 18003126 | N200: 23905931
... 111 more rows

Sheet A5-Capex
A2: =Vdesc -> Vote Description | B2: =head27 -> Ref | C2: =head1b -> 2021/22 | D2: =head1A -> 2022/23 | E2: =Head1 -> 2023/24 | F2: =Head2 -> Current Year 2024/25 | J2: =Head3 -> 2025/26 Medium Term Revenue & Expenditure Framework
A3: R thousand | B3: 1 | C3: =Head5 -> Audited Outcome | D3: =Head5 -> Audited Outcome | E3: =Head5 -> Audited Outcome | F3: =Head6 -> Original Budget | G3: =Head7 -> Adjusted Budget | H3: =Head8 -> Full Year Forecast | I3: =Head5b -> Pre-audit outcome | J3: =Head9 -> Budget Year 2025/26 | K3: =Head10 -> Budget Year +1 2026/27 | L3: =Head11 -> Budget Year +2 2027/28
A4: Capital expenditure - Vote
A5: Multi-year expenditure to be appropriated | B5: 2
A6: =A5A!A6 -> Vote 1 - City Manager | C6: =A5A!C6 -> 1613825.13 | D6: =A5A!D6 -> 27000 | E6: =A5A!E6 -> 0 | F6: =A5A!F6 -> 37445000.58 | G6: =A5A!G6 -> 850000 | H6: =A5A!H6 -> 850000 | I6: =A5A!I6 -> 0 | J6: =A5A!J6 -> 0 | K6: =A5A!K6 -> 0 | L6: =A5A!L6 -> 0
A7: =A5A!A17 -> Vote 2 - City Finance | C7: =A5A!C17 -> 4935541.48 | D7: =A5A!D17 -> 9153029.53 | E7: =A5A!E17 -> 10485090.65 | F7: =A5A!F17 -> 25000000 | G7: =A5A!G17 -> 25000000 | H7: =A5A!H17 -> 25000000 | I7: =A5A!I17 -> 0 | J7: =A5A!J17 -> 45000000 | K7: =A5A!K17 -> 45000000 | L7: =A5A!L17 -> 50000000
A8: =A5A!A28 -> Vote 3 - Corporate Services | C8: =A5A!C28 -> 2272710.48 | D8: =A5A!D28 -> 937669.79 | E8: =A5A!E28 -> 5071794.14 | F8: =A5A!F28 -> 6585000 | G8: =A5A!G28 -> 6835000 | H8: =A5A!H28 -> 6835000 | I8: =A5A!I28 -> 0 | J8: =A5A!J28 -> 10000000 | K8: =A5A!K28 -> 10000000 | L8: =A5A!L28 -> 10000000
A9: =A5A!A39 -> Vote 4 - Community Services and Social Equity | C9: =A5A!C39 -> 33154389.84 | D9: =A5A!D39 -> 48934490.92 | E9: =A5A!E39 -> 70000485.02 | F9: =A5A!F39 -> 42142711.2 | G9: =A5A!G39 -> 34600680.08 | H9: =A5A!H39 -> 34600680.08 | I9: =A5A!I39 -> 0 | J9: =A5A!J39 -> 34616720 | K9: =A5A!K39 -> 18493723.2 | L9: =A5A!L39 -> 18423346.59
A10: =A5A!A50 -> Vote 5 - Infrastructure Services | C10: =A5A!C50 -> 308960388.3 | D10: =A5A!D50 -> 268923267.1 | E10: =A5A!E50 -> 291473827.5 | F10: =A5A!F50 -> 284463597.6 | G10: =A5A!G50 -> 349087786.9 | H10: =A5A!H50 -> 349087786.9 | I10: =A5A!I50 -> 0 | J10: =A5A!J50 -> 346701440 | K10: =A5A!K50 -> 386016686.2 | L10: =A5A!L50 -> 408006319.1
A11: =A5A!A61 -> Vote 6 - Sustainable Development and City Enterprises | C11: =A5A!C61 -> 51772460.63 | D11: =A5A!D61 -> 133279407.1 | E11: =A5A!E61 -> 168625429.7 | F11: =A5A!F61 -> 153598529.7 | G11: =A5A!G61 -> 155161841.2 | H11: =A5A!H61 -> 155161841.2 | I11: =A5A!I61 -> 0 | J11: =A5A!J61 -> 0 | K11: =A5A!K61 -> 0 | L11: =A5A!L61 -> 8000000
A12: =A5A!A72 -> Vote 7 - Electricity | C12: =A5A!C72 -> 98800431.88 | D12: =A5A!D72 -> 71071450.3 | E12: =A5A!E72 -> 116839301.6 | F12: =A5A!F72 -> 237331051.4 | G12: =A5A!G72 -> 198157855.6 | H12: =A5A!H72 -> 198157855.6 | I12: =A5A!I72 -> 0 | J12: =A5A!J72 -> 181332761 | K12: =A5A!K72 -> 30246861.6 | L12: =A5A!L72 -> 31482673.3
A13: =A5A!A83 -> Vote 8 - [NAME OF VOTE 8] | C13: =A5A!C83 -> 0 | D13: =A5A!D83 -> 0 | E13: =A5A!E83 -> 0 | F13: =A5A!F83 -> 0 | G13: =A5A!G83 -> 0 | H13: =A5A!H83 -> 0 | I13: =A5A!I83 -> 0 | J13: =A5A!J83 -> 0 | K13: =A5A!K83 -> 0 | L13: =A5A!L83 -> 0
A14: =A5A!A94 -> Vote 9 - [NAME OF VOTE 9] | C14: =A5A!C94 -> 0 | D14: =A5A!D94 -> 0 | E14: =A5A!E94 -> 0 | F14: =A5A!F94 -> 0 | G14: =A5A!G94 -> 0 | H14: =A5A!H94 -> 0 | I14: =A5A!I94 -> 0 | J14: =A5A!J94 -> 0 | K14: =A5A!K94 -> 0 | L14: =A5A!L94 -> 0
A15: =A5A!A105 -> Vote 10 - [NAME OF VOTE 10] | C15: =A5A!C105 -> 0 | D15: =A5A!D105 -> 0 | E15: =A5A!E105 -> 0 | F15: =A5A!F105 -> 0 | G15: =A5A!G105 -> 0 | H15: =A5A!H105 -> 0 | I15: =A5A!I105 -> 0 | J15: =A5A!J105 -> 0 | K15: =A5A!K105 -> 0 | L15: =A5A!L105 -> 0
A16: =A5A!A116 -> Vote 11 - [NAME OF VOTE 11] | C16: =A5A!C116 -> 0 | D16: =A5A!D116 -> 0 | E16: =A5A!E116 -> 0 | F16: =A5A!F116 -> 0 | G16: =A5A!G116 -> 0 | H16: =A5A!H116 -> 0 | I16: =A5A!I116 -> 0 | J16: =A5A!J116 -> 0 | K16: =A5A!K116 -> 0 | L16: =A5A!L116 -> 0
A17: =A5A!A127 -> Vote 12 - [NAME OF VOTE 12] | C17: =A5A!C127 -> 0 | D17: =A5A!D127 -> 0 | E17: =A5A!E127 -> 0 | F17: =A5A!F127 -> 0 | G17: =A5A!G127 -> 0 | H17: =A5A!H127 -> 0 | I17: =A5A!I127 -> 0 | J17: =A5A!J127 -> 0 | K17: =A5A!K127 -> 0 | L17: =A5A!L127 -> 0
A18: =A5A!A138 -> Vote 13 - [NAME OF VOTE 13] | C18: =A5A!C138 -> 0 | D18: =A5A!D138 -> 0 | E18: =A5A!E138 -> 0 | F18: =A5A!F138 -> 0 | G18: =A5A!G138 -> 0 | H18: =A5A!H138 -> 0 | I18: =A5A!I138 -> 0 | J18: =A5A!J138 -> 0 | K18: =A5A!K138 -> 0 | L18: =A5A!L138 -> 0
A19: =A5A!A149 -> Vote 14 - [NAME OF VOTE 14] | C19: =A5A!C149 -> 0 | D19: =A5A!D149 -> 0 | E19: =A5A!E149 -> 0 | F19: =A5A!F149 -> 0 | G19: =A5A!G149 -> 0 | H19: =A5A!H149 -> 0 | I19: =A5A!I149 -> 0 | J19: =A5A!J149 -> 0 | K19: =A5A!K149 -> 0 | L19: =A5A!L149 -> 0
A20: =A5A!A160 -> Vote 15 - [NAME OF VOTE 15] | C20: =A5A!C160 -> 0 | D20: =A5A!D160 -> 0 | E20: =A5A!E160 -> 0 | F20: =A5A!F160 -> 0 | G20: =A5A!G160 -> 0 | H20: =A5A!H160 -> 0 | I20: =A5A!I160 -> 0 | J20: =A5A!J160 -> 0 | K20: =A5A!K160 -> 0 | L20: =A5A!L160 -> 0
A21: Capital multi-year expenditure sub-total | B21: 7 | C21: =SUM(C6:C20) -> 501509747.7 | D21: =SUM(D6:D20) -> 532326314.7 | E21: 662495928.6 | F21: 786565890.4 | G21: 769693163.8 | H21: =SUM(H6:H20) -> 769693163.8 | I21: 0 | J21: 617650921 | K21: 489757271 | L21: 525912339
A23: Single-year expenditure to be appropriated | B23: 2
A24: =A6 -> Vote 1 - City Manager | C24: =A5A!C175 -> 2151205.01 | D24: =A5A!D175 -> 943953.22 | E24: =A5A!E175 -> 6002904.91 | F24: =A5A!F175 -> 5000000 | G24: =A5A!G175 -> 6400000 | H24: =A5A!H175 -> 6400000 | I24: =A5A!I175 -> 0 | J24: =A5A!J175 -> 0 | K24: =A5A!K175 -> 0 | L24: =A5A!L175 -> 0
A25: =A7 -> Vote 2 - City Finance | C25: =A5A!C186 -> 6344857.33 | D25: =A5A!D186 -> 3084194.22 | E25: =A5A!E186 -> 5570959.24 | F25: =A5A!F186 -> 0 | G25: =A5A!G186 -> 1300000 | H25: =A5A!H186 -> 1300000 | I25: =A5A!I186 -> 0 | J25: =A5A!J186 -> 0 | K25: =A5A!K186 -> 0 | L25: =A5A!L186 -> 0
A26: Vote 3 - Corporate Services | C26: =A5A!C197 -> 2270139.63 | D26: =A5A!D197 -> 3796496.82 | E26: =A5A!E197 -> 15256416.64 | F26: =A5A!F197 -> 7615000 | G26: =A5A!G197 -> 11870822 | H26: =A5A!H197 -> 11870822 | I26: =A5A!I197 -> 0 | J26: =A5A!J197 -> 0 | K26: =A5A!K197 -> 0 | L26: =A5A!L197 -> 0
A27: Vote 4 - Community Services and Social Equity | C27: =A5A!C208 -> 3553157.05 | D27: =A5A!D208 -> 4980126 | E27: =A5A!E208 -> 8052360.27 | F27: =A5A!F208 -> 8690000 | G27: =A5A!G208 -> 9090000 | H27: =A5A!H208 -> 9090000 | I27: =A5A!I208 -> 0 | J27: =A5A!J208 -> 10000000 | K27: =A5A!K208 -> 30000000 | L27: =A5A!L208 -> 30000000
A28: Vote 5 - Infrastructure Services | C28: =A5A!C219 -> 3549110.6 | D28: =A5A!D219 -> 792613.81 | E28: =A5A!E219 -> 15179175.83 | F28: =A5A!F219 -> 10000000 | G28: =A5A!G219 -> 10092413 | H28: =A5A!H219 -> 10092413 | I28: =A5A!I219 -> 0 | J28: =A5A!J219 -> 0 | K28: =A5A!K219 -> 0 | L28: =A5A!L219 -> 0
A29: Vote 6 - Sustainable Development and City Enterprises | C29: =A5A!C230 -> 2059024.09 | D29: =A5A!D230 -> 1035306.98 | E29: =A5A!E230 -> 842627.38 | F29: =A5A!F230 -> 2140000 | G29: =A5A!G230 -> 2502396.22 | H29: =A5A!H230 -> 2502396.22 | I29: =A5A!I230 -> 0 | J29: =A5A!J230 -> 0 | K29: =A5A!K230 -> 0 | L29: =A5A!L230 -> 0
A30: Vote 7 - Electricity | C30: =A5A!C241 -> 0 | D30: =A5A!D241 -> 830822.31 | E30: =A5A!E241 -> 12909352.94 | F30: =A5A!F241 -> 4000000 | G30: =A5A!G241 -> 5600000 | H30: =A5A!H241 -> 5600000 | I30: =A5A!I241 -> 0 | J30: =A5A!J241 -> 0 | K30: =A5A!K241 -> 0 | L30: =A5A!L241 -> 0
A31: Vote 8 - [NAME OF VOTE 8] | C31: =A5A!C252 -> 0 | D31: =A5A!D252 -> 0 | E31: =A5A!E252 -> 0 | F31: =A5A!F252 -> 0 | G31: =A5A!G252 -> 0 | H31: =A5A!H252 -> 0 | I31: =A5A!I252 -> 0 | J31: =A5A!J252 -> 0 | K31: =A5A!K252 -> 0 | L31: =A5A!L252 -> 0
A32: Vote 9 - [NAME OF VOTE 9] | C32: =A5A!C263 -> 0 | D32: =A5A!D263 -> 0 | E32: =A5A!E263 -> 0 | F32: =A5A!F263 -> 0 | G32: =A5A!G263 -> 0 | H32: =A5A!H263 -> 0 | I32: =A5A!I263 -> 0 | J32: =A5A!J263 -> 0 | K32: =A5A!K263 -> 0 | L32: =A5A!L263 -> 0
A33: Vote 10 - [NAME OF VOTE 10] | C33: =A5A!C274 -> 0 | D33: =A5A!D274 -> 0 | E33: =A5A!E274 -> 0 | F33: =A5A!F274 -> 0 | G33: =A5A!G274 -> 0 | H33: =A5A!H274 -> 0 | I33: =A5A!I274 -> 0 | J33: =A5A!J274 -> 0 | K33: =A5A!K274 -> 0 | L33: =A5A!L274 -> 0
A34: Vote 11 - [NAME OF VOTE 11] | C34: =A5A!C285 -> 0 | D34: =A5A!D285 -> 0 | E34: =A5A!E285 -> 0 | F34: =A5A!F285 -> 0 | G34: =A5A!G285 -> 0 | H34: =A5A!H285 -> 0 | I34: =A5A!I285 -> 0 | J34: =A5A!J285 -> 0 | K34: =A5A!K285 -> 0 | L34: =A5A!L285 -> 0
A35: Vote 12 - [NAME OF VOTE 12] | C35: =A5A!C296 -> 0 | D35: =A5A!D296 -> 0 | E35: =A5A!E296 -> 0 | F35: =A5A!F296 -> 0 | G35: =A5A!G296 -> 0 | H35: =A5A!H296 -> 0 | I35: =A5A!I296 -> 0 | J35: =A5A!J296 -> 0 | K35: =A5A!K296 -> 0 | L35: =A5A!L296 -> 0
A36: Vote 13 - [NAME OF VOTE 13] | C36: =A5A!C307 -> 0 | D36: =A5A!D307 -> 0 | E36: =A5A!E307 -> 0 | F36: =A5A!F307 -> 0 | G36: =A5A!G307 -> 0 | H36: =A5A!H307 -> 0 | I36: =A5A!I307 -> 0 | J36: =A5A!J307 -> 0 | K36: =A5A!K307 -> 0 | L36: =A5A!L307 -> 0
A37: Vote 14 - [NAME OF VOTE 14] | C37: =A5A!C318 -> 0 | D37: =A5A!D318 -> 0 | E37: =A5A!E318 -> 0 | F37: =A5A!F318 -> 0 | G37: =A5A!G318 -> 0 | H37: =A5A!H318 -> 0 | I37: =A5A!I318 -> 0 | J37: =A5A!J318 -> 0 | K37: =A5A!K318 -> 0 | L37: =A5A!L318 -> 0
A38: =A20 -> Vote 15 - [NAME OF VOTE 15] | C38: =A5A!C329 -> 0 | D38: =A5A!D329 -> 0 | E38: =A5A!E329 -> 0 | F38: =A5A!F329 -> 0 | G38: =A5A!G329 -> 0 | H38: =A5A!H329 -> 0 | I38: =A5A!I329 -> 0 | J38: =A5A!J329 -> 0 | K38: =A5A!K329 -> 0 | L38: =A5A!L329 -> 0
A39: Capital single-year expenditure sub-total | C39: =SUM(C24:C38) -> 19927493.71 | D39: =SUM(D24:D38) -> 15463513.36 | E39: 63813797.21 | F39: 37445000 | G39: 46855631.22 | H39: 46855631.22 | I39: 0 | J39: 10000000 | K39: 30000000 | L39: 30000000
A40: Total Capital Expenditure - Vote | C40: =C39+C21 -> 521437241.5 | D40: =D39+D21 -> 547789828.1 | E40: 726309725.8 | F40: 824010890.4 | G40: 816548795 | H40: 816548795 | I40: 0 | J40: 627650921 | K40: 519757271 | L40: 555912339
A42: Capital Expenditure - Functional
A43: Governance and administration | C43: =SUM(C44:C46) -> 19335557.15 | D43: =SUM(D44:D46) -> 18773165.89 | E43: 43055333.52 | F43: 45300000 | G43: 37948235 | H43: 37948235 | I43: 0 | J43: 55000000 | K43: 57475000 | L43: 49681000
A44: Executive and council | C44: 2638711.39 | D44: 749658.04 | E44: 6002904.91 | F44: 5100000 | G44: 7650000 | H44: 7650000
A45: Finance and administration | C45: 16696845.76 | D45: 18023507.85 | E45: 37052428.61 | F45: 40200000 | G45: 30298235 | H45: 30298235 | J45: 55000000 | K45: 57475000 | L45: 49681000
A46: Internal audit | C46: 0 | D46: 0 | E46: 0 | F46: 0 | G46: 0 | H46: 0
A47: Community and public safety | C47: =SUM(C48:C52) -> 36890721.92 | D47: =SUM(D48:D52) -> 57141397.17 | E47: 117915786.8 | F47: 168351240.9 | G47: 149293903.2 | H47: 149293903.2 | I47: 0 | J47: 14616720 | K47: 15493723 | L47: 48221227
A48: Community and social services | C48: 33969243.76 | D48: 43937014.62 | E48: 39759722.49 | F48: 24745151.2 | G48: 16970120.08 | H48: 16970120.08 | J48: 14616720 | K48: 15493723 | L48: 48221227
A49: Sport and recreation | C49: 1041093.51 | D49: 921500 | E49: 5255736.33 | F49: 11932560 | G49: 12165560 | H49: 12165560
A50: Public safety | C50: 94470 | D50: 147639.89 | E50: 724230.91 | F50: 2100000 | G50: 2100000 | H50: 2100000
A51: Housing | C51: 1785914.65 | D51: 12135242.66 | E51: 72176097.07 | F51: 129573529.7 | G51: 118058223.2 | H51: 118058223.2
A52: Health | D52: 0 | E52: 0 | F52: 0
A53: Economic and environmental services | C53: =SUM(C54:C56) -> 239009075.4 | D53: =SUM(D54:D56) -> 277382246.5 | E53: 247499942.5 | F53: 139974463.2 | G53: 187682471.2 | H53: 187682471.2 | I53: 0 | J53: 155584000 | K53: 169782200 | L53: 213712595
A54: Planning and development | C54: 37474066.53 | D54: 118611552.7 | E54: 92995620.52 | F54: 23150000 | G54: 36591014.22 | H54: 36591014.22 | J54: 30000000 | K54: 33000000 | L54: 40000000
A55: Road transport | C55: 201376703.9 | D55: 158748517.8 | E55: 154504322 | F55: 116824463.2 | G55: 151091457 | H55: 151091457 | J55: 125584000 | K55: 136782200 | L55: 173712595
A56: Environmental protection | C56: 158305 | D56: 22176 | E56: 0 | F56: 0 | L56: 0
A57: Trading services | C57: =SUM(C58:C61) -> 226176439.7 | D57: =SUM(D58:D61) -> 191140453.7 | E57: 314321104.9 | F57: 467535186.4 | G57: 438774185.8 | H57: 438774185.8 | I57: 0 | J57: 402450201 | K57: 277006348 | L57: 244297517
A58: Energy sources | C58: 98800431.88 | D58: 64942417.74 | E58: 129748654.5 | F58: 260053551.7 | G58: 243757856 | H58: 243757856 | J58: 181332761 | K58: 30809362 | L58: 31863048
A59: Water management | C59: 58051642.31 | D59: 67841532.68 | E59: 78803164.29 | F59: 100375000 | G59: 82257997 | H59: 82257997 | J59: 108900000 | K59: 127246500 | L59: 83650313
A60: Waste water management | C60: 54321981.29 | D60: 48191731.92 | E60: 78087787.55 | F60: 97046634.7 | G60: 102698332.8 | H60: 102698332.8 | J60: 112217440 | K60: 118950486 | L60: 128784156
A61: Waste management | C61: 15002384.25 | D61: 10164771.41 | E61: 27681498.49 | F61: 10060000 | G61: 10060000 | H61: 10060000
A62: Other | C62: 414954.5 | D62: 3352564.81 | E62: 3517558.08 | F62: 2850000 | G62: 2850000 | H62: 2850000
A63: Total Capital Expenditure - Functional | B63: 3 | C63: =C43+C47+C53+C57+C62 -> 521826748.7 | D63: =D43+D47+D53+D57+D62 -> 547789828.1 | E63: 726309725.8 | F63: 824010890.4 | G63: 816548795.3 | H63: 816548795.3 | I63: 0 | J63: 627650921 | K63: 519757271 | L63: =L43+L47+L53+L57+L62 -> 555912339
A65: Funded by:
A66: National Government | C66: 291413394.4 | D66: 251839997.3 | E66: 302791114.5 | F66: 325816919.9 | G66: 345980175 | H66: 345980175 | J66: 376126520 | K66: 429887271 | L66: 455998188
A67: Provincial Government | C67: 21307752.9 | D67: 111489785.6 | E67: 92791145.97 | F67: 131157970.6 | G67: 131945798 | H67: 131945798
A68: District Municipality
A69: Transfers and subsidies - capital (monetary allocations) (Nat / Prov Departm Agencies, Households, Non-profit Institutions, Private Enterprises, Public Corporatons, Higher Educ Institutions)
A70: Transfers recognised - capital | B70: 4 | C70: =SUM(C66:C69) -> 312721147.3 | D70: 363329782.9 | E70: 395582260.5 | F70: 456974890.5 | G70: 477925973 | H70: 477925973 | I70: 0 | J70: 376126520 | K70: 429887271 | L70: 455998188
A72: Borrowing | B72: 6 | C72: 49400541.77 | E72: 72309925.81 | F72: 234315856 | G72: 206615856 | H72: 206615856 | J72: 161524401 | L72: 5460125
A73: Internally generated funds | C73: 159705059.6 | D73: 184460045.2 | E73: 258417539.5 | F73: 132720143.9 | G73: 132006966 | H73: 132006966 | J73: 90000000 | K73: 89870000 | L73: 94454026
A74: Total Capital Funding | B74: 7 | C74: =+C70+C72+C73 -> 521826748.7 | D74: =+D70+D72+D73 -> 547789828.1 | E74: 726309725.8 | F74: 824010890.4 | G74: 816548795 | H74: 816548795 | I74: 0 | J74: 627650921 | K74: 519757271 | L74: 555912339
A75: =head27a -> References
A76: 1. Municipalities may choose to appropriate for capital expenditure for three years or for one year (if one year appropriation projected expenditure required for yr2 and yr3).
A77: 2. Include capital component of PPP unitary payment. Note that capital transfers are only appropriated to municipalities for the budget year
A78: 3. Capital expenditure by functional classification must reconcile to the appropriations by vote
A79: 4. Must reconcile to supporting table SA20 and to Budgeted Financial Performance (revenue and expenditure)
A81: 6. Include finance leases and PPP capital funding component of unitary payment - total borrowing/repayments to reconcile to changes in Table SA17
A82: 7. Total Capital Funding must balance with Total Capital Expenditure
A83: 8. Include any capitalised interest (MFMA section 46) as part of relevant capital budget

Sheet A5A
A1: =muni&" - "&Approve5 -> Choose name from list - Table A5 Budgeted Capital Expenditure by vote, functional classification and funding
A2: =Vdesc -> Vote Description | B2: =head27 -> Ref | C2: =head1b -> 2021/22 | D2: =head1A -> 2022/23 | E2: =Head1 -> 2023/24 | F2: =Head2 -> Current Year 2024/25 | J2: =Head3 -> 2025/26 Medium Term Revenue & Expenditure Framework | N2: ="Multi-year appropriation for "&Head9& " in the "&Head2A&" Annual Budget" -> Multi-year appropriation for Budget Year 2025/26 in the 2024/25 Annual Budget | R2: ="Multi-year appropriation for "&RIGHT(Head10,7)& " in the "&Head2A&" Annual Budget" -> Multi-year appropriation for 2026/27 in the 2024/25 Annual Budget | V2: New multi-year appropriations (funds for new and existing projects)
A3: R thousand | B3: 1 | C3: =Head5 -> Audited Outcome | D3: =Head5 -> Audited Outcome | E3: =Head5 -> Audited Outcome | F3: =Head6 -> Original Budget | G3: =Head7 -> Adjusted Budget | H3: =Head8 -> Full Year Forecast | I3: =Head5b -> Pre-audit outcome | J3: =Head9 -> Budget Year 2025/26 | K3: =Head10 -> Budget Year +1 2026/27 | L3: =Head11 -> Budget Year +2 2027/28 | N3: ="Appropriation for "&RIGHT(Head9,7) -> Appropriation for 2025/26 | O3: ="Adjustments in "&Head2A -> Adjustments in 2024/25 | P3: ="Downward adjustments for "&RIGHT(Head9,7) -> Downward adjustments for 2025/26 | Q3: Appropriation carried forward | R3: ="Appropriation for "&RIGHT(Head9,7) -> Appropriation for 2025/26 | S3: ="Adjustments in "&Head2A -> Adjustments in 2024/25 | T3: ="Downward adjustments for "&RIGHT(Head9,7) -> Downward adjustments for 2025/26 | U3: Appropriation carried forward | V3: =Head9 -> Budget Year 2025/26 | W3: =Head10 -> Budget Year +1 2026/27 | X3: =Head11 -> Budget Year +2 2027/28
A4: Capital expenditure - Municipal Vote
A5: Multi-year expenditure appropriation | B5: 2
A6: ='Org structure'!A2 -> Vote 1 - City Manager | C6: =SUM(C7:C16) -> 1613825.13 | D6: =SUM(D7:D16) -> 27000 | E6: 0 | F6: 37445000.58 | G6: 850000 | H6: 850000 | I6: =SUM(I7:I16) -> 0 | J6: 0 | K6: 0 | L6: 0 | N6: =SUM(N7:N16) -> 0 | O6: 0 | P6: 0 | Q6: 0 | R6: 0 | S6: 0 | T6: 0 | U6: 0 | V6: =SUM(V7:V16) -> 0 | W6: =SUM(W7:W16) -> 0 | X6: =SUM(X7:X16) -> 0
A7: ='Org structure'!E3 -> 1.1 - Internal Audit and Compliance | C7: 0 | D7: 0 | F7: 37445000.58 | G7: 850000 | H7: 850000 | J7: =Q7+V7 -> 0 | K7: =U7+W7 -> 0 | L7: =X7 -> 0 | Q7: =SUM(N7:P7) -> 0 | U7: =SUM(R7:T7) -> 0
A8: ='Org structure'!E4 -> 1.2 - Office of the City Manager | C8: 1039942.75 | D8: 27000 | F8: 0 | J8: =Q8+V8 -> 0 | K8: =U8+W8 -> 0 | L8: =X8 -> 0 | Q8: =SUM(N8:P8) -> 0 | U8: =SUM(R8:T8) -> 0
A9: ='Org structure'!E5 -> 1.3 - Political Support | C9: 573882.38 | D9: 0 | F9: 0 | J9: =Q9+V9 -> 0 | K9: =U9+W9 -> 0 | L9: 0 | Q9: 0 | U9: 0
A10: ='Org structure'!E6 -> 1.4 - Strategic Planning | C10: 0 | D10: 0 | F10: 0 | J10: 0 | K10: 0 | L10: 0 | Q10: 0 | U10: 0
A11: ='Org structure'!E7 -> 0 | J11: 0 | K11: 0 | L11: =X11 -> 0 | Q11: 0 | U11: 0
A12: ='Org structure'!E8 -> 0 | J12: 0 | K12: 0 | L12: 0 | Q12: 0 | U12: 0
A13: ='Org structure'!E9 -> 0 | J13: 0 | K13: 0 | L13: 0 | Q13: 0 | U13: 0
A14: ='Org structure'!E10 -> 0 | J14: 0 | K14: 0 | L14: 0 | Q14: 0 | U14: 0
A15: ='Org structure'!E11 -> 0 | J15: 0 | K15: 0 | L15: 0 | Q15: 0 | U15: 0
A16: ='Org structure'!E12 -> 0 | J16: 0 | K16: 0 | L16: 0 | Q16: 0 | U16: 0
A17: ='Org structure'!A3 -> Vote 2 - City Finance | C17: =SUM(C18:C27) -> 4935541.48 | D17: =SUM(D18:D27) -> 9153029.53 | E17: 10485090.65 | F17: 25000000 | G17: 25000000 | H17: 25000000 | I17: =SUM(I18:I27) -> 0 | J17: 45000000 | K17: 45000000 | L17: 50000000 | N17: =SUM(N18:N27) -> 0 | O17: 0 | P17: 0 | Q17: 0 | R17: 0 | S17: 0 | T17: 0 | U17: 0 | V17: 45000000 | W17: 45000000 | X17: 50000000
A18: ='Org structure'!E14 -> 2.1 - Asset Management | C18: 0 | D18: 0 | E18: 4366889.48 | F18: 0 | J18: =Q18+V18 -> 0 | K18: =U18+W18 -> 0 | L18: =X18 -> 0 | Q18: =SUM(N18:P18) -> 0 | U18: 0
A19: ='Org structure'!E15 -> 2.2 - Budget and Treasury Management | C19: 1853747.03 | D19: 7990335.54 | E19: 6118201.17 | F19: 25000000 | G19: 25000000 | H19: 25000000 | J19: =Q19+V19 -> 45000000 | K19: =U19+W19 -> 45000000 | L19: 50000000 | Q19: 0 | U19: 0 | V19: 45000000 | W19: 45000000 | X19: 50000000
A20: ='Org structure'!E16 -> 2.3 - Expenditure Management | C20: 54550 | D20: 0 | F20: 0 | J20: 0 | K20: 0 | L20: 0 | Q20: 0 | U20: 0
A21: ='Org structure'!E17 -> 2.4 - Revenue Management | C21: 2528200 | D21: 1071543 | F21: 0 | J21: 0 | K21: =U21+W21 -> 0 | L21: 0 | Q21: 0 | U21: 0
A22: ='Org structure'!E18 -> 2.5 - Supply Chain Management | C22: 499044.45 | D22: 91150.99 | F22: 0 | J22: 0 | K22: 0 | L22: 0 | Q22: 0 | U22: 0
A23: ='Org structure'!E19 -> 0 | J23: 0 | K23: 0 | L23: 0 | Q23: 0 | U23: 0
A24: ='Org structure'!E20 -> 0 | J24: 0 | K24: 0 | L24: 0 | Q24: 0 | U24: 0
A25: ='Org structure'!E21 -> 0 | J25: 0 | K25: 0 | L25: 0 | Q25: 0 | U25: 0
A26: ='Org structure'!E22 -> 0 | J26: 0 | K26: 0 | L26: 0 | Q26: 0 | U26: 0
A27: ='Org structure'!E23 -> 0 | J27: 0 | K27: 0 | L27: 0 | Q27: 0 | U27: 0
A28: ='Org structure'!A4 -> Vote 3 - Corporate Services | C28: =SUM(C29:C38) -> 2272710.48 | D28: =SUM(D29:D38) -> 937669.79 | E28: 5071794.14 | F28: 6585000 | G28: 6835000 | H28: 6835000 | I28: =SUM(I29:I38) -> 0 | J28: 10000000 | K28: 10000000 | L28: 10000000 | N28: =SUM(N29:N38) -> 0 | O28: 0 | P28: 0 | Q28: 0 | R28: 0 | S28: 0 | T28: 0 | U28: 0 | V28: 10000000 | W28: 10000000 | X28: 10000000
A29: ='Org structure'!E25 -> Human Resources Management | C29: 1889731 | D29: 48708 | F29: 50000 | G29: 460000 | H29: 460000 | J29: =Q29+V29 -> 0 | K29: =U29+W29 -> 0 | L29: =X29 -> 0 | Q29: =SUM(N29:P29) -> 0 | U29: 0
A30: ='Org structure'!E26 -> Information Technology | C30: 0 | D30: 338683.39 | E30: 5071794.14 | F30: 6125000 | G30: 6125000 | H30: 6125000 | J30: 10000000 | K30: 10000000 | L30: 10000000 | Q30: 0 | U30: 0 | V30: 10000000 | W30: 10000000 | X30: 10000000
A31: ='Org structure'!E27 -> Legal Services | C31: 382979.48 | D31: 0 | F31: 0 | G31: 0 | H31: 0 | J31: 0 | K31: 0 | L31: 0 | Q31: 0 | U31: =SUM(R31:T31) -> 0
A32: ='Org structure'!E28 -> Secretariat and Auxiliary Services | C32: 0 | D32: 550278.4 | F32: 400000 | G32: 250000 | H32: 250000 | J32: 0 | K32: =U32+W32 -> 0 | L32: 0 | Q32: 0 | U32: 0
A33: ='Org structure'!E29 -> General Manager: Corporate Service | D33: 0 | F33: 10000 | G33: 0 | H33: 0 | J33: =Q33+V33 -> 0 | K33: 0 | L33: 0 | Q33: 0 | U33: 0
A34: ='Org structure'!E30 -> 0 | J34: 0 | K34: 0 | L34: 0 | Q34: 0 | U34: 0
A35: ='Org structure'!E31 -> 0 | J35: 0 | K35: 0 | L35: 0 | Q35: 0 | U35: 0
A36: ='Org structure'!E32 -> 0 | J36: 0 | K36: 0 | L36: 0 | Q36: 0 | U36: 0
A37: ='Org structure'!E33 -> 0 | J37: 0 | K37: 0 | L37: 0 | Q37: 0 | U37: 0
A38: ='Org structure'!E34 -> 0 | J38: 0 | K38: 0 | L38: 0 | Q38: 0 | U38: 0
A39: ='Org structure'!A5 -> Vote 4 - Community Services and Social Equity | C39: =SUM(C40:C49) -> 33154389.84 | D39: =SUM(D40:D49) -> 48934490.92 | E39: 70000485.02 | F39: 42142711.2 | G39: 34600680.08 | H39: 34600680.08 | I39: =SUM(I40:I49) -> 0 | J39: 34616720 | K39: 18493723.2 | L39: 18423346.59 | N39: =SUM(N40:N49) -> 0 | O39: 0 | P39: 0 | Q39: 0 | R39: 0 | S39: 0 | T39: 0 | U39: 0 | V39: 34616720 | W39: 18493723.2 | X39: 18423346.59
A40: ='Org structure'!E36 -> 4.1 - Area Based Management | C40: 790463.79 | D40: 1117272.3 | E40: 25704 | F40: 100000 | G40: 1000000 | H40: 1000000 | J40: =Q40+V40 -> 0 | K40: =U40+W40 -> 0 | L40: =X40 -> 0 | Q40: =SUM(N40:P40) -> 0 | U40: 0
A41: ='Org structure'!E37 -> 4.2 - Public Safety, Emergency Services and Enforcement | C41: 0 | D41: 31440.24 | E41: 962574.91 | F41: 1810000 | G41: 1810000 | H41: 1810000 | J41: 0 | K41: 0 | L41: 0 | Q41: 0 | U41: 0
A42: ='Org structure'!E38 -> 4.3 - Recreation and Facilities | C42: 17408776.8 | D42: 43245466.43 | E42: 43896257.07 | F42: 30232711.2 | G42: 21790680.08 | H42: 21790680.08 | J42: 34616720 | K42: 18493723.2 | L42: 18423346.59 | Q42: 0 | U42: 0 | V42: 34616720 | W42: 18493723.2 | X42: 18423346.59
A43: ='Org structure'!E39 -> 4.4 - Waste Management | C43: 14955149.25 | D43: 4540311.95 | E43: 25115949.04 | F43: 10000000 | G43: 10000000 | H43: 10000000 | J43: 0 | K43: 0 | L43: 0 | Q43: 0 | U43: 0
A44: ='Org structure'!E40 -> 4.5 - General Manager: Community Services | E44: 0 | J44: 0 | K44: 0 | L44: 0 | Q44: 0 | U44: 0
A45: ='Org structure'!E41 -> 0 | J45: 0 | K45: 0 | L45: 0 | Q45: 0 | U45: 0
A46: ='Org structure'!E42 -> 0 | J46: 0 | K46: 0 | L46: 0 | Q46: 0 | U46: 0
A47: ='Org structure'!E43 -> 0 | J47: 0 | K47: 0 | L47: 0 | Q47: 0 | U47: 0
A48: ='Org structure'!E44 -> 0 | J48: 0 | K48: 0 | L48: 0 | Q48: 0 | U48: 0
A49: ='Org structure'!E45 -> 0 | J49: 0 | K49: 0 | L49: 0 | Q49: 0 | U49: 0
A50: ='Org structure'!A6 -> Vote 5 - Infrastructure Services | C50: =SUM(C51:C60) -> 308960388.3 | D50: =SUM(D51:D60) -> 268923267.1 | E50: 291473827.5 | F50: 284463597.6 | G50: 349087786.9 | H50: 349087786.9 | I50: =SUM(I51:I60) -> 0 | J50: 346701440 | K50: 386016686.2 | L50: 408006319.1 | N50: =SUM(N51:N60) -> 0 | O50: 0 | P50: 0 | Q50: 0 | R50: 0 | S50: 0 | T50: 0 | U50: 0 | V50: 346701440 | W50: 386016686.2 | X50: 408006319.1
A51: ='Org structure'!E47 -> 5.1 - Project Management Office | C51: 12550 | D51: 0 | E51: 120220.32 | F51: 100000 | G51: 100000 | H51: 100000 | J51: =Q51+V51 -> 0 | K51: =U51+W51 -> 0 | L51: =X51 -> 0 | Q51: =SUM(N51:P51) -> 0 | U51: 0
A52: ='Org structure'!E48 -> 5.2 - Roads and Transportation | C52: 196574214.7 | D52: 153682616.3 | E52: 146322567.6 | F52: 110664463.2 | G52: 169031457.1 | H52: 169031457.1 | J52: 125584000 | K52: 140512200 | L52: 147217932 | Q52: 0 | U52: 0 | V52: 125584000 | W52: 140512200 | X52: 147217932
A53: ='Org structure'!E49 -> 5.3 - Water and Sanitation | C53: 112373623.6 | D53: 115240650.8 | E53: 145031039.6 | F53: 173699134.4 | G53: 179956329.8 | H53: 179956329.8 | J53: 221117440 | K53: 245504486.2 | L53: 260788387.1 | Q53: 0 | U53: 0 | V53: 221117440 | W53: 245504486.2 | X53: 260788387.1
A54: ='Org structure'!E50 -> 5.4 - General Manager: Infrastructure | C54: 0 | D54: 0 | F54: 0 | G54: 0 | J54: 0 | K54: 0 | L54: 0 | Q54: 0 | U54: 0
A55: ='Org structure'!E51 -> 0 | J55: 0 | K55: 0 | L55: 0 | Q55: 0 | U55: 0
A56: ='Org structure'!E52 -> 0 | J56: 0 | K56: 0 | L56: 0 | Q56: 0 | U56: 0
A57: ='Org structure'!E53 -> 0 | J57: 0 | K57: 0 | L57: 0 | Q57: 0 | U57: 0
A58: ='Org structure'!E54 -> 0 | J58: 0 | K58: 0 | L58: 0 | Q58: 0 | U58: 0
A59: ='Org structure'!E55 -> 0 | J59: 0 | K59: 0 | L59: 0 | Q59: 0 | U59: 0
A60: ='Org structure'!E56 -> 0 | J60: 0 | K60: 0 | L60: 0 | Q60: 0 | U60: 0
A61: ='Org structure'!A7 -> Vote 6 - Sustainable Development and City Enterprises | C61: =SUM(C62:C71) -> 51772460.63 | D61: =SUM(D62:D71) -> 133279407.1 | E61: 168625429.7 | F61: 153598529.7 | G61: 155161841.2 | H61: 155161841.2 | I61: =SUM(I62:I71) -> 0 | J61: 0 | K61: 0 | L61: 8000000 | N61: =SUM(N62:N71) -> 0 | O61: 0 | P61: 0 | Q61: 0 | R61: 0 | S61: 0 | T61: 0 | U61: 0 | V61: 0 | W61: 0 | X61: 8000000
A62: ='Org structure'!E58 -> 6.1 - City Entities | C62: 15005502.89 | D62: 3094804.23 | E62: 4097364.47 | F62: 2685000 | G62: 2685000 | H62: 2685000 | J62: =Q62+V62 -> 0 | K62: =U62+W62 -> 0 | L62: =X62 -> 0 | Q62: =SUM(N62:P62) -> 0 | U62: 0
A63: ='Org structure'!E59 -> 6.2 - Development Services | C63: 32992343.87 | D63: 31344443.97 | E63: 14390745.96 | F63: 22090000 | G63: 22090000 | H63: 22090000 | J63: 0 | K63: 0 | L63: 8000000 | Q63: 0 | U63: 0 | X63: 8000000
A64: ='Org structure'!E60 -> 6.3 - Human Settlement Development | C64: 1067854.9 | D64: 11746687.44 | E64: 71825343.19 | F64: 128823529.7 | G64: 117308223.2 | H64: 117308223.2 | J64: 0 | K64: 0 | L64: 0 | Q64: 0 | U64: 0
A65: ='Org structure'!E61 -> 6.4 - Town Planning | C65: 2706758.97 | D65: 87093471.42 | E65: 78311976.06 | F65: 0 | G65: 13078618 | H65: 13078618 | J65: 0 | K65: 0 | L65: 0 | Q65: 0 | U65: 0
A66: ='Org structure'!E62 -> 6.5 - General Manager: Sustainable Development and City Enterprises | D66: 0 | F66: 0 | J66: 0 | K66: 0 | L66: 0 | Q66: 0 | U66: 0
A67: ='Org structure'!E63 -> 0 | J67: 0 | K67: 0 | L67: 0 | Q67: 0 | U67: 0
A68: ='Org structure'!E64 -> 0 | J68: 0 | K68: 0 | L68: 0 | Q68: 0 | U68: 0
A69: ='Org structure'!E65 -> 0 | J69: 0 | K69: 0 | L69: 0 | Q69: 0 | U69: 0
A70: ='Org structure'!E66 -> 0 | J70: 0 | K70: 0 | L70: 0 | Q70: 0 | U70: 0
A71: ='Org structure'!E67 -> 0 | J71: 0 | K71: 0 | L71: 0 | Q71: 0 | U71: 0
A72: ='Org structure'!A8 -> Vote 7 - Electricity | C72: =SUM(C73:C82) -> 98800431.88 | D72: 71071450.3 | E72: 116839301.6 | F72: 237331051.4 | G72: 198157855.6 | H72: 198157855.6 | I72: 0 | J72: 181332761 | K72: 30246861.6 | L72: 31482673.3 | N72: =SUM(N73:N82) -> 0 | O72: 0 | P72: 0 | Q72: 0 | R72: 0 | S72: 0 | T72: 0 | U72: 0 | V72: 181332761 | W72: 30246861.6 | X72: 31482673.3
A73: ='Org structure'!E69 -> 7.1 Electricity planning | C73: 98800431.88 | D73: 65880810.79 | E73: 116432403.6 | F73: 229331051.4 | G73: 198157855.6 | H73: 198157855.6 | J73: =Q73+V73 -> 168832761 | K73: =U73+W73 -> 17746861.6 | L73: =X73 -> 18482673.3 | Q73: =SUM(N73:P73) -> 0 | U73: =SUM(R73:T73) -> 0 | V73: 168832761 | W73: 17746861.6 | X73: 18482673.3
A74: ='Org structure'!E70 -> 7.2 Methods and Standards | D74: 0 | E74: 0 | F74: 0 | J74: 0 | K74: 0 | L74: 0 | Q74: 0 | U74: 0
A75: ='Org structure'!E71 -> 7.3 Operations and Maintenance | D75: 0 | E75: 0 | F75: 0 | J75: 0 | K75: 0 | L75: 0 | Q75: 0 | U75: 0
A76: ='Org structure'!E72 -> 7.4 Revenue Management | D76: 5190639.51 | E76: 406898.05 | F76: 8000000 | J76: 12500000 | K76: 12500000 | L76: 13000000 | Q76: 0 | U76: 0 | V76: 12500000 | W76: 12500000 | X76: 13000000
A77: ='Org structure'!E73 -> 7.5 General Manager Electricity | D77: 0 | F77: 0 | J77: 0 | K77: 0 | L77: 0 | Q77: 0 | U77: 0
A78: ='Org structure'!E74 -> 0 | J78: 0 | K78: 0 | L78: 0 | Q78: 0 | U78: 0
A79: ='Org structure'!E75 -> 0 | J79: 0 | K79: 0 | L79: 0 | Q79: 0 | U79: 0
A80: ='Org structure'!E76 -> 0 | J80: 0 | K80: 0 | L80: 0 | Q80: 0 | U80: 0
A81: ='Org structure'!E77 -> 0 | J81: 0 | K81: 0 | L81: 0 | Q81: 0 | U81: 0
A82: ='Org structure'!E78 -> 0 | J82: 0 | K82: 0 | L82: 0 | Q82: 0 | U82: 0
A83: ='Org structure'!A9 -> Vote 8 - [NAME OF VOTE 8] | C83: =SUM(C84:C93) -> 0 | D83: 0 | E83: 0 | F83: 0 | G83: 0 | H83: 0 | I83: 0 | J83: 0 | K83: 0 | L83: 0 | N83: =SUM(N84:N93) -> 0 | O83: 0 | P83: 0 | Q83: 0 | R83: 0 | S83: 0 | T83: 0 | U83: 0 | V83: 0 | W83: 0 | X83: 0
A84: ='Org structure'!E80 -> 8.1 - [Name of sub-vote] | J84: =Q84+V84 -> 0 | K84: =U84+W84 -> 0 | L84: =X84 -> 0 | Q84: =SUM(N84:P84) -> 0 | U84: 0
A85: ='Org structure'!E81 -> 0 | J85: 0 | K85: 0 | L85: 0 | Q85: 0 | U85: 0
A86: ='Org structure'!E82 -> 0 | J86: 0 | K86: 0 | L86: 0 | Q86: 0 | U86: 0
A87: ='Org structure'!E83 -> 0 | J87: 0 | K87: 0 | L87: 0 | Q87: 0 | U87: 0
A88: ='Org structure'!E84 -> 0 | J88: 0 | K88: 0 | L88: 0 | Q88: 0 | U88: 0
A89: ='Org structure'!E85 -> 0 | J89: 0 | K89: 0 | L89: 0 | Q89: 0 | U89: 0
A90: ='Org structure'!E86 -> 0 | J90: 0 | K90: 0 | L90: 0 | Q90: 0 | U90: 0
A91: ='Org structure'!E87 -> 0 | J91: 0 | K91: 0 | L91: 0 | Q91: 0 | U91: 0
A92: ='Org structure'!E88 -> 0 | J92: 0 | K92: 0 | L92: 0 | Q92: 0 | U92: 0
A93: ='Org structure'!E89 -> 0 | J93: 0 | K93: 0 | L93: 0 | Q93: 0 | U93: 0
A94: ='Org structure'!A10 -> Vote 9 - [NAME OF VOTE 9] | C94: =SUM(C95:C104) -> 0 | D94: =SUM(D95:D104) -> 0 | E94: 0 | F94: 0 | G94: 0 | H94: 0 | I94: 0 | J94: 0 | K94: 0 | L94: 0 | N94: =SUM(N95:N104) -> 0 | O94: 0 | P94: 0 | Q94: 0 | R94: 0 | S94: 0 | T94: 0 | U94: 0 | V94: 0 | W94: 0 | X94: 0
A95: ='Org structure'!E91 -> 9.1 - [Name of sub-vote] | J95: =Q95+V95 -> 0 | K95: =U95+W95 -> 0 | L95: =X95 -> 0 | Q95: =SUM(N95:P95) -> 0 | U95: 0
A96: ='Org structure'!E92 -> 0 | J96: 0 | K96: 0 | L96: 0 | Q96: 0 | U96: 0
A97: ='Org structure'!E93 -> 0 | J97: 0 | K97: 0 | L97: 0 | Q97: 0 | U97: 0
A98: ='Org structure'!E94 -> 0 | J98: 0 | K98: 0 | L98: 0 | Q98: 0 | U98: 0
A99: ='Org structure'!E95 -> 0 | J99: 0 | K99: 0 | L99: 0 | Q99: 0 | U99: 0
A100: ='Org structure'!E96 -> 0 | J100: 0 | K100: 0 | L100: 0 | Q100: 0 | U100: 0
A101: ='Org structure'!E97 -> 0 | J101: 0 | K101: 0 | L101: 0 | Q101: 0 | U101: 0
A102: ='Org structure'!E98 -> 0 | J102: 0 | K102: 0 | L102: 0 | Q102: 0 | U102: 0
A103: ='Org structure'!E99 -> 0 | J103: 0 | K103: 0 | L103: 0 | Q103: 0 | U103: 0
A104: ='Org structure'!E100 -> 0 | J104: 0 | K104: 0 | L104: 0 | Q104: 0 | U104: 0
A105: ='Org structure'!A11 -> Vote 10 - [NAME OF VOTE 10] | C105: =SUM(C106:C115) -> 0 | D105: =SUM(D106:D115) -> 0 | E105: 0 | F105: 0 | G105: 0 | H105: 0 | I105: 0 | J105: 0 | K105: 0 | L105: 0 | N105: =SUM(N106:N115) -> 0 | O105: 0 | P105: 0 | Q105: 0 | R105: 0 | S105: 0 | T105: 0 | U105: 0 | V105: 0 | W105: 0 | X105: 0
A106: ='Org structure'!E102 -> 10.1 - [Name of sub-vote] | J106: =Q106+V106 -> 0 | K106: =U106+W106 -> 0 | L106: =X106 -> 0 | Q106: =SUM(N106:P106) -> 0 | U106: 0
A107: ='Org structure'!E103 -> 0 | J107: 0 | K107: 0 | L107: 0 | Q107: 0 | U107: 0
A108: ='Org structure'!E104 -> 0 | J108: 0 | K108: 0 | L108: 0 | Q108: 0 | U108: 0
A109: ='Org structure'!E105 -> 0 | J109: 0 | K109: 0 | L109: 0 | Q109: 0 | U109: 0
A110: ='Org structure'!E106 -> 0 | J110: 0 | K110: 0 | L110: 0 | Q110: 0 | U110: 0
A111: ='Org structure'!E107 -> 0 | J111: 0 | K111: 0 | L111: 0 | Q111: 0 | U111: 0
A112: ='Org structure'!E108 -> 0 | J112: 0 | K112: 0 | L112: 0 | Q112: 0 | U112: 0
A113: ='Org structure'!E109 -> 0 | J113: 0 | K113: 0 | L113: 0 | Q113: 0 | U113: 0
A114: ='Org structure'!E110 -> 0 | J114: 0 | K114: 0 | L114: 0 | Q114: 0 | U114: 0
A115: ='Org structure'!E111 -> 0 | J115: 0 | K115: 0 | L115: 0 | Q115: 0 | U115: 0
A116: ='Org structure'!A12 -> Vote 11 - [NAME OF VOTE 11] | C116: =SUM(C117:C126) -> 0 | D116: 0 | E116: 0 | F116: 0 | G116: 0 | H116: 0 | I116: 0 | J116: 0 | K116: 0 | L116: 0 | N116: =SUM(N117:N126) -> 0 | O116: 0 | P116: 0 | Q116: 0 | R116: 0 | S116: 0 | T116: 0 | U116: 0 | V116: 0 | W116: 0 | X116: 0
A117: ='Org structure'!E113 -> 11.1 - [Name of sub-vote] | J117: =Q117+V117 -> 0 | K117: =U117+W117 -> 0 | L117: =X117 -> 0 | Q117: =SUM(N117:P117) -> 0 | U117: 0
A118: ='Org structure'!E114 -> 0 | J118: 0 | K118: 0 | L118: 0 | Q118: 0 | U118: 0
A119: ='Org structure'!E115 -> 0 | J119: 0 | K119: 0 | L119: 0 | Q119: 0 | U119: 0
A120: ='Org structure'!E116 -> 0 | J120: 0 | K120: 0 | L120: 0 | Q120: 0 | U120: 0
A121: ='Org structure'!E117 -> 0 | J121: 0 | K121: 0 | L121: 0 | Q121: 0 | U121: 0
A122: ='Org structure'!E118 -> 0 | J122: 0 | K122: 0 | L122: 0 | Q122: 0 | U122: 0
A123: ='Org structure'!E119 -> 0 | J123: 0 | K123: 0 | L123: 0 | Q123: 0 | U123: 0
A124: ='Org structure'!E120 -> 0 | J124: 0 | K124: 0 | L124: 0 | Q124: 0 | U124: 0
A125: ='Org structure'!E121 -> 0 | J125: 0 | K125: 0 | L125: 0 | Q125: 0 | U125: 0
A126: ='Org structure'!E122 -> 0 | J126: 0 | K126: 0 | L126: 0 | Q126: 0 | U126: 0
A127: ='Org structure'!A13 -> Vote 12 - [NAME OF VOTE 12] | C127: =SUM(C128:C137) -> 0 | D127: 0 | E127: 0 | F127: 0 | G127: 0 | H127: 0 | I127: 0 | J127: 0 | K127: 0 | L127: 0 | N127: =SUM(N128:N137) -> 0 | O127: 0 | P127: 0 | Q127: 0 | R127: 0 | S127: 0 | T127: 0 | U127: 0 | V127: 0 | W127: 0 | X127: 0
A128: ='Org structure'!E124 -> 12.1 - [Name of sub-vote] | J128: =Q128+V128 -> 0 | K128: =U128+W128 -> 0 | L128: =X128 -> 0 | Q128: =SUM(N128:P128) -> 0 | U128: 0
A129: ='Org structure'!E125 -> 0 | J129: 0 | K129: 0 | L129: 0 | Q129: 0 | U129: 0
A130: ='Org structure'!E126 -> 0 | J130: 0 | K130: 0 | L130: 0 | Q130: 0 | U130: 0
A131: ='Org structure'!E127 -> 0 | J131: 0 | K131: 0 | L131: 0 | Q131: 0 | U131: 0
A132: ='Org structure'!E128 -> 0 | J132: 0 | K132: 0 | L132: 0 | Q132: 0 | U132: 0
A133: ='Org structure'!E129 -> 0 | J133: =Q133+V133 -> 0 | K133: 0 | L133: 0 | Q133: 0 | U133: 0
A134: ='Org structure'!E130 -> 0 | J134: 0 | K134: 0 | L134: 0 | Q134: 0 | U134: 0
A135: ='Org structure'!E131 -> 0 | J135: 0 | K135: 0 | L135: 0 | Q135: 0 | U135: 0
A136: ='Org structure'!E132 -> 0 | J136: 0 | K136: 0 | L136: 0 | Q136: 0 | U136: =SUM(R136:T136) -> 0
A137: ='Org structure'!E133 -> 0 | J137: 0 | K137: 0 | L137: 0 | Q137: 0 | U137: 0
A138: ='Org structure'!A14 -> Vote 13 - [NAME OF VOTE 13] | C138: =SUM(C139:C148) -> 0 | D138: 0 | E138: 0 | F138: 0 | G138: 0 | H138: 0 | I138: 0 | J138: 0 | K138: 0 | L138: 0 | N138: =SUM(N139:N148) -> 0 | O138: 0 | P138: 0 | Q138: 0 | R138: 0 | S138: 0 | T138: 0 | U138: 0 | V138: 0 | W138: 0 | X138: 0
A139: ='Org structure'!E135 -> 13.1 - [Name of sub-vote] | J139: =Q139+V139 -> 0 | K139: =U139+W139 -> 0 | L139: =X139 -> 0 | Q139: =SUM(N139:P139) -> 0 | U139: 0
A140: ='Org structure'!E136 -> 0 | J140: 0 | K140: 0 | L140: 0 | Q140: 0 | U140: 0
A141: ='Org structure'!E137 -> 0 | J141: 0 | K141: 0 | L141: 0 | Q141: 0 | U141: 0
A142: ='Org structure'!E138 -> 0 | J142: 0 | K142: 0 | L142: 0 | Q142: 0 | U142: 0
A143: ='Org structure'!E139 -> 0 | J143: 0 | K143: 0 | L143: 0 | Q143: 0 | U143: 0
A144: ='Org structure'!E140 -> 0 | J144: 0 | K144: 0 | L144: 0 | Q144: 0 | U144: 0
A145: ='Org structure'!E141 -> 0 | J145: 0 | K145: 0 | L145: 0 | Q145: 0 | U145: 0
A146: ='Org structure'!E142 -> 0 | J146: 0 | K146: 0 | L146: 0 | Q146: 0 | U146: 0
A147: ='Org structure'!E143 -> 0 | J147: 0 | K147: 0 | L147: 0 | Q147: 0 | U147: 0
A148: ='Org structure'!E144 -> 0 | J148: 0 | K148: 0 | L148: 0 | Q148: 0 | U148: 0
A149: ='Org structure'!A15 -> Vote 14 - [NAME OF VOTE 14] | C149: =SUM(C150:C159) -> 0 | D149: 0 | E149: 0 | F149: 0 | G149: 0 | H149: 0 | I149: 0 | J149: 0 | K149: 0 | L149: 0 | N149: =SUM(N150:N159) -> 0 | O149: 0 | P149: 0 | Q149: 0 | R149: 0 | S149: 0 | T149: 0 | U149: 0 | V149: 0 | W149: 0 | X149: 0
A150: ='Org structure'!E146 -> 14.1 - [Name of sub-vote] | J150: =Q150+V150 -> 0 | K150: =U150+W150 -> 0 | L150: =X150 -> 0 | Q150: =SUM(N150:P150) -> 0 | U150: 0
A151: ='Org structure'!E147 -> 0 | J151: 0 | K151: 0 | L151: 0 | Q151: 0 | U151: 0
A152: ='Org structure'!E148 -> 0 | J152: 0 | K152: 0 | L152: 0 | Q152: 0 | U152: 0
A153: ='Org structure'!E149 -> 0 | J153: 0 | K153: 0 | L153: 0 | Q153: 0 | U153: 0
A154: ='Org structure'!E150 -> 0 | J154: 0 | K154: 0 | L154: 0 | Q154: 0 | U154: 0
A155: ='Org structure'!E151 -> 0 | J155: 0 | K155: 0 | L155: 0 | Q155: 0 | U155: 0
A156: ='Org structure'!E152 -> 0 | J156: 0 | K156: 0 | L156: 0 | Q156: 0 | U156: 0
A157: ='Org structure'!E153 -> 0 | J157: 0 | K157: 0 | L157: 0 | Q157: 0 | U157: 0
A158: ='Org structure'!E154 -> 0 | J158: 0 | K158: 0 | L158: 0 | Q158: 0 | U158: 0
A159: ='Org structure'!E155 -> 0 | J159: 0 | K159: 0 | L159: 0 | Q159: 0 | U159: 0
A160: ='Org structure'!A16 -> Vote 15 - [NAME OF VOTE 15] | C160: =SUM(C161:C170) -> 0 | D160: 0 | E160: 0 | F160: 0 | G160: 0 | H160: 0 | I160: 0 | J160: 0 | K160: 0 | L160: 0 | N160: =SUM(N161:N170) -> 0 | O160: 0 | P160: 0 | Q160: 0 | R160: 0 | S160: 0 | T160: 0 | U160: 0 | V160: 0 | W160: 0 | X160: 0
A161: ='Org structure'!E157 -> 15.1 - [Name of sub-vote] | J161: =Q161+V161 -> 0 | K161: =U161+W161 -> 0 | L161: =X161 -> 0 | Q161: =SUM(N161:P161) -> 0 | U161: 0
A162: ='Org structure'!E158 -> 0 | J162: 0 | K162: 0 | L162: 0 | Q162: 0 | U162: 0
A163: ='Org structure'!E159 -> 0 | J163: 0 | K163: 0 | L163: 0 | Q163: 0 | U163: 0
A164: ='Org structure'!E160 -> 0 | J164: 0 | K164: 0 | L164: 0 | Q164: 0 | U164: 0
A165: ='Org structure'!E161 -> 0 | J165: 0 | K165: 0 | L165: 0 | Q165: 0 | U165: 0
A166: ='Org structure'!E162 -> 0 | J166: 0 | K166: 0 | L166: 0 | Q166: 0 | U166: 0
A167: ='Org structure'!E163 -> 0 | J167: 0 | K167: 0 | L167: 0 | Q167: 0 | U167: 0
A168: ='Org structure'!E164 -> 0 | J168: 0 | K168: 0 | L168: 0 | Q168: 0 | U168: 0
A169: ='Org structure'!E165 -> 0 | J169: 0 | K169: 0 | L169: 0 | Q169: 0 | U169: 0
A170: ='Org structure'!E166 -> 0 | J170: 0 | K170: 0 | L170: 0 | Q170: 0 | U170: 0
A171: Capital multi-year expenditure sub-total | C171: =C6+C17+C28+C39+C50+C61+C72+C83+C94+C105+C116+C127+C138+C149+C160 -> 501509747.7 | D171: =D6+D17+D28+D39+D50+D61+D72+D83+D94+D105+D116+D127+D138+D149+D160 -> 532326314.7 | E171: 662495928.6 | F171: 786565890.4 | G171: 769693163.8 | H171: 769693163.8 | I171: 0 | J171: 617650921 | K171: 489757271 | L171: 525912339 | N171: =N6+N17+N28+N39+N50+N61+N72+N83+N94+N105+N116+N127+N138+N149+N160 -> 0 | O171: 0 | P171: 0 | Q171: 0 | R171: 0 | S171: 0 | U171: 0 | V171: =V6+V17+V28+V39+V50+V61+V72+V83+V94+V105+V116+V127+V138+V149+V160 -> 617650921 | W171: =W6+W17+W28+W39+W50+W61+W72+W83+W94+W105+W116+W127+W138+W149+W160 -> 489757271 | X171: =X6+X17+X28+X39+X50+X61+X72+X83+X94+X105+X116+X127+X138+X149+X160 -> 525912339
A173: Capital expenditure - Municipal Vote
A174: Single-year expenditure appropriation | B174: 2
A175: =A6 -> Vote 1 - City Manager | C175: =SUM(C176:C185) -> 2151205.01 | D175: 943953.22 | E175: 6002904.91 | F175: 5000000 | G175: 6400000 | H175: 6400000 | I175: 0 | J175: 0 | K175: 0 | L175: 0
A176: =A7 -> 1.1 - Internal Audit and Compliance | C176: 0 | D176: 0 | E176: 0
A177: 1.2 - Office of the City Manager | C177: 71499.7 | D177: 194295.18 | E177: 2847260.22 | F177: 5000000 | G177: 6400000 | H177: 6400000
A178: 1.3 - Political Support | C178: 1040623.62 | D178: 749658.04 | E178: 3155644.69
A179: 1.4 - Strategic Planning | C179: 1039081.69 | D179: 0 | E179: 0
A180: 0
A181: 0
A182: 0
A183: 0
A184: 0
A185: 0
A186: Vote 2 - City Finance | C186: =SUM(C187:C196) -> 6344857.33 | D186: 3084194.22 | E186: 5570959.24 | F186: 0 | G186: 1300000 | H186: 1300000 | I186: 0 | J186: 0 | K186: 0 | L186: 0
A187: 2.1 - Asset Management | C187: 4381677.9 | D187: 2497739.82
A188: 2.2 - Budget and Treasury Management | C188: 622883.85 | D188: 0 | G188: 1300000 | H188: 1300000
A189: 2.3 - Expenditure Management | C189: 0 | D189: 49674.91
A190: 2.4 - Revenue Management | C190: 1059984.98 | D190: 0 | E190: 97500
A191: 2.5 - Supply Chain Management | C191: 280310.6 | D191: 536779.49 | E191: 5473459.24
A192: 0
A193: 0
A194: 0
A195: 0
A196: 0
A197: Vote 3 - Corporate Services | C197: =SUM(C198:C207) -> 2270139.63 | D197: 3796496.82 | E197: 15256416.64 | F197: 7615000 | G197: 11870822 | H197: 11870822 | I197: 0 | J197: 0 | K197: 0 | L197: 0
A198: Human Resources Management | C198: 2124468.49 | D198: 0 | F198: 60000 | G198: 60000 | H198: 60000
A199: Information Technology | C199: 15697.5 | D199: 2630224.82 | E199: 15256416.64 | F199: 7425000 | G199: 11770822 | H199: 11770822
A200: Legal Services | C200: 95276 | D200: 0 | F200: 0 | G200: 0 | H200: 0
A201: Secretariat and Auxiliary Services | C201: 34697.64 | D201: 1166272 | F201: 40000 | G201: 40000 | H201: 40000
... 140 more rows

Sheet A6-FinPos
A1: =muni&" - "&Approve6 -> Choose name from list - Table A6 Budgeted Financial Position
A2: =desc -> Description | B2: =head27 -> Ref | C2: =head1b -> 2021/22 | D2: =head1A -> 2022/23 | E2: =Head1 -> 2023/24 | F2: =Head2 -> Current Year 2024/25 | J2: =Head3 -> 2025/26 Medium Term Revenue & Expenditure Framework
A3: R thousand | C3: =Head5 -> Audited Outcome | D3: =Head5 -> Audited Outcome | E3: =Head5 -> Audited Outcome | F3: =Head6 -> Original Budget | G3: =Head7 -> Adjusted Budget | H3: =Head8 -> Full Year Forecast | I3: =Head5b -> Pre-audit outcome | J3: =Head9 -> Budget Year 2025/26 | K3: =Head10 -> Budget Year +1 2026/27 | L3: =Head11 -> Budget Year +2 2027/28
A4: ASSETS
A5: Current assets
A6: Cash and cash equivalents | C6: 290433199 | D6: 515708363 | E6: 495992735 | F6: 213140337 | G6: 372823656 | H6: 374180638 | I6: -666355195 | J6: 400170595.5 | K6: 396979401 | L6: 404944406
A7: Trade and other receivables from exchange transactions | B7: 1 | C7: ='SA3'!C20 -> 1792394265 | D7: ='SA3'!D20 -> 2233301100 | E7: ='SA3'!E20 -> 737163991 | F7: ='SA3'!F20 -> 2649261960 | G7: ='SA3'!G20 -> 2649261960 | H7: ='SA3'!H20 -> 2649261960 | I7: ='SA3'!I20 -> 588056119 | J7: ='SA3'!J20 -> 1677176747 | K7: ='SA3'!K20 -> 1758178167 | L7: ='SA3'!L20 -> 1843095549
A8: Receivables from non-exchange transactions | B8: 1 | C8: ='SA3'!C29 -> 624384115 | D8: ='SA3'!D29 -> 765103880 | E8: ='SA3'!E29 -> 277660390 | F8: ='SA3'!F29 -> 811010113 | G8: ='SA3'!G29 -> 811010113 | H8: ='SA3'!H29 -> 811010113 | I8: ='SA3'!I29 -> 235086740 | J8: ='SA3'!J29 -> 467187807 | K8: ='SA3'!K29 -> 488211258 | L8: ='SA3'!L29 -> 506222656
A9: Current portion of non-current receivables | C9: 608037071 | D9: 341385933 | E9: 277804751 | I9: 235086740 | J9: 28684 | K9: 29975 | L9: 31324
A10: Inventory | B10: 2 | C10: ='SA3'!C132 -> 737550566 | D10: ='SA3'!D132 -> 1469618707 | E10: ='SA3'!E132 -> 2344649941 | F10: ='SA3'!F132 -> 2732618936 | G10: ='SA3'!G132 -> 2802440314 | H10: ='SA3'!H132 -> 2802440314 | I10: ='SA3'!I132 -> 2290499509 | J10: ='SA3'!J132 -> 498280564 | K10: ='SA3'!K132 -> 520703190 | L10: ='SA3'!L132 -> 544134834
A11: VAT | D11: 361767859 | E11: 488561056 | I11: 175103571
A12: Other current assets | C12: 32672509 | D12: 24540578 | E12: 23587173 | F12: 2500 | H12: 2500 | I12: 976307 | J12: 944728 | K12: 987128 | L12: 1031437
A13: Total current assets | C13: =SUM(C6:C12) -> 4085471725 | D13: =SUM(D6:D12) -> 5711426420 | E13: 4645420037 | F13: 6406033846 | G13: 6635536043 | H13: 6636895525 | I13: 2858453791 | J13: 3043789126 | K13: 3165089119 | L13: 3299460206
A14: Non current assets
A15: Investments
A16: Investment property | C16: 923509345 | D16: 952772121 | E16: 922391726 | F16: 974255980.8 | G16: 974255980.8 | H16: 974255980.8 | J16: 922391726 | K16: 963899354 | L16: 1007274825
A17: Property, plant and equipment | B17: 3 | C17: ='SA3'!C138 -> 17253419554 | D17: ='SA3'!D138 -> 18537059747 | E17: ='SA3'!E138 -> 18847954448 | F17: ='SA3'!F138 -> 8761935354 | G17: ='SA3'!G138 -> 8754736642 | H17: ='SA3'!H138 -> 8761902258 | I17: ='SA3'!I138 -> 0 | J17: ='SA3'!J138 -> 7884987594 | K17: ='SA3'!K138 -> 8103664293 | L17: ='SA3'!L138 -> 8480688588
A18: Biological assets | F18: 80958443.4 | G18: 80958443.4 | H18: 80958443.4 | J18: 83234407 | K18: 86979955 | L18: 90894054
A19: Living and non-living resources | C19: 696179 | D19: 575890 | E19: 534407 | F19: 0 | G19: 0 | H19: 0 | J19: 0
A20: Heritage assets | C20: 273093520 | D20: 326039684 | E20: 323519929 | F20: 291269523.1 | G20: 291269523.1 | H20: 291269523.1 | J20: 323519929 | K20: 338078328 | L20: 353291848
A21: Intangible assets | C21: 20954448 | D21: 23913257 | E21: 24753127 | F21: 25766052 | G21: 26566052 | H21: 26566052 | J21: 24753126 | K21: 25867017 | L21: 27031032
A22: Trade and other receivables from exchange transactions
A23: Non-current receivables from non-exchange transactions
A24: Other non-current assets | C24: 80200000 | D24: 76120000 | E24: 82700000
A25: Total non current assets | C25: =SUM(C15:C24) -> 18551873046 | D25: =SUM(D15:D24) -> 19916480699 | E25: 20201853637 | F25: 1.013418535e+10 | G25: 1.012778664e+10 | H25: 1.013495226e+10 | I25: 0 | J25: 9238886782 | K25: 9518488947 | L25: 9959180347
A26: TOTAL ASSETS | C26: =C13+C25 -> 22637344771 | D26: =D13+D25 -> 25627907119 | E26: =E13+E25 -> 24847273674 | F26: =F13+F25 -> 1.65402192e+10 | G26: 1.676332268e+10 | H26: 1.677184778e+10 | I26: 2858453791 | J26: 1.228267591e+10 | K26: 12683578066 | L26: 13258640553
A27: LIABILITIES
A28: Current liabilities
A29: Bank overdraft
A30: Financial liabilities | C30: ='SA3'!C144 -> 79162900 | D30: ='SA3'!D144 -> 74270955 | E30: ='SA3'!E144 -> 50311361 | F30: ='SA3'!F144 -> -11272788 | G30: ='SA3'!G144 -> 28727212 | H30: ='SA3'!H144 -> 28727212 | I30: ='SA3'!I144 -> 0 | J30: ='SA3'!J144 -> 76586310 | K30: ='SA3'!K144 -> 84082694 | L30: ='SA3'!L144 -> 91916416
A31: Consumer deposits | C31: 132962378 | D31: 142078762 | E31: 152248286 | F31: 150719178.2 | G31: 150719178.2 | H31: 150719178.2 | J31: 152357428 | K31: 159213511 | L31: 166378120
A32: Trade and other payables from exchange transactions | B32: 4 | C32: 1930953555 | D32: 2515287170 | E32: 2279618355 | F32: 1714269734 | G32: 1713733896 | H32: 1714269734 | J32: 1715426769 | K32: 1665441769 | L32: 1665461769
A33: Trade and other payables from non-exchange transactions | B33: 5 | C33: 20091631 | D33: 15568203 | E33: 12566995 | F33: 0 | G33: 0 | H33: 0 | J33: 0 | K33: 0 | L33: 0
A34: Provision | C34: 8656363 | D34: 10029552 | E34: 6108374 | F34: 62936725.49 | G34: 61739437.12 | H34: 62936725.49 | J34: 53143375 | K34: 55534827 | L34: 58033895
A35: VAT | C35: 178088885 | F35: 457746833.1 | G35: 457746833.1 | H35: 457746833.1 | J35: 162137445 | K35: 169433630 | L35: 177058143
A36: Other current liabilities | C36: 177613526 | D36: 226421085 | E36: 236566604 | J36: 0 | K36: 0 | L36: 0
A37: Total current liabilities | C37: =SUM(C29:C36) -> 2527529238 | D37: =SUM(D29:D36) -> 2983655727 | E37: 2737419975 | F37: 2374399683 | G37: 2412666556 | H37: 2414399683 | I37: 0 | J37: 2159651327 | K37: 2133706431 | L37: 2158848343
A38: Non current liabilities
A39: Financial liabilities | B39: 6 | C39: ='SA3'!C156 -> 124581612 | D39: ='SA3'!D156 -> 50310655 | E39: ='SA3'!E156 -> 116274950 | F39: ='SA3'!F156 -> 559919194 | G39: ='SA3'!G156 -> 559919194 | H39: ='SA3'!H156 -> 559919194 | I39: ='SA3'!I156 -> 0 | J39: ='SA3'!J156 -> 0 | K39: ='SA3'!K156 -> 0 | L39: ='SA3'!L156 -> 0
A40: Provision | B40: 7 | C40: ='SA3'!C170 -> 650433708 | D40: ='SA3'!D170 -> 608163173 | E40: ='SA3'!E170 -> 616855093 | F40: ='SA3'!F170 -> 663566830 | G40: ='SA3'!G170 -> 663566830 | H40: ='SA3'!H170 -> 663566830 | I40: ='SA3'!I170 -> 0 | J40: ='SA3'!J170 -> 117456093 | K40: ='SA3'!K170 -> 122741617 | L40: ='SA3'!L170 -> 128264990
A41: Long term portion of trade payables | C41: ='SA3'!C158 -> 0 | D41: ='SA3'!D158 -> 0 | E41: ='SA3'!E158 -> 925331133 | F41: ='SA3'!F158 -> 0 | G41: ='SA3'!G158 -> 0 | H41: ='SA3'!H158 -> 0 | I41: ='SA3'!I158 -> 0 | J41: ='SA3'!J158 -> 2796913885 | K41: ='SA3'!K158 -> 2922775010 | L41: ='SA3'!L158 -> 3054299885
A42: Other non-current liabilities | D42: 545988000 | E42: 572205000 | F42: 583456000 | G42: 583456000 | H42: 583456000 | J42: 499399000 | K42: 521871955 | L42: 545356193
A43: Total non current liabilities | C43: =SUM(C39:C42) -> 775015320 | D43: =SUM(D39:D42) -> 1204461828 | E43: 2230666176 | F43: 1806942024 | G43: 1806942024 | H43: 1806942024 | I43: 0 | J43: 3413768978 | K43: 3567388582 | L43: 3727921068
A44: TOTAL LIABILITIES | C44: =C37+C43 -> 3302544558 | D44: =D37+D43 -> 4188117555 | E44: =E37+E43 -> 4968086151 | F44: =F37+F43 -> 4181341707 | G44: 4219608580 | H44: 4221341707 | I44: 0 | J44: 5573420305 | K44: =K37+K43 -> 5701095013 | L44: 5886769411
A45: NET ASSETS | C45: =C26-C44 -> 19334800213 | D45: 21439789564 | E45: 19879187523 | F45: 1.235887749e+10 | G45: 1.25437141e+10 | H45: 1.255050608e+10 | I45: 2858453791 | J45: 6709255602 | K45: 6982483053 | L45: 7371871142
A46: COMMUNITY WEALTH/EQUITY
A47: Accumulated surplus/(deficit) | B47: 8 | C47: 7824587047 | D47: 7460801385 | E47: 6511351194 | F47: 1.065216758e+10 | G47: 1.095696985e+10 | H47: 1.096376182e+10 | J47: 6709255599 | K47: 6982483053 | L47: 7371871141
A48: Reserves and funds | B48: 9 | C48: ='SA3'!C189 -> 235412520 | D48: ='SA3'!D189 -> 250168182 | E48: ='SA3'!E189 -> 252923788 | F48: ='SA3'!F189 -> 0 | G48: ='SA3'!G189 -> 0 | H48: ='SA3'!H189 -> 0 | I48: ='SA3'!I189 -> -1468968 | J48: ='SA3'!J189 -> 0 | K48: ='SA3'!K189 -> 0 | L48: ='SA3'!L189 -> 0
A49: Other
A50: TOTAL COMMUNITY WEALTH/EQUITY | B50: 10 | C50: =SUM(C47:C49) -> 8059999567 | D50: =SUM(D47:D49) -> 7710969567 | E50: 6764274982 | F50: 1.065216758e+10 | G50: 1.095696985e+10 | H50: 1.096376182e+10 | I50: -1468968 | J50: 6709255599 | K50: 6982483053 | L50: 7371871141
A51: =head27a -> References
A52: 1. Detail breakdown in Table SA3 for Trade receivables from Exchange and Non-exchange transactions
A53: 2. Include completed low cost housing to be transferred to beneficiaries within 12 months detail provided in Table SA3
A54: 3. Include 'Construction-work-in-progress' (disclosed separately in annual financial statements) detail in SA3
A55: 4. Detail breakdown in Table SA3.
A56: 5. Detail breakdown in Table SA3.
A57: 6. Detail breakdown in Table SA3.
A58: 7 Detail breakdown in Table SA3.
A59: 8. Detail breakdown in Table SA3.
A60: 9. Detail breakdown in Table SA3. Includes reserves to be funded by statute.
A61: 10. Net assets must balance with Total Community Wealth/Equity

Sheet A6 Inventory (hidden)
A2: Store Type | B2: Classification | C2: =head1b -> 2021/22 | D2: =head1A -> 2022/23 | E2: =Head1 -> 2023/24 | F2: =Head2 -> Current Year 2024/25 | J2: =Head3 -> 2025/26 Medium Term Revenue & Expenditure Framework
A3: R thousands | C3: =Head5 -> Audited Outcome | D3: =Head5 -> Audited Outcome | E3: =Head5 -> Audited Outcome | F3: =Head6 -> Original Budget | G3: =Head7 -> Adjusted Budget | H3: =Head8 -> Full Year Forecast | I3: =Head5b -> Pre-audit outcome | J3: =Head9 -> Budget Year 2025/26 | K3: =Head10 -> Budget Year +1 2026/27 | L3: =Head11 -> Budget Year +2 2027/28
A4: Agricultural | B4: Opening balance - Agricultural | C4: ='SA3'!C66 -> 0 | D4: ='SA3'!D66 -> 0 | E4: ='SA3'!E66 -> 0 | F4: ='SA3'!F66 -> 0 | G4: ='SA3'!G66 -> 0 | H4: ='SA3'!H66 -> 0 | I4: ='SA3'!I66 -> 0 | J4: ='SA3'!J66 -> -88517052 | K4: ='SA3'!K66 -> 2472736 | L4: ='SA3'!L66 -> 2584009
B5: Acquisitions - Agricultural | C5: ='SA3'!C67 -> 33620158 | D5: ='SA3'!D67 -> 54896894 | E5: ='SA3'!E67 -> 54949691 | F5: ='SA3'!F67 -> 0 | G5: ='SA3'!G67 -> 0 | H5: ='SA3'!H67 -> 0 | I5: ='SA3'!I67 -> 0 | J5: ='SA3'!J67 -> 0 | K5: ='SA3'!K67 -> 0 | L5: ='SA3'!L67 -> 0
B6: Adjustments - Agricultural | C6: ='SA3'!C68 -> 0 | D6: ='SA3'!D68 -> 0 | E6: ='SA3'!E68 -> 0 | F6: ='SA3'!F68 -> 0 | G6: ='SA3'!G68 -> 0 | H6: ='SA3'!H68 -> 0 | I6: ='SA3'!I68 -> 0 | J6: ='SA3'!J68 -> 0 | K6: ='SA3'!K68 -> 0 | L6: ='SA3'!L68 -> 0
B7: Issues - Agricultural | C7: ='SA3'!C69 -> 0 | D7: ='SA3'!D69 -> 0 | E7: ='SA3'!E69 -> 0 | F7: ='SA3'!F69 -> 0 | G7: ='SA3'!G69 -> 0 | H7: ='SA3'!H69 -> 0 | I7: ='SA3'!I69 -> 0 | J7: ='SA3'!J69 -> 0 | K7: ='SA3'!K69 -> 0 | L7: ='SA3'!L69 -> 0
B8: Write Off - Agricultural | C8: ='SA3'!C70 -> 0 | D8: ='SA3'!D70 -> 0 | E8: ='SA3'!E70 -> 0 | F8: ='SA3'!F70 -> 0 | G8: ='SA3'!G70 -> 0 | H8: ='SA3'!H70 -> 0 | I8: ='SA3'!I70 -> 0 | J8: ='SA3'!J70 -> 0 | K8: ='SA3'!K70 -> 0 | L8: ='SA3'!L70 -> 0
B9: Correction of Prior period errors - Agricultural | C9: ='SA3'!C71 -> 0 | D9: ='SA3'!D71 -> 0 | E9: ='SA3'!E71 -> 0 | F9: ='SA3'!F71 -> 0 | G9: ='SA3'!G71 -> 0 | H9: ='SA3'!H71 -> 0 | I9: ='SA3'!I71 -> 0 | J9: ='SA3'!J71 -> 0 | K9: ='SA3'!K71 -> 0 | L9: ='SA3'!L71 -> 0
A10: Agricultural Total | C10: =SUM(C4:C9) -> 33620158 | D10: =SUM(D4:D9) -> 54896894 | E10: 54949691 | F10: 0 | G10: 0 | H10: 0 | I10: 0 | J10: -88517052 | K10: 2472736 | L10: 2584009
A11: Consumables Standard Rated | B11: Opening balance - Consumables Standard Rated | C11: ='SA3'!C76 -> 0 | D11: ='SA3'!D76 -> 368995193 | E11: ='SA3'!E76 -> 1049223580 | F11: ='SA3'!F76 -> 1846835035 | G11: ='SA3'!G76 -> 1846835035 | H11: ='SA3'!H76 -> 1846835035 | I11: ='SA3'!I76 -> 1846835035 | J11: ='SA3'!J76 -> 1846835035 | K11: ='SA3'!K76 -> 1846835035 | L11: ='SA3'!L76 -> 1846835035
B12: Acquisitions - Consumables Standard Rated | C12: ='SA3'!C77 -> 0 | D12: ='SA3'!D77 -> 0 | E12: ='SA3'!E77 -> 0 | F12: ='SA3'!F77 -> 0 | G12: ='SA3'!G77 -> 0 | H12: ='SA3'!H77 -> 0 | I12: ='SA3'!I77 -> 0 | J12: ='SA3'!J77 -> 0 | K12: ='SA3'!K77 -> 0 | L12: ='SA3'!L77 -> 0
B13: Adjustments - Consumables Standard Rated | C13: ='SA3'!C78 -> 368995193 | D13: ='SA3'!D78 -> 680228387 | E13: ='SA3'!E78 -> 797611455 | F13: ='SA3'!F78 -> 0 | G13: ='SA3'!G78 -> 0 | H13: ='SA3'!H78 -> 0 | I13: ='SA3'!I78 -> 0 | J13: ='SA3'!J78 -> 0 | K13: ='SA3'!K78 -> 0 | L13: ='SA3'!L78 -> 0
B14: Issues - Consumables Standard Rated | C14: ='SA3'!C79 -> 0 | D14: ='SA3'!D79 -> 0 | E14: ='SA3'!E79 -> 0 | F14: ='SA3'!F79 -> 0 | G14: ='SA3'!G79 -> 0 | H14: ='SA3'!H79 -> 0 | I14: ='SA3'!I79 -> 0 | J14: ='SA3'!J79 -> 0 | K14: ='SA3'!K79 -> 0 | L14: ='SA3'!L79 -> 0
B15: Write Off - Consumables Standard Rated | C15: ='SA3'!C80 -> 0 | D15: ='SA3'!D80 -> 0 | E15: ='SA3'!E80 -> 0 | F15: ='SA3'!F80 -> 0 | G15: ='SA3'!G80 -> 0 | H15: ='SA3'!H80 -> 0 | I15: ='SA3'!I80 -> 0 | J15: ='SA3'!J80 -> 0 | K15: ='SA3'!K80 -> 0 | L15: ='SA3'!L80 -> 0
B16: Correction of Prior period errors - Consumables Standard Rated | C16: ='SA3'!C81 -> 0 | D16: ='SA3'!D81 -> 0 | E16: ='SA3'!E81 -> 0 | F16: ='SA3'!F81 -> 0 | G16: ='SA3'!G81 -> 0 | H16: ='SA3'!H81 -> 0 | I16: ='SA3'!I81 -> 0 | J16: ='SA3'!J81 -> 0 | K16: ='SA3'!K81 -> 0 | L16: ='SA3'!L81 -> 0
A17: Consumables Standard Rated Total | C17: =SUM(C11:C16) -> 368995193 | D17: =SUM(D11:D16) -> 1049223580 | E17: 1846835035 | F17: 1846835035 | G17: 1846835035 | H17: 1846835035 | I17: 1846835035 | J17: 1846835035 | K17: 1846835035 | L17: 1846835035
A18: Consumables Zero Rated | B18: Opening balance - Consumables Zero Rated | C18: ='SA3'!C84 -> 0 | D18: ='SA3'!D84 -> 0 | E18: ='SA3'!E84 -> 0 | F18: ='SA3'!F84 -> 0 | G18: ='SA3'!G84 -> 0 | H18: ='SA3'!H84 -> 0 | I18: ='SA3'!I84 -> 0 | J18: ='SA3'!J84 -> 0 | K18: ='SA3'!K84 -> 0 | L18: ='SA3'!L84 -> 0
B19: Acquisitions - Consumables Zero Rated | C19: ='SA3'!C85 -> 0 | D19: ='SA3'!D85 -> 0 | E19: ='SA3'!E85 -> 0 | F19: ='SA3'!F85 -> 0 | G19: ='SA3'!G85 -> 0 | H19: ='SA3'!H85 -> 0 | I19: ='SA3'!I85 -> 0 | J19: ='SA3'!J85 -> 0 | K19: ='SA3'!K85 -> 0 | L19: ='SA3'!L85 -> 0
B20: Adjustments - Consumables Zero Rated | C20: ='SA3'!C86 -> 0 | D20: ='SA3'!D86 -> 0 | E20: ='SA3'!E86 -> 0 | F20: ='SA3'!F86 -> 0 | G20: ='SA3'!G86 -> 0 | H20: ='SA3'!H86 -> 0 | I20: ='SA3'!I86 -> 0 | J20: ='SA3'!J86 -> 0 | K20: ='SA3'!K86 -> 0 | L20: ='SA3'!L86 -> 0
B21: Issues - Consumables Zero Rated | C21: ='SA3'!C87 -> 0 | D21: ='SA3'!D87 -> 0 | E21: ='SA3'!E87 -> 0 | F21: ='SA3'!F87 -> 0 | G21: ='SA3'!G87 -> 0 | H21: ='SA3'!H87 -> 0 | I21: ='SA3'!I87 -> 0 | J21: ='SA3'!J87 -> 0 | K21: ='SA3'!K87 -> 0 | L21: ='SA3'!L87 -> 0
B22: Write Off - Consumables Zero Rated | C22: ='SA3'!C88 -> 0 | D22: ='SA3'!D88 -> 0 | E22: ='SA3'!E88 -> 0 | F22: ='SA3'!F88 -> 0 | G22: ='SA3'!G88 -> 0 | H22: ='SA3'!H88 -> 0 | I22: ='SA3'!I88 -> 0 | J22: ='SA3'!J88 -> 0 | K22: ='SA3'!K88 -> 0 | L22: ='SA3'!L88 -> 0
B23: Correction of Prior period errors - Consumables Zero Rated | C23: ='SA3'!C89 -> 0 | D23: ='SA3'!D89 -> 0 | E23: ='SA3'!E89 -> 0 | F23: ='SA3'!F89 -> 0 | G23: ='SA3'!G89 -> 0 | H23: ='SA3'!H89 -> 0 | I23: ='SA3'!I89 -> 0 | J23: ='SA3'!J89 -> 0 | K23: ='SA3'!K89 -> 0 | L23: ='SA3'!L89 -> 0
A24: Consumables Zero Rated Total | C24: =SUM(C18:C23) -> 0 | D24: =SUM(D18:D23) -> 0 | E24: 0 | F24: 0 | G24: 0 | H24: 0 | I24: 0 | J24: 0 | K24: 0 | L24: 0
A25: Finished Goods | B25: Opening balance - Finished Goods | C25: ='SA3'!C102 -> 0 | D25: ='SA3'!D102 -> 41310862 | E25: ='SA3'!E102 -> 57001926 | F25: ='SA3'!F102 -> 67858425 | G25: ='SA3'!G102 -> 67858425 | H25: ='SA3'!H102 -> 67858425 | I25: ='SA3'!I102 -> 67858425 | J25: ='SA3'!J102 -> 67858425 | K25: ='SA3'!K102 -> 67858425 | L25: ='SA3'!L102 -> 70912054
B26: Acquisitions - Finished Goods | C26: ='SA3'!C103 -> 41310862 | D26: ='SA3'!D103 -> 15691064 | E26: ='SA3'!E103 -> 10856499 | F26: ='SA3'!F103 -> 0 | G26: ='SA3'!G103 -> 0 | H26: ='SA3'!H103 -> 0 | I26: ='SA3'!I103 -> 0 | J26: ='SA3'!J103 -> 0 | K26: ='SA3'!K103 -> 3053629 | L26: ='SA3'!L103 -> 3191043
B27: Adjustments - Finished Goods | C27: ='SA3'!C104 -> 0 | D27: ='SA3'!D104 -> 0 | E27: ='SA3'!E104 -> 0 | F27: ='SA3'!F104 -> 0 | G27: ='SA3'!G104 -> 0 | H27: ='SA3'!H104 -> 0 | I27: ='SA3'!I104 -> 0 | J27: ='SA3'!J104 -> 0 | K27: ='SA3'!K104 -> 0 | L27: ='SA3'!L104 -> 0
B28: Issues -Finished Goods | C28: ='SA3'!C105 -> 0 | D28: ='SA3'!D105 -> 0 | E28: ='SA3'!E105 -> 0 | F28: ='SA3'!F105 -> 0 | G28: ='SA3'!G105 -> 0 | H28: ='SA3'!H105 -> 0 | I28: ='SA3'!I105 -> 0 | J28: ='SA3'!J105 -> 0 | K28: ='SA3'!K105 -> 0 | L28: ='SA3'!L105 -> 0
B29: Write Off - Finished Goods | C29: ='SA3'!C106 -> 0 | D29: ='SA3'!D106 -> 0 | E29: ='SA3'!E106 -> 0 | F29: ='SA3'!F106 -> 0 | G29: ='SA3'!G106 -> 0 | H29: ='SA3'!H106 -> 0 | I29: ='SA3'!I106 -> 0 | J29: ='SA3'!J106 -> 0 | K29: ='SA3'!K106 -> 0 | L29: ='SA3'!L106 -> 0
B30: Correction of Prior period errors - Finished Goods | C30: ='SA3'!C107 -> 0 | D30: ='SA3'!D107 -> 0 | E30: ='SA3'!E107 -> 0 | F30: ='SA3'!F107 -> 0 | G30: ='SA3'!G107 -> 0 | H30: ='SA3'!H107 -> 0 | I30: ='SA3'!I107 -> 0 | J30: ='SA3'!J107 -> 0 | K30: ='SA3'!K107 -> 0 | L30: ='SA3'!L107 -> 0
A31: Finished Goods Total | C31: =SUM(C25:C30) -> 41310862 | D31: =SUM(D25:D30) -> 57001926 | E31: 67858425 | F31: 67858425 | G31: 67858425 | H31: 67858425 | I31: 67858425 | J31: 67858425 | K31: 70912054 | L31: 74103097
A32: Housing Stock | B32: Opening balance - Housing Stock | C32: ='SA3'!C117 -> 0 | D32: ='SA3'!D117 -> 292004270 | E32: ='SA3'!E117 -> 306876224 | F32: ='SA3'!F117 -> 373658481 | G32: ='SA3'!G117 -> 373658481 | H32: ='SA3'!H117 -> 373658481 | I32: ='SA3'!I117 -> 373658481 | J32: ='SA3'!J117 -> 373658481 | K32: ='SA3'!K117 -> 373658481 | L32: ='SA3'!L117 -> 390473113
B33: Acquisitions - Housing Stock | C33: ='SA3'!C118 -> 0 | D33: ='SA3'!D118 -> 14871954 | E33: ='SA3'!E118 -> 66782257 | F33: ='SA3'!F118 -> 0 | G33: ='SA3'!G118 -> 0 | H33: ='SA3'!H118 -> 0 | I33: ='SA3'!I118 -> 0 | J33: ='SA3'!J118 -> 0 | K33: ='SA3'!K118 -> 16814632 | L33: ='SA3'!L118 -> 17571290
B34: Sales - Housing Stock | C34: ='SA3'!C119 -> 292004270 | D34: ='SA3'!D119 -> 0 | E34: ='SA3'!E119 -> 0 | F34: ='SA3'!F119 -> 0 | G34: ='SA3'!G119 -> 0 | H34: ='SA3'!H119 -> 0 | I34: ='SA3'!I119 -> 0 | J34: ='SA3'!J119 -> 0 | K34: ='SA3'!K119 -> 0 | L34: ='SA3'!L119 -> 0
B35: Transfer - Housing stock | C35: ='SA3'!C120 -> 0 | D35: ='SA3'!D120 -> 0 | E35: ='SA3'!E120 -> 0 | F35: ='SA3'!F120 -> 0 | G35: ='SA3'!G120 -> 0 | H35: ='SA3'!H120 -> 0 | I35: ='SA3'!I120 -> 0 | J35: ='SA3'!J120 -> 0 | K35: ='SA3'!K120 -> 0 | L35: ='SA3'!L120 -> 0
B36: Correction of Prior period errors - Housing stock | C36: ='SA3'!C121 -> 0 | D36: ='SA3'!D121 -> 0 | E36: ='SA3'!E121 -> 0 | F36: ='SA3'!F121 -> 0 | G36: ='SA3'!G121 -> 0 | H36: ='SA3'!H121 -> 0 | I36: ='SA3'!I121 -> 0 | J36: ='SA3'!J121 -> 0 | K36: ='SA3'!K121 -> 0 | L36: ='SA3'!L121 -> 0
A37: Housing Stock Total | C37: =SUM(C32:C36) -> 292004270 | D37: =SUM(D32:D36) -> 306876224 | E37: 373658481 | F37: 373658481 | G37: 373658481 | H37: 373658481 | I37: 373658481 | J37: 373658481 | K37: 390473113 | L37: 408044403
A38: Land | B38: Opening balance - Land | C38: ='SA3'!C125 -> 0 | D38: ='SA3'!D125 -> 0 | E38: ='SA3'!E125 -> 0 | F38: ='SA3'!F125 -> 0 | G38: ='SA3'!G125 -> 0 | H38: ='SA3'!H125 -> 0 | I38: ='SA3'!I125 -> 0 | J38: ='SA3'!J125 -> 0 | K38: ='SA3'!K125 -> -1607083427 | L38: ='SA3'!L125 -> -1512554971
B39: Acquisitions - Land | C39: ='SA3'!C126 -> 0 | D39: ='SA3'!D126 -> 0 | E39: ='SA3'!E126 -> 0 | F39: ='SA3'!F126 -> 0 | G39: ='SA3'!G126 -> 0 | H39: ='SA3'!H126 -> 0 | I39: ='SA3'!I126 -> 0 | J39: ='SA3'!J126 -> -1607083427 | K39: ='SA3'!K126 -> 94528456 | L39: ='SA3'!L126 -> 200819009
B40: Sales - land | C40: ='SA3'!C127 -> 0 | D40: ='SA3'!D127 -> 0 | E40: ='SA3'!E127 -> 0 | F40: ='SA3'!F127 -> 0 | G40: ='SA3'!G127 -> 0 | H40: ='SA3'!H127 -> 0 | I40: ='SA3'!I127 -> 0 | J40: ='SA3'!J127 -> 0 | K40: ='SA3'!K127 -> 0 | L40: ='SA3'!L127 -> 0
B41: Adjustments - Land | C41: ='SA3'!C128 -> 0 | D41: ='SA3'!D128 -> 0 | E41: ='SA3'!E128 -> 0 | F41: ='SA3'!F128 -> 0 | G41: ='SA3'!G128 -> 0 | H41: ='SA3'!H128 -> 0 | I41: ='SA3'!I128 -> 0 | J41: ='SA3'!J128 -> 0 | K41: ='SA3'!K128 -> 0 | L41: ='SA3'!L128 -> 0
B42: Correction of Prior period errors - Land | C42: ='SA3'!C129 -> 0 | D42: ='SA3'!D129 -> 0 | E42: ='SA3'!E129 -> 0 | F42: ='SA3'!F129 -> 0 | G42: ='SA3'!G129 -> 0 | H42: ='SA3'!H129 -> 0 | I42: ='SA3'!I129 -> 0 | J42: ='SA3'!J129 -> 0 | K42: ='SA3'!K129 -> 0 | L42: ='SA3'!L129 -> 0
B43: Transfers - Land | C43: ='SA3'!C130 -> 0 | D43: ='SA3'!D130 -> 0 | E43: ='SA3'!E130 -> 0 | F43: ='SA3'!F130 -> 0 | G43: ='SA3'!G130 -> 0 | H43: ='SA3'!H130 -> 0 | I43: ='SA3'!I130 -> 0 | J43: ='SA3'!J130 -> 0 | K43: ='SA3'!K130 -> 0 | L43: ='SA3'!L130 -> 0
A44: Land Total | C44: =SUM(C38:C43) -> 0 | D44: =SUM(D38:D43) -> 0 | E44: 0 | F44: 0 | G44: 0 | H44: 0 | I44: 0 | J44: -1607083427 | K44: -1512554971 | L44: -1311735962
A45: Materials and Supplies | B45: Opening balance - Materials and Supplies | C45: ='SA3'!C102 -> 0 | D45: ='SA3'!D102 -> 41310862 | E45: ='SA3'!E102 -> 57001926 | F45: ='SA3'!F102 -> 67858425 | G45: ='SA3'!G102 -> 67858425 | H45: ='SA3'!H102 -> 67858425 | I45: ='SA3'!I102 -> 67858425 | J45: ='SA3'!J102 -> 67858425 | K45: ='SA3'!K102 -> 67858425 | L45: ='SA3'!L102 -> 70912054
B46: Acquisitions - Materials and Supplies | C46: ='SA3'!C103 -> 41310862 | D46: ='SA3'!D103 -> 15691064 | E46: ='SA3'!E103 -> 10856499 | F46: ='SA3'!F103 -> 0 | G46: ='SA3'!G103 -> 0 | H46: ='SA3'!H103 -> 0 | I46: ='SA3'!I103 -> 0 | J46: ='SA3'!J103 -> 0 | K46: ='SA3'!K103 -> 3053629 | L46: ='SA3'!L103 -> 3191043
B47: Adjustments - Materials and Supplies | C47: ='SA3'!C104 -> 0 | D47: ='SA3'!D104 -> 0 | E47: ='SA3'!E104 -> 0 | F47: ='SA3'!F104 -> 0 | G47: ='SA3'!G104 -> 0 | H47: ='SA3'!H104 -> 0 | I47: ='SA3'!I104 -> 0 | J47: ='SA3'!J104 -> 0 | K47: ='SA3'!K104 -> 0 | L47: ='SA3'!L104 -> 0
B48: Issues - Materials and Supplies | C48: ='SA3'!C105 -> 0 | D48: ='SA3'!D105 -> 0 | E48: ='SA3'!E105 -> 0 | F48: ='SA3'!F105 -> 0 | G48: ='SA3'!G105 -> 0 | H48: ='SA3'!H105 -> 0 | I48: ='SA3'!I105 -> 0 | J48: ='SA3'!J105 -> 0 | K48: ='SA3'!K105 -> 0 | L48: ='SA3'!L105 -> 0
B49: Write Off - Materials and Supplies | C49: ='SA3'!C106 -> 0 | D49: ='SA3'!D106 -> 0 | E49: ='SA3'!E106 -> 0 | F49: ='SA3'!F106 -> 0 | G49: ='SA3'!G106 -> 0 | H49: ='SA3'!H106 -> 0 | I49: ='SA3'!I106 -> 0 | J49: ='SA3'!J106 -> 0 | K49: ='SA3'!K106 -> 0 | L49: ='SA3'!L106 -> 0
B50: Correction of Prior period errors - Materials and Supplies | C50: ='SA3'!C107 -> 0 | D50: ='SA3'!D107 -> 0 | E50: ='SA3'!E107 -> 0 | F50: ='SA3'!F107 -> 0 | G50: ='SA3'!G107 -> 0 | H50: ='SA3'!H107 -> 0 | I50: ='SA3'!I107 -> 0 | J50: ='SA3'!J107 -> 0 | K50: ='SA3'!K107 -> 0 | L50: ='SA3'!L107 -> 0
A51: Materials and Supplies Total | C51: =SUM(C45:C50) -> 41310862 | D51: =SUM(D45:D50) -> 57001926 | E51: 67858425 | F51: 67858425 | G51: 67858425 | H51: 67858425 | I51: 67858425 | J51: 67858425 | K51: 70912054 | L51: 74103097
A52: Water | B52: Opening balance - Water | C52: ='SA3'!C33 -> 6518641 | D52: ='SA3'!D33 -> 1620083 | E52: ='SA3'!E33 -> 1620083 | F52: ='SA3'!F33 -> 1348309 | G52: ='SA3'!G33 -> 1348309 | H52: ='SA3'!H33 -> 1348309 | I52: ='SA3'!I33 -> 1348309 | J52: ='SA3'!J33 -> 71635345 | K52: ='SA3'!K33 -> -94470898 | L52: ='SA3'!L33 -> -277434777
B53: Acquisitions - Water bulk purchases | C53: ='SA3'!C36 -> -4898558 | D53: ='SA3'!D36 -> 0 | E53: ='SA3'!E36 -> 0 | F53: ='SA3'!F36 -> 0 | G53: ='SA3'!G36 -> 712651060 | H53: ='SA3'!H36 -> 712651060 | I53: ='SA3'!I36 -> 799259 | J53: ='SA3'!J36 -> 847500000 | K53: ='SA3'!K36 -> 885637500 | L53: ='SA3'!L36 -> 925491188
B54: Acquisitions - Water natural sources | C54: ='SA3'!C37 -> 0 | D54: ='SA3'!D37 -> 0 | E54: ='SA3'!E37 -> 0 | F54: ='SA3'!F37 -> 0 | G54: ='SA3'!G37 -> 0 | H54: ='SA3'!H37 -> 0 | I54: ='SA3'!I37 -> 0 | J54: ='SA3'!J37 -> 0 | K54: ='SA3'!K37 -> 0 | L54: ='SA3'!L37 -> 0
B55: Acquisitions - Water treatment works | C55: ='SA3'!C35 -> 0 | D55: ='SA3'!D35 -> 0 | E55: ='SA3'!E35 -> 0 | F55: ='SA3'!F35 -> 0 | G55: ='SA3'!G35 -> 0 | H55: ='SA3'!H35 -> 0 | I55: ='SA3'!I35 -> 0 | J55: ='SA3'!J35 -> 0 | K55: ='SA3'!K35 -> 0 | L55: ='SA3'!L35 -> 0
B56: Billed Authorised Consumption:Billed Metered Consumption:Free Basic Water | C56: ='SA3'!C41 -> 0 | D56: ='SA3'!D41 -> 0 | E56: ='SA3'!E41 -> 0 | F56: ='SA3'!F41 -> 0 | G56: ='SA3'!G41 -> 0 | H56: ='SA3'!H41 -> 0 | I56: ='SA3'!I41 -> 0 | J56: ='SA3'!J41 -> 0 | K56: ='SA3'!K41 -> 0 | L56: ='SA3'!L41 -> 0
B57: Billed Authorised Consumption:Billed Metered Consumption:Revenue Water | C57: ='SA3'!C43 -> 0 | D57: ='SA3'!D43 -> 0 | E57: ='SA3'!E43 -> 0 | F57: ='SA3'!F43 -> 0 | G57: ='SA3'!G43 -> -642364024 | H57: ='SA3'!H43 -> -642364024 | I57: ='SA3'!I43 -> 0 | J57: ='SA3'!J43 -> -1013606243 | K57: ='SA3'!K43 -> -1068601379 | L57: ='SA3'!L43 -> -1123752159
B58: Billed Authorised Consumption:Billed Metered Consumption:Subsidised Water | C58: ='SA3'!C42 -> 0 | D58: ='SA3'!D42 -> 0 | E58: ='SA3'!E42 -> 0 | F58: ='SA3'!F42 -> 0 | G58: ='SA3'!G42 -> 0 | H58: ='SA3'!H42 -> 0 | I58: ='SA3'!I42 -> 0 | J58: ='SA3'!J42 -> 0 | K58: ='SA3'!K42 -> 0 | L58: ='SA3'!L42 -> 0
B59: Billed Authorised Consumption:Billed Unmetered Consumption:Free Basic Water | C59: ='SA3'!C45 -> 0 | D59: ='SA3'!D45 -> 0 | E59: ='SA3'!E45 -> 0 | F59: ='SA3'!F45 -> 0 | G59: ='SA3'!G45 -> 0 | H59: ='SA3'!H45 -> 0 | I59: ='SA3'!I45 -> 0 | J59: ='SA3'!J45 -> 0 | K59: ='SA3'!K45 -> 0 | L59: ='SA3'!L45 -> 0
B60: Billed Authorised Consumption:Billed Unmetered Consumption:Revenue Water | C60: ='SA3'!C47 -> 0 | D60: ='SA3'!D47 -> 0 | E60: ='SA3'!E47 -> 0 | F60: ='SA3'!F47 -> 0 | G60: ='SA3'!G47 -> 0 | H60: ='SA3'!H47 -> 0 | I60: ='SA3'!I47 -> 0 | J60: ='SA3'!J47 -> 0 | K60: ='SA3'!K47 -> 0 | L60: ='SA3'!L47 -> 0
B61: Billed Authorised Consumption:Billed Unmetered Consumption:Subsidised Water | C61: ='SA3'!C46 -> 0 | D61: ='SA3'!D46 -> 0 | E61: ='SA3'!E46 -> 0 | F61: ='SA3'!F46 -> 0 | G61: ='SA3'!G46 -> 0 | H61: ='SA3'!H46 -> 0 | I61: ='SA3'!I46 -> 0 | J61: ='SA3'!J46 -> 0 | K61: ='SA3'!K46 -> 0 | L61: ='SA3'!L46 -> 0
B62: Data Transfer and Management Errors | C62: ='SA3'!C59 -> 0 | D62: ='SA3'!D59 -> 0 | E62: ='SA3'!E59 -> 0 | F62: ='SA3'!F59 -> 0 | G62: ='SA3'!G59 -> 0 | H62: ='SA3'!H59 -> 0 | I62: ='SA3'!I59 -> 0 | J62: ='SA3'!J59 -> 0 | K62: ='SA3'!K59 -> 0 | L62: ='SA3'!L59 -> 0
B63: Non-revenue Water | C63: ='SA3'!C61 -> 0 | D63: ='SA3'!D61 -> 0 | E63: ='SA3'!E61 -> 0 | F63: ='SA3'!F61 -> 0 | G63: ='SA3'!G61 -> 0 | H63: ='SA3'!H61 -> 0 | I63: ='SA3'!I61 -> 0 | J63: ='SA3'!J61 -> 0 | K63: ='SA3'!K61 -> 0 | L63: ='SA3'!L61 -> 0
B64: Unavoidable Annual Real Losses | C64: ='SA3'!C60 -> 0 | D64: ='SA3'!D60 -> 0 | E64: ='SA3'!E60 -> 0 | F64: ='SA3'!F60 -> 0 | G64: ='SA3'!G60 -> 0 | H64: ='SA3'!H60 -> 0 | I64: ='SA3'!I60 -> 0 | J64: ='SA3'!J60 -> 0 | K64: ='SA3'!K60 -> 0 | L64: ='SA3'!L60 -> 0
B65: Unbilled Authorised Consumption:Unbilled Metered Consumption | C65: ='SA3'!C49 -> 0 | D65: ='SA3'!D49 -> 0 | E65: ='SA3'!E49 -> 0 | F65: ='SA3'!F49 -> 0 | G65: ='SA3'!G49 -> 0 | H65: ='SA3'!H49 -> 0 | I65: ='SA3'!I49 -> 0 | J65: ='SA3'!J49 -> 0 | K65: ='SA3'!K49 -> 0 | L65: ='SA3'!L49 -> 0
B66: Unbilled Authorised Consumption:Unbilled Unmetered Consumption | C66: ='SA3'!C50 -> 0 | D66: ='SA3'!D50 -> 0 | E66: ='SA3'!E50 -> 0 | F66: ='SA3'!F50 -> 0 | G66: ='SA3'!G50 -> 0 | H66: ='SA3'!H50 -> 0 | I66: ='SA3'!I50 -> 0 | J66: ='SA3'!J50 -> 0 | K66: ='SA3'!K50 -> 0 | L66: ='SA3'!L50 -> 0
B67: Water Losses:Apparent Losses:Customer Meter Inaccuracies | C67: ='SA3'!C54 -> 0 | D67: ='SA3'!D54 -> 0 | E67: ='SA3'!E54 -> 0 | F67: ='SA3'!F54 -> 0 | G67: ='SA3'!G54 -> 0 | H67: ='SA3'!H54 -> 0 | I67: ='SA3'!I54 -> 0 | J67: ='SA3'!J54 -> 0 | K67: ='SA3'!K54 -> 0 | L67: ='SA3'!L54 -> 0
B68: Water Losses:Apparent Losses:Unauthorised Consumption | C68: ='SA3'!C53 -> 0 | D68: ='SA3'!D53 -> 0 | E68: ='SA3'!E53 -> 0 | F68: ='SA3'!F53 -> 0 | G68: ='SA3'!G53 -> 0 | H68: ='SA3'!H53 -> 0 | I68: ='SA3'!I53 -> 0 | J68: ='SA3'!J53 -> 0 | K68: ='SA3'!K53 -> 0 | L68: ='SA3'!L53 -> 0
B69: Water Losses:Real Losses:Leakage and Overflows at Storage Tanks/Reservoirs | C69: ='SA3'!C57 -> 0 | D69: ='SA3'!D57 -> 0 | E69: ='SA3'!E57 -> 0 | F69: ='SA3'!F57 -> 0 | G69: ='SA3'!G57 -> 0 | H69: ='SA3'!H57 -> 0 | I69: ='SA3'!I57 -> 0 | J69: ='SA3'!J57 -> 0 | K69: ='SA3'!K57 -> 0 | L69: ='SA3'!L57 -> 0
B70: Water Losses:Real Losses:Leakage on Service Connections up to the point of Customer Meter | C70: ='SA3'!C58 -> 0 | D70: ='SA3'!D58 -> 0 | E70: ='SA3'!E58 -> 0 | F70: ='SA3'!F58 -> 0 | G70: ='SA3'!G58 -> 0 | H70: ='SA3'!H58 -> 0 | I70: ='SA3'!I58 -> 0 | J70: ='SA3'!J58 -> 0 | K70: ='SA3'!K58 -> 0 | L70: ='SA3'!L58 -> 0
B71: Water Losses:Real Losses:Leakage on Transmission and Distribution Mains | C71: ='SA3'!C56 -> 0 | D71: ='SA3'!D56 -> 0 | E71: ='SA3'!E56 -> 0 | F71: ='SA3'!F56 -> 0 | G71: ='SA3'!G56 -> 0 | H71: ='SA3'!H56 -> 0 | I71: ='SA3'!I56 -> 0 | J71: ='SA3'!J56 -> 0 | K71: ='SA3'!K56 -> 0 | L71: ='SA3'!L56 -> 0
B72: Correction of Prior period errors - Water | C72: ='SA3'!C62 -> 0 | D72: ='SA3'!D62 -> 0 | E72: ='SA3'!E62 -> 0 | F72: ='SA3'!F62 -> 0 | G72: ='SA3'!G62 -> 0 | H72: ='SA3'!H62 -> 0 | I72: ='SA3'!I62 -> 0 | J72: ='SA3'!J62 -> 0 | K72: ='SA3'!K62 -> 0 | L72: ='SA3'!L62 -> 0
A73: Water Total | C73: =SUM(C52:C72) -> 1620083 | D73: =SUM(D52:D72) -> 1620083 | E73: 1620083 | F73: 1348309 | G73: 71635345 | H73: 71635345 | I73: 2147568 | J73: -94470898 | K73: -277434777 | L73: -475695748
A74: Work-in-progress | B74: Opening balance - WIP | C74: ='SA3'!C111 -> 0 | D74: ='SA3'!D111 -> 0 | E74: ='SA3'!E111 -> 0 | F74: ='SA3'!F111 -> 0 | G74: ='SA3'!G111 -> 0 | H74: ='SA3'!H111 -> 0 | I74: ='SA3'!I111 -> 0 | J74: ='SA3'!J111 -> 0 | K74: ='SA3'!K111 -> 0 | L74: ='SA3'!L111 -> 0
B75: Materials - WIP | C75: ='SA3'!C112 -> 0 | D75: 0 | E75: 0 | F75: 0 | G75: 0 | H75: 0 | I75: 0 | J75: 0 | K75: 0 | L75: 0
B76: Transfer - WIP | C76: ='SA3'!C113 -> 0 | D76: ='SA3'!D113 -> 0 | E76: ='SA3'!E113 -> 0 | F76: ='SA3'!F113 -> 0 | G76: ='SA3'!G113 -> 0 | H76: ='SA3'!H113 -> 0 | I76: ='SA3'!I113 -> 0 | J76: ='SA3'!J113 -> 0 | K76: ='SA3'!K113 -> 0 | L76: ='SA3'!L113 -> 0
A77: Work-in-progress Total | C77: =SUM(C74:C76) -> 0 | D77: =SUM(D74:D76) -> 0 | E77: 0 | F77: 0 | G77: 0 | H77: 0 | I77: 0 | J77: 0 | K77: 0 | L77: 0
A78: Grand Total | C78: =+C73+C51+C44+C37+C31+C24+C17+C10 -> 778861428 | D78: =+D73+D51+D44+D37+D31+D24+D17+D10 -> 1526620633 | E78: 2412780140 | F78: 2357558675 | G78: 2427845711 | H78: 2427845711 | I78: 2358357934 | J78: 566138989 | K78: 591615244 | L78: 618237931

Sheet A7-CFlow
A1: =muni&" - "&Approve7 -> Choose name from list - Table A7 Budgeted Cash Flows
A2: =desc -> Description | B2: =head27 -> Ref | C2: =head1b -> 2021/22 | D2: =head1A -> 2022/23 | E2: =Head1 -> 2023/24 | F2: =Head2 -> Current Year 2024/25 | J2: =Head3 -> 2025/26 Medium Term Revenue & Expenditure Framework
A3: R thousand | C3: =Head5 -> Audited Outcome | D3: =Head5 -> Audited Outcome | E3: =Head5 -> Audited Outcome | F3: =Head6 -> Original Budget | G3: =Head7 -> Adjusted Budget | H3: =Head8 -> Full Year Forecast | I3: =Head5b -> Pre-audit outcome | J3: =Head9 -> Budget Year 2025/26 | K3: =Head10 -> Budget Year +1 2026/27 | L3: =Head11 -> Budget Year +2 2027/28
A4: CASH FLOW FROM OPERATING ACTIVITIES
A5: Receipts
A6: Property rates | C6: 1149564108 | D6: 1390668357 | E6: 1311261708 | F6: 1435365977 | G6: 1484417269 | H6: 1484417269 | J6: ='SA30'!N5 -> 1532281589 | K6: ='SA30'!O5 -> 1601234261 | L6: ='SA30'!P5 -> 1641265119
A7: Service charges | C7: 3166809930 | D7: 3474508778 | E7: 3723491933 | F7: 4467999174 | G7: 4717471651 | H7: 4717471651 | J7: ='SA30'!N6+'SA30'!N7+'SA30'!N8+'SA30'!N9 -> 5220730333 | K7: ='SA30'!O6+'SA30'!O7+'SA30'!O8+'SA30'!O9 -> 5476546119 | L7: ='SA30'!P6+'SA30'!P7+'SA30'!P8+'SA30'!P9 -> 5744896878
A8: Other revenue | C8: 90125470 | D8: 18380525 | E8: 221597289 | F8: 1124159378 | G8: 765832296.5 | H8: 783126674.5 | J8: =('SA30'!N11+'SA30'!N15+'SA30'!N16+'SA30'!N17+'SA30'!N19+'SA30'!N29)+17409671 -> 211669522 | K8: =('SA30'!O11+'SA30'!O15+'SA30'!O16+'SA30'!O17+'SA30'!O19+'SA30'!O29)+18252313 -> 222030898 | L8: =('SA30'!P11+'SA30'!P15+'SA30'!P16+'SA30'!P17+'SA30'!P19+'SA30'!P29)+19137096 -> 232900829
A9: Transfers and Subsidies - Operational | B9: 1 | C9: 686988866 | D9: 795621362 | E9: 819354854 | F9: 834106196 | G9: 1008751736 | H9: 1008751736 | J9: ='SA30'!N18 -> 992232195 | K9: ='SA30'!O18 -> 1065080549 | L9: ='SA30'!P18 -> 1111919830
A10: Transfers and Subsidies - Capital | B10: 1 | C10: 327896741 | D10: 369338037 | E10: 443822774 | F10: 452578009 | G10: 477925973.5 | H10: 477925973.5 | J10: ='SA30'!N23+'SA30'!N24 -> 376126520 | K10: ='SA30'!O23+'SA30'!O24 -> 429887271 | L10: ='SA30'!P23+'SA30'!P24 -> 457346507
A11: Interest | C11: 33668198 | D11: 43192405 | E11: 64527967 | F11: 18177025 | G11: 19135146.8 | H11: 19260146.8 | J11: =('SA30'!N12+'SA30'!N13)+260000 -> 20256228 | K11: =('SA30'!O12+'SA30'!O13)+250000 -> 21226044 | L11: =('SA30'!P12+'SA30'!P13)+230000 -> 22233870
A12: Dividends | F12: 0 | G12: 0 | H12: 0 | J12: ='SA30'!N14 -> 0 | K12: ='SA30'!O14 -> 0 | L12: ='SA30'!P14 -> 0
A13: Payments
A14: Suppliers and employees | C14: -4868127307 | D14: -5316924949 | E14: -5936912706 | F14: -7297413805 | G14: -7584599211 | H14: -7604849211 | J14: =(-('SA30'!N35+'SA30'!N36+'SA30'!N38+'SA30'!N39+'SA30'!N40+'SA30'!N41+'SA30'!N44+'SA30'!N50))+-15897984.46 -> -7637675184 | K14: =(-('SA30'!O35+'SA30'!O36+'SA30'!O38+'SA30'!O39+'SA30'!O40+'SA30'!O41+'SA30'!O44+'SA30'!O50))+-18376380.54 -> -8059732546 | L14: =(-('SA30'!P35+'SA30'!P36+'SA30'!P38+'SA30'!P39+'SA30'!P40+'SA30'!P41+'SA30'!P44+'SA30'!P50))+-15875449 -> -8416618621
A15: Interest | C15: -27182033 | D15: -18815098 | E15: -16638068 | F15: -40400878 | G15: -42824930.71 | H15: -42824930.71 | J15: =-('SA30'!N37) -> -56180000 | K15: =-('SA30'!O37) -> -58708100 | L15: =-('SA30'!P37) -> -62230586
A16: Transfers and Subsidies | B16: 1 | C16: -25006849 | E16: -17831448 | F16: -51023536 | G16: -69670130.46 | H16: -69670130.46 | J16: =-('SA30'!N42+'SA30'!N43) -> -72456936 | K16: =-('SA30'!O42+'SA30'!O43) -> -76007326 | L16: =-('SA30'!P42+'SA30'!P43) -> -79731684
A17: NET CASH FROM/(USED) OPERATING ACTIVITIES | C17: =SUM(C6:C12)+SUM(C14:C16) -> 534737124 | D17: =SUM(D6:D12)+SUM(D14:D16) -> 755969417 | E17: 612674303 | F17: 943547540.4 | G17: 776439800.6 | H17: 773609178.6 | I17: =SUM(I6:I12)+SUM(I14:I16) -> 0 | J17: 586984266.5 | K17: 621557170.5 | L17: 651982142
A19: CASH FLOWS FROM INVESTING ACTIVITIES
A20: Receipts
A21: Proceeds on disposal of PPE | C21: 5871697 | D21: 3343357 | E21: 579902 | J21: ='SA30'!N25 -> 0 | K21: ='SA30'!O25 -> 0 | L21: ='SA30'!P25 -> 0
D22: 0
A23: Decrease (increase) in non-current receivables | C23: -358575 | D23: -12482603 | E23: -6206410 | J23: ='SA30'!N30 -> 0 | K23: ='SA30'!O30 -> 0 | L23: ='SA30'!P30 -> 0
A24: Decrease (increase) in non-current investments | D24: 9415144 | E24: -329809 | J24: ='SA30'!N31 -> 0 | K24: ='SA30'!O31 -> 0 | L24: ='SA30'!P31 -> 0
A25: Payments
A26: Capital assets | C26: -530564295 | D26: -451807250 | E26: -668438314 | F26: -769351055 | G26: -824010890 | H26: -824860890 | J26: =(-('SA30'!N48))+-2085313 -> -629736234 | K26: =(-('SA30'!O48))+-2261242 -> -522148513 | L26: =(-('SA30'!P48))+-2354756 -> -559701263
A27: NET CASH FROM/(USED) INVESTING ACTIVITIES | C27: =+C21+C23+C24+C26 -> -525051173 | D27: =+D21+D23+D24+D26 -> -451531352 | E27: -674394631 | F27: -769351055 | G27: -824010890 | H27: -824860890 | I27: 0 | J27: -629736234 | K27: -522148513 | L27: -559701263
A29: CASH FLOWS FROM FINANCING ACTIVITIES
A30: Receipts
A31: Short term loans | E31: 116274950 | J31: ='SA30'!N26 -> 0 | K31: ='SA30'!O26 -> 0 | L31: ='SA30'!P26 -> 0
A32: Borrowing long term/refinancing | F32: 200000000 | G32: 234315856 | H32: 234315856 | J32: ='SA30'!N27 -> 161524401 | K32: ='SA30'!O27 -> 0 | L32: ='SA30'!P27 -> 0
A33: Increase (decrease) in consumer deposits | J33: ='SA30'!N28 -> 0 | K33: ='SA30'!O28 -> 0 | L33: ='SA30'!P28 -> 0
A34: Payments
A35: Repayment of borrowing | C35: -81573483 | D35: -79162901 | E35: -74270250 | F35: -23000000 | G35: -50000000 | H35: -50000000 | J35: =-('SA30'!N49) -> -90000000 | K35: =-('SA30'!O49) -> -90000000 | L35: =-('SA30'!P49) -> -90000000
A36: NET CASH FROM/(USED) FINANCING ACTIVITIES | C36: =SUM(C31:C33)+C35 -> -81573483 | D36: =SUM(D31:D33)+D35 -> -79162901 | E36: 42004700 | F36: 177000000 | G36: 184315856 | H36: 184315856 | I36: 0 | J36: 71524401 | K36: -90000000 | L36: -90000000
A38: NET INCREASE/ (DECREASE) IN CASH HELD | C38: =C17+C27+C36 -> -71887532 | D38: 225275164 | E38: -19715628 | F38: 351196485.4 | G38: 136744766.6 | H38: 133064144.6 | I38: 0 | J38: 28772433.54 | K38: 9408657.46 | L38: 2280879
A39: Cash/cash equivalents at the year begin: | B39: 2 | C39: 359519552 | D39: 289152840 | E39: 511402009 | F39: 289152840 | G39: 495992735 | H39: 495992735 | J39: ='SA30'!N54 -> 366360226 | K39: =J40 -> 395132659.5 | L39: =K40 -> 404541317
A40: Cash/cash equivalents at the year end: | B40: 2 | C40: =C38+C39 -> 287632020 | D40: =D38+D39 -> 514428004 | E40: =E38+E39 -> 491686381 | F40: =F38+F39 -> 640349325.4 | G40: 632737501.6 | H40: 629056879.6 | I40: 0 | J40: 395132659.5 | K40: 404541317 | L40: 406822196
A41: =head27a -> References
A42: 1. Local/District municipalities to include transfers from/to District/Local Municipalities
A43: 2. Cash equivalents includes investments with maturities of 3 months or less
A44: 3. The MTREF is populated directly from SA30.
A45: Total receipts | C45: =SUM(C6:C12)+SUM(C21:C23) -> 5460566435 | D45: 6082570218 | E45: 6578430017 | F45: 8332385759 | G45: 8473534072 | H45: 8490953450 | I45: 0 | J45: 8353296387 | K45: 8816005142 | L45: 9210563033
A46: Total payments | C46: =SUM(C14:C16)+C26 -> -5450880484 | D46: -5787547297 | E46: -6639820536 | F46: -8158189274 | G46: -8521105162 | H46: -8542205162 | I46: 0 | J46: -8396048354 | K46: -8716596485 | L46: -9118282154
C47: =C45+C46 -> 9685951 | D47: =D45+D46 -> 295022921 | E47: -61390519 | F47: 174196485.4 | G47: -47571089.42 | H47: -51251711.42 | I47: 0 | J47: -42751967.46 | K47: 99408657.46 | L47: 92280879
A48: Borrowings & investments & c.deposits | C48: =C24+C32+C33 -> 0 | D48: =D24+D32+D33 -> 9415144 | E48: -329809 | F48: 200000000 | G48: 234315856 | H48: 234315856 | I48: 0 | J48: 161524401 | K48: 0 | L48: 0
A49: =A35 -> Repayment of borrowing | C49: =C35 -> -81573483 | D49: =D35 -> -79162901 | E49: -74270250 | F49: -23000000 | G49: -50000000 | H49: -50000000 | I49: =I35 -> 0 | J49: -90000000 | K49: -90000000 | L49: -90000000
C50: =C47+C48+C49 -> -71887532 | D50: =D47+D48+D49 -> 225275164 | E50: -135990578 | F50: 351196485.4 | G50: 136744766.6 | H50: 133064144.6 | I50: 0 | J50: 28772433.54 | K50: 9408657.46 | L50: 2280879
C51: =C38-C50 -> 0 | D51: 0 | E51: 116274950 | F51: 0 | G51: 0 | H51: 0 | I51: 0 | J51: 0 | K51: 9.536743164e-07 | L51: 0

Sheet A8-ResRecon
A1: =muni&" - "&Approve8 -> Choose name from list - Table A8 Cash backed reserves/accumulated surplus reconciliation
A2: =desc -> Description | B2: =head27 -> Ref | C2: =head1b -> 2021/22 | D2: =head1A -> 2022/23 | E2: =Head1 -> 2023/24 | F2: =Head2 -> Current Year 2024/25 | J2: =Head3 -> 2025/26 Medium Term Revenue & Expenditure Framework
A3: R thousand | C3: =Head5 -> Audited Outcome | D3: =Head5 -> Audited Outcome | E3: =Head5 -> Audited Outcome | F3: =Head6 -> Original Budget | G3: =Head7 -> Adjusted Budget | H3: =Head8 -> Full Year Forecast | I3: =Head5b -> Pre-audit outcome | J3: =Head9 -> Budget Year 2025/26 | K3: =Head10 -> Budget Year +1 2026/27 | L3: =Head11 -> Budget Year +2 2027/28
A4: Cash and investments available
A5: =LEFT('A7-CFlow'!A40,37) -> Cash/cash equivalents at the year end | B5: 1 | C5: ='A7-CFlow'!C40 -> 287632020 | D5: ='A7-CFlow'!D40 -> 514428004 | E5: ='A7-CFlow'!E40 -> 491686381 | F5: ='A7-CFlow'!F40 -> 640349325.4 | G5: ='A7-CFlow'!G40 -> 632737501.6 | H5: ='A7-CFlow'!H40 -> 629056879.6 | I5: ='A7-CFlow'!I40 -> 0 | J5: ='A7-CFlow'!J40 -> 395132659.5 | K5: ='A7-CFlow'!K40 -> 404541317 | L5: ='A7-CFlow'!L40 -> 406822196
A6: Other current investments > 90 days | C6: ='A6-FinPos'!C6-'A6-FinPos'!C29-'A8-ResRecon'!C5 -> 2801179 | D6: ='A6-FinPos'!D6-'A6-FinPos'!D29-'A8-ResRecon'!D5 -> 1280359 | E6: ='A6-FinPos'!E6-'A6-FinPos'!E29-'A8-ResRecon'!E5 -> 4306354 | F6: ='A6-FinPos'!F6-'A6-FinPos'!F29-'A8-ResRecon'!F5 -> -427208988.4 | G6: ='A6-FinPos'!G6-'A6-FinPos'!G29-'A8-ResRecon'!G5 -> -259913845.6 | H6: ='A6-FinPos'!H6-'A6-FinPos'!H29-'A8-ResRecon'!H5 -> -254876241.6 | I6: ='A6-FinPos'!I6-'A6-FinPos'!I29-'A8-ResRecon'!I5 -> -666355195 | J6: ='A6-FinPos'!J6-'A6-FinPos'!J29-'A8-ResRecon'!J5 -> 5037936 | K6: ='A6-FinPos'!K6-'A6-FinPos'!K29-'A8-ResRecon'!K5 -> -7561916 | L6: ='A6-FinPos'!L6-'A6-FinPos'!L29-'A8-ResRecon'!L5 -> -1877790
A7: Non current Investments | B7: 1 | C7: ='A6-FinPos'!C15 -> 0 | D7: ='A6-FinPos'!D15 -> 0 | E7: ='A6-FinPos'!E15 -> 0 | F7: ='A6-FinPos'!F15 -> 0 | G7: ='A6-FinPos'!G15 -> 0 | H7: ='A6-FinPos'!H15 -> 0 | I7: ='A6-FinPos'!I15 -> 0 | J7: ='A6-FinPos'!J15 -> 0 | K7: ='A6-FinPos'!K15 -> 0 | L7: ='A6-FinPos'!L15 -> 0
A8: Cash and investments available: | C8: =SUM(C5:C7) -> 290433199 | D8: =SUM(D5:D7) -> 515708363 | E8: 495992735 | F8: 213140337 | G8: 372823656 | H8: 374180638 | I8: -666355195 | J8: 400170595.5 | K8: 396979401 | L8: 404944406
A10: Application of cash and investments
A11: Unspent conditional transfers | C11: ='SA3'!C149 -> 136087526 | D11: ='SA3'!D149 -> 175932856 | E11: ='SA3'!E149 -> 189531485 | F11: ='SA3'!F149 -> 0 | G11: ='SA3'!G149 -> 0 | H11: ='SA3'!H149 -> 0 | I11: ='SA3'!I149 -> 0 | J11: ='SA3'!J149 -> 0 | K11: ='SA3'!K149 -> 0 | L11: ='SA3'!L149 -> 0
A12: Unspent borrowing
A13: Statutory requirements | B13: 2 | C13: 178088884 | D13: 185012600 | E13: 174006314 | F13: 457746833 | G13: 0 | H13: 0 | I13: -67378865 | J13: 162137445 | K13: 169433630 | L13: 177058143
A14: Other working capital requirements | B14: 3 | C14: =-C34 -> 795885876 | D14: =-D34 -> 1707378576 | E14: 2627521359 | F14: =-F34 -> 277633896 | G14: 214150896 | H14: 211065896 | I14: 0 | J14: -119106104 | K14: -256242104 | L14: -343810104
A15: Other provisions | C15: 49117979 | D15: 58244752 | E15: 53143375 | F15: 61739437 | G15: 61739437 | H15: 61739437 | I15: -60481 | J15: 53143375 | K15: 55534827 | L15: 58033895
A16: Long term investments committed | B16: 4 | C16: =C54 -> 0 | D16: =D54 -> 0 | E16: 0 | F16: 0 | G16: 0 | H16: 0 | I16: 0 | J16: 0 | K16: 0 | L16: 0
A17: Reserves to be backed by cash/investments | B17: 5 | C17: 140061620 | D17: 145592313 | E17: 148347919 | F17: 0 | G17: 0 | H17: 0 | I17: -1468968
A18: Total Application of cash and investments: | C18: =SUM(C11:C17) -> 1299241885 | D18: =SUM(D11:D17) -> 2272161097 | E18: 3192550452 | F18: 797120166 | G18: 275890333 | H18: 272805333 | I18: -68908314 | J18: 96174716 | K18: -31273647 | L18: -108718066
A19: Surplus(shortfall) - Excluding Non-Current Creditors Trf to Debt Relief Benefits | C19: =C8-C18 -> -1008808686 | D19: =D8-D18 -> -1756452734 | E19: -2696557717 | F19: -583979829 | G19: 96933323 | H19: 101375305 | I19: -597446881 | J19: 303995879.5 | K19: 428253048 | L19: 513662472
A20: Creditors transferred to Debt Relief - Non-Current portion | C20: ='SA3'!C162 -> 0 | D20: ='SA3'!D162 -> 0 | E20: ='SA3'!E162 -> 0 | F20: ='SA3'!F162 -> 0 | G20: ='SA3'!G162 -> 0 | H20: ='SA3'!H162 -> 0 | I20: ='SA3'!I162 -> 0 | J20: ='SA3'!J162 -> 0 | K20: ='SA3'!K162 -> 0 | L20: ='SA3'!L162 -> 0
A21: Surplus(shortfall) - Including Non-Current Creditors Trf to Debt Relief Benefits | C21: =SUM(C19:C20) -> -1008808686 | D21: =SUM(D19:D20) -> -1756452734 | E21: -2696557717 | F21: -583979829 | G21: 96933323 | H21: 101375305 | I21: -597446881 | J21: 303995879.5 | K21: 428253048 | L21: 513662472
A22: =head27a -> References
A23: 1. Must reconcile with Budgeted Cash Flows
A24: 2. For example: VAT, taxation
A25: 3. Council approval for policy required - include sufficient working capital (e.g. allowing for a % of current debtors > 90 days as uncollectable)
A26: 4. For example: sinking fund requirements for borrowing
A27: 5. Council approval required for each reserve created and basis of cash backing of reserves - Total Reserves to be backed by cash/investments excl Valuation reserve
A30: Other working capital requirements
A31: Debtors | C31: =IF(ISERROR(ROUND(C37*C38,-3)),0,(ROUND(C37*C38,-3))) -> 1153345000 | D31: =IF(ISERROR(ROUND(D37*D38,-3)),0,(ROUND(D37*D38,-3))) -> 1295938000 | E31: 530893000 | F31: 1436100000 | G31: 1430083000 | H31: 1433168000 | I31: 0 | J31: 1832840000 | K31: 1919976000 | L31: 2007544000
A33: Creditors due | C33: ='SA3'!C147+'SA3'!C148 -> 1949230876 | D33: ='SA3'!D147+'SA3'!D148 -> 3003316576 | E33: ='SA3'!E147+'SA3'!E148 -> 3158414359 | F33: ='SA3'!F147+'SA3'!F148 -> 1713733896 | G33: ='SA3'!G147+'SA3'!G148 -> 1644233896 | H33: ='SA3'!H147+'SA3'!H148 -> 1644233896 | I33: ='SA3'!I147+'SA3'!I148 -> 0 | J33: ='SA3'!J147+'SA3'!J148 -> 1713733896 | K33: ='SA3'!K147+'SA3'!K148 -> 1663733896 | L33: ='SA3'!L147+'SA3'!L148 -> 1663733896
A34: Total | C34: =C31-C33 -> -795885876 | D34: =D31-D33 -> -1707378576 | E34: -2627521359 | F34: -277633896 | G34: -214150896 | H34: -211065896 | I34: 0 | J34: 119106104 | K34: 256242104 | L34: 343810104
A36: Debtors collection assumptions
